Workbook

Sheet RESUMO MODULO TOTAL
B1: EXECUÇÃO DE CAPA ASFÁLTICA EM CONCRETO BETUMINOSO USINADO A QUENTE (CBUQ), EM VIAS DE MUNICÍPIOS DIVERSOS INSERIDOS NA ÁREA DE ATUAÇÃO DA CODEVASF 3ª SR, NO ESTADO DE PERNAMBUCO - REGIÃO VALE DO IPOJUCA | N1: PERNAMBUCO
M2: SICRO: | N2: Pernambuco - Abril/2024
M3: SINAPI: | N3: 09/2024
M4: Data base do orçamento: | N4: 2024-10-23
B5: EXECUÇÃO DE CAPA ASFÁLTICA EM CONCRETO BETUMINOSO USINADO A QUENTE (CBUQ), EM VIAS DE MUNICÍPIOS DIVERSOS INSERIDOS NA ÁREA DE ATUAÇÃO DA CODEVASF 3ª SR, NO ESTADO DE PERNAMBUCO - REGIÃO VALE DO IPOJUCA
B6: ITEM | C6: ORIGEM COMPOSIÇÃO | D6: CÓDIGO COMPOSIÇÃO | E6: DISCRIMINAÇÃO DOS SERVIÇOS | I6: BDI % = | J6: 0.2339 | K6: BDI DIFERENCIADO%: | L6: 0.15 | M6: R$/m² = | N6: 101.4349767
I7: Total de m² | J7: Encargos Sociais: | K7: Horista R$ | L7: Mensalista R$ | M7: PREÇO UNITÁRIO COM BDI | N7: PREÇO TOTAL COM BDI
I8: 140000 | K8: 113.98 | L8: 70
I9: UND | J9: QTDE. | K9: BDI | L9: PREÇO UNITÁRIO
E10: MOBILIZAÇÃO/DESMOBILIZAÇÃO
B11: 1 | C11: Codevasf | D11: Mob | E11: Mobilização | I11: kmxfrente | J11: 1000 | K11: 0.2339 | L11: 107.2153183 | M11: 132.2929813 | N11: 132292.98 | O11: =N11/N49 -> 0.009315818746 | P11: INCC | S11: N1 | T11: TERRAPLENAGEM | U11: =(SUMIF(P:P,"TERRAPLENAGEM",N:N)/$N$49) -> 0 | V11: =(SUMIF(P:P,"TERRAPLENAGEM",N:N)) -> 0
B12: 2 | C12: Codevasf | D12: Mob | E12: Desmobilização | I12: kmxfrente | J12: 1000 | K12: 0.2339 | L12: 107.2153183 | M12: 132.2929813 | N12: 132292.98 | O12: =N12/$N$49 -> 0.009315818746 | P12: INCC | S12: N2 | T12: PAVIMENTAÇÃO | U12: =SUMIF(P:P,"PAVIMENTAÇÃO",N:N)/$N$49 -> 0.3907362165 | V12: =(SUMIF(P:P,"PAVIMENTAÇÃO",N:N)) -> 5548804.66
E13: INSTALAÇÃO DE CANTEIRO | S13: N3 | T13: CONSULTORIA | U13: =SUMIF(P:P,"CONSULTORIA",N:N)/$N$49 -> 0 | V13: =(SUMIF(P:P,"CONSULTORIA",N:N)) -> 0
B14: 3 | C14: Codevasf | D14: Canteiro | E14: Canteiro de Obras | I14: frente | J14: 1 | K14: 0.2339 | L14: 19147.44 | M14: 23626.02622 | N14: 23626.03 | O14: =N14/J20 -> 0.1687573571 | P14: INCC | S14: N4 | T14: DRENAGEM | U14: =SUMIF(P:P,"DRENAGEM",N:N)/$N$49 -> 0.007270861266 | V14: =(SUMIF(P:P,"DRENAGEM",N:N)) -> 103252.75
B15: 4 | C15: SINAPI | D15: 103689 | E15: Fornecimento e instalação de placa de obra com chapa galvanizada e estrutura de madeira. af_03/2022_ps | I15: m² | J15: 160 | K15: 0.2339 | L15: 462.29 | M15: 570.419631 | N15: 91267.14 | P15: INCC | S15: N5 | T15: ADMINISTRAÇÃO LOCAL | U15: =SUMIF(P:P,"ADMINISTRAÇÃO LOCAL",N:N)/$N$49 -> 0 | V15: =(SUMIF(P:P,"ADMINISTRAÇÃO LOCAL",N:N)) -> 0
E16: ADMINISTRAÇÃO LOCAL DA OBRA | S16: N6 | T16: SINALIZAÇÃO VERTICAL | U16: =SUMIF(P:P,"SINALIZAÇÃO VERTICAL",N:N)/$N$49 -> 0 | V16: =(SUMIF(P:P,"SINALIZAÇÃO VERTICAL",N:N)) -> 0
B17: 5 | C17: Codevasf | D17: Adm Local | E17: Administração Local da Obra | I17: und | J17: 1 | K17: 0.2339 | L17: 741135.3594 | M17: 914486.9199 | N17: 914486.92 | O17: =N17/N49 -> 0.06439642067 | P17: INCC | S17: N7 | T17: SINALIZAÇÃO HORIZONTAL | U17: =SUMIF(P:P,"SINALIZAÇÃO HORIZONTAL",N:N)/$N$49 -> 0 | V17: =(SUMIF(P:P,"SINALIZAÇÃO HORIZONTAL",N:N)) -> 0
E18: PAVIMENTAÇÃO | S18: N8 | T18: CAP | U18: =(SUMIF(P:P,"CAP",N:N))/$N$49 -> 0.4769038266 | V18: =(SUMIF(P:P,"CAP",N:N)) -> 6772461.994
B19: 6 | C19: SICRO | D19: 4011463 | E19: Concreto asfáltico - faixa C - areia e brita comerciais | I19: t | J19: 16800 | K19: 0.2339 | L19: 193.45 | M19: 238.697955 | N19: 4010125.64 | P19: PAVIMENTAÇÃO | S19: N9 | T19: IMPRIMAÇÃO | U19: =(SUMIF(P:P,"IMPRIMAÇÃO",N:N))/$N$49 -> 0 | V19: =(SUMIF(P:P,"IMPRIMAÇÃO",N:N)) -> 0
B20: 7 | C20: SICRO | D20: 4011353 | E20: Pintura de ligação | I20: m² | J20: 140000 | K20: 0.2339 | L20: 0.28 | M20: 0.345492 | N20: 48368.88 | P20: PAVIMENTAÇÃO | S20: N10 | T20: EMULSÃO ASFÁLTICA | U20: =(SUMIF(P:P,"EMULSÃO ASFÁLTICA",N:N))/$N$49 -> 0 | V20: =(SUMIF(P:P,"EMULSÃO ASFÁLTICA",N:N)) -> 0
B21: 8 | C21: SICRO | D21: 4915663 | E21: Fresagem descontínua de revestimento asfáltico - espessura de 5 cm | I21: m³ | J21: 700 | K21: 0.2339 | L21: 72.34 | M21: 89.260326 | N21: 62482.23 | P21: PAVIMENTAÇÃO | S21: N11 | T21: OBRAS COMPLEMENTARES | U21: =(SUMIF(P:P,"OBRAS COMPLEMENTARES",N:N))/$N$49 -> 0 | V21: =(SUMIF(P:P,"OBRAS COMPLEMENTARES",N:N)) -> 0
B22: 9 | C22: SICRO | D22: 4915618 | E22: Recomposição de camada granular do pavimento com material de jazida | I22: m² | J22: 14000 | K22: 0.2339 | L22: 3.13 | M22: 3.862107 | N22: 54069.5 | P22: PAVIMENTAÇÃO | S22: N12 | T22: MOBILIZAÇÃO | U22: =(SUMIF(P:P,"MOBILIZAÇÃO",N:N))/$N$49 -> 0 | V22: =(SUMIF(P:P,"MOBILIZAÇÃO",N:N)) -> 0
E23: AQUISIÇÃO E TRANSPORTE DO MATERIAL BETUMINOSO | S23: N13 | T23: INCC | U23: =(SUMIF(P:P,"INCC",N:N))/$N$49 -> 0.1250890957 | V23: =(SUMIF(P:P,"INCC",N:N)) -> 1776377.33
B24: 10 | C24: CODEVASF | D24: CPU-13 | E24: AQUISIÇÃO DE CIMENTO ASFALTICO CAP 50/70 | I24: t | J24: 1062.26 | K24: 0.1499999999 | L24: 5144.18835 | M24: 5915.816602 | N24: 6284135.344 | P24: CAP
B25: 11 | C25: CODEVASF | D25: CPU-17 | E25: TRANSPORTE CAP 50/70 | I25: t | J25: 1062.26 | K25: 0.1499772417 | L25: 175.76 | M25: 202.12 | N25: 214703.99 | P25: CAP
B26: 12 | C26: CODEVASF | D26: CPU-15 | E26: AQUISIÇÃO DE EMULSÃO ASFÁLTICA RR-1C | I26: t | J26: 56 | K26: 0.1500000001 | L26: 3670.659004 | M26: 4221.257855 | N26: 236390.44 | P26: CAP
B27: 13 | C27: CODEVASF | D27: CPU-19 | E27: TRANSPORTE RR-1C | I27: t | J27: 56 | K27: 0.15 | L27: 578.14 | M27: 664.861 | N27: 37232.22 | P27: CAP
E28: SINALIZAÇÃO
B29: 14 | C29: SICRO | D29: 5213440 | E29: Placa de regulamentação em aço D = 0,60 m - película retrorrefletiva tipo I + SI - fornecimento e implantação | I29: und | J29: 60 | K29: 0.2339 | L29: 257.26 | M29: 317.433114 | N29: 19045.99 | P29: INCC
B30: 15 | C30: SICRO | D30: 5213464 | E30: Placa de advertência em aço, lado de 0,60 m - película retrorrefletiva tipo I + SI - fornecimento e implantação | I30: und | J30: 60 | K30: 0.2339 | L30: 257.29 | M30: 317.470131 | N30: 19048.21 | P30: INCC
B31: 16 | C31: SICRO | D31: 5213863 | E31: Suporte metálico galvanizado para placa de advertência ou regulamentação - lado ou diâmetro de 0,60 m - fornecimento e implantação | I31: und | J31: 120 | K31: 0.2339 | L31: 453.74 | M31: 559.869786 | N31: 67184.37 | P31: INCC
B32: 17 | C32: SICRO | D32: 5213400 | E32: Pintura de faixa com tinta acrílica - espessura de 0,4 mm | I32: m² | J32: 4800 | K32: 0.2339 | L32: 24.58 | M32: 30.329262 | N32: 145580.46 | P32: INCC
E33: DRENAGEM
B34: 18 | C34: SICRO | D34: 4915777 | E34: Reassentamento manual de meio-fio com material arrancado da pista | I34: m | J34: 4000 | K34: 0.2339 | L34: 13.82 | M34: 17.052498 | N34: 68209.99 | P34: DRENAGEM
B35: 19 | C35: SICRO | D35: 4915708 | E35: Limpeza de sarjeta e meio-fio | I35: m | J35: 40000 | K35: 0.2339 | L35: 0.71 | M35: 0.876069 | N35: 35042.76 | P35: DRENAGEM
B36: 20 | C36: SICRO | D36: 4915724 | E36: Caiação mecanizada com fixador de cal | I36: m² | J36: 4800 | K36: 0.2339 | L36: 1.88 | M36: 2.319732 | N36: 11134.71 | P36: INCC
E37: PROJETO EXECUTIVO
B38: 21 | C38: Codevasf | D38: Composição Própria | E38: Projeto Executivo | I38: m² | J38: 140000 | K38: 0.2338998283 | L38: 1.275963 | M38: 1.574410527 | N38: 220417.54 | O38: =N38/N49 -> 0.01552138179 | P38: INCC
E39: MOMENTO DE TRANSPORTE
B40: 22 | C40: SICRO | D40: 5914359 | E40: Transporte com caminhão basculante de 10 m³ - rodovia em leito natural | I40: tkm | J40: 0 | K40: 0.2339 | L40: 1.2 | M40: 1.48068 | N40: 0 | P40: PAVIMENTAÇÃO
B41: 23 | C41: SICRO | D41: 5914374 | E41: Transporte com caminhão basculante de 10 m³ - rodovia em revestimento primário | I41: tkm | J41: 0 | K41: 0.2339 | L41: 0.96 | M41: 1.184544 | N41: 0 | P41: PAVIMENTAÇÃO
B42: 24 | C42: SICRO | D42: 5914389 | E42: Transporte com caminhão basculante de 10 m³ - rodovia pavimentada | I42: tkm | J42: 1068748.8 | K42: 0.2339 | L42: 0.79 | M42: 0.974781 | N42: 1041796.02 | P42: PAVIMENTAÇÃO
B43: 25 | C43: SICRO | D43: 5914364 | E43: Transporte de cimento ou cal hidratada a granel com caminhão silo de 30 m³ - rodovia em leito natural | I43: tkm | J43: 0 | K43: 0.2339 | L43: 0.87 | M43: 1.073493 | N43: 0 | P43: PAVIMENTAÇÃO
B44: 26 | C44: SICRO | D44: 5914365 | E44: Transporte de cimento ou cal hidratada a granel com caminhão silo de 30 m³ - rodovia em revestimento primário | I44: tkm | J44: 0 | K44: 0.2339 | L44: 0.7 | M44: 0.86373 | N44: 0 | P44: PAVIMENTAÇÃO
B45: 27 | C45: SICRO | D45: 5914366 | E45: Transporte de cimento ou cal hidratada a granel com caminhão silo de 30 m³ - rodovia pavimentada | I45: tkm | J45: 0 | K45: 0.2339 | L45: 0.57 | M45: 0.703323 | N45: 0 | P45: PAVIMENTAÇÃO
B46: 28 | C46: SICRO | D46: 5914314 | E46: Transporte com caminhão basculante de 6 m³ - rodovia em leito natural | I46: tkm | J46: 0 | K46: 0.2339 | L46: 1.25 | M46: 1.542375 | N46: 0 | P46: PAVIMENTAÇÃO
B47: 29 | C47: SICRO | D47: 5914329 | E47: Transporte com caminhão basculante de 6 m³ - rodovia em revestimento primário | I47: tkm | J47: 0 | K47: 0.2339 | L47: 1 | M47: 1.2339 | N47: 0 | P47: PAVIMENTAÇÃO
B48: 30 | C48: SICRO | D48: 5914344 | E48: Transporte com caminhão basculante de 6 m³ - rodovia pavimentada | I48: tkm | J48: 328091.57 | K48: 0.2339 | L48: 0.82 | M48: 1.011798 | N48: 331962.39 | P48: PAVIMENTAÇÃO
J49: VALOR TOTAL DO SRP | N49: 14200896.73
B50: Obs.: Os valores estão apresentados com apenas 2 casas decimais, mas os valores da presente planilha foram calculados utilizando a precisão de 6 casa decimais.

Sheet CRONOGRAMA TOTAL
A2: ='RESUMO MODULO TOTAL'!B1 -> EXECUÇÃO DE CAPA ASFÁLTICA EM CONCRETO BETUMINOSO USINADO A QUENTE (CBUQ), EM VIAS DE MUNICÍPIOS DIVERSOS INSERIDOS NA ÁREA DE ATUAÇÃO DA CODEVASF 3ª SR, NO ESTADO DE PERNAMBUCO - REGIÃO VALE DO IPOJUCA
A3: Cronograma Físico e Financeiro
A4: Item | B4: Descrição | C4: Total Por Etapa | D4: 30 DIAS | E4: 60 DIAS | F4: 90 DIAS | G4: 120 DIAS | H4: 150 DIAS | I4: 180 DIAS | J4: 210 DIAS | K4: 240 DIAS | L4: 270 DIAS | M4: 300 DIAS | N4: 330 DIAS | O4: 360 DIAS
B5: ='RESUMO MODULO TOTAL'!E10 -> MOBILIZAÇÃO/DESMOBILIZAÇÃO | C5: =SUM(D5:O5) -> 1 | D5: 0.5 | O5: 0.5
C6: =SUM('RESUMO MODULO TOTAL'!N11:N12) -> 264585.96 | D6: =$C$6*D5 -> 132292.98 | O6: =$C$6*O5 -> 132292.98 | P6: =SUM(D6:O6) -> 264585.96 | Q6: =IF(P6=C6,"OK","") -> OK
B7: ='RESUMO MODULO TOTAL'!E13 -> INSTALAÇÃO DE CANTEIRO | C7: =SUM(D7:O7) -> 1 | D7: 0.1 | E7: 0.5 | F7: 0.4
C8: =SUM('RESUMO MODULO TOTAL'!N14:N15) -> 114893.17 | D8: =$C$8*D7 -> 11489.317 | E8: =$C$8*E7 -> 57446.585 | F8: 45957.268 | G8: 0 | H8: 0 | I8: 0 | J8: 0 | K8: 0 | L8: 0 | M8: 0 | N8: 0 | O8: 0 | P8: =SUM(D8:O8) -> 114893.17 | Q8: =IF(P8=C8,"OK","") -> OK
B9: ='RESUMO MODULO TOTAL'!E16 -> ADMINISTRAÇÃO LOCAL DA OBRA | C9: =SUM(D9:O9) -> 1 | D9: =(D6+D8+D12+D14+D16+D18+D20+D22)/($O$29-$C$10) -> 0.02741145592 | E9: =(E6+E8+E12+E14+E16+E18+E20+E22)/($O$29-$C$10) -> 0.004323710152 | F9: 0.003458968122 | G9: 0.1545597698 | H9: 0.1545597698 | I9: 0.1545597698 | J9: 0.1545597698 | K9: 0.1545597698 | L9: 0.1545597698 | M9: 0.004304679052 | N9: 0.004304679052 | O9: 0.02883788889
C10: =SUM('RESUMO MODULO TOTAL'!N17) -> 914486.92 | D10: =$C$10*D9 -> 25067.4179 | E10: =$C$10*E9 -> 3953.97638 | F10: =$C$10*F9 -> 3163.181104 | G10: 141342.8878 | H10: 141342.8878 | I10: 141342.8878 | J10: 141342.8878 | K10: 141342.8878 | L10: 141342.8878 | M10: 3936.572688 | N10: 3936.572688 | O10: 26371.87219 | P10: =SUM(D10:O10) -> 914486.92 | Q10: =IF(P10=C10,"OK","") -> 
B11: ='RESUMO MODULO TOTAL'!E18 -> PAVIMENTAÇÃO | C11: =SUM(D11:O11) -> 1 | G11: =1/6 -> 0.1666666667 | H11: =1/6 -> 0.1666666667 | I11: 0.1666666667 | J11: 0.1666666667 | K11: 0.1666666667 | L11: 0.1666666667
C12: =SUM('RESUMO MODULO TOTAL'!N19:N22) -> 4175046.25 | D12: =$C$14*D11 -> 0 | E12: =$C$12*E11 -> 0 | F12: 0 | G12: 695841.0417 | H12: 695841.0417 | I12: 695841.0417 | J12: 695841.0417 | K12: 695841.0417 | L12: 695841.0417 | M12: 0 | N12: 0 | O12: 0 | P12: =SUM(D12:O12) -> 4175046.25 | Q12: =IF(P12=C12,"OK","") -> 
B13: ='RESUMO MODULO TOTAL'!E23 -> AQUISIÇÃO E TRANSPORTE DO MATERIAL BETUMINOSO | C13: =SUM(D13:O13) -> 1 | G13: =1/6 -> 0.1666666667 | H13: 0.1666666667 | I13: 0.1666666667 | J13: 0.1666666667 | K13: 0.1666666667 | L13: 0.1666666667
C14: =SUM('RESUMO MODULO TOTAL'!N24:N27) -> 6772461.994 | D14: =$C$14*D13 -> 0 | E14: =$C$14*E13 -> 0 | F14: 0 | G14: 1128743.666 | H14: 1128743.666 | I14: 1128743.666 | J14: 1128743.666 | K14: 1128743.666 | L14: 1128743.666 | M14: 0 | N14: 0 | O14: 0 | P14: =SUM(D14:O14) -> 6772461.994 | Q14: =IF(P14=C14,"OK","") -> 
B15: ='RESUMO MODULO TOTAL'!E28 -> SINALIZAÇÃO | C15: =SUM(D15:O15) -> 1 | O15: 1
C16: =SUM('RESUMO MODULO TOTAL'!N29:N32) -> 250859.03 | D16: =$C$16*D15 -> 0 | E16: =$C$16*E15 -> 0 | F16: 0 | G16: 0 | H16: 0 | I16: 0 | J16: 0 | K16: 0 | L16: 0 | M16: 0 | N16: 0 | O16: 250859.03 | P16: =SUM(D16:O16) -> 250859.03 | Q16: =IF(P16=C16,"OK","") -> OK
B17: ='RESUMO MODULO TOTAL'!E33 -> DRENAGEM | C17: =SUM(D17:O17) -> 1 | M17: 0.5 | N17: 0.5
C18: =SUM('RESUMO MODULO TOTAL'!N34:N36) -> 114387.46 | D18: =$C$18*D17 -> 0 | E18: =$C$18*E17 -> 0 | F18: 0 | G18: 0 | H18: 0 | I18: 0 | J18: 0 | K18: 0 | L18: 0 | M18: 57193.73 | N18: 57193.73 | O18: 0 | P18: =SUM(D18:O18) -> 114387.46 | Q18: =IF(P18=C18,"OK","") -> OK
B19: ='RESUMO MODULO TOTAL'!E37 -> PROJETO EXECUTIVO | C19: =SUM(D19:O19) -> 1 | D19: 1
C20: =SUM('RESUMO MODULO TOTAL'!N38) -> 220417.54 | D20: =$C$20*D19 -> 220417.54 | E20: =$C$20*E19 -> 0 | F20: 0 | G20: 0 | H20: 0 | I20: 0 | J20: 0 | K20: 0 | L20: 0 | M20: 0 | N20: 0 | O20: 0 | P20: =SUM(D20:O20) -> 220417.54 | Q20: =IF(P20=C20,"OK","") -> OK
B21: ='RESUMO MODULO TOTAL'!E39 -> MOMENTO DE TRANSPORTE | C21: =SUM(D21:O21) -> 1 | G21: =1/6 -> 0.1666666667 | H21: =1/6 -> 0.1666666667 | I21: 0.1666666667 | J21: 0.1666666667 | K21: 0.1666666667 | L21: 0.1666666667
C22: =SUM('RESUMO MODULO TOTAL'!N40:N48) -> 1373758.41 | D22: =$C$22*D21 -> 0 | E22: =$C$22*E21 -> 0 | F22: 0 | G22: 228959.735 | H22: 228959.735 | I22: 228959.735 | J22: 228959.735 | K22: 228959.735 | L22: 228959.735 | M22: 0 | N22: 0 | O22: 0 | P22: =SUM(D22:O22) -> 1373758.41 | Q22: =IF(P22=C22,"OK","") -> OK
A24: Porcentagem | D24: =SUM(D6+D8+D10+D12+D14+D16+D18+D20+D22)/$O$29 -> 0.02741145592 | E24: =SUM(E6+E8+E10+E12+E14+E16+E18+E20+E22)/$O$29 -> 0.004323710152 | F24: 0.003458968122 | G24: 0.1545597698 | H24: 0.1545597698 | I24: 0.1545597698 | J24: 0.1545597698 | K24: 0.1545597698 | L24: 0.1545597698 | M24: 0.004304679052 | N24: 0.004304679052 | O24: 0.02883788889
A25: Custo | D25: =$O$29*D24 -> 389267.2549 | E25: =$O$29*E24 -> 61400.56138 | F25: =$O$29*F24 -> 49120.4491 | G25: 2194887.33 | H25: 2194887.33 | I25: 2194887.33 | J25: 2194887.33 | K25: 2194887.33 | L25: 2194887.33 | M25: 61130.30269 | N25: 61130.30269 | O25: 409523.8822
A26: Porcentagem Acumulado | D26: =D24 -> 0.02741145592 | E26: =D26+E24 -> 0.03173516608 | F26: =E26+F24 -> 0.0351941342 | G26: 0.189753904 | H26: 0.3443136738 | I26: 0.4988734436 | J26: 0.6534332134 | K26: 0.8079929832 | L26: 0.962552753 | M26: 0.9668574321 | N26: 0.9711621111 | O26: =N26+O24 -> 1
A27: Custo Acumulado | D27: =D25 -> 389267.2549 | E27: =D27+E25 -> 450667.8163 | F27: 499788.2654 | G27: 2694675.595 | H27: 4889562.926 | I27: 7084450.256 | J27: 9279337.586 | K27: 11474224.92 | L27: 13669112.25 | M27: 13730242.55 | N27: 13791372.85 | O27: 14200896.73
D29: Total Geral | N29: R$ | O29: =C6+C8+C10+C12+C14+C16+C18+C20+C22 -> 14200896.73
O32: =O27-O29 -> 2.793967724e-08
O34: ='RESUMO MODULO TOTAL'!N49 -> 14200896.73
O36: =O29-O34 -> 0

Sheet Mob
A5: MOBILIZAÇÃO/DESMOBILIZAÇÃO (MOB) | F5: Frentes de serviços | H5: 10
F6: Distância da Capital ao Canteiro: | H6: 100 | I6: Fica a cargo de cada SR colocar a distancia adequada de acordo com o historico de mobilização
F8: Velocidade média de transporte (pavim.): | H8: 60
A10: Transporte dos equipamentos
A11: CODIGO | B11: EQUIPAMENTO | C11: VEÍCULO TRANSPORTADOR | D11: QTDE | E11: K | F11: FU | G11: CUSTO DO TRANSPORTE
G12: (R$/h) | H12: (R$)/km
A13: E9524 | B13: Motoniveladora - 93 kW | C13: E9665 | D13: 0 | E13: 2 | F13: 1 | G13: 382.4024 | H13: 0
A14: E9526 | B14: Retroescavadeira de pneus - capacidade da caçamba da pá-carregadeira de 0,76 m³ e da retroescavadeira de 0,29 m³ - 58 kW | C14: E9665 | D14: 0 | E14: 2 | F14: 1 | G14: 382.4024 | H14: 0
A15: E9577 | B15: Trator agrícola sobre pneus - 77 kW | C15: E9665 | D15: 0 | E15: 2 | F15: 0.5 | G15: 382.4024 | H15: 0
A16: E9518 | B16: Grade de 24 discos rebocável de D = 60 cm (24") | C16: Veículo(s) da própria frota. | D16: 1 | E16: 2 | F16: 0 | G16: 0 | H16: 0
A17: E9615 | B17: Usina misturadora de solos com capacidade de 300 t/h - 44 kW | C17: E9018 | D17: 0 | E17: 2 | F17: 2 | G17: 514.2698 | H17: 0
A18: E9689 | B18: Usina de asfalto a quente gravimétrica com capacidade de 100/140 t/h - 260 kW | C18: E9666 | D18: 0 | E18: 2 | F18: 3 | G18: 410.5072 | H18: 0
A19: E9530 | B19: Rolo compactador liso vibratório autopropelido por pneus de 11 t - 97 kW | C19: E9666 | D19: 0 | E19: 2 | F19: 0.5 | G19: 410.5072 | H19: 0
A20: E9558 | B20: Tanque de estocagem de asfalto com capacidade de 30.000 l | C20: E9665 | D20: 1 | E20: 2 | F20: 1 | G20: 382.4024 | H20: 12.74674667
A21: E9758 | B21: Vibroacabadora de asfalto sobre pneus - 82 kW | C21: E9018 | D21: 0 | E21: 2 | F21: 0.5 | G21: 514.2698 | H21: 0
A22: E9685 | B22: Rolo compactador pé de carneiro vibratório autopropelido por pneus de 11,6 t - 82 kW | C22: E9666 | D22: 0 | E22: 2 | F22: 0.5 | G22: 410.5072 | H22: 0
A23: E9605 | B23: Caminhão tanque com capacidade de 6.000 l - 136 kW | C23: E9605 | D23: 0 | E23: 1 | F23: 1 | G23: 245.3455 | H23: 0
A24: E9579 | B24: Caminhão basculante com capacidade de 10 m³ - 210 kW | C24: E9579 | D24: 5 | E24: 1 | F24: 1 | G24: 295.0614 | H24: 24.58845
A25: E9509 | B25: Caminhão tanque distribuidor de asfalto com capacidade de 6.000 l - 7 kW/136 kW | C25: E9509 | D25: 1 | E25: 1 | F25: 1 | G25: 256.3204 | H25: 4.272006667
A26: E9762 | B26: Rolo compactador de pneus autopropelido de 27 t - 85 kW | C26: E9666 | D26: 1 | E26: 2 | F26: 0.5 | G26: 410.5072 | H26: 6.841786667
A27: E9681 | B27: Rolo compactador liso tandem vibratório autopropelido de 10,4 t - 82 kW | C27: E9666 | D27: 1 | E27: 2 | F27: 0.5 | G27: 410.5072 | H27: 6.841786667
A28: E9545 | B28: Vibroacabadora de asfalto sobre esteiras - 82 kW | C28: E9018 | D28: 1 | E28: 2 | F28: 0.5 | G28: 514.2698 | H28: 8.571163333
A29: E9571 | B29: Caminhão tanque com capacidade de 10.000 l - 188 kW | C29: E9571 | D29: 0 | E29: 1 | F29: 1 | G29: 320.5074 | H29: 0
A30: E9514 | B30: Distribuidor de agregados sobre pneus autopropelido - 130 kW | C30: E9665 | D30: 0 | E30: 2 | F30: 0.5 | G30: 382.4024 | H30: 0
A31: E9511 | B31: Carregadeira de pneus com capacidade de 3,40 m³ - 195 kW | C31: E9665 | D31: 0 | E31: 2 | F31: 1 | G31: 382.4024 | H31: 0
A32: E9779 | B32: Grupo gerador - 113 kVA | C32: Veículo(s) da própria frota. | D32: 1 | E32: 2 | F32: 0 | G32: 0 | H32: 0
A33: E9559 | B33: Aquecedor de fluido térmico - 12 kW | C33: Veículo(s) da própria frota. | D33: 1 | E33: 2 | F33: 0 | G33: 0 | H33: 0
A34: E9584 | B34: Carregadeira de pneus com capacidade de 1,72 m³ - 113 kW | C34: E9665 | D34: 0 | E34: 2 | F34: 1 | G34: 382.4024 | H34: 0
A35: E9021 | B35: Grupo gerador - 456 kVA | C35: E9508 | D35: 1 | E35: 2 | F35: 1 | G35: 182.7291 | H35: 6.09097
A36: E9687 | B36: Caminhão carroceria com capacidade de 5 t - 115 kW | C36: E9687 | D36: 1 | E36: 1 | F36: 1 | G36: 150.3159 | H36: 2.505265
A37: E9667 | B37: Caminhão basculante com capacidade de 14 m³ - 210 kW | C37: E9667 | D37: 0 | E37: 1 | F37: 1 | G37: 296.1368 | H37: 0
A38: E9644 | B38: Caminhão demarcador de faixas com sistema de pintura a frio - 28 kW/115 kW | C38: E9644 | D38: 1 | E38: 1 | F38: 1 | G38: 368.9457 | H38: 6.149095
A39: E9592 | B39: Caminhão carroceria com capacidade de 15 t - 188 kW | C39: E9592 | D39: 1 | E39: 1 | F39: 1 | G39: 262.6946 | H39: 4.378243333
A40: E9540 | B40: Trator sobre esteiras com lâmina - 127 kW | C40: E9018 | D40: 0 | E40: 2 | F40: 0.5 | G40: 514.2698 | H40: 0
A41: E9515 | B41: Escavadeira hidráulica sobre esteiras com caçamba com capacidade de 1,56 m³ - 118 kW | C41: E9666 | D41: 0 | E41: 2 | F41: 1 | G41: 410.5072 | H41: 0
A42: E9506 | B42: Caminhão basculante com capacidade de 6 m³ - 136 kW | C42: E9506 | D42: 1 | E42: 1 | F42: 1 | G42: 183.4028 | H42: 3.056713333
A43: E9256 | B43: Equipamento para pintura com cal rebocável com dois bicos aplicadores e capacidade de 2.200 l | C43: Veículo(s) da própria frota. | D43: 1 | E43: 2 | F43: 0 | G43: 0 | H43: 0
A44: E9156 | B44: Soprador de ar costal - 2,6 kW | C44: Veículo(s) da própria frota. | D44: 1 | E44: 2 | F44: 0 | G44: 0 | H44: 0
A45: E9146 | B45: Caminhão silo com capacidade de 30 m³ - 265 kW | C45: E9146 | D45: 1 | E45: 1 | F45: 1 | G45: 449.3711 | H45: 7.489518333
A46: E9010 | B46: Balança plataforma digital à bateria, com mesa de 75 x 75 cm e capacidade de 500 kg | C46: Veículo(s) da própria frota. | D46: 0 | E46: 2 | F46: 0 | G46: 0 | H46: 0
A47: E9519 | B47: Betoneira com motor a gasolina com capacidade de 600 l - 10 kW | C47: Veículo(s) da própria frota. | D47: 0 | E47: 2 | F47: 0 | G47: 0 | H47: 0
A48: E9071 | B48: Transportador manual carrinho de mão com capacidade de 80 l | C48: Veículo(s) da própria frota. | D48: 0 | E48: 2 | F48: 0 | G48: 0 | H48: 0
A49: E9064 | B49: Transportador manual gerica com capacidade de 180 l | C49: Veículo(s) da própria frota. | D49: 0 | E49: 2 | F49: 0 | G49: 0 | H49: 0
A50: E9066 | B50: Grupo gerador - 14 kVA | C50: Veículo(s) da própria frota. | D50: 0 | E50: 2 | F50: 0 | G50: 0 | H50: 0
A51: E9535 | B51: Serra circular com bancada - D = 30 cm - 4 kW | C51: Veículo(s) da própria frota. | D51: 0 | E51: 2 | F51: 0 | G51: 0 | H51: 0
A52: E9507 | B52: Plotadora de recorte com computador e programa computacional | C52: Veículo(s) da própria frota. | D52: 0 | E52: 2 | F52: 0 | G52: 0 | H52: 0
A53: E9568 | B53: Furadeira de impacto de 12,5 mm - 0,80 kW | C53: Veículo(s) da própria frota. | D53: 0 | E53: 2 | F53: 0 | G53: 0 | H53: 0
A54: E9753 | B54: Grupo gerador - 23 kVA | C54: Veículo(s) da própria frota. | D54: 0 | E54: 2 | F54: 0 | G54: 0 | H54: 0
A55: E9623 | B55: Máquina de bancada guilhotina - 4,00 kW | C55: Veículo(s) da própria frota. | D55: 0 | E55: 2 | F55: 0 | G55: 0 | H55: 0
A56: E9622 | B56: Máquina de bancada universal para corte de chapa - 1,50 kW | C56: Veículo(s) da própria frota. | D56: 0 | E56: 2 | F56: 0 | G56: 0 | H56: 0
A57: E9678 | B57: Fresadora a frio - 455 kW | C57: E9666 | D57: 1 | E57: 2 | F57: 1 | G57: 410.5072 | H57: 13.68357333
G58: TOTAL | H58: 107.2153183
A61: CUSTO TOTAL MOBILIZAÇÃO E DESMOBILIZAÇÃO
A62: DESCRIÇÃO | B62: VALOR
A63: Custo Mobilização (km) | B63: 107.2153183
A64: BDI (%) | B64: 0.2339
A65: Custo Mobilização (R$/km) com BDI | B65: 132.2929813
A66: Total de Frentes | B66: 10
A67: Custo Mobilização (frentes x distancia) | B67: 132292.9813

Sheet Canteiro
A4: CANTEIRO DE OBRAS PARA CONSTRUÇAO RODOVIÁRIA
A5: Descrição dos serviços | B5: Tipo de container | C5: Unidade | D5: Quantidade | E5: Preço unitário (R$) | F5: Total (R$)
A6: Escritório e seção técnica
A7: Aluguel de casa mobiliada | B7: 10776 | C7: und | D7: 1 | E7: 650.39 | F7: 650.39
A8: Banheiro e vestiário
A9: Banheiro químico | B9: 10777 | C9: und | D9: 1 | E9: 945.23 | F9: 945.23
D10: TOTAL DO CANTEIRO | F10: 1595.62
D11: DURAÇÃO (MESES) | E11: 12 | F11: 19147.44
D12: BDI | F12: 0.2339
D13: TOTAL DO CANTEIRO (com BDI) | F13: 23626.02622

Sheet Adm Local
A4: parcela fixa da administração local (mão de obra)
A5: Código | B5: Discriminação | C5: Unidade | D5: Quantidade | F5: Custo Unitário (R$) | H5: Custo Total (R$)
B6: Mão de Obra
B7: Gerência Técnica
B8: Geral
A9: P9955 | B9: Engenheiro chefe | C9: mês | D9: 0.5 | F9: 30056.5778 | H9: 15028.2889
A10: P9840 | B10: Encarregado geral | C10: mês | D10: 0.5 | F10: 10604.707 | H10: 5302.3535
A11: P9897 | B11: Técnico de meio ambiente | C11: mês | D11: 0 | F11: 7271.4868 | H11: 0
A12: P9948 | B12: Motorista | C12: mês | D12: 0 | F12: 5369.6939 | H12: 0
A13: P9878 | B13: Secretária | C13: mês | D13: 0 | F13: 6147.5963 | H13: 0
F14: Subtotal do Item 1.1 | H14: 20330.6424
B15: Auxiliar
A16: P9946 | B16: Engenheiro auxiliar | C16: mês | D16: 1 | F16: 21985.0115 | H16: 21985.0115
A17: P9903 | B17: Auxiliar técnico | C17: mês | D17: 0 | F17: 4332.9166 | H17: 0
F18: Subtotal do Item 1.2 | H18: 21985.0115
B19: Gerência Administrativa
B20: Geral
A21: P9883 | B21: Chefe do setor administrativo | C21: mês | D21: 1 | F21: 7395.5377 | H21: 7395.5377
A22: P9809 | B22: Encarregado administrativo | C22: mês | D22: 1 | F22: 7395.5416 | H22: 7395.5416
A23: P9896 | B23: Porteiro | C23: mês | D23: 0 | F23: 3769.6368 | H23: 0
A24: P9827 | B24: Vigia | C24: mês | D24: 0 | F24: 4603.7539 | H24: 0
A25: P9948 | B25: Motorista | C25: mês | D25: 0 | F25: 5369.6939 | H25: 0
F26: Subtotal do Item 1.3 | H26: 14791.0793
B27: Auxiliar
A28: P9806 | B28: Auxiliar administrativo | C28: mês | D28: 1 | F28: 4785.8758 | H28: 4785.8758
A29: P9842 | B29: Faxineiro | C29: mês | D29: 0 | F29: 3769.6674 | H29: 0
F30: Subtotal do Item 1.4 | H30: 4785.8758
H31: Total da Mão de Obra da Parcela Fixa | I31: 61892.609
A33: parcela fixa da administração local (veículos)
A34: Código | B34: Discriminação | C34: Unidade | D34: Quantidade | E34: Utilização Produtiva | F34: Utilização Improdutiva | G34: Custo Horário Produtivo (R$) | H34: Custo Horário Improdutivo (R$) | I34: Custo Total (R$)
A35: 2 | B35: Veículos
B36: Gerência Técnica
A37: 2.1 | B37: Geral
A38: E9093 | B38: Veículo Leve 53 kw | C38: mês | D38: 1 | E38: 44 | F38: 176 | G38: 34.4589 | H38: 6.1263 | I38: 2594.4204
A39: E9560 | B39: Ônibus coletivo - 175 kw | C39: mês | D39: 0 | E39: 44 | F39: 176 | G39: 0.2461 | H39: 0.2461 | I39: 0
H40: Subtotal do Item 2 | I40: 2594.4204
A41: 2.2 | B41: Auxiliar
A42: E9093 | B42: Veículo Leve 53 kw | C42: mês | D42: 0 | E42: 44 | F42: 176 | G42: 34.4589 | H42: 6.1263 | I42: 0
H43: Subtotal do Item 2 | I43: 0
A44: 2.3 | B44: Gerência Administrativa
A45: E9093 | B45: Veículo Leve 53 kw | C45: mês | D45: 0 | E45: 44 | F45: 176 | G45: 34.4589 | H45: 6.1263 | I45: 0
H46: Subtotal do Item 2 | I46: 0
H47: Total dos Veículos da Parcela Fixa | I47: 2594.4204
A49: Composição de custo da equipe de produção de terraplenagem
A50: Código | B50: Discriminação | C50: Unidade | D50: Quantidade | F50: Custo Unitário (R$) | H50: Custo Total (R$)
B51: Equipe de Produção de Terraplenagem
A52: 3.1 | B52: Mão de Obra
A53: P9884 | B53: Encarregado de produção | C53: mês | D53: 0 | F53: 7482.2737 | H53: 0
F54: Subtotal do Item 3.1 | H54: 0
A55: Código | B55: Discriminação | C55: Unidade | D55: Quantidade | E55: Utilização Produtiva | F55: Utilização Improdutiva | G55: Custo Horário Produtivo (R$) | H55: Custo Horário Improdutivo (R$) | I55: Custo Total (R$)
A56: 3.2 | B56: Veículos
B57: Veículo Leve 53 kw | C57: mês | D57: 0 | E57: 44 | F57: 176 | G57: 34.4589 | H57: 6.1263 | I57: 0
H58: Subtotal do Item 3.2 | I58: 0
H59: Total da Equipe de Produção de Terraplenagem | I59: 0
A61: Composição de custo da equipe de produção de pavimentação
A62: Código | B62: Discriminação | C62: Unidade | D62: Quantidade | F62: Custo Unitário (R$) | H62: Custo Total (R$)
B63: Equipe de Produção de Pavimentação
A64: 3.1 | B64: Mão de Obra
A65: P9893 | B65: Encarregado de produção | C65: mês | D65: 1 | F65: 7482.2737 | H65: 7482.2737
F66: Subtotal do Item 3.1 | H66: 7482.2737
A67: Código | B67: Discriminação | C67: Unidade | D67: Quantidade | E67: Utilização Produtiva | F67: Utilização Improdutiva | G67: Custo Horário Produtivo (R$) | H67: Custo Horário Improdutivo (R$) | I67: Custo Total (R$)
A68: 3.2 | B68: Veículos
B69: Veículo Leve 53 kw | C69: mês | D69: 1 | E69: 44 | F69: 176 | G69: 34.4589 | H69: 6.1263 | I69: 2594.4204
H70: Subtotal do Item 3.2 | I70: 2594.4204
H71: Total da Equipe de Produção de Pavimentação | I71: 10076.6941
A73: Composição de custo da equipe de produção de drenagem
A74: Código | B74: Discriminação | C74: Unidade | D74: Quantidade | F74: Custo Unitário (R$) | H74: Custo Total (R$)
B75: Equipe de Produção de Pavimentação
A76: 3.1 | B76: Mão de Obra
A77: P9893 | B77: Encarregado de produção | C77: mês | D77: 1 | F77: 7482.2737 | H77: 7482.2737
F78: Subtotal do Item 3.1 | H78: 7482.2737
A79: Código | B79: Discriminação | C79: Unidade | D79: Quantidade | E79: Utilização Produtiva | F79: Utilização Improdutiva | G79: Custo Horário Produtivo (R$) | H79: Custo Horário Improdutivo (R$) | I79: Custo Total (R$)
A80: 3.2 | B80: Veículos
B81: Veículo Leve 53 kw | C81: mês | D81: 1 | E81: 44 | F81: 176 | G81: 34.4589 | H81: 6.1263 | I81: 2594.4204
H82: Subtotal do Item 3.2 | I82: 2594.4204
H83: Total da Equipe de Produção de Pavimentação | I83: 10076.6941
A85: Composição de custo da equipe de produção de sinalização
A86: Código | B86: Discriminação | C86: Unidade | D86: Quantidade | F86: Custo Unitário (R$) | H86: Custo Total (R$)
B87: Equipe de Produção de Pavimentação
A88: 3.1 | B88: Mão de Obra
A89: P9893 | B89: Encarregado de produção | C89: mês | D89: 1 | F89: 7482.2737 | H89: 7482.2737
F90: Subtotal do Item 3.1 | H90: 7482.2737
A91: Código | B91: Discriminação | C91: Unidade | D91: Quantidade | E91: Utilização Produtiva | F91: Utilização Improdutiva | G91: Custo Horário Produtivo (R$) | H91: Custo Horário Improdutivo (R$) | I91: Custo Total (R$)
A92: 3.2 | B92: Veículos
B93: Veículo Leve 53 kw | C93: mês | D93: 1 | E93: 44 | F93: 176 | G93: 34.4589 | H93: 6.1263 | I93: 2594.4204
H94: Subtotal do Item 3.2 | I94: 2594.4204
H95: Total da Equipe de Produção de Pavimentação | I95: 10076.6941
A97: Composição de custo da equipe topografia
A98: Código | B98: Discriminação | C98: Unidade | D98: Quantidade | F98: Custo Unitário (R$) | H98: Custo Total (R$)
B99: Equipe de Topografia
A100: 3.1 | B100: Mão de Obra
A101: P9949 | B101: Topográfo | C101: mês | D101: 1 | F101: 8082.2879 | H101: 8082.2879
A102: P9950 | B102: Auxiliar de topografia | C102: mês | D102: 1 | F102: 5435.6762 | H102: 5435.6762
F103: Subtotal do Item 3.1 | H103: 13517.9641
A104: Código | B104: Discriminação | C104: Unidade | D104: Quantidade | E104: Utilização Produtiva | F104: Utilização Improdutiva | G104: Custo Horário Produtivo (R$) | H104: Custo Horário Improdutivo (R$) | I104: Custo Total (R$)
A105: 3.2 | B105: Veículos
B106: Veículo Leve 53 kw | C106: mês | D106: 1 | E106: 44 | F106: 176 | G106: 34.4589 | H106: 6.1263 | I106: 2594.4204
H107: Subtotal do Item 3.2 | I107: 2594.4204
H108: Total da Equipe de Produção de Topografia | I108: 16112.3845
A110: Composição de custo do setor de medicina e segurança do trabalho
A111: Código | B111: Discriminação | C111: Unidade | D111: Quantidade | F111: Custo Unitário (R$) | H111: Custo Total (R$)
A112: 4 | B112: Setor de Medicina e Segurança do Trabalho
A113: P9876 | B113: Técnico de segurança do trabalho | C113: mês | D113: 1 | F113: 6955.5956 | H113: 6955.5956
A114: P9864 | B114: Engenheiro de segurança do trabalho | C114: mês | D114: 0 | F114: 22507.3887 | H114: 0
A115: P9851 | B115: Médico do trabalho | C115: mês | D115: 0 | F115: 17926.4742 | H115: 0
A116: P9951 | B116: Médico de câmara hiperbárica | C116: mês | D116: 0 | F116: 19875.1916 | H116: 0
F117: Subtotal do Item 4 | H117: 6955.5956
A119: Parcela Variável - Composição de custo da equipe de frente de serviço
A120: Código | B120: Discriminação | C120: Unidade | D120: Quantidade | F120: Custo Unitário (R$) | H120: Custo Total (R$)
A121: 5 | B121: Equipe de Frente de Serviço | C121: equipexmês
A122: P9875 | B122: Encarregado de Turma | C122: mês | D122: 1 | F122: 5378.3671 | H122: 5378.3671
A123: P9804 | B123: Apontador | C123: mês | D123: 0.5 | F123: 4813.304 | H123: 2406.652
F124: Subtotal do Item 5 | H124: 7785.0191
A126: Parcela Variável - Composição de custo da equipe de frente de serviço (Terraplenagem) - Somente Compactação
A127: Código | B127: Discriminação | C127: Unidade | D127: Quantidade | F127: Produção Horária (und/h) | H127: Efs
A128: 5.1 | B128: Equipe de Frente de Serviço | C128: equipexmês
C129: mês
C130: mês
C131: mês
F132: Total de Equipes para Terraplenagem
A134: Parcela Variável - Composição de custo da acompanhamento das frentes de serviço de pavimentação
A135: Código | B135: Discriminação | C135: Unidade | D135: Quantidade | F135: Produção Horária (und/h) | H135: Efs
A136: 5.2 | B136: Equipe de Frente de Serviço | C136: equipe x mês
A137: 4011463 | B137: Concreto asfáltico - faixa C - areia e brita comerciais | C137: m² | D137: 16800 | F137: 99.6 | H137: 0.9242955712
A138: 4011353 | B138: Pintura de ligação | C138: m² | D138: 140000 | F138: 1125 | H138: 0.6819247326
A139: 4915663 | B139: Fresagem descontínua de revestimento asfáltico - espessura de 5 cm | C139: m² | D139: 700 | F139: 1500 | H139: 0.002557217747
A140: 4915618 | B140: Recomposição de camada granular do pavimento com material de jazida | C140: m³ | D140: 14000 | F140: 120.7 | H140: 0.6355967888
F141: Total de Equipes para Pavimentação | H141: 2.24437431
A143: Parcela Variável - Composição de custo da acompanhamento das frentes de serviço de drenagem
A144: Código | B144: Discriminação | C144: Unidade | D144: Quantidade | F144: Efsdu | H144: Efs
A145: 5.3 | B145: Frentes de Serviço para Drenagem | C145: equipe x mês
A146: 4915777 | B146: Reassentamento manual de meio-fio com material arrancado da pista | C146: m | D146: 4000 | F146: 0.00021 | H146: 0.84
A147: 4915708 | B147: Limpeza de sarjeta e meio-fio | C147: m | D147: 40000 | F147: 0.00021 | H147: 8.4
A148: 4915724 | B148: Caiação mecanizada com fixador de cal | C148: m | D148: 4800 | F148: 0.00021 | H148: 1.008
F149: Total de Equipes para Drenagem | H149: 1.008
A151: Parcela Variável - Composição de custo da acompanhamento das frentes de serviço de sinalização
A152: Código | B152: Discriminação | C152: Unidade | D152: Quantidade | F152: Produção Horária (und/h) | H152: Efs
A153: 5.4 | B153: Frentes de Serviço para Sinalização | C153: equipe x mês
A154: 5213440 | B154: Placa de regulamentação em aço D = 0,60 m - película retrorrefletiva tipo I + SI - fornecimento e implantação | C154: Unidade | D154: 60 | F154: 3 | H154: 0.02191900926
A155: 5213464 | B155: Placa de advertência em aço, lado de 0,60 m - película retrorrefletiva tipo I + SI - fornecimento e implantação | C155: Unidade | D155: 60 | F155: 4.1 | H155: 0.01603829946
A156: 5213863 | B156: Suporte metálico galvanizado para placa de advertência ou regulamentação - lado ou diâmetro de 0,60 m - fornecimento e implantação | C156: Unidade | D156: 120 | F156: 4.1 | H156: 0.03207659892
A157: 5213400 | B157: Pintura de faixa com tinta acrílica - espessura de 0,4 mm | C157: m² | D157: 4800 | F157: 177.07 | H157: 0.02970894122
F158: Total de Equipes para Sinalização | H158: 0.09974284886 | J158: =H158+H149 -> 1.107742849
A160: 3. PARCELA VARIÁVEL - EQUIPE DE CONTROLE TECNOLÓGICO
A161: LABORATÓRIO DE SOLOS
A162: Item | B162: Discriminação | F162: Unidade | G162: Quantidade | H162: Custo Unitário (R$) | I162: Custo Total (R$)
B163: Laboratório de Solos (equipe x mês)
B164: Mão de Obra
A165: P9858 | B165: Laboratorista | F165: func./mês | G165: 1 | H165: 7073.6206 | I165: 7073.62
A166: P9833 | B166: Auxiliar de laboratório | F166: func./mês | G166: 1 | H166: 5402.9669 | I166: 5402.96
H167: Subtotal do Item | I167: 12476.58
A168: Item | B168: Discriminação | C168: Und | D168: Quant | E168: Utilização Produtiva | F168: Utilização Improdutiva | G168: Horário Produtivo (R$) | H168: Horário Improdutivo (R$) | I168: Total (R$)
B169: Equipe de Controle Tecnológico
B170: Veículos
A171: E9125 | B171: Van furgão a diesel - 93 kW | C171: veic./mês | D171: 0.5 | E171: 44 | F171: 176 | G171: 82.253 | H171: 46.7195 | I171: 5920.882
H172: Subtotal do Item | I172: 5920.882
H173: Total da Equipe do Laboratório de Solos | I173: 18397.462
A175: 3. PARCELA VARIÁVEL - EQUIPE DE CONTROLE TECNOLÓGICO
A176: LABORATÓRIO DE ASFALTOS
A177: Item | B177: Discriminação | F177: Unidade | G177: Quantidade | H177: Custo Unitário (R$) | I177: Custo Total (R$)
B178: Laboratório de Solos (equipe x mês)
B179: Mão de Obra
A180: P9858 | B180: Laboratorista | F180: func./mês | G180: 1 | H180: 7073.6206 | I180: 7073.62
A181: P9833 | B181: Auxiliar de laboratório | F181: func./mês | G181: 1 | H181: 5402.9669 | I181: 5402.96
H182: Subtotal do Item | I182: 12476.58
A183: Item | B183: Discriminação | C183: Und | D183: Quant | E183: Utilização Produtiva | F183: Utilização Improdutiva | G183: Horário Produtivo (R$) | H183: Horário Improdutivo (R$) | I183: Total (R$)
B184: Equipe de Controle Tecnológico
B185: Veículos
A186: E9125 | B186: Van furgão a diesel - 93 kW | C186: veic./mês | D186: 0.5 | E186: 44 | F186: 176 | G186: 82.253 | H186: 46.7195 | I186: 5920.882
H187: Subtotal do Item | I187: 5920.882
H188: Total da Equipe do Laboratório de Asfaltos | I188: 18397.462
A190: Equipes de laboratório de solos para pavimentação
A191: Item | B191: Discriminação | F191: Und | G191: Quant | H191: QE | I191: Els
A192: - | B192: - | F192: - | G192: - | H192: - | I192: -
A193: - | B193: - | F193: - | G193: - | H193: - | I193: -
H194: Total de equipes de Laboratório de Solos para Pavimentação | I194: -
A196: Equipes de laboratório de Asfalto
A197: Item | B197: Discriminação | F197: Und | G197: Quant | H197: QE | I197: Ela
A198: 4011463 | B198: Concreto asfáltico - faixa C - areia e brita comerciais | F198: t | G198: 16800 | H198: 9000 | I198: 1.866666667
A199: 4011353 | B199: Pintura de ligação | F199: m² | G199: 140000 | H199: 1610000 | I199: 0.08695652174
H200: Total de equipes de Laboratório de Asfaltos | I200: 1.953623188
A202: manutenção do canteiro de obras e acampamentos
A203: Código | B203: Discriminação | C203: Unidade | D203: Quantidade | F203: Custo Unitário (R$) | H203: Custo Total (R$)
B204: Manutenção do Canteiro de Obras e Acampamentos
A205: 6.1 | B205: Mão de Obra
A206: P9952 | B206: Pedreiro | C206: mês | D206: 0 | F206: 4864.0022 | H206: 0
A207: P9954 | B207: Servente | C207: mês | D207: 0 | F207: 3953.2123 | H207: 0
A208: P9953 | B208: Eletricista | C208: mês | D208: 0 | F208: 5494.7815 | H208: 0
F209: Subtotal do Item 6.1 | H209: 0
A211: Código | B211: Discriminação | C211: Unidade | D211: Quantidade | F211: Custo Produtivo (R$) | H211: Custo Total (R$)
A212: 6.2 | B212: Equipamentos
B213: Caminhão guindauto de 6 toneladas | C213: h/mês | D213: 0 | H213: 0
B214: Caminhão tanque de 8.000 litros | C214: h/mês | D214: 0 | H214: 0
A215: E9524 | B215: Motoniveladora | C215: h/mês | D215: 0 | F215: 276.9891 | H215: 0
F216: Subtotal do Item 6.2 | H216: 0
G217: Total da Manutenção do Canteiro de Obras e Acampamentos | H217: 0
A221: Resumo das parcelas de administração local
A222: Código | B222: Discriminação | C222: Unidade | D222: Quantidade | F222: Custo Unitário (R$) | H222: Custo Total (R$)
B223: Parcela Fixa
B224: Mão de Obra | C224: mês | D224: 5 | F224: 61892.609 | H224: 309463.045
... 27 more rows

Sheet Projeto Executivo
A4: COMPOSIÇAO PREÇO PROJETO EXECUTIVO
A6: DISCRIMINAÇAO | F6: Pr. Unit. | G6: Pr. Total
A8: A· EOUIPE TECNICA | G8: 13957.91002
B9: A. 1 - Pessoal de Nível Superior | C9: Unidade | D9: Quantitativo | E9: SICRO e Rel.Custos Gerais | G9: 11139.17058
B10: Engenheiro | C10: mês | D10: 0.4 | E10: P9812 | F10: 23806.7825 | G10: 9522.713
B11: Topógrafo | C11: mês | D11: 0.2 | E11: P9949 | F11: 8082.2879 | G11: 1616.45758
B12: A.2 - Pessoal de Nível Técnico e Aux. | G12: 2818.739444
B13: Auxiliar de topógrafo | C13: mês | D13: 0.12 | E13: P9950 | F13: 5435.6762 | G13: 652.281144
B14: Auxiliar Técnico/Assistente de Engenharia | C14: mês | D14: 0.5 | E14: P9903 | F14: 4332.9166 | G14: 2166.4583
A15: B - ENCARGOS SOCIAIS | G15: 0
B16: Taxas % | C16: JÁ INCLUSAS EM "A"
A17: C - DESPESAS GERAIS | G17: 4950.312801
B18: C.1 - MATERIAIS DE CONSUMO | C18: Estimativa % como referência de equipe técnica com encargos sociais | D18: 0.03 | F18: 13957.91002 | G18: 418.7373007
B19: C.2 - VEÍCULOS (Veículo leve picape 4 x 4 com capacidade de 1,10 t - 147 kW) | C19: h | D19: 40 | E19: E9684 | F19: 106.3136 | G19: 4252.544
B20: C.3 - Estação total eletrônica com alcance máximo de 3.000 m | C20: h | D20: 55 | E20: E9553 | F20: 5.0733 | G20: 279.0315
A21: D - ENSAIOS | G21: 3133.524548
B22: Laboratorista | C22: mês | D22: 0.2 | E22: P9858 | F22: 7073.6206 | G22: 1414.72412
B23: Auxiliar de Laboratório | C23: mês | D23: 0.12 | E23: P9833 | F23: 5402.9669 | G23: 648.356028
B24: Laboratório de solos | C24: mês | D24: 0.12 | E24: B8957 | F24: 3554.26 | G24: 426.5112
B25: Laboratório de asfalto | C25: mês | D25: 0.12 | E25: B8955 | F25: 5366.11 | G25: 643.9332
A26: I - SOMA (A+B+C+D) | G26: 22041.74737
A27: II - CUSTOS ADMINISTRATIVOS | D27: 0 | G27: 0
A28: TOTAL | G28: 22041.74737
F29: Por m²: | G29: 1.574410527

Sheet CONSUMO DE MAT. B TOTAL
A6: CONSUMO DO MATERIAL BETUMINOSO TOTAL
A8: TRECHO | C8: QUANTIDADES | L8: MAT. BETUMINOSO
A9: Inicio (km) | B9: Fim (km) | C9: Extensão (m) | D9: Largura (m) | E9: Espess. (m) | F9: Área (m2) | G9: Volume (m3) | H9: Densidade (t/m3) | I9: Massa (t) | J9: Unid | K9: Quant. | L9: Tipo | M9: Consumo Taxa de Aplicação | N9: Unid. | O9: Quant.
E11: 1 | O11: 0
E12: 1 | G12: 0 | O12: 0
A13: PINTURA DE LIGAÇÃO | S13: =F14*0.45 -> 63000
E14: 1 | F14: 140000 | G14: 140000 | L14: RR-1C | M14: 0,4 l/m2 | N14: t | O14: 56
A15: CBUQ FAIXA "C"
G16: 0 | I16: 16800 | L16: CAP-50/70 | M16: 0.06323 | N16: t | O16: 1062.26
G18: 0

Sheet CPU CODEVASF
F5: BDI %: | G5: 0.2339
E6: Encargos Sociais: | G6: Horista | H6: Mensalista
G7: 1.1398 | H7: 0.7
A8: COMPOSIÇÕES DE CUSTO UNITARIO
A9: CPU-13 | B9: CODEVASF | D9: AQUISIÇÃO DE CIMENTO ASFALTICO CAP 50/70 | E9: t | F9: COEF. | G9: PRECO UNITÁRIO (R$) | H9: TOTAL (R$)
D11: CIMENTO ASFALTICO 50/70 | E11: t | F11: 1 | G11: 5144.18835 | H11: 5144.18835
E12: Sub total: | H12: 5144.18835
F13: BDI | G13: 0.15 | H13: 771.6282525
G14: Total Serviços: | H14: 5915.816602
E15: CPU-13 | F15: PREÇO UNITÁRIO TOTAL: | H15: 5915.816602 | I15: =H12 -> 5144.18835
A18: CPU-15 | B18: CODEVASF | D18: AQUISIÇÃO DE EMULSÃO ASFÁLTICA RR-1C | E18: t | F18: COEF. | G18: PRECO UNITÁRIO (R$) | H18: TOTAL (R$)
D20: EMULSÃO ASFÁLTICA RR-1C | E20: t | F20: 1 | G20: 3670.659004 | H20: 3670.659004
E21: Sub total: | H21: 3670.659004
F22: BDI | G22: 0.15 | H22: 550.5988506
G23: Total Serviços: | H23: 4221.257855
E24: CPU-15 | F24: PREÇO UNITÁRIO TOTAL: | H24: 4221.257855 | I24: =H21 -> 3670.659004
A27: CPU-17 | B27: CODEVASF | D27: TRANSPORTE DE CIMENTO ASFALTICO CAP 50/70 | E27: t | F27: COEF. | G27: PRECO UNITÁRIO (R$) | H27: TOTAL (R$)
D29: TRANSPORTE DE CIMENTO ASFALTICO 50/70 | E29: t | F29: 1 | G29: 175.76 | H29: 175.76
E30: Sub total: | H30: 175.76
F31: BDI | G31: 0.15 | H31: 26.36
G32: Total Serviços: | H32: 202.12
E33: CPU-17 | F33: PREÇO UNITÁRIO TOTAL: | H33: 202.12 | I33: =H30 -> 175.76
A36: CPU-19 | B36: CODEVASF | D36: TRANSPORTE DE EMULSÃO ASFÁLTICA RR-1C | E36: UNID | F36: COEF. | G36: PRECO UNITÁRIO (R$) | H36: TOTAL (R$)
D38: TRANSPORTE DE EMULSÃO ASFÁLTICA RR-1C | E38: t | F38: 1 | G38: 578.14 | H38: 578.14
E39: Sub total: | H39: 578.14
F40: BDI | G40: 0.15 | H40: 86.721
G41: Total Serviços: | H41: 664.861
E42: CPU-19 | F42: PREÇO UNITÁRIO TOTAL: | H42: 664.861 | I42: =H39 -> 578.14
A44: CPU-20 | B44: CODEVASF | D44: CONTROLE TECNOLÓGICO - PROJETO | E44: m² | F44: COEF. | G44: PRECO UNITÁRIO (R$) | H44: TOTAL (R$)
A46: Insumo | B46: SICRO | C46: P9858 | D46: Laboratorista | E46: mês | F46: 1.071428571e-05 | G46: 5576.2888 | H46: 0.05974595143
A47: Composição | B47: SICRO | C47: P9833 | D47: Auxiliar de Laboratório | E47: mês | F47: 1.071428571e-05 | G47: 4221.2468 | H47: 0.04522764429
A48: Composição | B48: SICRO | C48: *B8957 | D48: Laboratório de Solos | E48: mês | F48: 1.071428571e-05 | G48: 4235.59 | H48: 0.04538132143
A49: Composição | B49: SICRO | C49: *B8955 | D49: Laboratório de Asfalto | E49: mês | F49: 1.071428571e-05 | G49: 5144.99 | H49: 0.05512489286
B50: *Relatório de Custos Gerais do DNIT, página 1 | E50: Sub total: | H50: 0.20547981
F51: BDI | G51: 0.2339 | H51: 0.04806172756
E52: CPU-20 | F52: PREÇO UNITÁRIO TOTAL: | H52: 0.2535415376 | I52: =H50 -> 0.20547981

Sheet BDI
A4: DETALHAMENTO DO BDI - SEM DESONERAÇÃO
A5: =#REF! -> 
A6: Descrição dos serviços | B6: Preço de Venda (%) | C6: Custo Direto (%)
A7: ADMINISTRAÇÃO CENTRAL | C7: 0.06
A8: CUSTOS FINANCEIROS | B8: 0.0102
A9: RISCOS | B9: 0.0025
A10: SEGUROS E GARANTIAS CONTRATUAIS | B10: 0.005
A11: LUCRO OPERACIONAL | C11: 0.07
A12: PIS | B12: 0.0065
A13: COFINS | B13: 0.03
A14: ISSQN | B14: 0.03
A15: Contribuição Previdenciaria | B15: 0
B16: BDI | C16: =ROUND(((1+(C7+C11))/(1-(B8+B9+B10+B12+B13+B14+B15))-1),4) -> 0.2339
A17: Observação: | B17: O percentual de ISSQN aqui utilizado consiste apenas em um referencial médio.
B18: O valor real do ISSQN a ser adotado deve ser aquele proveniente das alíquotas dos municípios situados na área de influência das obras.
A54: DETALHAMENTO DO BDI DIFERENCIADO - SEM DESONERAÇÃO
A55: EXECUÇÃO DE SERVIÇOS DE PAVIMENTAÇÃO COM CONCRETO BETUMINOSO USINADO A QUENTE (CBUQ), EM VIAS DE MUNICÍPIOS DIVERSOS INSERIDOS NA ÁREA DE ATUAÇÃO DA CIDEVASF, NO ESTADO DO RIO GRANDE DO NORTE - LOTE 1
A56: DESCRIÇÃO DOS SERVIÇOS | B56: PREÇO DE VENDA (%) | C56: CUSTO DIRETO (%)
A57: ADMINISTRAÇÃO CENTRAL | C57: 0.0377
A58: DESPESA FINANCEIRAS | B58: 0.0102
A59: SEGUROS E GARANTIAS CONTRATUAIS | B59: 0.0025
A60: RISCOS | B60: 0.005
A61: LUCRO OPERACIONAL | C61: 0.05
A62: PIS | B62: 0.0065
A63: COFINS | B63: 0.03
A64: ISSQN | B64: 0
A65: Contribuição Previdenciaria | B65: 0
B66: BDI | C66: =ROUND((1+(C57+C61))/(1-(B58+B59+B60+B62+B63+B64+B65))-1,4) -> 0.15
A67: Fonte da composição, valores de referência e fórmula do BDI: Instrução Normativa N° 62/DNIT SEDE

Sheet ENC. SOCIAIS
A5: ='RESUMO MODULO TOTAL'!B5 -> EXECUÇÃO DE CAPA ASFÁLTICA EM CONCRETO BETUMINOSO USINADO A QUENTE (CBUQ), EM VIAS DE MUNICÍPIOS DIVERSOS INSERIDOS NA ÁREA DE ATUAÇÃO DA CODEVASF 3ª SR, NO ESTADO DE PERNAMBUCO - REGIÃO VALE DO IPOJUCA
A7: DETALHAMENTO DOS ENCARGOS SOCIAIS (%)
A8: VIGÊNCIA A PARTIR DE 12/2023 | C8: COM DESONERAÇÃO | E8: SEM DESONERAÇÃO
C10: HORISTA | D10: MENSALISTA | E10: HORISTA | F10: MENSALISTA
A12: GRUPO A
A13: A1 | B13: INSS | C13: 0 | D13: 0 | E13: 20 | F13: 20
A14: A2 | B14: SESI | C14: 1.5 | D14: 1.5 | E14: 1.5 | F14: 1.5
A15: A3 | B15: SENAI | C15: 1 | D15: 1 | E15: 1 | F15: 1
A16: A4 | B16: INCRA | C16: 0.2 | D16: 0.2 | E16: 0.2 | F16: 0.2
A17: A5 | B17: SEBRAE | C17: 0.6 | D17: 0.6 | E17: 0.6 | F17: 0.6
A18: A6 | B18: Salário Educação | C18: 2.5 | D18: 2.5 | E18: 2.5 | F18: 2.5
A19: A7 | B19: Seguro Contra Acidentes de Trabalho | C19: 3 | D19: 3 | E19: 3 | F19: 3
A20: A8 | B20: FGTS | C20: 8 | D20: 8 | E20: 8 | F20: 8
A21: A9 | B21: SECONCI | C21: 1 | D21: 1 | E21: 0 | F21: 0
A22: A | B22: Total | C22: =SUM(C13:C21) -> 17.8 | D22: =SUM(D13:D21) -> 17.8 | E22: =SUM(E13:E21) -> 36.8 | F22: =SUM(F13:F21) -> 36.8
A23: GRUPO B
A24: B1 | B24: Repouso Semanal Remunerado | C24: 17.88 | D24: - | E24: 18.01 | F24: -
A25: B2 | B25: Feriados | C25: 3.94 | D25: - | E25: 4.32 | F25: -
A26: B3 | B26: Auxílio-enfermidade | C26: 0.91 | D26: 0.69 | E26: 0.85 | F26: 0.64
A27: B4 | B27: 13° salário | C27: 10.98 | D27: 8.33 | E27: 11.03 | F27: 8.33
A28: B5 | B28: Licença-paternidade | C28: 0.07 | D28: 0.06 | E28: 0.06 | F28: 0.04
A29: B6 | B29: Faltas Justificadas | C29: 0.73 | D29: 0.56 | E29: 0.74 | F29: 0.56
A30: B7 | B30: Dias de chuva | C30: 1.45 | D30: - | E30: 1.98 | F30: -
A31: B8 | B31: Auxílio Acidente de Trabalho | C31: 0.11 | D31: 0.09 | E31: 0.1 | F31: 0.08
A32: B9 | B32: Férias Gozadas | C32: 11.35 | D32: 8.62 | E32: 10.9 | F32: 8.24
A33: B10 | B33: Salário Maternidade | C33: 0.03 | D33: 0.03 | E33: 0.04 | F33: 0.03 | L33: =(#REF!)/(1+#REF!) ->  | M33: =(#REF!) -> 
A34: B | B34: Total | C34: =SUM(C24:C33) -> 47.45 | D34: =SUM(D24:D33) -> 18.38 | E34: 48.03 | F34: =SUM(F24:F33) -> 17.92
A35: GRUPO C
A36: C1 | B36: Aviso Prévio Indenizado | C36: 6.76 | D36: 5.14 | E36: 4.8 | F36: 3.63
A37: C2 | B37: Aviso Prévio Trabalhado | C37: 0.16 | D37: 0.12 | E37: 0.11 | F37: 0.09
A38: C3 | B38: Férias Indenizadas | C38: 2.28 | D38: 1.73 | E38: 2.91 | F38: 2.2
A39: C4 | B39: Depósito Rescisão Sem Justa Causa | C39: 3.81 | D39: 2.89 | E39: 2.83 | F39: 2.14
A40: C5 | B40: Indenização Adicional | C40: 0.57 | D40: 0.43 | E40: 0.4 | F40: 0.31
A41: C | B41: Total | C41: =SUM(C36:C40) -> 13.58 | D41: =SUM(D36:D40) -> 10.31 | E41: =SUM(E36:E40) -> 11.05 | F41: =SUM(F36:F40) -> 8.37
A42: GRUPO D
A43: D1 | B43: Reincidência de A sobre B | C43: 8.45 | D43: 3.27 | E43: 17.68 | F43: 6.59
A44: D2 | B44: Reincidência de Grupo A sobre Aviso Prévio Trabalhado e Reincidência do FGTS sobre Aviso Prévio Indenizado | C44: 0.57 | D44: 0.43 | E44: 0.42 | F44: 0.32
A45: D | B45: Total | C45: =SUM(C43:C44) -> 9.02 | D45: =SUM(D43:D44) -> 3.7 | E45: =SUM(E43:E44) -> 18.1 | F45: =SUM(F43:F44) -> 6.91
A47: T O T A L (%) | C47: =C22+C34+C41+C45 -> 87.85 | D47: =D22+D34+D41+D45 -> 50.19 | E47: =E22+E34+E41+E45 -> 113.98 | F47: =F22+F34+F41+F45 -> 70

Sheet Transporte Cap 50-70
C5: MEMÓRIA DE CÁLCULO
C10: REAJUSTE | F10: TIPOLOGIA DO MATERIAL | I10: CIMENTOS ASFÁLTICOS CAP-50-70 | M10: IMPOSTOS | N10: COFINS | O10: 0.0065 | P10: 0.0065
G11: ÍNDICE DE PAVIMENTAÇÃO DNIT | H11: 2014-07-01 | I11: ÍNDICE INICIAL | J11: 270.237 | N11: PIS | O11: 0.03 | P11: 0.03 | T11: LEGENDA | AC11: As empresas tributadas pelo Lucro Presumido pagam 0,65% de PIS e 3% de COFINS
H12: 2024-09-01 | I12: ÍNDICE FINAL | J12: 577.753 | N12: ICMS | O12: 0.18 | P12: 0.18 | Q12: 0.82 | R12: 0.82 | S12: 0.18 | T12: ENTRADA DE DADOS | AC12: As empresas tributadas pelo Lucro Real pagam 1,65% de PIS e 7,60% de COFINS
G13: Data ANP | H13: 2024-09-01
C14: DATA-BASE | D14: PRODUTOS | E14: LOCALIDADES | J14: CUSTO ANP (R$/Kg) | L14: CUSTO ANP | M14: IMPOSTOS DO PRODUTO | N14: CUSTO DO PRODUTO COM IMPOSTOS | O14: DMT's | P14: DMT's FLUVIAL | Q14: CUSTO DO TRANSPORTE RODOVIA PAVIMENTADA | R14: CUSTO DO TRANSPORTE FLUVIAL | S14: CUSTO DO TRANSPORTE TOTAL | T14: ICMS | U14: ATUALIZAÇÃO DO CUSTO DE TRANSPORTE | V14: CUSTO DO TRANSPORTE RODOVIA PAVIMENTADA COM IMPOSTOS E ATUALIZAÇÃO MONETÁRIA | W14: PEDÁGIO | Y14: TOTAL TRANSPORTE | Z14: AQUISIÇÃO DO PRODUTO | AA14: TOTAL GERAL ( TRANSP + AQUISIÇÃO) | AC14: 1 | AD14: 2 | AE14: 3
C15: 2024-09-01 | E15: REFINARIAS | F15: ENDEREÇO | G15: ESTADO | H15: CIDADE | I15: DESTINO | J15: ESTADO | K15: REGIÃO | L15: R$/t | M15: R$/t | N15: R$/t | O15: KM | P15: KM | Q15: R$/t | R15: R$/t | S15: R$/t | T15: R$/t | U15: R$/t | V15: R$/t | W15: CUSTO | X15: R$/t | Y15: R$/t | Z15: R$/t | AA15: R$/t | AC15: TOTAL GERAL ( TRANSP + AQUISIÇÃO) | AD15: TOTAL TRANSPORTE | AE15: AQUISIÇÃO DO PRODUTO
B16: 5319.94835 | C16: 1 | D16: CIMENTOS ASFÁLTICOS CAP-50-70 | E16: Refinaria Abreu e Lima | F16: Rodovia PE 60, Km 10 - Ipojuca - PE CEP:55590-000 | G16: Pernambuco | H16: IPOJUCA - PE | I16: SÃO CAITANO - PE (VALE DO IPOJUCA) | J16: - | K16: 4.03046835 | L16: 4030.46835 | M16: 1113.72 | N16: 5144.18835 | O16: 160 | Q16: 67.42 | S16: 67.42 | T16: 14.79 | U16: 93.55 | V16: 175.76 | W16: 0 | X16: 0 | Y16: 175.76 | Z16: 5144.18835 | AA16: 5319.94835 | AC16: 5319.94835 | AD16: 175.76 | AE16: 5144.18835 | AH16: NORDESTE
B17: 5607.55835 | C17: 3 | E17: Refinaria Potiguar Clara Camarão | F17: Rodovia RN 221, KM 25 - Guamaré - RN CEP:59598-000 | G17: Rio Grande do Norte | H17: GUAMARÉ - RN | I17: SÃO CAITANO - PE (VALE DO IPOJUCA) | J17: - | K17: 4.03046835 | L17: 4030.46835 | M17: 1113.72 | N17: 5144.18835 | O17: 596 | Q17: 177.73 | S17: 177.73 | T17: 39.01 | U17: 246.63 | V17: 463.37 | W17: 0 | X17: 0 | Y17: 463.37 | Z17: 5144.18835 | AA17: 5607.55835 | AC17: 5607.55835 | AD17: 463.37 | AE17: 5144.18835 | AH17: NORDESTE
B18: 5706.453159 | C18: 4 | E18: Refinaria Landulpho Alves (RLAM) | F18: Rodovia BA 523, KM 4 – Mataripe São Francisco do Conde - BA CEP:43900-000 | G18: Bahia | H18: SÃO FRANCISCO DO CONDE - BA | I18: SÃO CAITANO - PE (VALE DO IPOJUCA) | J18: 4.048003159 | K18: 4.03046835 | L18: 4048.003159 | M18: 1118.56 | N18: 5166.563159 | O18: 712 | Q18: 207.08 | S18: 207.08 | T18: 45.45 | U18: 287.36 | V18: 539.89 | W18: 0 | X18: 0 | Y18: 539.89 | Z18: 5166.563159 | AA18: 5706.453159 | AC18: 5706.453159 | AD18: 539.89 | AE18: 5166.563159 | AH18: NORDESTE
B19: 5705.356694 | C19: 5 | E19: Refinaria Lubrificantes e Derivados do Nordeste (Lubnor) | F19: Av. Leite Barbosa, s/nº - Mucuripe Fortaleza - Ceará CEP:60180-420 | G19: Ceará | H19: FORTALEZA - CE | I19: SÃO CAITANO - PE (VALE DO IPOJUCA) | J19: 4.015116694 | K19: 4.03046835 | L19: 4015.116694 | M19: 1109.47 | N19: 5124.586694 | O19: 774 | Q19: 222.76 | S19: 222.76 | T19: 48.89 | U19: 309.12 | V19: 580.77 | W19: 0 | X19: 0 | Y19: 580.77 | Z19: 5124.586694 | AA19: 5705.356694 | AC19: 5705.356694 | AD19: 580.77 | AE19: 5124.586694 | AH19: NORDESTE
B20: 6333.994155 | C20: 6 | E20: Refinaria Capuava (Recap) | F20: Av. Alberto Soares Sampaio, 2122-A Capuava – Mauá - SP | G20: São Paulo | H20: MAUÁ - SP | I20: SÃO CAITANO - PE (VALE DO IPOJUCA) | J20: 3.569007047 | K20: 3.596409563 | L20: 3569.007047 | M20: 986.2 | N20: 4555.207047 | O20: 2524 | Q20: 665.51 | S20: 665.51 | T20: 146.08 | U20: 923.54 | V20: 1735.13 | W20: 610.2 | X20: 43.65710843 | Y20: 1778.787108 | Z20: 4555.207047 | AA20: 6333.994155 | AC20: 6333.994155 | AD20: 1778.787108 | AE20: 4555.207047 | AH20: SUDESTE
B21: 5946.285644 | C21: 7 | E21: Refinaria Duque de Caxias (Reduc) | F21: Rodovia Washington Luiz, km 113,7 Campos Elíseos – Duque de Caxias - RJ CEP:25213-005 | G21: Rio de Janeiro | H21: DUQUE DE CAXIAS - RJ | I21: SÃO CAITANO - PE (VALE DO IPOJUCA) | J21: 3.453498737 | K21: 3.596409563 | L21: 3453.498737 | M21: 954.29 | N21: 4407.788737 | O21: 2144 | Q21: 569.37 | S21: 569.37 | T21: 124.98 | U21: 790.13 | V21: 1484.48 | W21: 755 | X21: 54.01690735 | Y21: 1538.496907 | Z21: 4407.788737 | AA21: 5946.285644 | AC21: 5946.285644 | AD21: 1538.496907 | AE21: 4407.788737 | AH21: SUDESTE
B22: 7285.870568 | C22: 8 | E22: Refinaria Alberto Pasqualini (Refap) | F22: Avenida Getúlio Vargas, 11001 - Bairro Brigadeira Canoas - RS - Brasil CEP:92420-221 | G22: Rio Grande do Sul | H22: CANOAS - RS | I22: SÃO CAITANO - PE (VALE DO IPOJUCA) | J22: 3.705590753 | K22: 3.692634135 | L22: 3705.590753 | M22: 1023.94 | N22: 4729.530753 | O22: 3638 | Q22: 947.35 | S22: 947.35 | T22: 207.95 | U22: 1314.67 | V22: 2469.97 | W22: 1207.2 | X22: 86.3698153 | Y22: 2556.339815 | Z22: 4729.530753 | AA22: 7285.870568 | AC22: 7285.870568 | AD22: 2556.339815 | AE22: 4729.530753 | AH22: SUL
B23: 6839.171155 | C23: 9 | E23: Unidade de Industrialização do Xisto (SIX) | F23: Rodovia do Xisto, BR 476, km 153 São Mateus do Sul – PR CEP 83900-000 | G23: Paraná | H23: SÃO MATEUS DO SUL - PR | I23: SÃO CAITANO - PE (VALE DO IPOJUCA) | J23: 3.682802485 | K23: 3.692634135 | L23: 3682.802485 | M23: 1017.65 | N23: 4700.452485 | O23: 3047 | Q23: 797.83 | S23: 797.83 | T23: 175.13 | U23: 1107.17 | V23: 2080.13 | W23: 818.9 | X23: 58.58866944 | Y23: 2138.718669 | Z23: 4700.452485 | AA23: 6839.171155 | AC23: 6839.171155 | AD23: 2138.718669 | AE23: 4700.452485 | AH23: SUL
B24: 5986.449447 | C24: 10 | E24: Refinaria Gabriel Passos (Regap) | F24: Av. Refinaria Gabriel Passos, 690 Distrito Industrial Paulo Camilo Sul Betim - MG CEP:32669-205 | G24: Minas Gerais | H24: BETIM - MG | I24: SÃO CAITANO - PE (VALE DO IPOJUCA) | J24: 3.612001482 | K24: 3.596409563 | L24: 3612.001482 | M24: 998.08 | N24: 4610.081482 | O24: 1929 | Q24: 514.98 | S24: 514.98 | T24: 113.04 | U24: 714.65 | V24: 1342.67 | W24: 471 | X24: 33.69796472 | Y24: 1376.367965 | Z24: 4610.081482 | AA24: 5986.449447 | AC24: 5986.449447 | AD24: 1376.367965 | AE24: 4610.081482 | AH24: SUDESTE
B25: 6726.37203 | C25: 11 | E25: Refinaria Presidente Getúlio Vargas (Repar) | F25: Rodovia do Xisto, BR 476, km 16 Araucária - PR CEP:83707-440 | G25: Paraná | H25: ARAUCÁRIA - PR | I25: SÃO CAITANO - PE (VALE DO IPOJUCA) | J25: 3.682802485 | K25: 3.692634135 | L25: 3682.802485 | M25: 1017.65 | N25: 4700.452485 | O25: 2899 | Q25: 760.39 | S25: 760.39 | T25: 166.91 | U25: 1055.22 | V25: 1982.52 | W25: 606.6 | X25: 43.39954437 | Y25: 2025.919544 | Z25: 4700.452485 | AA25: 6726.37203 | AC25: 6726.37203 | AD25: 2025.919544 | AE25: 4700.452485 | AH25: SUL
B26: 6377.57603 | C26: 12 | E26: Refinaria Presidente Bernardes (RPBC) | F26: Av. 9 de abril, 777 - Jardim das Indústrias Cubatão - SP CEP:11505-000 | G26: São Paulo | H26: CUBATÃO - SP | I26: SÃO CAITANO - PE (VALE DO IPOJUCA) | J26: 3.569007047 | K26: 3.596409563 | L26: 3569.007047 | M26: 986.2 | N26: 4555.207047 | O26: 2538 | Q26: 669.05 | S26: 669.05 | T26: 146.86 | U26: 928.46 | V26: 1744.37 | W26: 1090.2 | X26: 77.9989833 | Y26: 1822.368983 | Z26: 4555.207047 | AA26: 6377.57603 | AC26: 6377.57603 | AD26: 1822.368983 | AE26: 4555.207047 | AH26: SUDESTE
B27: 6291.107191 | C27: 13 | E27: Refinaria de Paulínia (Replan) | F27: Rodovia SP 332 - Km. 130 Bonfim - Paulínia – SP CEP:13140-000 | G27: São Paulo | H27: PAULÍNIA - SP | I27: SÃO CAITANO - PE (VALE DO IPOJUCA) | J27: 3.569007047 | K27: 3.596409563 | L27: 3569.007047 | M27: 986.2 | N27: 4555.207047 | O27: 2476 | Q27: 653.37 | S27: 653.37 | T27: 143.42 | U27: 906.7 | V27: 1703.49 | W27: 453 | X27: 32.41014441 | Y27: 1735.900144 | Z27: 4555.207047 | AA27: 6291.107191 | AC27: 6291.107191 | AD27: 1735.900144 | AE27: 4555.207047 | AH27: SUDESTE
B28: 5709.976694 | C28: 14 | E28: GRECA DISTRIBUIDORA DE ASFALTOS LTDA. | F28: Avenida Parque Norte-2 - Bairro: Distrito Industrial I - CEP: 61939180 | G28: Ceará | H28: MARACANAU | I28: SÃO CAITANO - PE (VALE DO IPOJUCA) | J28: 4.015116694 | K28: 4.03046835 | L28: 4015.116694 | M28: 1109.47 | N28: 5124.586694 | O28: 781 | Q28: 224.53 | S28: 224.53 | T28: 49.28 | U28: 311.58 | V28: 585.39 | W28: 0 | X28: 0 | Y28: 585.39 | Z28: 5124.586694 | AA28: 5709.976694 | AC28: 5709.976694 | AD28: 585.39 | AE28: 5124.586694 | AH28: NORDESTE
B29: 5660.273159 | C29: 15 | E29: CBAA - ASFALTOS LTDA | F29: AVENIDA BANCO DO NORDESTE - Bairro: CIS - CEP: 44063640 | G29: Bahia | H29: FEIRA DE SANTANA | I29: SÃO CAITANO - PE (VALE DO IPOJUCA) | J29: 4.048003159 | K29: 4.03046835 | L29: 4048.003159 | M29: 1118.56 | N29: 5166.563159 | O29: 642 | Q29: 189.37 | S29: 189.37 | T29: 41.56 | U29: 262.78 | V29: 493.71 | W29: 0 | X29: 0 | Y29: 493.71 | Z29: 5166.563159 | AA29: 5660.273159 | AC29: 5660.273159 | AD29: 493.71 | AE29: 5166.563159 | AH29: NORDESTE
B30: 5696.913764 | C30: 16 | E30: BRASIL ASFALTOS LTDA. | F30: RODOVIA BA 522 - Bairro:DISTRITO INDUSTRIAL - CEP: 43813300 | G30: Bahia | H30: CANDEIAS | I30: SÃO CAITANO - PE (VALE DO IPOJUCA) | J30: 4.048003159 | K30: 4.03046835 | L30: 4048.003159 | M30: 1118.56 | N30: 5166.563159 | O30: 693 | Q30: 202.27 | S30: 202.27 | T30: 44.4 | U30: 280.69 | V30: 527.36 | W30: 41.8 | X30: 2.990604937 | Y30: 530.3506049 | Z30: 5166.563159 | AA30: 5696.913764 | AC30: 5696.913764 | AD30: 530.3506049 | AE30: 5166.563159 | AH30: NORDESTE
B31: 5709.976694 | C31: 17 | E31: STRATURA ASFALTOS LTDA. | F31: RUA OESTE UM - Bairro: Luzardo Viana - CEP: 61910000 | G31: Ceará | H31: MARACANAU | I31: SÃO CAITANO - PE (VALE DO IPOJUCA) | J31: 4.015116694 | K31: 4.03046835 | L31: 4015.116694 | M31: 1109.47 | N31: 5124.586694 | O31: 781 | Q31: 224.53 | S31: 224.53 | T31: 49.28 | U31: 311.58 | V31: 585.39 | W31: 0 | X31: 0 | Y31: 585.39 | Z31: 5124.586694 | AA31: 5709.976694 | AC31: 5709.976694 | AD31: 585.39 | AE31: 5124.586694 | AH31: NORDESTE
B32: 5709.976694 | C32: 18 | E32: BETUNEL INDUSTRIA E COMERCIO S/A | F32: VIA PRINCIPAL - Bairro: DISTRITO INDUSTRIAL III - CEP: 61931050 | G32: Ceará | H32: MARACANAU | I32: SÃO CAITANO - PE (VALE DO IPOJUCA) | J32: 4.015116694 | K32: 4.03046835 | L32: 4015.116694 | M32: 1109.47 | N32: 5124.586694 | O32: 781 | Q32: 224.53 | S32: 224.53 | T32: 49.28 | U32: 311.58 | V32: 585.39 | W32: 0 | X32: 0 | Y32: 585.39 | Z32: 5124.586694 | AA32: 5709.976694 | AC32: 5709.976694 | AD32: 585.39 | AE32: 5124.586694 | AH32: NORDESTE
B33: 6119.072995 | C33: 19 | E33: BETUNEL INDUSTRIA E COMERCIO S/A | F33: RUA VICTOR RODRIGUES RESENDE - Bairro: DISTRITO INDUSTRIAL - CEP: 3840170 | G33: Minas Gerais | H33: UBERLANDIA | I33: SÃO CAITANO - PE (VALE DO IPOJUCA) | J33: 3.612001482 | K33: 3.596409563 | L33: 3612.001482 | M33: 998.08 | N33: 4610.081482 | O33: 2144 | Q33: 569.37 | S33: 569.37 | T33: 124.98 | U33: 790.13 | V33: 1484.48 | W33: 342.6 | X33: 24.51151319 | Y33: 1508.991513 | Z33: 4610.081482 | AA33: 6119.072995 | AC33: 6119.072995 | AD33: 1508.991513 | AE33: 4610.081482 | AH33: SUDESTE
B34: 5986.449447 | C34: 20 | E34: STRATURA ASFALTOS LTDA. | F34: Rodovia BR-381 Fernão Dias - Bairro: Chácara - CEP: 32670368 | G34: Minas Gerais | H34: BETIM | I34: SÃO CAITANO - PE (VALE DO IPOJUCA) | J34: 3.612001482 | K34: 3.596409563 | L34: 3612.001482 | M34: 998.08 | N34: 4610.081482 | O34: 1929 | Q34: 514.98 | S34: 514.98 | T34: 113.04 | U34: 714.65 | V34: 1342.67 | W34: 471 | X34: 33.69796472 | Y34: 1376.367965 | Z34: 4610.081482 | AA34: 5986.449447 | AC34: 5986.449447 | AD34: 1376.367965 | AE34: 4610.081482 | AH34: SUDESTE
B35: 5702.726694 | C35: 21 | E35: EMAM - EMULSÕES E TRANSPORTES LTDA. | F35: RODOVIA CE 060, KM 11,5 - Bairro: - CEP: 61800000 | G35: Ceará | H35: PACATUBA | I35: SÃO CAITANO - PE (VALE DO IPOJUCA) | J35: 4.015116694 | K35: 4.03046835 | L35: 4015.116694 | M35: 1109.47 | N35: 5124.586694 | O35: 770 | Q35: 221.75 | S35: 221.75 | T35: 48.67 | U35: 307.72 | V35: 578.14 | W35: 0 | X35: 0 | Y35: 578.14 | Z35: 5124.586694 | AA35: 5702.726694 | AC35: 5702.726694 | AD35: 578.14 | AE35: 5124.586694 | AH35: NORDESTE
B36: 6274.101758 | C36: 22 | E36: Refinaria Henrique Lage (Revap) | F36: Rodovia Presidente Dutra, KM 143, S/N Bairro Jardim Diamante - São José dos Campos – SP CEP:12223-900 | G36: São Paulo | H36: SÃO JOSÉ DOS CAMPOS - SP | I36: SÃO CAITANO - PE (VALE DO IPOJUCA) | J36: 3.569007047 | K36: 3.596409563 | L36: 3569.007047 | M36: 986.2 | N36: 4555.207047 | O36: 2397 | Q36: 633.38 | S36: 633.38 | T36: 139.03 | U36: 878.96 | V36: 1651.37 | W36: 943.8 | X36: 67.52471146 | Y36: 1718.894711 | Z36: 4555.207047 | AA36: 6274.101758 | AC36: 6274.101758 | AD36: 1718.894711 | AE36: 4555.207047 | AH36: SUDESTE
D47: Acre
D48: Alagoas
D49: Amapá
D50: Amazonas
D51: Bahia
D52: Ceará
D53: Distrito Federal
D54: Espírito Santo
D55: Goiás
D56: Maranhão
D57: Mato Grosso
D58: Mato Grosso do Sul
D59: Minas Gerais
D60: Pará
D61: Paraíba
D62: Paraná
D63: Pernambuco
D64: Piauí
D65: Rio de Janeiro
D66: Rio Grande do Norte
D67: Rio Grande do Sul
D68: Rondônia
D69: Roraima
D70: Santa Catarina
D71: São Paulo
D72: Sergipe
D73: Tocantins
D77: ASFALTOS DILUÍDOS CM-30
D78: ASFALTOS DILUÍDOS CM-70
D79: ASFALTOS DILUÍDOS CR-250
D80: ASFALTOS DILUÍDOS CR-70
D81: CAP MODIFICADO POR BORRACHA DE PNEU AB22
D82: CAP MODIFICADO POR BORRACHA DE PNEU AB8
D83: CAP MODIFICADO POR POLÍMERO 55-75-E
D84: CAP MODIFICADO POR POLÍMERO 60-85-E
D85: CAP MODIFICADO POR POLÍMERO 65-90-E
D86: CIMENTOS ASFÁLTICOS CAP-150-200
D87: CIMENTOS ASFÁLTICOS CAP-30-45
D88: CIMENTOS ASFÁLTICOS CAP-50-70
D89: CIMENTOS ASFÁLTICOS CAP-85-100
D90: EMULSÃO ASFÁLTICA CATIÔNICA DE RUPTURA CONTROLADA PARA SERVIÇO DE LAMA ASFÁLTICA
D91: EMULSÃO ASFÁLTICA DE RUPTURA LENTA CATIÔNICA PARA SERVIÇO DE LAMA ASFÁLTICA
D92: EMULSÃO ASFÁLTICA DE RUPTURA LENTA DE CARGA NEUTRA PARA SERVIÇO DE LAMA ASFÁLTICA
D93: EMULSÃO ASFÁLTICA PARA SERVIÇO DE IMPRIMAÇÃO
D94: EMULSÕES ASF. MOD. POR POLÍMEROS RC1C-E
D95: EMULSÕES ASF. MOD. POR POLÍMEROS RL1C-E
D96: EMULSÕES ASF. MOD. POR POLÍMEROS RM1C-E
D97: EMULSÕES ASF. MOD. POR POLÍMEROS RR1C-E
D98: EMULSÕES ASF. MOD. POR POLÍMEROS RR2C-E
D99: EMULSÕES ASFÁLTICAS RL-1C
D100: EMULSÕES ASFÁLTICAS RM-1C
D101: EMULSÕES ASFÁLTICAS RM-2C
D102: EMULSÕES ASFÁLTICAS RR-1C
D103: EMULSÕES ASFÁLTICAS RR-2C

Sheet Transporte RR-1C
C5: MEMÓRIA DE CÁLCULO
C10: REAJUSTE | F10: TIPOLOGIA DO MATERIAL | I10: EMULSÕES ASFÁLTICAS RR-1C | M10: IMPOSTOS | N10: COFINS | O10: 0.0065 | P10: 0.0065
G11: ÍNDICE DE PAVIMENTAÇÃO DNIT | H11: 2014-07-01 | I11: ÍNDICE INICIAL | J11: 270.237 | N11: PIS | O11: 0.03 | P11: 0.03 | T11: LEGENDA | AC11: As empresas tributadas pelo Lucro Presumido pagam 0,65% de PIS e 3% de COFINS
H12: 2024-09-01 | I12: ÍNDICE FINAL | J12: 577.753 | N12: ICMS | O12: 0.18 | P12: 0.18 | Q12: 0.82 | R12: 0.82 | S12: 0.18 | T12: ENTRADA DE DADOS | AC12: As empresas tributadas pelo Lucro Real pagam 1,65% de PIS e 7,60% de COFINS
G13: Data ANP | H13: 2024-09-01
C14: DATA-BASE | D14: PRODUTOS | E14: LOCALIDADES | J14: CUSTO ANP (R$/Kg) | L14: CUSTO ANP | M14: IMPOSTOS DO PRODUTO | N14: CUSTO DO PRODUTO COM IMPOSTOS | O14: DMT's | P14: DMT'S FLUVIAL | Q14: CUSTO DO TRANSPORTE RODOVIA PAVIMENTADA | R14: CUSTO DO TRANSPORTE FLUVIAL | S14: CUSTO DO TRANSPORTE TOTAL | T14: ICMS | U14: ATUALIZAÇÃO DO CUSTO DE TRANSPORTE | V14: CUSTO DO TRANSPORTE RODOVIA PAVIMENTADA COM IMPOSTOS E ATUALIZAÇÃO MONETÁRIA | W14: PEDÁGIO | Y14: TOTAL TRANSPORTE | Z14: AQUISIÇÃO DO PRODUTO | AA14: TOTAL GERAL ( TRANSP + AQUISIÇÃO) | AC14: 1 | AD14: 2 | AE14: 3
C15: 2024-09-01 | E15: REFINARIAS | F15: ENDEREÇO | G15: ESTADO | H15: CIDADE | I15: DESTINO | J15: ESTADO | K15: REGIÃO | L15: R$/t | M15: R$/t | N15: R$/t | O15: KM | P15: KM | Q15: R$/t | R15: R$/t | S15: R$/t | T15: R$/t | U15: R$/t | V15: R$/t | W15: CUSTO | X15: R$/t | Y15: R$/t | Z15: R$/t | AA15: R$/t | AC15: TOTAL GERAL ( TRANSP + AQUISIÇÃO) | AD15: TOTAL TRANSPORTE | AE15: AQUISIÇÃO DO PRODUTO
B16: 5644.856969 | C16: 1 | D16: EMULSÕES ASFÁLTICAS RR-1C | E16: 'CENTRO OESTE ASFALTOS LTDA. | F16: SETOR DE INFLAMÁVEIS, S/N TRECHO 02 - LOTE 1.100 - GUARÁ - CEP:71225-000 | G16: Distrito Federal | H16: BRASÍLIA - DF | I16: SÃO CAITANO - PE (VALE DO IPOJUCA) | J16: - | K16: 3.345478397 | L16: 3345.478397 | M16: 924.44 | N16: 4269.918397 | O16: 1970 | Q16: 525.35 | S16: 525.35 | T16: 115.32 | U16: 729.04 | V16: 1369.71 | W16: 73.2 | X16: 5.228571429 | Y16: 1374.938571 | Z16: 4269.918397 | AA16: 5644.856969 | AC16: 5644.856969 | AD16: 1374.938571 | AE16: 4269.918397 | AH16: CENTRO-OESTE
B17: 4256.049004 | C17: 2 | E17: GRECA DISTRIBUIDORA DE ASFALTOS LTDA. | F17: Avenida Parque Norte-2 - Bairro: Distrito Industrial I - CEP: 61939180 | G17: Ceará | H17: MARACANAU | I17: SÃO CAITANO - PE (VALE DO IPOJUCA) | J17: 2.875959004 | K17: 3.065661291 | L17: 2875.959004 | M17: 794.7 | N17: 3670.659004 | O17: 781 | Q17: 224.53 | S17: 224.53 | T17: 49.28 | U17: 311.58 | V17: 585.39 | W17: 0 | X17: 0 | Y17: 585.39 | Z17: 3670.659004 | AA17: 4256.049004 | AC17: 4256.049004 | AD17: 585.39 | AE17: 3670.659004 | AH17: NORDESTE
B18: 4406.491291 | E18: CBAA - ASFALTOS LTDA | F18: AVENIDA BANCO DO NORDESTE - Bairro: CIS - CEP: 44063640 | G18: Bahia | H18: FEIRA DE SANTANA | I18: SÃO CAITANO - PE (VALE DO IPOJUCA) | J18: - | K18: 3.065661291 | L18: 3065.661291 | M18: 847.12 | N18: 3912.781291 | O18: 642 | Q18: 189.37 | S18: 189.37 | T18: 41.56 | U18: 262.78 | V18: 493.71 | W18: 0 | X18: 0 | Y18: 493.71 | Z18: 3912.781291 | AA18: 4406.491291 | AC18: 4406.491291 | AD18: 493.71 | AE18: 3912.781291 | AH18: NORDESTE
B19: 4443.127005 | E19: BRASIL ASFALTOS LTDA. | F19: RODOVIA BA 522 - Bairro:DISTRITO INDUSTRIAL - CEP: 43813300 | G19: Bahia | H19: CANDEIAS | I19: SÃO CAITANO - PE (VALE DO IPOJUCA) | J19: - | K19: 3.065661291 | L19: 3065.661291 | M19: 847.12 | N19: 3912.781291 | O19: 693 | Q19: 202.27 | S19: 202.27 | T19: 44.4 | U19: 280.69 | V19: 527.36 | W19: 41.8 | X19: 2.985714286 | Y19: 530.3457143 | Z19: 3912.781291 | AA19: 4443.127005 | AC19: 4443.127005 | AD19: 530.3457143 | AE19: 3912.781291 | AH19: NORDESTE
B20: 4256.049004 | E20: STRATURA ASFALTOS LTDA. | F20: RUA OESTE UM - Bairro: Luzardo Viana - CEP: 61910000 | G20: Ceará | H20: MARACANAU | I20: SÃO CAITANO - PE (VALE DO IPOJUCA) | J20: 2.875959004 | K20: 3.065661291 | L20: 2875.959004 | M20: 794.7 | N20: 3670.659004 | O20: 781 | Q20: 224.53 | S20: 224.53 | T20: 49.28 | U20: 311.58 | V20: 585.39 | W20: 0 | X20: 0 | Y20: 585.39 | Z20: 3670.659004 | AA20: 4256.049004 | AC20: 4256.049004 | AD20: 585.39 | AE20: 3670.659004 | AH20: NORDESTE
B21: 4256.049004 | E21: BETUNEL INDUSTRIA E COMERCIO S/A | F21: VIA PRINCIPAL - Bairro: DISTRITO INDUSTRIAL III - CEP: 61931050 | G21: Ceará | H21: MARACANAU | I21: SÃO CAITANO - PE (VALE DO IPOJUCA) | J21: 2.875959004 | K21: 3.065661291 | L21: 2875.959004 | M21: 794.7 | N21: 3670.659004 | O21: 781 | Q21: 224.53 | S21: 224.53 | T21: 49.28 | U21: 311.58 | V21: 585.39 | W21: 0 | X21: 0 | Y21: 585.39 | Z21: 3670.659004 | AA21: 4256.049004 | AC21: 4256.049004 | AD21: 585.39 | AE21: 3670.659004 | AH21: NORDESTE
B22: 4781.825899 | E22: STRATURA ASFALTOS LTDA. | F22: Rodovia BR-381 Fernão Dias - Bairro: Chácara - CEP: 32670368 | G22: Minas Gerais | H22: BETIM | I22: SÃO CAITANO - PE (VALE DO IPOJUCA) | J22: 2.668223041 | K22: 2.715845632 | L22: 2668.223041 | M22: 737.29 | N22: 3405.513041 | O22: 1929 | Q22: 514.98 | S22: 514.98 | T22: 113.04 | U22: 714.65 | V22: 1342.67 | W22: 471 | X22: 33.64285714 | Y22: 1376.312857 | Z22: 3405.513041 | AA22: 4781.825899 | AC22: 4781.825899 | AD22: 1376.312857 | AE22: 3405.513041 | AH22: SUDESTE
B23: 4248.799004 | E23: EMAM - EMULSÕES E TRANSPORTES LTDA. | F23: RODOVIA CE 060, KM 11,5 - Bairro: - CEP: 61800000 | G23: Ceará | H23: PACATUBA | I23: SÃO CAITANO - PE (VALE DO IPOJUCA) | J23: 2.875959004 | K23: 3.065661291 | L23: 2875.959004 | M23: 794.7 | N23: 3670.659004 | O23: 770 | Q23: 221.75 | S23: 221.75 | T23: 48.67 | U23: 307.72 | V23: 578.14 | W23: 0 | X23: 0 | Y23: 578.14 | Z23: 3670.659004 | AA23: 4248.799004 | AC23: 4248.799004 | AD23: 578.14 | AE23: 3670.659004 | AH23: NORDESTE
B24: 5313.993328 | C24: 3 | E24: STRATURA ASFALTOS S/A | F24: AVENIDA PRESIDENTE WILSON, 08 - JUNDIAÍ - CEP:75115-100 | G24: Goiás | H24: ANÁPOLIS - GO | I24: SÃO CAITANO - PE (VALE DO IPOJUCA) | J24: 2.981937614 | K24: 3.345478397 | L24: 2981.937614 | M24: 823.98 | N24: 3805.917614 | O24: 2171 | Q24: 576.2 | S24: 576.2 | T24: 126.48 | U24: 799.61 | V24: 1502.29 | W24: 81 | X24: 5.785714286 | Y24: 1508.075714 | Z24: 3805.917614 | AA24: 5313.993328 | AC24: 5313.993328 | AD24: 1508.075714 | AE24: 3805.917614 | AH24: CENTRO-OESTE
B25: 5360.497614 | C25: 4 | E25: DISTRIBUIDORA BRASILEIRA DE ASFALTO SA - DISBRAL | F25: VIA PRIMARIA 8, S/N QD-18, MODS. 24/47 - DAIAG - CEP:74980-970 | G25: Goiás | H25: APARECIDA DE GOIANIA - GO | I25: SÃO CAITANO - PE (VALE DO IPOJUCA) | J25: 2.981937614 | K25: 3.345478397 | L25: 2981.937614 | M25: 823.98 | N25: 3805.917614 | O25: 2238 | Q25: 593.15 | S25: 593.15 | T25: 130.2 | U25: 823.13 | V25: 1546.48 | W25: 113.4 | X25: 8.1 | Y25: 1554.58 | Z25: 3805.917614 | AA25: 5360.497614 | AC25: 5360.497614 | AD25: 1554.58 | AE25: 3805.917614 | AH25: CENTRO-OESTE
A26: 2403 | B26: 5360.173328 | C26: 5 | E26: INDÚSTRIA NACIONAL DE ASFALTOS LTDA. | F26: VIA PRIMEIRA E SEGUNDA 3, S/N.º LOTES 01 A 10 - DISTRITO AGROINDUSTRIAL - CEP:75370-000 | G26: Goiás | H26: GOIANIRA - GO | I26: SÃO CAITANO - PE (VALE DO IPOJUCA) | J26: 2.981937614 | K26: 3.345478397 | L26: 2981.937614 | M26: 823.98 | N26: 3805.917614 | O26: 2241 | Q26: 593.91 | S26: 593.91 | T26: 130.37 | U26: 824.19 | V26: 1548.47 | W26: 81 | X26: 5.785714286 | Y26: 1554.255714 | Z26: 3805.917614 | AA26: 5360.173328 | AC26: 5360.173328 | AD26: 1554.255714 | AE26: 3805.917614 | AH26: CENTRO-OESTE
B27: 4914.421613 | C27: 6 | E27: STRATURA ASFALTOS S/A | F27: RUA VICTOR RODRIGUES RESENDE, 333 - DISTRITO IND. DE UBERLÂNDIA - CEP:38405-440 | G27: Minas Gerais | H27: UBERLANDIA - MG | I27: SÃO CAITANO - PE (VALE DO IPOJUCA) | J27: 2.668223041 | K27: 2.715845632 | L27: 2668.223041 | M27: 737.29 | N27: 3405.513041 | O27: 2144 | Q27: 569.37 | S27: 569.37 | T27: 124.98 | U27: 790.13 | V27: 1484.48 | W27: 342 | X27: 24.42857143 | Y27: 1508.908571 | Z27: 3405.513041 | AA27: 4914.421613 | AC27: 4914.421613 | AD27: 1508.908571 | AE27: 3405.513041 | AH27: SUDESTE
B28: 4914.421613 | C28: 7 | E28: BETUNEL INDÚSTRIA E COMÉRCIO LTDA. | F28: RUA VICTOR RODRIGUES DE REZENDE, 185 - DISTRITO INDUSTRIAL - CEP:38402-334 | G28: Minas Gerais | H28: UBERLANDIA - MG | I28: SÃO CAITANO - PE (VALE DO IPOJUCA) | J28: 2.668223041 | K28: 2.715845632 | L28: 2668.223041 | M28: 737.29 | N28: 3405.513041 | O28: 2144 | Q28: 569.37 | S28: 569.37 | T28: 124.98 | U28: 790.13 | V28: 1484.48 | W28: 342 | X28: 24.42857143 | Y28: 1508.908571 | Z28: 3405.513041 | AA28: 4914.421613 | AC28: 4914.421613 | AD28: 1508.908571 | AE28: 3405.513041 | AH28: SUDESTE
B29: 6907.571573 | C29: 8 | E29: ARAPETRO DISTRIBUIDORA DE PETRÓLEO LTDA. | F29: RUA 04, S/N° LOTES 17 A 20. - DISTRITO INDUSTRIAL 1/8 - CEP:78600-000 | G29: Mato grosso | H29: BARRA DO GARCAS - MT | I29: SÃO CAITANO - PE (VALE DO IPOJUCA) | J29: 4.024285858 | K29: 3.345478397 | L29: 4024.285858 | M29: 1112.01 | N29: 5136.295858 | O29: 2570 | Q29: 677.15 | S29: 677.15 | T29: 148.64 | U29: 939.7 | V29: 1765.49 | W29: 81 | X29: 5.785714286 | Y29: 1771.275714 | Z29: 5136.295858 | AA29: 6907.571573 | AH29: CENTRO-OESTE
B30: 4794.335899 | C30: 9 | E30: DISTRIBUIDORA BRASILEIRA DE ASFALTO SA - DISBRAL | F30: SÃO JUDAS TADEU, 288 - DISTRITO INDUSTRIAL - CEP:32450-000 | G30: Minas Gerais | H30: SARZEDO - MG | I30: SÃO CAITANO - PE (VALE DO IPOJUCA) | J30: 2.668223041 | K30: 2.715845632 | L30: 2668.223041 | M30: 737.29 | N30: 3405.513041 | O30: 1948 | Q30: 519.78 | S30: 519.78 | T30: 114.09 | U30: 721.31 | V30: 1355.18 | W30: 471 | X30: 33.64285714 | Y30: 1388.822857 | Z30: 3405.513041 | AA30: 4794.335899 | AH30: SUDESTE
B31: 5419.297437 | C31: 11 | E31: 'NTA - NOVAS TÉCNICAS DE ASFALTOS S/A | F31: RUA SOFIA ATAURI FADIN, 150 SALA A - B. SANTA TEREZINHA - CEP:13140-000 | G31: São Paulo | H31: PAULINIA - SP | I31: SÃO CAITANO - PE (VALE DO IPOJUCA) | J31: 2.847638866 | K31: 2.715845632 | L31: 2847.638866 | M31: 786.87 | N31: 3634.508866 | O31: 2519 | Q31: 664.25 | S31: 664.25 | T31: 145.81 | U31: 921.8 | V31: 1731.86 | W31: 741 | X31: 52.92857143 | Y31: 1784.788571 | Z31: 3634.508866 | AA31: 5419.297437 | AC31: 5419.297437 | AD31: 1784.788571 | AE31: 3634.508866 | AH31: SUDESTE
B32: 5390.221723 | C32: 12 | E32: COMPANHIA BRASILEIRA DE ASFALTOS DA AMAZÔNIA - IMPORTAÇÃO E EXPORTAÇÃO | F32: Avenida Doutor Olindo Dártora 2451, Galpão 02, Morro Grande - CEP:07726-555 | G32: São Paulo | H32: CAIEIRAS - SP | I32: SÃO CAITANO - PE (VALE DO IPOJUCA) | J32: 2.847638866 | K32: 2.715845632 | L32: 2847.638866 | M32: 786.87 | N32: 3634.508866 | O32: 2491 | Q32: 657.16 | S32: 657.16 | T32: 144.25 | U32: 911.96 | V32: 1713.37 | W32: 592.8 | X32: 42.34285714 | Y32: 1755.712857 | Z32: 3634.508866 | AA32: 5390.221723 | AH32: SUDESTE
B33: 5654.329978 | C33: 13 | E33: BETUNEL INDÚSTRIA E COMÉRCIO LTDA. | F33: R 16 , 82, Vila Nova Campo Grande - CEP:79.103-834 | G33: Mato Grosso do Sul | H33: CAMPO GRANDE - MS | I33: SÃO CAITANO - PE (VALE DO IPOJUCA) | J33: 2.850491406 | K33: 3.345478397 | L33: 2850.491406 | M33: 787.66 | N33: 3638.151406 | O33: 2913 | Q33: 763.93 | S33: 763.93 | T33: 167.69 | U33: 1060.13 | V33: 1991.75 | W33: 342 | X33: 24.42857143 | Y33: 2016.178571 | Z33: 3638.151406 | AA33: 5654.329978 | AH33: CENTRO-OESTE
B34: 7251.727287 | C34: 14 | E34: CENTRO OESTE ASFALTOS LTDA. | F34: RUA N, S/N.º LOTES 39/43 E LOTES 129/133 - DISTRITO INDUSTRIAL - CEP:78098-400 | G34: Mato Grosso | H34: CUIABA - MT | I34: SÃO CAITANO - PE (VALE DO IPOJUCA) | J34: 4.024285858 | K34: 3.345478397 | L34: 4024.285858 | M34: 1112.01 | N34: 5136.295858 | O34: 3088 | Q34: 808.2 | S34: 808.2 | T34: 177.4 | U34: 1121.56 | V34: 2107.16 | W34: 115.8 | X34: 8.271428571 | Y34: 2115.431429 | Z34: 5136.295858 | AA34: 7251.727287 | AH34: CENTRO-OESTE
B35: 7251.727287 | C35: 15 | E35: BETUNEL INDÚSTRIA E COMÉRCIO LTDA. | F35: RUA N ESQUINA COM RUA X, S/N QD. IND. 7 L 01/08 - DIST. IND. - CEP:78015-285 | G35: Mato Grosso | H35: CUIABA - MT | I35: SÃO CAITANO - PE (VALE DO IPOJUCA) | J35: 4.024285858 | K35: 3.345478397 | L35: 4024.285858 | M35: 1112.01 | N35: 5136.295858 | O35: 3088 | Q35: 808.2 | S35: 808.2 | T35: 177.4 | U35: 1121.56 | V35: 2107.16 | W35: 115.8 | X35: 8.271428571 | Y35: 2115.431429 | Z35: 5136.295858 | AA35: 7251.727287 | AH35: CENTRO-OESTE
B36: 5403.348569 | C36: 20 | E36: CASA DO ASFALTO DISTRIBUIDORA, INDÚSTRIA E COMÉRCIO DE ASFALTO LTDA. | F36: BR 376, PARQUE INDUSTRIAL, S/N LOTE 6/7/7-A-3-1 - GL.PATR.MARIALVA - CEP:86990-000 | G36: Paraná | H36: MARIALVA - PR | I36: SÃO CAITANO - PE (VALE DO IPOJUCA) | J36: 2.651442855 | K36: 2.654062641 | L36: 2651.442855 | M36: 732.66 | N36: 3384.102855 | O36: 2872 | Q36: 753.56 | S36: 753.56 | T36: 165.41 | U36: 1045.74 | V36: 1964.71 | W36: 763.5 | X36: 54.53571429 | Y36: 2019.245714 | Z36: 3384.102855 | AA36: 5403.348569 | AC36: 5403.348569 | AD36: 2019.245714 | AE36: 3384.102855 | AH36: SUL
B37: 5442.235712 | C37: 21 | E37: PETROBRAS DISTRIBUIDORA S.A. | F37: RUA MAQUINISTA ELEODORO JACINTO, 100 - OFICINAS - CEP:84045-170 | G37: Paraná | H37: PONTA GROSSA - PR | I37: SÃO CAITANO - PE (VALE DO IPOJUCA) | J37: 2.651442855 | K37: 2.654062641 | L37: 2651.442855 | M37: 732.66 | N37: 3384.102855 | O37: 2925 | Q37: 766.96 | S37: 766.96 | T37: 168.35 | U37: 1064.33 | V37: 1999.64 | W37: 818.9 | X37: 58.49285714 | Y37: 2058.132857 | Z37: 3384.102855 | AA37: 5442.235712 | AC37: 5442.235712 | AD37: 2058.132857 | AE37: 3384.102855 | AH37: SUL
D47: Acre
D48: Alagoas
D49: Amapá
D50: Amazonas
D51: Bahia
D52: Ceará
D53: Distrito Federal
D54: Espírito Santo
D55: Goiás
D56: Maranhão
D57: Mato Grosso
D58: Mato Grosso do Sul
D59: Minas Gerais
D60: Pará
D61: Paraíba
D62: Paraná
D63: Pernambuco
D64: Piauí
D65: Rio de Janeiro
D66: Rio Grande do Norte
D67: Rio Grande do Sul
D68: Rondônia
D69: Roraima
D70: Santa Catarina
D71: São Paulo
D72: Sergipe
D73: Tocantins
D77: ASFALTOS DILUÍDOS CM-30
D78: ASFALTOS DILUÍDOS CM-70
D79: ASFALTOS DILUÍDOS CR-250
D80: ASFALTOS DILUÍDOS CR-70
D81: CAP MODIFICADO POR BORRACHA DE PNEU AB22
D82: CAP MODIFICADO POR BORRACHA DE PNEU AB8
D83: CAP MODIFICADO POR POLÍMERO 55-75-E
D84: CAP MODIFICADO POR POLÍMERO 60-85-E
D85: CAP MODIFICADO POR POLÍMERO 65-90-E
D86: CIMENTOS ASFÁLTICOS CAP-150-200
D87: CIMENTOS ASFÁLTICOS CAP-30-45
D88: CIMENTOS ASFÁLTICOS CAP-50-70
D89: CIMENTOS ASFÁLTICOS CAP-85-100
D90: EMULSÃO ASFÁLTICA CATIÔNICA DE RUPTURA CONTROLADA PARA SERVIÇO DE LAMA ASFÁLTICA
D91: EMULSÃO ASFÁLTICA DE RUPTURA LENTA CATIÔNICA PARA SERVIÇO DE LAMA ASFÁLTICA
D92: EMULSÃO ASFÁLTICA DE RUPTURA LENTA DE CARGA NEUTRA PARA SERVIÇO DE LAMA ASFÁLTICA
D93: EMULSÃO ASFÁLTICA PARA SERVIÇO DE IMPRIMAÇÃO
D94: EMULSÕES ASF. MOD. POR POLÍMEROS RC1C-E
D95: EMULSÕES ASF. MOD. POR POLÍMEROS RL1C-E
D96: EMULSÕES ASF. MOD. POR POLÍMEROS RM1C-E
D97: EMULSÕES ASF. MOD. POR POLÍMEROS RR1C-E
D98: EMULSÕES ASF. MOD. POR POLÍMEROS RR2C-E
D99: EMULSÕES ASFÁLTICAS RL-1C
D100: EMULSÕES ASFÁLTICAS RM-1C
D101: EMULSÕES ASFÁLTICAS RM-2C
D102: EMULSÕES ASFÁLTICAS RR-1C
D103: EMULSÕES ASFÁLTICAS RR-2C

Sheet RESUMO_Transp
B8: REAJUSTE | E8: TIPOLOGIA DO MATERIAL | G8: LIGANTE BETUMINOSO | K8: IMPOSTOS | L8: COFINS | M8: 0.0065
C9: DATA INICIAL | F9: 2014-07-01 | G9: ÍNDICE INICIAL | H9: 270.237 | L9: PIS | M9: 0.03 | P9: LEGENDA
C10: DATA FINAL | F10: 2024-09-01 | G10: ÍNDICE FINAL | H10: 577.753 | L10: ICMS | M10: 0.18 | P10: ENTRADA DE DADOS
B12: DATA-BASE | C12: PRODUTOS | D12: LOCALIDADES | H12: CUSTO ANP (R$/Kg) | J12: CUSTO ANP | K12: IMPOSTOS DO PRODUTO | L12: CUSTO DO PRODUTO COM IMPOSTOS | M12: DMT's | N12: DMT's FLUVIAL | O12: CUSTO DO TRANSPORTE TOTAL | P12: ICMS | Q12: ATUALIZAÇÃO DO CUSTO DE TRANSPORTE | R12: CUSTO DO TRANSPORTE RODOVIA PAVIMENTADA COM IMPOSTOS E ATUALIZAÇÃO MONETÁRIA | S12: PEDÁGIO | U12: TOTAL TRANSPORTE | V12: TOTAL PRODUTO | W12: TOTAL GERAL
B13: 2024-09-01 | D13: REFINARIAS | E13: ENDEREÇO | F13: ORIGEM REFINARIAS / DISTRIBUIDORAS | G13: DESTINO | H13: ESTADO | I13: REGIÃO | J13: R$/t | K13: R$/t | L13: R$/t | M13: KM | N13: KM | O13: R$/t | P13: R$/t | Q13: R$/t | R13: R$/t | S13: CUSTO POR EIXO | T13: R$/t | U13: R$/t | V13: R$/t | W13: R$/t
B14: 1 | C14: CAP 50/70 | D14: Refinaria Abreu e Lima | E14: Rodovia PE 60, Km 10 - Ipojuca - PE CEP:55590-000 | F14: IPOJUCA - PE | G14: SÃO CAITANO - PE (VALE DO IPOJUCA) | H14: - | I14: 4.03046835 | J14: 4030.46835 | K14: 1113.72 | L14: 5144.18835 | M14: 160 | N14: 0 | O14: 67.42 | P14: 14.79 | Q14: 93.55 | R14: 175.76 | S14: 0 | T14: 0 | U14: 175.76 | V14: 5144.18835 | W14: 5319.94835
B15: 2 | D15: Refinaria Potiguar Clara Camarão | E15: Rodovia RN 221, KM 25 - Guamaré - RN CEP:59598-000 | F15: GUAMARÉ - RN | G15: SÃO CAITANO - PE (VALE DO IPOJUCA) | H15: - | I15: 4.03046835 | J15: 4030.46835 | K15: 1113.72 | L15: 5144.18835 | M15: 596 | N15: 0 | O15: 177.73 | P15: 39.01 | Q15: 246.63 | R15: 463.37 | S15: 0 | T15: 0 | U15: 463.37 | V15: 5144.18835 | W15: 5607.55835
B16: 3 | D16: Complexo Petroquímico do Rio de Janeiro (Comperj) | E16: Rodovia Estadual RJ-116 - Km 5,2 - Acesso A-1, s/n, Complemento Sambaetiba - Zona Urbana do 4º Distrito de Itaboraí - RJ CEP:24841-203 | F16: FEIRA DE SANTANA | G16: SÃO CAITANO - PE (VALE DO IPOJUCA) | H16: 4.048003159 | I16: 4.03046835 | J16: 4048.003159 | K16: 1118.56 | L16: 5166.563159 | M16: 642 | N16: 0 | O16: 189.37 | P16: 41.56 | Q16: 262.78 | R16: 493.71 | S16: 0 | T16: 0 | U16: 493.71 | V16: 5166.563159 | W16: 5660.273159
B17: 4 | F17: CANDEIAS | G17: SÃO CAITANO - PE (VALE DO IPOJUCA) | H17: 4.048003159 | I17: 4.03046835 | J17: 4048.003159 | K17: 1118.56 | L17: 5166.563159 | M17: 693 | N17: 0 | O17: 202.27 | P17: 44.4 | Q17: 280.69 | R17: 527.36 | S17: 41.8 | T17: 2.990604937 | U17: 530.3506049 | V17: 5166.563159 | W17: 5696.913764
B18: 5 | F18: PACATUBA | G18: SÃO CAITANO - PE (VALE DO IPOJUCA) | H18: 4.015116694 | I18: 4.03046835 | J18: 4015.116694 | K18: 1109.47 | L18: 5124.586694 | M18: 770 | N18: 0 | O18: 221.75 | P18: 48.67 | Q18: 307.72 | R18: 578.14 | S18: 0 | T18: 0 | U18: 578.14 | V18: 5124.586694 | W18: 5702.726694
B19: 6 | F19: FORTALEZA - CE | G19: SÃO CAITANO - PE (VALE DO IPOJUCA) | H19: 4.015116694 | I19: 4.03046835 | J19: 4015.116694 | K19: 1109.47 | L19: 5124.586694 | M19: 774 | N19: 0 | O19: 222.76 | P19: 48.89 | Q19: 309.12 | R19: 580.77 | S19: 0 | T19: 0 | U19: 580.77 | V19: 5124.586694 | W19: 5705.356694
B25: 1 | C25: CAP MODIF. C/ POLÍMERO 60/85 | D25: Refinaria Abreu e Lima | E25: Rodovia PE 60, Km 10 - Ipojuca - PE CEP:55590-000 | G25: Palmas - TO | H25: 2.261894948 | I25: 2.353413905 | J25: 2261.894948 | K25: 393.19 | L25: 2655.084948 | M25: 1181 | N25: 1181 | O25: 325.73 | P25: 44.41 | Q25: 202.55 | S25: 102 | T25: 102 | V25: 2655.084948 | W25: 3329.774948
B26: 2 | D26: Refinaria Potiguar Clara Camarão | E26: Rodovia RN 221, KM 25 - Guamaré - RN CEP:59598-000 | F26: UBERLANDIA - MG | G26: Palmas - TO | H26: 2.261894948 | I26: 2.353413905 | J26: 2261.894948 | K26: 393.19 | L26: 2655.084948 | M26: 1182 | N26: 1182 | O26: 325.98 | P26: 44.45 | Q26: 202.71 | S26: 102 | T26: 102 | V26: 2655.084948 | W26: 3330.224948
B27: 3 | D27: Complexo Petroquímico do Rio de Janeiro (Comperj) | E27: Rodovia Estadual RJ-116 - Km 5,2 - Acesso A-1, s/n, Complemento Sambaetiba - Zona Urbana do 4º Distrito de Itaboraí - RJ CEP:24841-203 | F27: GOIANIRA - GO | G27: Palmas - TO | I27: 2.555206955 | J27: 2555.206955 | K27: 444.18 | L27: 2999.386955 | M27: 814 | N27: 814 | O27: 232.88 | P27: 31.75 | Q27: 144.81 | S27: 0 | T27: 0 | V27: 2999.386955 | W27: 3408.826955
B28: 4 | F28: BRASÍLIA - DF | G28: Palmas - TO | I28: 2.555206955 | J28: 2555.206955 | K28: 444.18 | L28: 2999.386955 | M28: 822 | N28: 822 | O28: 234.9 | P28: 32.03 | Q28: 146.07 | S28: 0 | T28: 0 | V28: 2999.386955 | W28: 3412.386955
B29: 5 | F29: APARECIDA DE GOIANIA - GO | G29: Palmas - TO | I29: 2.555206955 | J29: 2555.206955 | K29: 444.18 | L29: 2999.386955 | M29: 842 | N29: 842 | O29: 239.96 | P29: 32.72 | Q29: 149.22 | S29: 0 | T29: 0 | V29: 2999.386955 | W29: 3421.286955
B30: 6 | F30: ANÁPOLIS - GO | G30: Palmas - TO | I30: 2.555206955 | J30: 2555.206955 | K30: 444.18 | L30: 2999.386955 | M30: 950 | N30: 950 | O30: 267.28 | P30: 36.44 | Q30: 166.21 | S30: 0 | T30: 0 | V30: 2999.386955 | W30: 3469.316955
B33: 1 | C33: RR1-C | D33: Refinaria Abreu e Lima | E33: Rodovia PE 60, Km 10 - Ipojuca - PE CEP:55590-000 | F33: PACATUBA | G33: SÃO CAITANO - PE (VALE DO IPOJUCA) | H33: 2.875959004 | I33: 3.065661291 | J33: 2875.959004 | K33: 794.7 | L33: 3670.659004 | M33: 770 | N33: 0 | O33: 221.75 | P33: 48.67 | Q33: 307.72 | R33: 578.14 | S33: 0 | T33: 0 | U33: 578.14 | V33: 3670.659004 | W33: 4248.799004
B34: 2 | D34: Refinaria Potiguar Clara Camarão | E34: Rodovia RN 221, KM 25 - Guamaré - RN CEP:59598-000 | F34: MARACANAU | G34: SÃO CAITANO - PE (VALE DO IPOJUCA) | H34: 2.875959004 | I34: 3.065661291 | J34: 2875.959004 | K34: 794.7 | L34: 3670.659004 | M34: 781 | N34: 0 | O34: 224.53 | P34: 49.28 | Q34: 311.58 | R34: 585.39 | S34: 0 | T34: 0 | U34: 578.14 | V34: 3670.659004 | W34: 4256.049004
B35: 3 | D35: Complexo Petroquímico do Rio de Janeiro (Comperj) | E35: Rodovia Estadual RJ-116 - Km 5,2 - Acesso A-1, s/n, Complemento Sambaetiba - Zona Urbana do 4º Distrito de Itaboraí - RJ CEP:24841-203 | F35: MARACANAU | G35: SÃO CAITANO - PE (VALE DO IPOJUCA) | H35: 2.875959004 | I35: 3.065661291 | J35: 2875.959004 | K35: 794.7 | L35: 3670.659004 | M35: 781 | N35: 0 | O35: 224.53 | P35: 49.28 | Q35: 311.58 | R35: 585.39 | S35: 0 | T35: 0 | U35: 578.14 | V35: 3670.659004 | W35: 4256.049004
B36: 4 | D36: Refinaria Abreu e Lima | E36: Rodovia PE 60, Km 10 - Ipojuca - PE CEP:55590-000 | F36: MARACANAU | G36: SÃO CAITANO - PE (VALE DO IPOJUCA) | H36: 2.875959004 | I36: 3.065661291 | J36: 2875.959004 | K36: 794.7 | L36: 3670.659004 | M36: 781 | N36: 0 | O36: 224.53 | P36: 49.28 | Q36: 311.58 | R36: 585.39 | S36: 0 | T36: 0 | U36: 578.14 | V36: 3670.659004 | W36: 4256.049004
B37: 5 | D37: Refinaria Potiguar Clara Camarão | E37: Rodovia RN 221, KM 25 - Guamaré - RN CEP:59598-000 | F37: FEIRA DE SANTANA | G37: SÃO CAITANO - PE (VALE DO IPOJUCA) | H37: - | I37: 3.065661291 | J37: 3065.661291 | K37: 847.12 | L37: 3912.781291 | M37: 642 | N37: 0 | O37: 189.37 | P37: 41.56 | Q37: 262.78 | R37: 493.71 | S37: 0 | T37: 0 | U37: 578.14 | V37: 3912.781291 | W37: 4406.491291
B38: 6 | D38: Complexo Petroquímico do Rio de Janeiro (Comperj) | E38: Rodovia Estadual RJ-116 - Km 5,2 - Acesso A-1, s/n, Complemento Sambaetiba - Zona Urbana do 4º Distrito de Itaboraí - RJ CEP:24841-203 | F38: CANDEIAS | G38: SÃO CAITANO - PE (VALE DO IPOJUCA) | H38: - | I38: 3.065661291 | J38: 3065.661291 | K38: 847.12 | L38: 3912.781291 | M38: 693 | N38: 0 | O38: 202.27 | P38: 44.4 | Q38: 280.69 | R38: 527.36 | S38: 41.8 | T38: 2.985714286 | U38: 578.14 | V38: 3912.781291 | W38: 4443.127005

Sheet MOMENTO DE TRANSPORTE - PRINC
B5: EXECUÇÃO DE CAPA ASFÁLTICA EM CONCRETO BETUMINOSO USINADO A QUENTE (CBUQ), EM VIAS DE MUNICÍPIOS DIVERSOS INSERIDOS NA ÁREA DE ATUAÇÃO DA CODEVASF 3ª SR, NO ESTADO DE PERNAMBUCO - REGIÃO VALE DO IPOJUCA
B6: ESTADO: | C6: PERNAMBUCO | D6: DATA BASE: | E6: Pernambuco - Abril/2024
C8: RESUMO DO TRANSPORTE PRINCIPAL
B9: CODIGO | C9: DESCRIÇÃO | D9: TKM
B10: 5914359 | C10: Transporte com caminhão basculante de 10 m³ - rodovia em leito natural | D10: 0
B11: 5914374 | C11: Transporte com caminhão basculante de 10 m³ - rodovia em revestimento primário | D11: 0
B12: 5914389 | C12: Transporte com caminhão basculante de 10 m³ - rodovia pavimentada | D12: 1068748.8
B13: 5914314 | C13: Transporte com caminhão basculante de 6 m³ - rodovia em leito natural | D13: 0
B14: 5914329 | C14: Transporte com caminhão basculante de 6 m³ - rodovia em revestimento primário | D14: 0
B15: 5914344 | C15: Transporte com caminhão basculante de 6 m³ - rodovia pavimentada | D15: 328091.57
B17: TIPO (P, RP ou LN) | C17: DMT ESTIMADA
B18: P | C18: 71
B20: COMPOSIÇÕES PRINCIPAIS
B21: SISTEMA DE CUSTOS REFERENCIAIS DE OBRAS - SICRO
B22: Custo Unitário de Referência | E22: Pernambuco - Abril/2024 | I22: Quantitativo | K22: t
B23: 4011463 | C23: Concreto asfáltico - faixa C - areia e brita comerciais | I23: 13440
B24: D - ATIVIDADES AUXILIARES | D24: Quantidade | E24: Unidade
B25: 6416078 | C25: Usinagem de concreto asfáltico - faixa C - areia e brita comerciais | D25: 1.02 | E25: t
B27: F - MOMENTO DE TRANSPORTE | D27: Quantidade | E27: Unidade | F27: CÓDIGO TRANSPORTE
F28: LN | G28: RP | H28: P | I28: TIPO (P, RP ou LN) | J28: DMT ESTIMADA (km) | K28: QUANTITATIVO TOTAL DE TRANSPORTE (tkm)
A29: 5914389 | B29: 6416078 | C29: Usinagem de concreto asfáltico - faixa C - areia e brita comerciais | D29: 1.02 | E29: tkm | F29: 5914359 | G29: 5914374 | H29: 5914389 | I29: P | J29: 71 | K29: 973324.8
B31: Obs.
B32: SISTEMA DE CUSTOS REFERENCIAIS DE OBRAS - SICRO
B33: Custo Unitário de Referência | E33: Pernambuco - Abril/2024 | I33: Quantitativo | K33: m³
B34: 4915663 | C34: Fresagem descontínua de revestimento asfáltico - espessura de 5 cm | I34: 560
B35: D - ATIVIDADES AUXILIARES | D35: Quantidade | E35: Unidade
B38: F - MOMENTO DE TRANSPORTE | D38: Quantidade | E38: Unidade | F38: CÓDIGO TRANSPORTE
F39: LN | G39: RP | H39: P | I39: TIPO (P, RP ou LN) | J39: DMT ESTIMADA (km) | K39: QUANTITATIVO TOTAL DE TRANSPORTE (tkm)
A40: 5914389 | B40: M3507 | C40: Revestimento asfáltico - Caminhão basculante 10 m³ | D40: 2.4 | E40: tkm | F40: 5914359 | G40: 5914374 | H40: 5914389 | I40: P | J40: 71 | K40: 95424
B42: Obs.
B43: COMPOSIÇÕES PRINCIPAIS
B44: SISTEMA DE CUSTOS REFERENCIAIS DE OBRAS - SICRO
B45: Custo Unitário de Referência | E45: Pernambuco - Abril/2024 | I45: Quantitativo | K45: m²
B46: 4915618 | C46: Recomposição de camada granular do pavimento com material de jazida | I46: 11200
B47: D - ATIVIDADES AUXILIARES | D47: Quantidade | E47: Unidade
B48: 4016096 | C48: Escavação e carga de material de jazida com escavadeira hidráulica de 1,56 m³ | D48: 0.22005 | E48: t
B50: F - MOMENTO DE TRANSPORTE | D50: Quantidade | E50: Unidade | F50: CÓDIGO TRANSPORTE
F51: LN | G51: RP | H51: P | I51: TIPO (P, RP ou LN) | J51: DMT ESTIMADA (km) | K51: QUANTITATIVO TOTAL DE TRANSPORTE (tkm)
A52: 5914344 | B52: 4016096 | C52: Escavação e carga de material de jazida com escavadeira hidráulica de 1,56 m³ | D52: 0.41259 | E52: tkm | F52: 5914314 | G52: 5914329 | H52: 5914344 | I52: P | J52: 71 | K52: 328091.568
B54: Obs.
B55: TIPO (P, RP ou LN) | C55: DMT ESTIMADA
B56: LN | C56: 0
B58: COMPOSIÇÕES PRINCIPAIS
B59: SISTEMA DE CUSTOS REFERENCIAIS DE OBRAS - SICRO
B60: Custo Unitário de Referência | E60: Pernambuco - Abril/2024 | I60: Quantitativo | K60: t
B61: 4011463 | C61: Concreto asfáltico - faixa C - areia e brita comerciais | I61: 1680
B62: D - ATIVIDADES AUXILIARES | D62: Quantidade | E62: Unidade
B63: 6416078 | C63: Usinagem de concreto asfáltico - faixa C - areia e brita comerciais | D63: 1.02 | E63: t
B65: F - MOMENTO DE TRANSPORTE | D65: Quantidade | E65: Unidade | F65: CÓDIGO TRANSPORTE
F66: LN | G66: RP | H66: P | I66: TIPO (P, RP ou LN) | J66: DMT ESTIMADA (km) | K66: QUANTITATIVO TOTAL DE TRANSPORTE (tkm)
A67: 5914359 | B67: 6416078 | C67: Usinagem de concreto asfáltico - faixa C - areia e brita comerciais | D67: 1.02 | E67: tkm | F67: 5914359 | G67: 5914374 | H67: 5914389 | I67: LN | J67: 0 | K67: 0
B69: Obs.
B70: SISTEMA DE CUSTOS REFERENCIAIS DE OBRAS - SICRO
B71: Custo Unitário de Referência | E71: Pernambuco - Abril/2024 | I71: Quantitativo | K71: m³
B72: 4915663 | C72: Fresagem descontínua de revestimento asfáltico - espessura de 5 cm | I72: 70
B73: D - ATIVIDADES AUXILIARES | D73: Quantidade | E73: Unidade
B76: F - MOMENTO DE TRANSPORTE | D76: Quantidade | E76: Unidade | F76: CÓDIGO TRANSPORTE
F77: LN | G77: RP | H77: P | I77: TIPO (P, RP ou LN) | J77: DMT ESTIMADA (km) | K77: QUANTITATIVO TOTAL DE TRANSPORTE (tkm)
A78: 5914359 | B78: M3507 | C78: Revestimento asfáltico - Caminhão basculante 10 m³ | D78: 2.4 | E78: tkm | F78: 5914359 | G78: 5914374 | H78: 5914389 | I78: LN | J78: 0 | K78: 0
B80: Obs.
B81: COMPOSIÇÕES PRINCIPAIS
B82: SISTEMA DE CUSTOS REFERENCIAIS DE OBRAS - SICRO
B83: Custo Unitário de Referência | E83: Pernambuco - Abril/2024 | I83: Quantitativo | K83: m²
B84: 4915618 | C84: Recomposição de camada granular do pavimento com material de jazida | I84: 1400
B85: D - ATIVIDADES AUXILIARES | D85: Quantidade | E85: Unidade
B86: 4016096 | C86: Escavação e carga de material de jazida com escavadeira hidráulica de 1,56 m³ | D86: 0.22005 | E86: t
B88: F - MOMENTO DE TRANSPORTE | D88: Quantidade | E88: Unidade | F88: CÓDIGO TRANSPORTE
F89: LN | G89: RP | H89: P | I89: TIPO (P, RP ou LN) | J89: DMT ESTIMADA (km) | K89: QUANTITATIVO TOTAL DE TRANSPORTE (tkm)
A90: 5914314 | B90: 4016096 | C90: Escavação e carga de material de jazida com escavadeira hidráulica de 1,56 m³ | D90: 0.41259 | E90: tkm | F90: 5914314 | G90: 5914329 | H90: 5914344 | I90: LN | J90: 0 | K90: 0
B92: Obs.
B93: TIPO (P, RP ou LN) | C93: DMT ESTIMADA
B94: RP | C94: 0
B96: COMPOSIÇÕES PRINCIPAIS
B97: SISTEMA DE CUSTOS REFERENCIAIS DE OBRAS - SICRO
B98: Custo Unitário de Referência | E98: Pernambuco - Abril/2024 | I98: Quantitativo | K98: t
B99: 4011463 | C99: Concreto asfáltico - faixa C - areia e brita comerciais | I99: 1680
B100: D - ATIVIDADES AUXILIARES | D100: Quantidade | E100: Unidade
B101: 6416078 | C101: Usinagem de concreto asfáltico - faixa C - areia e brita comerciais | D101: 1.02 | E101: t
B103: F - MOMENTO DE TRANSPORTE | D103: Quantidade | E103: Unidade | F103: CÓDIGO TRANSPORTE
F104: LN | G104: RP | H104: P | I104: TIPO (P, RP ou LN) | J104: DMT ESTIMADA (km) | K104: QUANTITATIVO TOTAL DE TRANSPORTE (tkm)
A105: 5914374 | B105: 6416078 | C105: Usinagem de concreto asfáltico - faixa C - areia e brita comerciais | D105: 1.02 | E105: tkm | F105: 5914359 | G105: 5914374 | H105: 5914389 | I105: RP | J105: 0 | K105: 0
B107: Obs.
B108: SISTEMA DE CUSTOS REFERENCIAIS DE OBRAS - SICRO
B109: Custo Unitário de Referência | E109: Pernambuco - Abril/2024 | I109: Quantitativo | K109: m³
B110: 4915663 | C110: Fresagem descontínua de revestimento asfáltico - espessura de 5 cm | I110: 70
B111: D - ATIVIDADES AUXILIARES | D111: Quantidade | E111: Unidade
B114: F - MOMENTO DE TRANSPORTE | D114: Quantidade | E114: Unidade | F114: CÓDIGO TRANSPORTE
F115: LN | G115: RP | H115: P | I115: TIPO (P, RP ou LN) | J115: DMT ESTIMADA (km) | K115: QUANTITATIVO TOTAL DE TRANSPORTE (tkm)
A116: 5914374 | B116: M3507 | C116: Revestimento asfáltico - Caminhão basculante 10 m³ | D116: 2.4 | E116: tkm | F116: 5914359 | G116: 5914374 | H116: 5914389 | I116: RP | J116: 0 | K116: 0
B118: Obs.
B119: COMPOSIÇÕES PRINCIPAIS
B120: SISTEMA DE CUSTOS REFERENCIAIS DE OBRAS - SICRO
B121: Custo Unitário de Referência | E121: Pernambuco - Abril/2024 | I121: Quantitativo | K121: m²
B122: 4915618 | C122: Recomposição de camada granular do pavimento com material de jazida | I122: 1400
B123: D - ATIVIDADES AUXILIARES | D123: Quantidade | E123: Unidade
B124: 4016096 | C124: Escavação e carga de material de jazida com escavadeira hidráulica de 1,56 m³ | D124: 0.22005 | E124: t
B126: F - MOMENTO DE TRANSPORTE | D126: Quantidade | E126: Unidade | F126: CÓDIGO TRANSPORTE
F127: LN | G127: RP | H127: P | I127: TIPO (P, RP ou LN) | J127: DMT ESTIMADA (km) | K127: QUANTITATIVO TOTAL DE TRANSPORTE (tkm)
A128: 5914329 | B128: 4016096 | C128: Escavação e carga de material de jazida com escavadeira hidráulica de 1,56 m³ | D128: 0.41259 | E128: tkm | F128: 5914314 | G128: 5914329 | H128: 5914344 | I128: RP | J128: 0 | K128: 0
B130: Obs.

Sheet MOMENTO DE TRANSPORTE - AUX
B4: EXECUÇÃO DE CAPA ASFÁLTICA EM CONCRETO BETUMINOSO USINADO A QUENTE (CBUQ), EM VIAS DE MUNICÍPIOS DIVERSOS INSERIDOS NA ÁREA DE ATUAÇÃO DA CODEVASF 3ª SR, NO ESTADO DE PERNAMBUCO - REGIÃO VALE DO IPOJUCA
B5: ESTADO: | C5: PERNAMBUCO | D5: DATA BASE: | E5: Pernambuco - Abril/2024
B7: RESUMO DO TRANSPORTE AUXILIAR
B8: CODIGO | C8: DESCRIÇÃO | D8: TKM
B9: 5914359 | C9: Transporte com caminhão basculante de 10 m³ - rodovia em leito natural | D9: 0
B10: 5914374 | C10: Transporte com caminhão basculante de 10 m³ - rodovia em revestimento primário | D10: 0
B11: 5914389 | C11: Transporte com caminhão basculante de 10 m³ - rodovia pavimentada | D11: 0
B12: 5914364 | C12: Transporte de cimento ou cal hidratada a granel com caminhão silo de 30 m³ - rodovia em leito natural | D12: 0
B13: 5914365 | C13: Transporte de cimento ou cal hidratada a granel com caminhão silo de 30 m³ - rodovia em revestimento primário | D13: 0
B14: 5914366 | C14: Transporte de cimento ou cal hidratada a granel com caminhão silo de 30 m³ - rodovia pavimentada | D14: 0
B16: TIPO (P, RP ou LN) | C16: DMT ATÉ 50 KM NÃO DEVE SER PAGA | D16: SOMENTE DEVE SER ADICIONADO A DISTÂNCIA EXCEDENTE A 50 KM
B17: P | D17: 0
B19: SISTEMA DE CUSTOS REFERENCIAIS DE OBRAS - SICRO | I19: Quantitivo
B20: Custo Unitário de Referência | E20: Pernambuco - Abril/2024 | I20: (Coeficiente na composição principal) x (quantidade da principal no orçamento) | K20: t
B21: 6416078 | C21: Usinagem de concreto asfáltico - faixa C - areia e brita comerciais | I21: 13708.8
B22: F - MOMENTO DE TRANSPORTE | D22: Quantidade | E22: Unidade | F22: DMT
F23: LN | G23: RP | H23: P | I23: TIPO (P, RP ou LN) | J23: DMT ESTIMADA (km) | K23: QUANTITATIVO TOTAL DE TRANSPORTE DE MATERIAL (tkm)
A24: 5914389 | B24: M0028 | C24: Areia média - Caminhão basculante 10 m³ | D24: 0.48713 | E24: tkm | F24: 5914359 | G24: 5914374 | H24: 5914389 | I24: P | J24: 0 | K24: 0
A25: 5914389 | B25: M0005 | C25: Brita 0 - Caminhão basculante 10 m³ | D25: 0.09368 | E25: tkm | F25: 5914359 | G25: 5914374 | H25: 5914389 | I25: P | J25: 0 | K25: 0
A26: 5914389 | B26: M0191 | C26: Brita 1 - Caminhão basculante 10 m³ | D26: 0.09368 | E26: tkm | F26: 5914359 | G26: 5914374 | H26: 5914389 | I26: P | J26: 0 | K26: 0
A27: 5914366 | B27: M0344 | C27: Cal hidratada - a granel - Caminhão silo 30 m³ | D27: 0.0562 | E27: tkm | F27: 5914364 | G27: 5914365 | H27: 5914366 | I27: P | J27: 0 | K27: 0
A28: 5914389 | B28: M1103 | C28: Pedrisco - Caminhão basculante 10 m³ | D28: 0.20609 | E28: tkm | F28: 5914359 | G28: 5914374 | H28: 5914389 | I28: P | J28: 0 | K28: 0
B30: PRINCIPAL: | C30: 4011463
B31: SISTEMA DE CUSTOS REFERENCIAIS DE OBRAS - SICRO | I31: Quantitivo
B32: Custo Unitário de Referência | E32: Pernambuco - Abril/2024 | I32: (Coeficiente na composição principal) x (quantidade da principal no orçamento) | K32: m³
B33: 4016096 | C33: Escavação e carga de material de jazida com escavadeira hidráulica de 1,56 m³
B34: F - MOMENTO DE TRANSPORTE | D34: '' | E34: Unidade | F34: DMT
F35: LN | G35: RP | H35: P | I35: TIPO (P, RP ou LN) | J35: DMT ESTIMADA (km) | K35: QUANTITATIVO TOTAL DE TRANSPORTE DE MATERIAL (tkm)
E36: tkm
B37: PRINCIPAL: | C37: 4915618
B38: TIPO (P, RP ou LN) | C38: DMT ATÉ 50 KM NÃO DEVE SER PAGA | D38: DMT ACIMA DE 50 KM
B39: LN | C39: 0 | D39: 0
B41: SISTEMA DE CUSTOS REFERENCIAIS DE OBRAS - SICRO | I41: Quantitivo
B42: Custo Unitário de Referência | E42: Pernambuco - Abril/2024 | I42: (Coeficiente na composição principal) x (quantidade da principal no orçamento) | K42: t
B43: 6416078 | C43: Usinagem de concreto asfáltico - faixa C - areia e brita comerciais | I43: 1713.6
B44: F - MOMENTO DE TRANSPORTE | D44: Quantidade | E44: Unidade | F44: DMT
F45: LN | G45: RP | H45: P | I45: TIPO (P, RP ou LN) | J45: DMT ESTIMADA (km) | K45: QUANTITATIVO TOTAL DE TRANSPORTE DE MATERIAL (tkm)
A46: 5914359 | B46: M0028 | C46: Areia média - Caminhão basculante 10 m³ | D46: 0.48713 | E46: tkm | F46: 5914359 | G46: 5914374 | H46: 5914389 | I46: LN | J46: 0 | K46: 0
A47: 5914359 | B47: M0005 | C47: Brita 0 - Caminhão basculante 10 m³ | D47: 0.09368 | E47: tkm | F47: 5914359 | G47: 5914374 | H47: 5914389 | I47: LN | J47: 0 | K47: 0
A48: 5914359 | B48: M0191 | C48: Brita 1 - Caminhão basculante 10 m³ | D48: 0.09368 | E48: tkm | F48: 5914359 | G48: 5914374 | H48: 5914389 | I48: LN | J48: 0 | K48: 0
A49: 5914364 | B49: M0344 | C49: Cal hidratada - a granel - Caminhão silo 30 m³ | D49: 0.0562 | E49: tkm | F49: 5914364 | G49: 5914365 | H49: 5914366 | I49: LN | J49: 0 | K49: 0
A50: 5914359 | B50: M1103 | C50: Pedrisco - Caminhão basculante 10 m³ | D50: 0.20609 | E50: tkm | F50: 5914359 | G50: 5914374 | H50: 5914389 | I50: LN | J50: 0 | K50: 0
B52: PRINCIPAL: | C52: 4011463
B53: SISTEMA DE CUSTOS REFERENCIAIS DE OBRAS - SICRO | I53: Quantitivo
B54: Custo Unitário de Referência | E54: Pernambuco - Abril/2024 | I54: (Coeficiente na composição principal) x (quantidade da principal no orçamento) | K54: m³
B55: 4016096 | C55: Escavação e carga de material de jazida com escavadeira hidráulica de 1,56 m³
B56: F - MOMENTO DE TRANSPORTE | D56: '' | E56: Unidade | F56: DMT
F57: LN | G57: RP | H57: P | I57: TIPO (P, RP ou LN) | J57: DMT ESTIMADA (km) | K57: QUANTITATIVO TOTAL DE TRANSPORTE DE MATERIAL (tkm)
E58: tkm
B59: PRINCIPAL: | C59: 4915618
B60: TIPO (P, RP ou LN) | C60: DMT ATÉ 50 KM NÃO DEVE SER PAGA | D60: DMT ACIMA DE 50 KM
B61: RP | C61: 0 | D61: 0
B63: SISTEMA DE CUSTOS REFERENCIAIS DE OBRAS - SICRO | I63: Quantitivo
B64: Custo Unitário de Referência | E64: Pernambuco - Abril/2024 | I64: (Coeficiente na composição principal) x (quantidade da principal no orçamento) | K64: t
B65: 6416078 | C65: Usinagem de concreto asfáltico - faixa C - areia e brita comerciais | I65: 1713.6
B66: F - MOMENTO DE TRANSPORTE | D66: Quantidade | E66: Unidade | F66: DMT
F67: LN | G67: RP | H67: P | I67: TIPO (P, RP ou LN) | J67: DMT ESTIMADA (km) | K67: QUANTITATIVO TOTAL DE TRANSPORTE DE MATERIAL (tkm)
A68: 5914374 | B68: M0028 | C68: Areia média - Caminhão basculante 10 m³ | D68: 0.48713 | E68: tkm | F68: 5914359 | G68: 5914374 | H68: 5914389 | I68: RP | J68: 0 | K68: 0
A69: 5914374 | B69: M0005 | C69: Brita 0 - Caminhão basculante 10 m³ | D69: 0.09368 | E69: tkm | F69: 5914359 | G69: 5914374 | H69: 5914389 | I69: RP | J69: 0 | K69: 0
A70: 5914374 | B70: M0191 | C70: Brita 1 - Caminhão basculante 10 m³ | D70: 0.09368 | E70: tkm | F70: 5914359 | G70: 5914374 | H70: 5914389 | I70: RP | J70: 0 | K70: 0
A71: 5914365 | B71: M0344 | C71: Cal hidratada - a granel - Caminhão silo 30 m³ | D71: 0.0562 | E71: tkm | F71: 5914364 | G71: 5914365 | H71: 5914366 | I71: RP | J71: 0 | K71: 0
A72: 5914374 | B72: M1103 | C72: Pedrisco - Caminhão basculante 10 m³ | D72: 0.20609 | E72: tkm | F72: 5914359 | G72: 5914374 | H72: 5914389 | I72: RP | J72: 0 | K72: 0
B74: PRINCIPAL: | C74: 4011463
B75: SISTEMA DE CUSTOS REFERENCIAIS DE OBRAS - SICRO | I75: Quantitivo
B76: Custo Unitário de Referência | E76: Pernambuco - Abril/2024 | I76: (Coeficiente na composição principal) x (quantidade da principal no orçamento) | K76: m³
B77: 4016096 | C77: Escavação e carga de material de jazida com escavadeira hidráulica de 1,56 m³
B78: F - MOMENTO DE TRANSPORTE | D78: '' | E78: Unidade | F78: DMT
F79: LN | G79: RP | H79: P | I79: TIPO (P, RP ou LN) | J79: DMT ESTIMADA (km) | K79: QUANTITATIVO TOTAL DE TRANSPORTE DE MATERIAL (tkm)
E80: tkm
B81: PRINCIPAL: | C81: 0
M103: =(#REF!) -> 

Sheet MC MODULO
A1: Extensão | B1: = | C1: 2000 | D1: m | F1: QUANTIDADE DE MODULOS | G1: 10
A2: Largura | B2: = | C2: 7 | D2: m
A4: Extensão | B4: = | C4: 2 | D4: km
B6: MOBUILIZAÇÃO
A7: 1 | B7: Implantação da obra
B9: Módulos(un) | D9: Módulos(un)
B10: 10 | C10: = | D10: 10
A12: 2 | B12: Administração da obra
B14: Módulos(un) | D14: Módulos(un)
B15: 10 | C15: = | D15: 10
A17: 3 | B17: Canteiro de Obras e Almoxarifado
B19: Módulos(un) | D19: Módulos(un)
B20: 10 | C20: = | D20: 10
A22: 4 | B22: Placa de Obra em Chapa de Aço Galvanizado
B24: Módulos(un) | C24: Comprimento(m) | D24: Largura (m) | H24: Total de Area de placa (m²)
B25: 10 | C25: 2 | D25: 4 | H25: 160
B28: PAVIMENTAÇÃO
A30: 5 | B30: Concreto asfáltico - faixa C - areia e brita comerciais
B32: Extensão (m) | C32: Largura (m) | D32: Espessura (m) | E32: Densidade (t/m³) | F32: A | H32: Volume (t)
B33: 20000 | C33: 7 | D33: 0.05 | E33: 2.4 | G33: = | H33: 16800
A36: 7 | B36: Pintura de ligação
B38: Extensão (m) | D38: Largura (m) | H38: area (m2)
B39: 20000 | C39: x | D39: 7 | G39: = | H39: 140000
A42: 9 | B42: Fresagem descontínua de revestimento asfáltico - espessura de 5 cm
B44: Extensão (m) | D44: Largura (m) | E44: Espessura (m) | H44: Volume (m3)
B45: 20000 | C45: x | D45: 7 | E45: 0.05 | F45: 0.1 | G45: = | H45: 700
A48: 9 | B48: Recomposição de camada granular do pavimento com material de jazida
B50: Extensão (m) | D50: Largura (m) | H50: area (m2)
B51: 20000 | C51: x | D51: 7 | F51: 0.1 | G51: = | H51: 14000
B53: SINALIZAÇÃO
A55: 14 | B55: Fornecimento e implantação de placa de regulamentação em aço D = 0,60 m - película retrorrefletiva tipo I + SI
B57: Extensão (km) | D57: Quant. (un) | H57: Quant. (un)
B58: 20 | C58: x | D58: 3 | G58: = | H58: 60
A60: 14 | B60: Placa de advertência em aço, lado de 0,60 m - película retrorrefletiva tipo I + SI - fornecimento e implantação
B62: Extensão (km) | D62: Quant. (un) | H62: Quant. (un)
B63: 20 | C63: x | D63: 3 | G63: = | H63: 60
A66: 15 | B66: Fornecimento e implantação de suporte metálico galvanizado para placa de regulamentação - D = 0,60 m
B68: Extensão (km) | D68: Quant. (un) | H68: Quant. (un)
B69: 20 | C69: x | D69: 0.5 | G69: = | H69: 120
A71: 16 | B71: Pintura de faixa com tinta acrílica - espessura de 0,4 mm (bordos)
B73: Extensão (m) | D73: Espessura (m) | H73: Quant. (m²)
B74: 20000 | C74: x | D74: 0.1 | G74: = | H74: 4000
A76: 16 | B76: Pintura de faixa com tinta acrílica - espessura de 0,4 mm (faixa central)
H78: Quant. (m²)
H79: 800
B82: DRENAGEM
A83: 17 | B83: Reassentamento manual de meio fio com material arrancado da pista
B85: Extensão (m) | D85: Quant. (un) | G85: 0.1 | H85: Extensão(m)
B86: 20000 | C86: x | D86: 2 | G86: = | H86: 4000
A88: 18 | B88: Limpeza de sarjeta e meio-fio
B90: Extensão (m) | D90: Quant. (un) | H90: Extensão(m)
B91: 20000 | C91: x | D91: 2 | G91: = | H91: 40000
A93: 19 | B93: Caiação mecanizada com fixador de cal
B95: Extensão (m) | D95: Perimetro (m) | H95: Area (m²)
B96: 20000 | C96: x | D96: 0.24 | G96: = | H96: 4800
B99: SERVIÇOS COMPLEMENTARES
A100: 20
B102: Extensão (m) | D102: Largura (m) | G102: 0.1 | H102: extensão (m)
B103: 20000 | C103: x | D103: 1 | E103: x | G103: = | H103: 2000
B106: PROJETO EXECUTIVO
A107: 21 | B107: Projeto Executivo
B109: Extensão (m) | D109: Largura (m) | F109: Quant. (un) | H109: Área (m²)
B110: 20000 | C110: x | D110: 7 | E110: x | F110: 1 | G110: = | H110: 140000
B112: CONTROLE TECNOLOGICO - OBRA
A113: 22 | B113: Projeto Executivo
B115: Extensão (m) | D115: Largura (m) | F115: Quant. (un) | H115: meses
G116: = | H116: 5
E132: Perímetro caiação = 0,09 + 0,15

Sheet ANP ESTADO (hidden)
A1: Agência Nacional do Petróleo, Gás Natural e Biocombustíveis
A2: Superintendência de Defesa da Concorrência
A5: PREÇO MÉDIO MENSAL PONDERADO PRATICADO PELOS DISTRIBUIDORES DE PRODUTOS ASFÁLTICOS (R$/KG)
A7: Importante: | B7: Quando não houver declaração de venda do produto selecionado, ou quando a declaração de venda do produto ocorrer por menos de 03 (três) distribuidoras, a tabela indicará campo vazio.
A8: Mês | B8: Produto | C8: Estado | D8: Preço
A9: 2013-01-01 | B9: ASFALTOS DILUÍDOS CM-30 | C9: Acre | D9: -
A10: 2013-01-01 | B10: ASFALTOS DILUÍDOS CM-30 | C10: Alagoas | D10: -
A11: 2013-01-01 | B11: ASFALTOS DILUÍDOS CM-30 | C11: Amapá | D11: -
A12: 2013-01-01 | B12: ASFALTOS DILUÍDOS CM-30 | C12: Amazonas | D12: 1.453527021
A13: 2013-01-01 | B13: ASFALTOS DILUÍDOS CM-30 | C13: Bahia | D13: 1.464044142
A14: 2013-01-01 | B14: ASFALTOS DILUÍDOS CM-30 | C14: Ceará | D14: 1.447997934
A15: 2013-01-01 | B15: ASFALTOS DILUÍDOS CM-30 | C15: Distrito Federal | D15: -
A16: 2013-01-01 | B16: ASFALTOS DILUÍDOS CM-30 | C16: Espírito Santo | D16: -
A17: 2013-01-01 | B17: ASFALTOS DILUÍDOS CM-30 | C17: Goiás | D17: 1.686383065
A18: 2013-01-01 | B18: ASFALTOS DILUÍDOS CM-30 | C18: Maranhão | D18: -
A19: 2013-01-01 | B19: ASFALTOS DILUÍDOS CM-30 | C19: Mato Grosso | D19: -
A20: 2013-01-01 | B20: ASFALTOS DILUÍDOS CM-30 | C20: Mato Grosso do Sul | D20: -
A21: 2013-01-01 | B21: ASFALTOS DILUÍDOS CM-30 | C21: Minas Gerais | D21: 1.451106114
A22: 2013-01-01 | B22: ASFALTOS DILUÍDOS CM-30 | C22: Pará | D22: -
A23: 2013-01-01 | B23: ASFALTOS DILUÍDOS CM-30 | C23: Paraíba | D23: -
A24: 2013-01-01 | B24: ASFALTOS DILUÍDOS CM-30 | C24: Paraná | D24: 1.520125031
A25: 2013-01-01 | B25: ASFALTOS DILUÍDOS CM-30 | C25: Pernambuco | D25: -
A26: 2013-01-01 | B26: ASFALTOS DILUÍDOS CM-30 | C26: Piauí | D26: -
A27: 2013-01-01 | B27: ASFALTOS DILUÍDOS CM-30 | C27: Rio de Janeiro | D27: 1.330475106
A28: 2013-01-01 | B28: ASFALTOS DILUÍDOS CM-30 | C28: Rio Grande do Norte | D28: -
A29: 2013-01-01 | B29: ASFALTOS DILUÍDOS CM-30 | C29: Rio Grande do Sul | D29: 1.598611074
A30: 2013-01-01 | B30: ASFALTOS DILUÍDOS CM-30 | C30: Rondônia | D30: -
A31: 2013-01-01 | B31: ASFALTOS DILUÍDOS CM-30 | C31: Roraima | D31: -
A32: 2013-01-01 | B32: ASFALTOS DILUÍDOS CM-30 | C32: Santa Catarina | D32: -
A33: 2013-01-01 | B33: ASFALTOS DILUÍDOS CM-30 | C33: São Paulo | D33: 1.471008423
A34: 2013-01-01 | B34: ASFALTOS DILUÍDOS CM-30 | C34: Sergipe | D34: -
A35: 2013-01-01 | B35: ASFALTOS DILUÍDOS CM-30 | C35: Tocantins | D35: -
A36: 2013-02-01 | B36: ASFALTOS DILUÍDOS CM-30 | C36: Acre | D36: -
A37: 2013-02-01 | B37: ASFALTOS DILUÍDOS CM-30 | C37: Alagoas | D37: -
A38: 2013-02-01 | B38: ASFALTOS DILUÍDOS CM-30 | C38: Amapá | D38: -
A39: 2013-02-01 | B39: ASFALTOS DILUÍDOS CM-30 | C39: Amazonas | D39: 1.485578179
A40: 2013-02-01 | B40: ASFALTOS DILUÍDOS CM-30 | C40: Bahia | D40: 1.457014101
A41: 2013-02-01 | B41: ASFALTOS DILUÍDOS CM-30 | C41: Ceará | D41: 1.413192336
A42: 2013-02-01 | B42: ASFALTOS DILUÍDOS CM-30 | C42: Distrito Federal | D42: -
A43: 2013-02-01 | B43: ASFALTOS DILUÍDOS CM-30 | C43: Espírito Santo | D43: -
A44: 2013-02-01 | B44: ASFALTOS DILUÍDOS CM-30 | C44: Goiás | D44: 1.667459711
A45: 2013-02-01 | B45: ASFALTOS DILUÍDOS CM-30 | C45: Maranhão | D45: -
A46: 2013-02-01 | B46: ASFALTOS DILUÍDOS CM-30 | C46: Mato Grosso | D46: -
A47: 2013-02-01 | B47: ASFALTOS DILUÍDOS CM-30 | C47: Mato Grosso do Sul | D47: -
A48: 2013-02-01 | B48: ASFALTOS DILUÍDOS CM-30 | C48: Minas Gerais | D48: 1.452121117
A49: 2013-02-01 | B49: ASFALTOS DILUÍDOS CM-30 | C49: Pará | D49: -
A50: 2013-02-01 | B50: ASFALTOS DILUÍDOS CM-30 | C50: Paraíba | D50: -
A51: 2013-02-01 | B51: ASFALTOS DILUÍDOS CM-30 | C51: Paraná | D51: 1.493783173
A52: 2013-02-01 | B52: ASFALTOS DILUÍDOS CM-30 | C52: Pernambuco | D52: -
A53: 2013-02-01 | B53: ASFALTOS DILUÍDOS CM-30 | C53: Piauí | D53: -
A54: 2013-02-01 | B54: ASFALTOS DILUÍDOS CM-30 | C54: Rio de Janeiro | D54: 1.418234901
A55: 2013-02-01 | B55: ASFALTOS DILUÍDOS CM-30 | C55: Rio Grande do Norte | D55: -
A56: 2013-02-01 | B56: ASFALTOS DILUÍDOS CM-30 | C56: Rio Grande do Sul | D56: 1.435861782
A57: 2013-02-01 | B57: ASFALTOS DILUÍDOS CM-30 | C57: Rondônia | D57: -
A58: 2013-02-01 | B58: ASFALTOS DILUÍDOS CM-30 | C58: Roraima | D58: -
A59: 2013-02-01 | B59: ASFALTOS DILUÍDOS CM-30 | C59: Santa Catarina | D59: -
A60: 2013-02-01 | B60: ASFALTOS DILUÍDOS CM-30 | C60: São Paulo | D60: 1.434190204
A61: 2013-02-01 | B61: ASFALTOS DILUÍDOS CM-30 | C61: Sergipe | D61: -
A62: 2013-02-01 | B62: ASFALTOS DILUÍDOS CM-30 | C62: Tocantins | D62: -
A63: 2013-03-01 | B63: ASFALTOS DILUÍDOS CM-30 | C63: Acre | D63: -
A64: 2013-03-01 | B64: ASFALTOS DILUÍDOS CM-30 | C64: Alagoas | D64: -
A65: 2013-03-01 | B65: ASFALTOS DILUÍDOS CM-30 | C65: Amapá | D65: -
A66: 2013-03-01 | B66: ASFALTOS DILUÍDOS CM-30 | C66: Amazonas | D66: 1.507923921
A67: 2013-03-01 | B67: ASFALTOS DILUÍDOS CM-30 | C67: Bahia | D67: 1.449440325
A68: 2013-03-01 | B68: ASFALTOS DILUÍDOS CM-30 | C68: Ceará | D68: 1.401607485
A69: 2013-03-01 | B69: ASFALTOS DILUÍDOS CM-30 | C69: Distrito Federal | D69: -
A70: 2013-03-01 | B70: ASFALTOS DILUÍDOS CM-30 | C70: Espírito Santo | D70: -
A71: 2013-03-01 | B71: ASFALTOS DILUÍDOS CM-30 | C71: Goiás | D71: 1.661758701
A72: 2013-03-01 | B72: ASFALTOS DILUÍDOS CM-30 | C72: Maranhão | D72: -
A73: 2013-03-01 | B73: ASFALTOS DILUÍDOS CM-30 | C73: Mato Grosso | D73: -
A74: 2013-03-01 | B74: ASFALTOS DILUÍDOS CM-30 | C74: Mato Grosso do Sul | D74: -
A75: 2013-03-01 | B75: ASFALTOS DILUÍDOS CM-30 | C75: Minas Gerais | D75: 1.44324333
A76: 2013-03-01 | B76: ASFALTOS DILUÍDOS CM-30 | C76: Pará | D76: -
A77: 2013-03-01 | B77: ASFALTOS DILUÍDOS CM-30 | C77: Paraíba | D77: -
A78: 2013-03-01 | B78: ASFALTOS DILUÍDOS CM-30 | C78: Paraná | D78: 1.468995996
A79: 2013-03-01 | B79: ASFALTOS DILUÍDOS CM-30 | C79: Pernambuco | D79: -
A80: 2013-03-01 | B80: ASFALTOS DILUÍDOS CM-30 | C80: Piauí | D80: -
A81: 2013-03-01 | B81: ASFALTOS DILUÍDOS CM-30 | C81: Rio de Janeiro | D81: 1.438055574
A82: 2013-03-01 | B82: ASFALTOS DILUÍDOS CM-30 | C82: Rio Grande do Norte | D82: -
A83: 2013-03-01 | B83: ASFALTOS DILUÍDOS CM-30 | C83: Rio Grande do Sul | D83: 1.581425878
A84: 2013-03-01 | B84: ASFALTOS DILUÍDOS CM-30 | C84: Rondônia | D84: -
A85: 2013-03-01 | B85: ASFALTOS DILUÍDOS CM-30 | C85: Roraima | D85: -
A86: 2013-03-01 | B86: ASFALTOS DILUÍDOS CM-30 | C86: Santa Catarina | D86: -
A87: 2013-03-01 | B87: ASFALTOS DILUÍDOS CM-30 | C87: São Paulo | D87: 1.466061702
A88: 2013-03-01 | B88: ASFALTOS DILUÍDOS CM-30 | C88: Sergipe | D88: -
A89: 2013-03-01 | B89: ASFALTOS DILUÍDOS CM-30 | C89: Tocantins | D89: -
A90: 2013-04-01 | B90: ASFALTOS DILUÍDOS CM-30 | C90: Acre | D90: -
A91: 2013-04-01 | B91: ASFALTOS DILUÍDOS CM-30 | C91: Alagoas | D91: -
A92: 2013-04-01 | B92: ASFALTOS DILUÍDOS CM-30 | C92: Amapá | D92: -
A93: 2013-04-01 | B93: ASFALTOS DILUÍDOS CM-30 | C93: Amazonas | D93: 1.484796656
A94: 2013-04-01 | B94: ASFALTOS DILUÍDOS CM-30 | C94: Bahia | D94: 1.454836546
A95: 2013-04-01 | B95: ASFALTOS DILUÍDOS CM-30 | C95: Ceará | D95: 1.387073962
A96: 2013-04-01 | B96: ASFALTOS DILUÍDOS CM-30 | C96: Distrito Federal | D96: -
A97: 2013-04-01 | B97: ASFALTOS DILUÍDOS CM-30 | C97: Espírito Santo | D97: -
A98: 2013-04-01 | B98: ASFALTOS DILUÍDOS CM-30 | C98: Goiás | D98: 1.673481836
A99: 2013-04-01 | B99: ASFALTOS DILUÍDOS CM-30 | C99: Maranhão | D99: -
A100: 2013-04-01 | B100: ASFALTOS DILUÍDOS CM-30 | C100: Mato Grosso | D100: 1.921938422
A101: 2013-04-01 | B101: ASFALTOS DILUÍDOS CM-30 | C101: Mato Grosso do Sul | D101: -
A102: 2013-04-01 | B102: ASFALTOS DILUÍDOS CM-30 | C102: Minas Gerais | D102: 1.456556683
A103: 2013-04-01 | B103: ASFALTOS DILUÍDOS CM-30 | C103: Pará | D103: -
A104: 2013-04-01 | B104: ASFALTOS DILUÍDOS CM-30 | C104: Paraíba | D104: -
A105: 2013-04-01 | B105: ASFALTOS DILUÍDOS CM-30 | C105: Paraná | D105: 1.534419498
A106: 2013-04-01 | B106: ASFALTOS DILUÍDOS CM-30 | C106: Pernambuco | D106: -
A107: 2013-04-01 | B107: ASFALTOS DILUÍDOS CM-30 | C107: Piauí | D107: -
A108: 2013-04-01 | B108: ASFALTOS DILUÍDOS CM-30 | C108: Rio de Janeiro | D108: 1.418419516
A109: 2013-04-01 | B109: ASFALTOS DILUÍDOS CM-30 | C109: Rio Grande do Norte | D109: -
A110: 2013-04-01 | B110: ASFALTOS DILUÍDOS CM-30 | C110: Rio Grande do Sul | D110: 1.572582456
A111: 2013-04-01 | B111: ASFALTOS DILUÍDOS CM-30 | C111: Rondônia | D111: -
A112: 2013-04-01 | B112: ASFALTOS DILUÍDOS CM-30 | C112: Roraima | D112: -
A113: 2013-04-01 | B113: ASFALTOS DILUÍDOS CM-30 | C113: Santa Catarina | D113: -
A114: 2013-04-01 | B114: ASFALTOS DILUÍDOS CM-30 | C114: São Paulo | D114: 1.475764348
A115: 2013-04-01 | B115: ASFALTOS DILUÍDOS CM-30 | C115: Sergipe | D115: -
A116: 2013-04-01 | B116: ASFALTOS DILUÍDOS CM-30 | C116: Tocantins | D116: -
A117: 2013-05-01 | B117: ASFALTOS DILUÍDOS CM-30 | C117: Acre | D117: -
A118: 2013-05-01 | B118: ASFALTOS DILUÍDOS CM-30 | C118: Alagoas | D118: -
A119: 2013-05-01 | B119: ASFALTOS DILUÍDOS CM-30 | C119: Amapá | D119: -
A120: 2013-05-01 | B120: ASFALTOS DILUÍDOS CM-30 | C120: Amazonas | D120: -
A121: 2013-05-01 | B121: ASFALTOS DILUÍDOS CM-30 | C121: Bahia | D121: 1.492587424
A122: 2013-05-01 | B122: ASFALTOS DILUÍDOS CM-30 | C122: Ceará | D122: 1.376263021
A123: 2013-05-01 | B123: ASFALTOS DILUÍDOS CM-30 | C123: Distrito Federal | D123: -
A124: 2013-05-01 | B124: ASFALTOS DILUÍDOS CM-30 | C124: Espírito Santo | D124: -
A125: 2013-05-01 | B125: ASFALTOS DILUÍDOS CM-30 | C125: Goiás | D125: 1.668214819
A126: 2013-05-01 | B126: ASFALTOS DILUÍDOS CM-30 | C126: Maranhão | D126: -
A127: 2013-05-01 | B127: ASFALTOS DILUÍDOS CM-30 | C127: Mato Grosso | D127: 1.903098159
A128: 2013-05-01 | B128: ASFALTOS DILUÍDOS CM-30 | C128: Mato Grosso do Sul | D128: -
A129: 2013-05-01 | B129: ASFALTOS DILUÍDOS CM-30 | C129: Minas Gerais | D129: 1.464709716
A130: 2013-05-01 | B130: ASFALTOS DILUÍDOS CM-30 | C130: Pará | D130: -
A131: 2013-05-01 | B131: ASFALTOS DILUÍDOS CM-30 | C131: Paraíba | D131: -
A132: 2013-05-01 | B132: ASFALTOS DILUÍDOS CM-30 | C132: Paraná | D132: 1.489027849
A133: 2013-05-01 | B133: ASFALTOS DILUÍDOS CM-30 | C133: Pernambuco | D133: -
A134: 2013-05-01 | B134: ASFALTOS DILUÍDOS CM-30 | C134: Piauí | D134: -
A135: 2013-05-01 | B135: ASFALTOS DILUÍDOS CM-30 | C135: Rio de Janeiro | D135: 1.399256048
A136: 2013-05-01 | B136: ASFALTOS DILUÍDOS CM-30 | C136: Rio Grande do Norte | D136: -
A137: 2013-05-01 | B137: ASFALTOS DILUÍDOS CM-30 | C137: Rio Grande do Sul | D137: 1.539636961
A138: 2013-05-01 | B138: ASFALTOS DILUÍDOS CM-30 | C138: Rondônia | D138: -
A139: 2013-05-01 | B139: ASFALTOS DILUÍDOS CM-30 | C139: Roraima | D139: -
A140: 2013-05-01 | B140: ASFALTOS DILUÍDOS CM-30 | C140: Santa Catarina | D140: -
A141: 2013-05-01 | B141: ASFALTOS DILUÍDOS CM-30 | C141: São Paulo | D141: 1.451215936
A142: 2013-05-01 | B142: ASFALTOS DILUÍDOS CM-30 | C142: Sergipe | D142: -
A143: 2013-05-01 | B143: ASFALTOS DILUÍDOS CM-30 | C143: Tocantins | D143: -
A144: 2013-06-01 | B144: ASFALTOS DILUÍDOS CM-30 | C144: Acre | D144: -
A145: 2013-06-01 | B145: ASFALTOS DILUÍDOS CM-30 | C145: Alagoas | D145: -
A146: 2013-06-01 | B146: ASFALTOS DILUÍDOS CM-30 | C146: Amapá | D146: -
A147: 2013-06-01 | B147: ASFALTOS DILUÍDOS CM-30 | C147: Amazonas | D147: 1.586325818
A148: 2013-06-01 | B148: ASFALTOS DILUÍDOS CM-30 | C148: Bahia | D148: 1.44812907
A149: 2013-06-01 | B149: ASFALTOS DILUÍDOS CM-30 | C149: Ceará | D149: 1.382700989
A150: 2013-06-01 | B150: ASFALTOS DILUÍDOS CM-30 | C150: Distrito Federal | D150: -
A151: 2013-06-01 | B151: ASFALTOS DILUÍDOS CM-30 | C151: Espírito Santo | D151: -
A152: 2013-06-01 | B152: ASFALTOS DILUÍDOS CM-30 | C152: Goiás | D152: 1.699613867
A153: 2013-06-01 | B153: ASFALTOS DILUÍDOS CM-30 | C153: Maranhão | D153: -
A154: 2013-06-01 | B154: ASFALTOS DILUÍDOS CM-30 | C154: Mato Grosso | D154: 1.915975658
A155: 2013-06-01 | B155: ASFALTOS DILUÍDOS CM-30 | C155: Mato Grosso do Sul | D155: -
A156: 2013-06-01 | B156: ASFALTOS DILUÍDOS CM-30 | C156: Minas Gerais | D156: 1.475366896
A157: 2013-06-01 | B157: ASFALTOS DILUÍDOS CM-30 | C157: Pará | D157: -
A158: 2013-06-01 | B158: ASFALTOS DILUÍDOS CM-30 | C158: Paraíba | D158: -
A159: 2013-06-01 | B159: ASFALTOS DILUÍDOS CM-30 | C159: Paraná | D159: 1.432166974
A160: 2013-06-01 | B160: ASFALTOS DILUÍDOS CM-30 | C160: Pernambuco | D160: -
A161: 2013-06-01 | B161: ASFALTOS DILUÍDOS CM-30 | C161: Piauí | D161: -
A162: 2013-06-01 | B162: ASFALTOS DILUÍDOS CM-30 | C162: Rio de Janeiro | D162: 1.527420226
A163: 2013-06-01 | B163: ASFALTOS DILUÍDOS CM-30 | C163: Rio Grande do Norte | D163: -
A164: 2013-06-01 | B164: ASFALTOS DILUÍDOS CM-30 | C164: Rio Grande do Sul | D164: 1.59868349
A165: 2013-06-01 | B165: ASFALTOS DILUÍDOS CM-30 | C165: Rondônia | D165: -
A166: 2013-06-01 | B166: ASFALTOS DILUÍDOS CM-30 | C166: Roraima | D166: -
A167: 2013-06-01 | B167: ASFALTOS DILUÍDOS CM-30 | C167: Santa Catarina | D167: -
A168: 2013-06-01 | B168: ASFALTOS DILUÍDOS CM-30 | C168: São Paulo | D168: 1.432748187
A169: 2013-06-01 | B169: ASFALTOS DILUÍDOS CM-30 | C169: Sergipe | D169: -
A170: 2013-06-01 | B170: ASFALTOS DILUÍDOS CM-30 | C170: Tocantins | D170: -
A171: 2013-07-01 | B171: ASFALTOS DILUÍDOS CM-30 | C171: Acre | D171: -
A172: 2013-07-01 | B172: ASFALTOS DILUÍDOS CM-30 | C172: Alagoas | D172: -
A173: 2013-07-01 | B173: ASFALTOS DILUÍDOS CM-30 | C173: Amapá | D173: -
A174: 2013-07-01 | B174: ASFALTOS DILUÍDOS CM-30 | C174: Amazonas | D174: 1.509890931
A175: 2013-07-01 | B175: ASFALTOS DILUÍDOS CM-30 | C175: Bahia | D175: 1.436150016
A176: 2013-07-01 | B176: ASFALTOS DILUÍDOS CM-30 | C176: Ceará | D176: 1.424835845
A177: 2013-07-01 | B177: ASFALTOS DILUÍDOS CM-30 | C177: Distrito Federal | D177: -
A178: 2013-07-01 | B178: ASFALTOS DILUÍDOS CM-30 | C178: Espírito Santo | D178: -
A179: 2013-07-01 | B179: ASFALTOS DILUÍDOS CM-30 | C179: Goiás | D179: 1.663778454
A180: 2013-07-01 | B180: ASFALTOS DILUÍDOS CM-30 | C180: Maranhão | D180: -
A181: 2013-07-01 | B181: ASFALTOS DILUÍDOS CM-30 | C181: Mato Grosso | D181: 1.930589551
A182: 2013-07-01 | B182: ASFALTOS DILUÍDOS CM-30 | C182: Mato Grosso do Sul | D182: -
A183: 2013-07-01 | B183: ASFALTOS DILUÍDOS CM-30 | C183: Minas Gerais | D183: 1.476572352
A184: 2013-07-01 | B184: ASFALTOS DILUÍDOS CM-30 | C184: Pará | D184: -
A185: 2013-07-01 | B185: ASFALTOS DILUÍDOS CM-30 | C185: Paraíba | D185: -
A186: 2013-07-01 | B186: ASFALTOS DILUÍDOS CM-30 | C186: Paraná | D186: 1.477167274
A187: 2013-07-01 | B187: ASFALTOS DILUÍDOS CM-30 | C187: Pernambuco | D187: -
A188: 2013-07-01 | B188: ASFALTOS DILUÍDOS CM-30 | C188: Piauí | D188: -
A189: 2013-07-01 | B189: ASFALTOS DILUÍDOS CM-30 | C189: Rio de Janeiro | D189: 1.584464713
A190: 2013-07-01 | B190: ASFALTOS DILUÍDOS CM-30 | C190: Rio Grande do Norte | D190: -
A191: 2013-07-01 | B191: ASFALTOS DILUÍDOS CM-30 | C191: Rio Grande do Sul | D191: 1.612487925
A192: 2013-07-01 | B192: ASFALTOS DILUÍDOS CM-30 | C192: Rondônia | D192: -
A193: 2013-07-01 | B193: ASFALTOS DILUÍDOS CM-30 | C193: Roraima | D193: -
A194: 2013-07-01 | B194: ASFALTOS DILUÍDOS CM-30 | C194: Santa Catarina | D194: -
A195: 2013-07-01 | B195: ASFALTOS DILUÍDOS CM-30 | C195: São Paulo | D195: 1.507844909
A196: 2013-07-01 | B196: ASFALTOS DILUÍDOS CM-30 | C196: Sergipe | D196: -
A197: 2013-07-01 | B197: ASFALTOS DILUÍDOS CM-30 | C197: Tocantins | D197: -
A198: 2013-08-01 | B198: ASFALTOS DILUÍDOS CM-30 | C198: Acre | D198: -
A199: 2013-08-01 | B199: ASFALTOS DILUÍDOS CM-30 | C199: Alagoas | D199: -
A200: 2013-08-01 | B200: ASFALTOS DILUÍDOS CM-30 | C200: Amapá | D200: -
A201: 2013-08-01 | B201: ASFALTOS DILUÍDOS CM-30 | C201: Amazonas | D201: 1.509275641
A202: 2013-08-01 | B202: ASFALTOS DILUÍDOS CM-30 | C202: Bahia | D202: 1.416699323
A203: 2013-08-01 | B203: ASFALTOS DILUÍDOS CM-30 | C203: Ceará | D203: 1.447403364
... 4297 more rows

Sheet ANP REGIÃO (hidden)
A1: Agência Nacional do Petróleo, Gás Natural e Biocombustíveis
A2: Superintendência de Defesa da Concorrência
A6: PREÇO MÉDIO MENSAL PONDERADO PRATICADO PELOS DISTRIBUIDORES DE PRODUTOS ASFÁLTICOS (R$/KG)
A8: Produto | B8: Mês | C8: Norte | D8: Nordeste | E8: Centro-Oeste | F8: Sudeste | G8: Sul | H8: Brasil
A9: ASFALTOS DILUÍDOS CM-30 | B9: 2008-11-01 | C9: 1.775468292 | D9: 1.55087853 | E9: 2.022143291 | F9: 1.55449367 | G9: 1.584532899 | H9: 1.64286837
A10: ASFALTOS DILUÍDOS CM-30 | B10: 2008-12-01 | C10: 1.806837667 | D10: 1.509118192 | E10: 2.013020124 | F10: 1.610902223 | G10: 1.607187591 | H10: 1.637581471
A11: ASFALTOS DILUÍDOS CM-30 | B11: 2009-01-01 | C11: 1.497052858 | D11: 1.504296346 | E11: 1.963097671 | F11: 1.524672247 | G11: 1.585137209 | H11: 1.564945876
A12: ASFALTOS DILUÍDOS CM-30 | B12: 2009-02-01 | C12: 1.42787112 | D12: 1.497693283 | E12: 1.981065098 | F12: 1.583490231 | G12: 1.595924062 | H12: 1.565451036
A13: ASFALTOS DILUÍDOS CM-30 | B13: 2009-03-01 | C13: 1.404941405 | D13: 1.497647987 | E13: 1.893430263 | F13: 1.52754782 | G13: 1.588720029 | H13: 1.532713147
A14: ASFALTOS DILUÍDOS CM-30 | B14: 2009-04-01 | C14: 1.410510748 | D14: 1.484826261 | E14: 1.909226429 | F14: 1.464149371 | G14: 1.553831928 | H14: 1.516717648
A15: ASFALTOS DILUÍDOS CM-30 | B15: 2009-05-01 | C15: 1.480355678 | D15: 1.466898928 | E15: 1.891590435 | F15: 1.435443718 | G15: 1.54161118 | H15: 1.537574371
A16: ASFALTOS DILUÍDOS CM-30 | B16: 2009-06-01 | C16: 1.580751039 | D16: 1.444888837 | E16: 1.842074119 | F16: 1.424264315 | G16: 1.501526696 | H16: 1.541315575
A17: ASFALTOS DILUÍDOS CM-30 | B17: 2009-07-01 | C17: 1.905432476 | D17: 1.482618211 | E17: 1.949046345 | F17: 1.584435299 | G17: 1.610310436 | H17: 1.651032523
A18: ASFALTOS DILUÍDOS CM-30 | B18: 2009-08-01 | C18: 1.716995184 | D18: 1.423854915 | E18: 1.712385478 | F18: 1.418000805 | G18: 1.520643497 | H18: 1.504911469
A19: ASFALTOS DILUÍDOS CM-30 | B19: 2009-09-01 | C19: 1.64329494 | D19: 1.445317761 | E19: 1.731518803 | F19: 1.419374251 | G19: 1.500735895 | H19: 1.50552312
A20: ASFALTOS DILUÍDOS CM-30 | B20: 2009-10-01 | C20: 1.588031924 | D20: 1.458932649 | E20: 1.762015056 | F20: 1.429024419 | G20: 1.513753831 | H20: 1.511681904
A21: ASFALTOS DILUÍDOS CM-30 | B21: 2009-11-01 | C21: 1.639348604 | D21: 1.449059777 | E21: 1.772650817 | F21: 1.434122677 | G21: 1.526043188 | H21: 1.499657392
A22: ASFALTOS DILUÍDOS CM-30 | B22: 2009-12-01 | C22: 1.664266853 | D22: 1.441966636 | E22: 1.890574802 | F22: 1.429077727 | G22: 1.520539334 | H22: 1.508864598
A23: ASFALTOS DILUÍDOS CM-30 | B23: 2010-01-01 | C23: 1.842506144 | D23: 1.454977129 | E23: 1.865022447 | F23: 1.414817608 | G23: 1.474450765 | H23: 1.497735227
A24: ASFALTOS DILUÍDOS CM-30 | B24: 2010-02-01 | C24: 1.709886915 | D24: 1.442956487 | E24: 1.919844741 | F24: 1.433146251 | G24: 1.500882448 | H24: 1.496542251
A25: ASFALTOS DILUÍDOS CM-30 | B25: 2010-03-01 | C25: 1.535743416 | D25: 1.448880499 | E25: 1.935062728 | F25: 1.435026116 | G25: 1.480618635 | H25: 1.486789802
A26: ASFALTOS DILUÍDOS CM-30 | B26: 2010-04-01 | C26: 1.710046479 | D26: 1.440300254 | E26: 1.911935961 | F26: 1.421102153 | G26: 1.481270937 | H26: 1.511086431
A27: ASFALTOS DILUÍDOS CM-30 | B27: 2010-05-01 | C27: 1.755610465 | D27: 1.435277221 | E27: 1.873293889 | F27: 1.406944432 | G27: 1.48177605 | H27: 1.537170565
A28: ASFALTOS DILUÍDOS CM-30 | B28: 2010-06-01 | C28: 1.602224314 | D28: 1.396004336 | E28: 1.731734721 | F28: 1.399996227 | G28: 1.49193962 | H28: 1.498073418
A29: ASFALTOS DILUÍDOS CM-30 | B29: 2010-07-01 | C29: 1.559901627 | D29: 1.381016708 | E29: 1.732688214 | F29: 1.402904856 | G29: 1.473854427 | H29: 1.490075269
A30: ASFALTOS DILUÍDOS CM-30 | B30: 2010-08-01 | C30: 1.526639389 | D30: 1.38817836 | E30: 1.738946087 | F30: 1.398751236 | G30: 1.455749849 | H30: 1.495828516
A31: ASFALTOS DILUÍDOS CM-30 | B31: 2010-09-01 | C31: 1.565378829 | D31: 1.408204664 | E31: 1.757027378 | F31: 1.411642875 | G31: 1.487257745 | H31: 1.512257128
A32: ASFALTOS DILUÍDOS CM-30 | B32: 2010-10-01 | C32: 1.481711294 | D32: 1.404357715 | E32: 1.751159947 | F32: 1.403489437 | G32: 1.469340847 | H32: 1.49988826
A33: ASFALTOS DILUÍDOS CM-30 | B33: 2010-11-01 | C33: 1.519267672 | D33: 1.410130904 | E33: 1.779405625 | F33: 1.421283822 | G33: 1.458559112 | H33: 1.481658635
A34: ASFALTOS DILUÍDOS CM-30 | B34: 2010-12-01 | C34: 1.559287556 | D34: 1.40982051 | E34: 1.825185618 | F34: 1.417673572 | G34: 1.473243884 | H34: 1.469113031
A35: ASFALTOS DILUÍDOS CM-30 | B35: 2011-01-01 | C35: 1.525923305 | D35: 1.445794092 | E35: 1.774600924 | F35: 1.403274235 | G35: 1.466002814 | H35: 1.457256066
A36: ASFALTOS DILUÍDOS CM-30 | B36: 2011-02-01 | C36: 1.552825112 | D36: 1.392094259 | E36: 1.763836123 | F36: 1.385194937 | G36: 1.44955884 | H36: 1.426250478
A37: ASFALTOS DILUÍDOS CM-30 | B37: 2011-03-01 | C37: 1.469219693 | D37: 1.369442916 | E37: 1.696017922 | F37: 1.353812804 | G37: 1.435170694 | H37: 1.400130249
A38: ASFALTOS DILUÍDOS CM-30 | B38: 2011-04-01 | C38: 1.470570262 | D38: 1.373220492 | E38: 1.650829394 | F38: 1.345928103 | G38: 1.42199894 | H38: 1.400493522
A39: ASFALTOS DILUÍDOS CM-30 | B39: 2011-05-01 | C39: 1.428528955 | D39: 1.322646267 | E39: 1.700380913 | F39: 1.345068163 | G39: 1.439361431 | H39: 1.428058019
A40: ASFALTOS DILUÍDOS CM-30 | B40: 2011-06-01 | C40: 1.407622163 | D40: 1.305708657 | E40: 1.741843669 | F40: 1.354620495 | G40: 1.399501693 | H40: 1.44029982
A41: ASFALTOS DILUÍDOS CM-30 | B41: 2011-07-01 | C41: 1.259234065 | D41: 1.312033305 | E41: 1.737489696 | F41: 1.33656388 | G41: 1.422474887 | H41: 1.420839252
A42: ASFALTOS DILUÍDOS CM-30 | B42: 2011-08-01 | C42: 1.470680061 | D42: 1.299778765 | E42: 1.727443485 | F42: 1.341477821 | G42: 1.353018352 | H42: 1.425675534
A43: ASFALTOS DILUÍDOS CM-30 | B43: 2011-09-01 | C43: 1.56132872 | D43: 1.321196084 | E43: 1.729821548 | F43: 1.357451483 | G43: 1.395684798 | H43: 1.455202413
A44: ASFALTOS DILUÍDOS CM-30 | B44: 2011-10-01 | C44: 1.520569722 | D44: 1.326218736 | E44: 1.71738046 | F44: 1.332691392 | G44: 1.3577774 | H44: 1.442295871
A45: ASFALTOS DILUÍDOS CM-30 | B45: 2011-11-01 | C45: 1.465886334 | D45: 1.337041154 | E45: 1.741004886 | F45: 1.345486103 | G45: 1.447580565 | H45: 1.445354137
A46: ASFALTOS DILUÍDOS CM-30 | B46: 2011-12-01 | C46: 1.470883899 | D46: 1.335587636 | E46: 1.778724141 | F46: 1.408293068 | G46: 1.428112306 | H46: 1.422418604
A47: ASFALTOS DILUÍDOS CM-30 | B47: 2012-01-01 | C47: 1.384955015 | D47: 1.350130156 | E47: 1.780783883 | F47: 1.421354107 | G47: 1.430352474 | H47: 1.394658167
A48: ASFALTOS DILUÍDOS CM-30 | B48: 2012-02-01 | C48: 1.332181678 | D48: 1.368143891 | E48: 1.741020394 | F48: 1.400200985 | G48: 1.425400986 | H48: 1.410605707
A49: ASFALTOS DILUÍDOS CM-30 | B49: 2012-03-01 | C49: 1.411621867 | D49: 1.349122214 | E49: 1.620096006 | F49: 1.393295764 | G49: 1.406130569 | H49: 1.409768786
A50: ASFALTOS DILUÍDOS CM-30 | B50: 2012-04-01 | C50: 1.549007912 | D50: 1.383976456 | E50: 1.640712752 | F50: 1.404716397 | G50: 1.440617793 | H50: 1.45608482
A51: ASFALTOS DILUÍDOS CM-30 | B51: 2012-05-01 | C51: 1.596178941 | D51: 1.386362272 | E51: 1.712061183 | F51: 1.39923955 | G51: 1.448350887 | H51: 1.498461969
A52: ASFALTOS DILUÍDOS CM-30 | B52: 2012-06-01 | C52: 1.701432576 | D52: 1.388053518 | E52: 1.740352007 | F52: 1.422118749 | G52: 1.449196072 | H52: 1.527722717
A53: ASFALTOS DILUÍDOS CM-30 | B53: 2012-07-01 | C53: 1.652026742 | D53: 1.39436857 | E53: 1.718644846 | F53: 1.439670261 | G53: 1.46187567 | H53: 1.523069159
A54: ASFALTOS DILUÍDOS CM-30 | B54: 2012-08-01 | C54: 1.689998835 | D54: 1.40333785 | E54: 1.741895041 | F54: 1.421723369 | G54: 1.445685799 | H54: 1.536533078
A55: ASFALTOS DILUÍDOS CM-30 | B55: 2012-09-01 | C55: 1.690177972 | D55: 1.421500003 | E55: 1.780920724 | F55: 1.445180432 | G55: 1.483645866 | H55: 1.549410653
A56: ASFALTOS DILUÍDOS CM-30 | B56: 2012-10-01 | C56: 1.574840342 | D56: 1.417066109 | E56: 1.794832036 | F56: 1.451304526 | G56: 1.482037109 | H56: 1.550631802
A57: ASFALTOS DILUÍDOS CM-30 | B57: 2012-11-01 | C57: 1.655163526 | D57: 1.455878748 | E57: 1.840129766 | F57: 1.461204615 | G57: 1.483499722 | H57: 1.552500776
A58: ASFALTOS DILUÍDOS CM-30 | B58: 2012-12-01 | C58: 1.714876125 | D58: 1.435854741 | E58: 1.804066573 | F58: 1.45222765 | G58: 1.509417648 | H58: 1.523411999
A59: ASFALTOS DILUÍDOS CM-30 | B59: 2013-01-01 | C59: 1.495776335 | D59: 1.449494588 | E59: 1.854050525 | F59: 1.44638752 | G59: 1.563753675 | H59: 1.502137259
A60: ASFALTOS DILUÍDOS CM-30 | B60: 2013-02-01 | C60: 1.635067666 | D60: 1.420609638 | E60: 1.731071498 | F60: 1.442746356 | G60: 1.461828405 | H60: 1.4739561
A61: ASFALTOS DILUÍDOS CM-30 | B61: 2013-03-01 | C61: 1.646229098 | D61: 1.413299983 | E61: 1.83828087 | F61: 1.450015152 | G61: 1.525760413 | H61: 1.506542904
A62: ASFALTOS DILUÍDOS CM-30 | B62: 2013-04-01 | C62: 1.581864474 | D62: 1.399189564 | E62: 1.793825113 | F62: 1.458704755 | G62: 1.551913702 | H62: 1.523623636
A63: ASFALTOS DILUÍDOS CM-30 | B63: 2013-05-01 | C63: 1.815646773 | D63: 1.390143517 | E63: 1.812783313 | F63: 1.44951052 | G63: 1.504233457 | H63: 1.549918592
A64: ASFALTOS DILUÍDOS CM-30 | B64: 2013-06-01 | C64: 1.631101583 | D64: 1.383186536 | E64: 1.816642105 | F64: 1.474232641 | G64: 1.503043689 | H64: 1.581049429
A65: ASFALTOS DILUÍDOS CM-30 | B65: 2013-07-01 | C65: 1.86596563 | D65: 1.422051117 | E65: 1.793072753 | F65: 1.498018808 | G65: 1.533391901 | H65: 1.59880513
A66: ASFALTOS DILUÍDOS CM-30 | B66: 2013-08-01 | C66: 1.700325546 | D66: 1.435094415 | E66: 1.821452614 | F66: 1.511722868 | G66: 1.530793596 | H66: 1.606176585
A67: ASFALTOS DILUÍDOS CM-30 | B67: 2013-09-01 | C67: 1.562873733 | D67: 1.472197748 | E67: 1.879842712 | F67: 1.542652867 | G67: 1.490667543 | H67: 1.627945893
A68: ASFALTOS DILUÍDOS CM-30 | B68: 2013-10-01 | C68: 1.648504013 | D68: 1.472152345 | E68: 1.825494997 | F68: 1.501177682 | G68: 1.48378912 | H68: 1.597538775
A69: ASFALTOS DILUÍDOS CM-30 | B69: 2013-11-01 | C69: 1.619179062 | D69: 1.486413317 | E69: 1.844012679 | F69: 1.496326809 | G69: 1.506096878 | H69: 1.581665844
A70: ASFALTOS DILUÍDOS CM-30 | B70: 2013-12-01 | C70: 1.633358293 | D70: 1.494818097 | E70: 1.897197176 | F70: 1.502864538 | G70: 1.517074296 | H70: 1.572475244
A71: ASFALTOS DILUÍDOS CM-30 | B71: 2014-01-01 | C71: 1.688311265 | D71: 1.494181305 | E71: 1.798355903 | F71: 1.484202293 | G71: 1.533353813 | H71: 1.542909737
A72: ASFALTOS DILUÍDOS CM-30 | B72: 2014-02-01 | C72: 1.598304434 | D72: 1.479706587 | E72: 1.814390215 | F72: 1.514829392 | G72: 1.522800588 | H72: 1.528970287
A73: ASFALTOS DILUÍDOS CM-30 | B73: 2014-03-01 | C73: 1.648287687 | D73: 1.472852501 | E73: 1.76657319 | F73: 1.513020673 | G73: 1.506185248 | H73: 1.530181178
A74: ASFALTOS DILUÍDOS CM-30 | B74: 2014-04-01 | C74: 1.534459987 | D74: 1.493898767 | E74: 1.757271278 | F74: 1.533021309 | G74: 1.524275274 | H74: 1.550566305
A75: ASFALTOS DILUÍDOS CM-30 | B75: 2014-05-01 | C75: 1.58658327 | D75: 1.490834685 | E75: 1.804339251 | F75: 1.501138131 | G75: 1.567043824 | H75: 1.586452272
A76: ASFALTOS DILUÍDOS CM-30 | B76: 2014-06-01 | C76: 1.658277164 | D76: 1.505801121 | E76: 1.839593445 | F76: 1.5068632 | G76: 1.523776953 | H76: 1.636070702
A77: ASFALTOS DILUÍDOS CM-30 | B77: 2014-07-01 | C77: 1.890299542 | D77: 1.500730514 | E77: 1.708277865 | F77: 1.487293964 | G77: 1.505956069 | H77: 1.587065158
A78: ASFALTOS DILUÍDOS CM-30 | B78: 2014-08-01 | C78: 1.632741832 | D78: 1.501945324 | E78: 1.671203189 | F78: 1.482359341 | G78: 1.506327366 | H78: 1.557910377
A79: ASFALTOS DILUÍDOS CM-30 | B79: 2014-09-01 | C79: 1.66956717 | D79: 1.546830427 | E79: 1.864797016 | F79: 1.496764585 | G79: 1.570533242 | H79: 1.639281057
A80: ASFALTOS DILUÍDOS CM-30 | B80: 2014-10-01 | C80: 1.742876916 | D80: 1.508978569 | E80: 1.746650466 | F80: 1.470773645 | G80: 1.454273462 | H80: 1.57912022
A81: ASFALTOS DILUÍDOS CM-30 | B81: 2014-11-01 | C81: 1.864723419 | D81: 1.57943059 | E81: 1.749156218 | F81: 1.465084479 | G81: 1.529147988 | H81: 1.601359821
A82: ASFALTOS DILUÍDOS CM-30 | B82: 2014-12-01 | C82: 1.812671914 | D82: 1.704844348 | E82: 1.963310066 | F82: 1.623676702 | G82: 1.649644659 | H82: 1.718826981
A83: ASFALTOS DILUÍDOS CM-30 | B83: 2015-01-01 | C83: 2.154807062 | D83: 2.023760447 | E83: 2.318863736 | F83: 1.866588967 | G83: 1.898380434 | H83: 2.007792032
A84: ASFALTOS DILUÍDOS CM-30 | B84: 2015-02-01 | C84: 2.260238625 | D84: 2.005673765 | E84: 2.393875762 | F84: 1.854519766 | G84: 1.927395107 | H84: 2.007653781
A85: ASFALTOS DILUÍDOS CM-30 | B85: 2015-03-01 | C85: 2.124176462 | D85: 1.968822849 | E85: 2.279643254 | F85: 1.887760911 | G85: 1.930217145 | H85: 1.984816916
A86: ASFALTOS DILUÍDOS CM-30 | B86: 2015-04-01 | C86: 2.030049505 | D86: 2.001506448 | E86: 2.379118903 | F86: 1.85245167 | G86: 1.949025254 | H86: 1.98064321
A87: ASFALTOS DILUÍDOS CM-30 | B87: 2015-05-01 | C87: 2.507271651 | D87: 1.946869908 | E87: 2.254758192 | F87: 1.807470001 | G87: 2.016929536 | H87: 2.005474234
A88: ASFALTOS DILUÍDOS CM-30 | B88: 2015-06-01 | C88: 2.248320042 | D88: 1.944259736 | E88: 2.314331796 | F88: 1.846998595 | G88: 1.968565125 | H88: 2.042581344
A89: ASFALTOS DILUÍDOS CM-30 | B89: 2015-07-01 | C89: 1.992222758 | D89: 1.992791635 | E89: 2.046769953 | F89: 1.782648603 | G89: 1.931671385 | H89: 1.942627362
A90: ASFALTOS DILUÍDOS CM-30 | B90: 2015-08-01 | C90: 2.307605931 | D90: 2.038089127 | E90: 2.252748105 | F90: 1.828097705 | G90: 1.939824481 | H90: 2.08193616
A91: ASFALTOS DILUÍDOS CM-30 | B91: 2015-09-01 | C91: 2.314289704 | D91: 2.095307531 | E91: 2.344561987 | F91: 1.942551091 | G91: 2.005352614 | H91: 2.168175541
A92: ASFALTOS DILUÍDOS CM-30 | B92: 2015-10-01 | C92: 2.329456663 | D92: 2.170570012 | E92: 2.43273012 | F92: 2.035624751 | G92: 2.110261148 | H92: 2.237533782
A93: ASFALTOS DILUÍDOS CM-30 | B93: 2015-11-01 | C93: 2.606056566 | D93: 2.437098304 | E93: 2.711612141 | F93: 2.280113896 | G93: 2.326446297 | H93: 2.474998781
A94: ASFALTOS DILUÍDOS CM-30 | B94: 2015-12-01 | C94: 2.635374006 | D94: 2.395920309 | E94: 2.693528386 | F94: 2.272528129 | G94: 2.330740659 | H94: 2.452848156
A95: ASFALTOS DILUÍDOS CM-30 | B95: 2016-01-01 | C95: 2.715863993 | D95: 2.373861647 | E95: 2.844670602 | F95: 2.263650658 | G95: 2.232631691 | H95: 2.400563394
A96: ASFALTOS DILUÍDOS CM-30 | B96: 2016-02-01 | C96: 2.80468316 | D96: 2.466846816 | E96: 2.791787007 | F96: 2.295637115 | G96: 2.346556173 | H96: 2.464348548
A97: ASFALTOS DILUÍDOS CM-30 | B97: 2016-03-01 | C97: 2.5805021 | D97: 2.470678753 | E97: 2.707688025 | F97: 2.235301999 | G97: 2.383115972 | H97: 2.423563924
A98: ASFALTOS DILUÍDOS CM-30 | B98: 2016-04-01 | C98: 2.942006312 | D98: 2.740742032 | E98: 2.759071855 | F98: 2.544439178 | G98: 2.710751632 | H98: 2.680274833
A99: ASFALTOS DILUÍDOS CM-30 | B99: 2016-05-01 | C99: 3.010579472 | D99: 2.650277047 | E99: 2.857121361 | F99: 2.575583152 | G99: 2.770413362 | H99: 2.70973327
A100: ASFALTOS DILUÍDOS CM-30 | B100: 2016-06-01 | C100: 2.909179844 | D100: 2.621385041 | E100: 2.943487281 | F100: 2.659109515 | G100: 2.684759555 | H100: 2.743619517
A101: ASFALTOS DILUÍDOS CM-30 | B101: 2016-07-01 | C101: 2.985740381 | D101: 2.591644045 | E101: 2.98927803 | F101: 2.604396599 | G101: 2.660884423 | H101: 2.745135539
A102: ASFALTOS DILUÍDOS CM-30 | B102: 2016-08-01 | C102: 2.935243919 | D102: 2.623917329 | E102: 2.970490854 | F102: 2.679486504 | G102: 2.727025649 | H102: 2.781385962
A103: ASFALTOS DILUÍDOS CM-30 | B103: 2016-09-01 | C103: 2.649136821 | D103: 2.521054851 | E103: 2.781583925 | F103: 2.51393313 | G103: 2.371271501 | H103: 2.595617128
A104: ASFALTOS DILUÍDOS CM-30 | B104: 2016-10-01 | C104: 2.626109257 | D104: 2.444469093 | E104: 2.781617873 | F104: 2.507383127 | G104: 2.38325399 | H104: 2.566999037
A105: ASFALTOS DILUÍDOS CM-30 | B105: 2016-11-01 | C105: 2.535087408 | D105: 2.374145527 | E105: 2.952768674 | F105: 2.481263765 | G105: 2.382206771 | H105: 2.542842366
A106: ASFALTOS DILUÍDOS CM-30 | B106: 2016-12-01 | C106: 2.50039107 | D106: 2.253413483 | E106: 3.038519458 | F106: 2.589438892 | G106: 2.395593424 | H106: 2.476439295
A107: ASFALTOS DILUÍDOS CM-30 | B107: 2017-01-01 | C107: 2.392875504 | D107: 2.232695674 | E107: 3.089080971 | F107: 2.535744039 | G107: 2.378694833 | H107: 2.374216192
A108: ASFALTOS DILUÍDOS CM-30 | B108: 2017-02-01 | C108: 2.68039414 | D108: 2.271897225 | E108: 2.764408032 | F108: 2.573933685 | G108: 2.384644398 | H108: 2.470721466
A109: ASFALTOS DILUÍDOS CM-30 | B109: 2017-03-01 | C109: 2.23884121 | D109: 2.386958079 | E109: 2.667220252 | F109: 2.372165947 | G109: 2.30121887 | H109: 2.378796986
A110: ASFALTOS DILUÍDOS CM-30 | B110: 2017-04-01 | C110: 2.420191398 | D110: 2.307969596 | E110: 2.794093014 | F110: 2.258409912 | G110: 2.256434297 | H110: 2.380268484
A111: ASFALTOS DILUÍDOS CM-30 | B111: 2017-05-01 | C111: 2.432106692 | D111: 2.167919128 | E111: 2.699836936 | F111: 2.255387192 | G111: 2.204026958 | H111: 2.361515909
A112: ASFALTOS DILUÍDOS CM-30 | B112: 2017-06-01 | C112: 2.428301776 | D112: 2.181938689 | E112: 2.756672055 | F112: 2.234549022 | G112: 2.305778546 | H112: 2.44553453
A113: ASFALTOS DILUÍDOS CM-30 | B113: 2017-07-01 | C113: 2.453752061 | D113: 2.218075334 | E113: 2.694625022 | F113: 2.414329247 | G113: 2.269601102 | H113: 2.473436106
A114: ASFALTOS DILUÍDOS CM-30 | B114: 2017-08-01 | C114: 2.447930976 | D114: 2.153112031 | E114: 2.595349952 | F114: 2.302919065 | G114: 2.170148667 | H114: 2.380876423
A115: ASFALTOS DILUÍDOS CM-30 | B115: 2017-09-01 | C115: 2.494551504 | D115: 2.14243989 | E115: 2.623166503 | F115: 2.371308095 | G115: 2.303698507 | H115: 2.393542204
A116: ASFALTOS DILUÍDOS CM-30 | B116: 2017-10-01 | C116: 2.349953944 | D116: 2.18056004 | E116: 2.614160957 | F116: 2.415254962 | G116: 2.20079573 | H116: 2.367947121
A117: ASFALTOS DILUÍDOS CM-30 | B117: 2017-11-01 | C117: 2.670126991 | D117: 2.433169195 | E117: 2.908627464 | F117: 2.58469482 | G117: 2.415192709 | H117: 2.602101348
A118: ASFALTOS DILUÍDOS CM-30 | B118: 2017-12-01 | C118: 2.587352645 | D118: 2.425358882 | E118: 2.906633765 | F118: 2.602890298 | G118: 2.42288976 | H118: 2.531764464
A119: ASFALTOS DILUÍDOS CM-30 | B119: 2018-01-01 | C119: 2.950360755 | D119: 2.662862923 | E119: 2.875953993 | F119: 2.620738484 | G119: 2.646955252 | H119: 2.735956369
A120: ASFALTOS DILUÍDOS CM-30 | B120: 2018-02-01 | C120: 2.677899567 | D120: 2.672498164 | E120: 2.942595474 | F120: 2.62043113 | G120: 2.567885662 | H120: 2.668369933
A121: ASFALTOS DILUÍDOS CM-30 | B121: 2018-03-01 | C121: 2.733363025 | D121: 2.589050022 | E121: 2.809172556 | F121: 2.561928393 | G121: 2.575946067 | H121: 2.634876584
A122: ASFALTOS DILUÍDOS CM-30 | B122: 2018-04-01 | C122: 2.75780112 | D122: 2.669553602 | E122: 2.773908242 | F122: 2.59547006 | G122: 2.556042394 | H122: 2.6643302
A123: ASFALTOS DILUÍDOS CM-30 | B123: 2018-05-01 | C123: 2.841213362 | D123: 2.672025877 | E123: 2.884501482 | F123: 2.686718021 | G123: 2.736485103 | H123: 2.77737896
A124: ASFALTOS DILUÍDOS CM-30 | B124: 2018-06-01 | C124: 3.008444789 | D124: 2.919605178 | E124: 3.158454886 | F124: 2.84673108 | G124: 2.953523993 | H124: 2.982291635
A125: ASFALTOS DILUÍDOS CM-30 | B125: 2018-07-01 | C125: 3.268237549 | D125: 3.036524094 | E125: 3.399360399 | F125: 3.026467598 | G125: 3.19779631 | H125: 3.164126546
A126: ASFALTOS DILUÍDOS CM-30 | B126: 2018-08-01 | C126: 3.56441315 | D126: 3.415193769 | E126: 3.707706206 | F126: 3.425079349 | G126: 3.356722461 | H126: 3.515558112
A127: ASFALTOS DILUÍDOS CM-30 | B127: 2018-09-01 | C127: 3.173913778 | D127: 3.445064118 | E127: 3.73526324 | F127: 3.385816186 | G127: 3.607309454 | H127: 3.483238429
A128: ASFALTOS DILUÍDOS CM-30 | B128: 2018-10-01 | C128: 3.487778119 | D128: 3.460508804 | E128: 3.721444057 | F128: 3.432525565 | G128: 3.60602088 | H128: 3.545390344
A129: ASFALTOS DILUÍDOS CM-30 | B129: 2018-11-01 | C129: 4.047272484 | D129: 3.814893312 | E129: 4.280131586 | F129: 4.178126777 | G129: 3.967681367 | H129: 3.990147183
A130: ASFALTOS DILUÍDOS CM-30 | B130: 2018-12-01 | C130: 3.951491146 | D130: 3.967113195 | E130: 4.341144202 | F130: 3.916766066 | G130: 3.911993357 | H130: 3.999742654
A131: ASFALTOS DILUÍDOS CM-30 | B131: 2019-01-01 | C131: 3.796855325 | D131: 3.870018889 | E131: 4.201901762 | F131: 3.954196997 | G131: 3.976786028 | H131: 3.933951911
A132: ASFALTOS DILUÍDOS CM-30 | B132: 2019-02-01 | C132: 3.516584073 | D132: 4.090361178 | E132: 4.498422953 | F132: 4.469942475 | G132: 4.254590254 | H132: 4.188544679
A133: ASFALTOS DILUÍDOS CM-30 | B133: 2019-03-01 | C133: 4.216758117 | D133: 4.361910728 | E133: 4.907194889 | F133: 4.398717729 | G133: 4.290823922 | H133: 4.360295279
A134: ASFALTOS DILUÍDOS CM-30 | B134: 2019-04-01 | C134: 4.281648205 | D134: 4.234661428 | E134: 4.531627215 | F134: 4.43722653 | G134: 4.466881471 | H134: 4.38082044
A135: ASFALTOS DILUÍDOS CM-30 | B135: 2019-05-01 | C135: 4.287644659 | D135: 4.190699738 | E135: 4.857910872 | F135: 4.267461963 | G135: 4.633806379 | H135: 4.366402151
A136: ASFALTOS DILUÍDOS CM-30 | B136: 2019-06-01 | C136: 4.475609892 | D136: 3.965052934 | E136: 4.66272934 | F136: 4.350600604 | G136: 4.211229921 | H136: 4.319323669
A137: ASFALTOS DILUÍDOS CM-30 | B137: 2019-07-01 | C137: 4.394498989 | D137: 4.058039305 | E137: 4.834221945 | F137: 4.094659414 | G137: 4.233003281 | H137: 4.346977757
A138: ASFALTOS DILUÍDOS CM-30 | B138: 2019-08-01 | C138: 4.48173504 | D138: 3.910662496 | E138: 4.576329081 | F138: 4.11161654 | G138: 4.255419985 | H138: 4.258345083
A139: ASFALTOS DILUÍDOS CM-30 | B139: 2019-09-01 | C139: 4.439578796 | D139: 3.859904896 | E139: 4.495256968 | F139: 4.111321475 | G139: 4.117359152 | H139: 4.251607085
A140: ASFALTOS DILUÍDOS CM-30 | B140: 2019-10-01 | C140: 4.335888631 | D140: 3.772324962 | E140: 4.459242357 | F140: 4.056084115 | G140: 3.942458011 | H140: 4.07740702
A141: ASFALTOS DILUÍDOS CM-30 | B141: 2019-11-01 | C141: 4.316238692 | D141: 3.910245509 | E141: 4.581841077 | F141: 4.07902404 | G141: 4.106621274 | H141: 4.094561212
A142: ASFALTOS DILUÍDOS CM-30 | B142: 2019-12-01 | C142: 4.199435972 | D142: 3.980119663 | E142: 4.673774805 | F142: 4.434268142 | G142: 3.986410312 | H142: 4.164691616
A143: ASFALTOS DILUÍDOS CM-30 | B143: 2020-01-01 | C143: 3.59298003 | D143: 3.895320617 | E143: 4.685420623 | F143: 4.387074674 | G143: 4.124467668 | H143: 4.053338937
A144: ASFALTOS DILUÍDOS CM-30 | B144: 2020-02-01 | C144: 3.642667016 | D144: 3.877395187 | E144: 4.438194543 | F144: 3.699944607 | G144: 3.778164011 | H144: 3.839010438
A145: ASFALTOS DILUÍDOS CM-30 | B145: 2020-03-01 | C145: 4.676668339 | D145: 3.791138977 | E145: 4.289222343 | F145: 3.718402734 | G145: 3.60908619 | H145: 3.93117068
A146: ASFALTOS DILUÍDOS CM-30 | B146: 2020-04-01 | C146: 4.313362837 | D146: 3.6957655 | E146: 4.255395321 | F146: 3.865895531 | G146: 3.732253382 | H146: 3.964125211
A147: ASFALTOS DILUÍDOS CM-30 | B147: 2020-05-01 | C147: 3.249134658 | D147: 3.637769912 | E147: 4.113544882 | F147: 3.760550026 | G147: 3.710618099 | H147: 3.65617504
A148: ASFALTOS DILUÍDOS CM-30 | B148: 2020-06-01 | C148: 4.017903076 | D148: 3.567031492 | E148: 4.277369171 | F148: 3.937886485 | G148: 3.625830069 | H148: 3.924524506
A149: ASFALTOS DILUÍDOS CM-30 | B149: 2020-07-01 | C149: 3.840497509 | D149: 3.51327048 | E149: 4.21549069 | F149: 3.954223886 | G149: 3.688841275 | H149: 3.843774448
A150: ASFALTOS DILUÍDOS CM-30 | B150: 2020-08-01 | C150: 4.174467203 | D150: 3.465394219 | E150: 4.277710211 | F150: 4.06746494 | G150: 3.62858863 | H150: 3.947166917
A151: ASFALTOS DILUÍDOS CM-30 | B151: 2020-09-01 | C151: 4.167371331 | D151: 3.746360816 | E151: 4.167424356 | F151: 3.795621791 | G151: 3.627729935 | H151: 3.973129945
A152: ASFALTOS DILUÍDOS CM-30 | B152: 2020-10-01 | C152: 4.408099527 | D152: 3.718989878 | E152: 4.278979192 | F152: 4.008746906 | G152: 3.591048183 | H152: 4.03964377
A153: ASFALTOS DILUÍDOS CM-30 | B153: 2020-11-01 | C153: 4.056306006 | D153: 3.969209281 | E153: 4.547900893 | F153: 4.27945542 | G153: 3.973347244 | H153: 4.175826149
A154: ASFALTOS DILUÍDOS CM-30 | B154: 2020-12-01 | C154: 4.132064138 | D154: 3.851632751 | E154: 4.426704386 | F154: 3.906236422 | G154: 3.8709398 | H154: 4.035347374
A155: ASFALTOS DILUÍDOS CM-30 | B155: 2021-01-01 | C155: 3.489836333 | D155: 3.951525937 | E155: 4.628269702 | F155: 4.011577011 | G155: 3.935136638 | H155: 3.917092391
A156: ASFALTOS DILUÍDOS CM-30 | B156: 2021-02-01 | C156: 4.099318116 | D156: 4.267109523 | E156: 4.832061615 | F156: 4.414202706 | G156: 4.149048932 | H156: 4.26819704
A157: ASFALTOS DILUÍDOS CM-30 | B157: 2021-03-01 | C157: 4.528355792 | D157: 4.239831731 | E157: 4.926314562 | F157: 4.269697839 | G157: 4.130655409 | H157: 4.377833785
A158: ASFALTOS DILUÍDOS CM-30 | B158: 2021-04-01 | C158: 4.349271867 | D158: 4.086995154 | E158: 4.477597522 | F158: 4.156113398 | G158: 4.044189822 | H158: 4.253361798
A159: ASFALTOS DILUÍDOS CM-30 | B159: 2021-05-01 | C159: 4.488889413 | D159: 4.707945815 | E159: 5.101489686 | F159: 4.784034896 | G159: 4.523986615 | H159: 4.790548085
A160: ASFALTOS DILUÍDOS CM-30 | B160: 2021-06-01 | C160: 4.010467711 | D160: 4.479592126 | E160: 5.113041212 | F160: 4.779739905 | G160: 4.721214307 | H160: 4.764890884
A161: ASFALTOS DILUÍDOS CM-30 | B161: 2021-07-01 | C161: 4.752234128 | D161: 4.559350506 | E161: 5.004758283 | F161: 4.80272972 | G161: 4.748550678 | H161: 4.817586047
A162: ASFALTOS DILUÍDOS CM-30 | B162: 2021-08-01 | C162: 5.085284532 | D162: 4.772501255 | E162: 5.198537142 | F162: 5.244735259 | G162: 4.76131175 | H162: 5.0981692
A163: ASFALTOS DILUÍDOS CM-30 | B163: 2021-09-01 | C163: 5.110300267 | D163: 4.538072365 | E163: 5.241721185 | F163: 5.017144197 | G163: 4.862861245 | H163: 5.016958886
A164: ASFALTOS DILUÍDOS CM-30 | B164: 2021-10-01 | C164: 5.080697261 | D164: 4.66826742 | E164: 5.119544199 | F164: 5.384779065 | G164: 4.658516432 | H164: 5.021294312
A165: ASFALTOS DILUÍDOS CM-30 | B165: 2021-11-01 | C165: 5.436518753 | D165: 5.08776781 | E165: 5.150063985 | F165: 5.634257884 | G165: 5.174530131 | H165: 5.228141289
A166: ASFALTOS DILUÍDOS CM-30 | B166: 2021-12-01 | C166: 5.184291386 | D166: 4.975486975 | E166: 5.572122251 | F166: 6.135655205 | G166: 5.01180992 | H166: 5.339565801
A167: ASFALTOS DILUÍDOS CM-30 | B167: 2022-01-01 | C167: 4.928191974 | D167: 5.023555623 | E167: 6.018407512 | F167: 5.214773026 | G167: 5.481979244 | H167: 5.250789679
A168: ASFALTOS DILUÍDOS CM-30 | B168: 2022-02-01 | C168: 5.545684189 | D168: 5.708628413 | E168: 6.011065894 | F168: 4.8651 | G168: 5.763367147 | H168: 5.736057428
A169: ASFALTOS DILUÍDOS CM-30 | B169: 2022-03-01 | C169: 6.326844735 | D169: 5.644687904 | E169: 5.930807225 | F169: 6.181141143 | G169: 5.498041682 | H169: 5.922781038
A170: ASFALTOS DILUÍDOS CM-30 | B170: 2022-04-01 | C170: 5.974220681 | D170: 5.832747324 | E170: 6.206692615 | F170: 5.720329997 | G170: 6.17800291 | H170: 6.012354229
A171: ASFALTOS DILUÍDOS CM-30 | B171: 2022-05-01 | C171: 5.354015586 | D171: 5.464335309 | E171: 6.007611639 | F171: 5.995095583 | G171: 5.49095009 | H171: 5.670722744
A172: ASFALTOS DILUÍDOS CM-30 | B172: 2022-06-01 | C172: 5.802443798 | D172: 5.316964203 | E172: 5.25267889 | F172: 5.813931518 | G172: 5.644996328 | H172: 5.469498687
A173: ASFALTOS DILUÍDOS CM-30 | B173: 2022-07-01 | C173: 5.965614765 | D173: 5.829314879 | E173: 5.919099711 | F173: 5.742484775 | G173: 5.674430543 | H173: 5.862020702
A174: ASFALTOS DILUÍDOS CM-30 | B174: 2022-08-01 | C174: 6.424230463 | D174: 5.758256878 | E174: 5.752352843 | F174: 5.791905352 | G174: 5.31271724 | H174: 5.823186051
A175: ASFALTOS DILUÍDOS CM-30 | B175: 2022-09-01 | C175: 5.540097074 | D175: 5.609921619 | E175: 5.963592489 | F175: 5.302181194 | G175: 4.977929161 | H175: 5.699429921
A176: ASFALTOS DILUÍDOS CM-30 | B176: 2022-10-01 | C176: 4.785670999 | D176: 4.727521094 | E176: 5.339105147 | F176: 4.851160007 | G176: 4.532580513 | H176: 5.041661715
A177: ASFALTOS DILUÍDOS CM-30 | B177: 2022-11-01 | C177: 7.765855923 | D177: 4.775654982 | E177: 5.237626127 | F177: 4.636383138 | G177: 4.460593179 | H177: 5.074993862
A178: ASFALTOS DILUÍDOS CM-30 | B178: 2022-12-01 | C178: 4.65725 | D178: 4.966905362 | E178: 5.655161554 | F178: 4.840935672 | G178: 4.661007861 | H178: 5.11324949
A179: ASFALTOS DILUÍDOS CM-30 | B179: 2023-01-01 | C179: 4.948950319 | D179: 5.056264922 | E179: 5.359597966 | F179: 4.426497959 | G179: 4.103267888 | H179: 4.715605129
A180: ASFALTOS DILUÍDOS CM-30 | B180: 2023-02-01 | C180: 5.407494667 | D180: 4.335771195 | E180: 4.746646601 | F180: 4.674884727 | G180: 4.014547173 | H180: 4.417800736
A181: ASFALTOS DILUÍDOS CM-30 | B181: 2023-03-01 | C181: 4.99131 | D181: 4.01354912 | E181: 4.74625028 | F181: 4.08071937 | G181: 4.082484954 | H181: 4.270345723
A182: ASFALTOS DILUÍDOS CM-30 | B182: 2023-04-01 | C182: 4.438479015 | D182: 4.094201354 | E182: 5.135816186 | F182: 4.368265095 | G182: 3.859308149 | H182: 4.153818797
A183: ASFALTOS DILUÍDOS CM-30 | B183: 2023-05-01 | C183: 5.018589297 | D183: 4.506282643 | E183: 5.616638293 | F183: 4.034756925 | G183: 4.063701717 | H183: 4.686492725
A184: ASFALTOS DILUÍDOS CM-30 | B184: 2023-06-01 | C184: 4.439644526 | D184: 4.495805354 | E184: 5.228174524 | F184: 3.772028745 | G184: 4.009042073 | H184: 4.588045148
A185: ASFALTOS DILUÍDOS CM-30 | B185: 2023-07-01 | C185: 4.360399352 | D185: 4.250187634 | E185: 6.188049155 | F185: 3.699216781 | G185: 4.315773768 | H185: 4.790717553
A186: ASFALTOS DILUÍDOS CM-30 | B186: 2023-08-01 | C186: 4.043215999 | D186: 4.100901709 | E186: 5.414198228 | F186: 3.964297949 | G186: 4.055989778 | H186: 4.607810697
A187: ASFALTOS DILUÍDOS CM-30 | B187: 2023-09-01 | C187: 5.69501625 | D187: 4.358586276 | E187: 5.187252517 | F187: 4.112508656 | G187: 4.211646236 | H187: 4.748640211
A188: ASFALTOS DILUÍDOS CM-30 | B188: 2023-10-01 | C188: 5.685185 | D188: 4.294075647 | E188: 4.912919476 | F188: 4.365095101 | G188: 4.257370162 | H188: 4.609445905
A189: ASFALTOS DILUÍDOS CM-30 | B189: 2023-11-01 | C189: 4.815085397 | D189: 4.345599447 | E189: 5.404502747 | F189: 4.045271104 | G189: 4.164697405 | H189: 4.781498943
A190: ASFALTOS DILUÍDOS CM-30 | B190: 2023-12-01 | C190: 5.411492308 | D190: 4.700043896 | E190: 5.306415734 | F190: 4.313216862 | G190: 4.188732062 | H190: 4.664845353
A191: ASFALTOS DILUÍDOS CM-30 | B191: 2024-01-01 | C191: 3.716178391 | D191: 4.395163811 | E191: 4.888126947 | F191: 3.977196797 | G191: 4.057095331 | H191: 4.290228903
A192: ASFALTOS DILUÍDOS CM-30 | B192: 2024-02-01 | C192: 5.349588571 | D192: 4.281881871 | E192: 5.36118056 | F192: 4.287786155 | G192: 4.151112946 | H192: 4.366194996
A193: ASFALTOS DILUÍDOS CM-30 | B193: 2024-03-01 | C193: 6.437624165 | D193: 4.512948358 | E193: 4.994035932 | F193: 4.680610304 | G193: 4.197388123 | H193: 4.725137967
A194: ASFALTOS DILUÍDOS CM-30 | B194: 2024-04-01 | C194: 6.524010018 | D194: 5.333668875 | E194: 5.011370357 | F194: 3.991999626 | G194: 4.15116124 | H194: 4.439406986
A195: ASFALTOS DILUÍDOS CM-30 | B195: 2024-05-01 | C195: 6.61993633 | D195: *** | E195: 5.21538288 | F195: 4.24855796 | G195: 4.478170767 | H195: 4.960078568
A196: ASFALTOS DILUÍDOS CM-30 | B196: 2024-06-01 | C196: 6.461820806 | D196: 4.288169263 | E196: 4.921606124 | F196: 4.517339741 | G196: 4.897585787 | H196: 4.922850803
A197: ASFALTOS DILUÍDOS CM-30 | B197: 2024-07-01 | C197: 6.120612239 | D197: 4.599255433 | E197: 5.497451069 | F197: 4.667838533 | G197: 4.514452653 | H197: 4.962740397
A198: ASFALTOS DILUÍDOS CM-30 | B198: 2024-08-01 | C198: 4.993225349 | D198: 4.428025283 | E198: 5.661947528 | F198: 4.958688154 | G198: 4.60903985 | H198: 5.143625042
A199: ASFALTOS DILUÍDOS CM-30 | B199: 2024-09-01 | C199: 6.554494856 | D199: 4.508326987 | E199: 5.819155159 | F199: 5.012107159 | G199: 4.596016256 | H199: 5.205694528
A200: ASFALTOS DILUÍDOS CM-70 | B200: 2008-11-01 | C200: *** | D200: *** | E200: *** | F200: *** | G200: *** | H200: ***
A201: ASFALTOS DILUÍDOS CM-70 | B201: 2008-12-01 | C201: *** | D201: *** | E201: *** | F201: *** | G201: *** | H201: ***
A202: ASFALTOS DILUÍDOS CM-70 | B202: 2009-01-01 | C202: *** | D202: *** | E202: *** | F202: *** | G202: *** | H202: ***
A203: ASFALTOS DILUÍDOS CM-70 | B203: 2009-02-01 | C203: *** | D203: *** | E203: *** | F203: *** | G203: *** | H203: ***
A204: ASFALTOS DILUÍDOS CM-70 | B204: 2009-03-01 | C204: *** | D204: *** | E204: *** | F204: *** | G204: *** | H204: ***
... 4654 more rows

Sheet Curva ABC (hidden)
B2: Item | C2: Descrição | D2: Total R$ | E2: % individual | F2: % acumul. | G2: Classe | I2: Onde: | J2: A <= | K2: 0.75
A3: 1 | B3: =VLOOKUP(A3,'RESUMO MODULO TOTAL'!B11:N50,1,0) -> 1 | C3: =VLOOKUP(B3,#REF!,4,0) ->  | D3: =VLOOKUP(B3,#REF!,13,0) ->  | E3: =D3/#REF! ->  | F3: =E3 ->  | G3: =IF(F3<=$K$2,"A",IF(AND(F3<=$L$3,F3>$J$3),"B",IF(F3>$K$4,"C"))) ->  | J3: 0.75 | K3: < B <= | L3: 0.95
A4: 2 | B4: =VLOOKUP(A4,#REF!,2,0) ->  | C4: =VLOOKUP(B4,#REF!,4,0) ->  | D4: =VLOOKUP(B4,#REF!,13,0) ->  | E4: =D4/#REF! ->  | F4: =F3+E4 ->  | G4: =IF(F4<=$K$2,"A",IF(AND(F4<=$L$3,F4>$J$3),"B",IF(F4>$K$4,"C"))) ->  | J4: C > | K4: 0.95
A5: 3 | B5: =VLOOKUP(A5,#REF!,2,0) ->  | C5: =VLOOKUP(B5,#REF!,4,0) ->  | D5: =VLOOKUP(B5,#REF!,13,0) ->  | E5: =D5/#REF! ->  | F5: =F4+E5 ->  | G5: =IF(F5<=$K$2,"A",IF(AND(F5<=$L$3,F5>$J$3),"B",IF(F5>$K$4,"C"))) -> 
A6: 4 | B6: =VLOOKUP(A6,#REF!,2,0) ->  | C6: =VLOOKUP(B6,#REF!,4,0) ->  | D6: =VLOOKUP(B6,#REF!,13,0) ->  | E6: =D6/#REF! -> 
A7: 5 | B7: =VLOOKUP(A7,#REF!,2,0) ->  | C7: =VLOOKUP(B7,#REF!,4,0) ->  | D7: =VLOOKUP(B7,#REF!,13,0) ->  | E7: =D7/#REF! -> 
A8: 6 | B8: =VLOOKUP(A8,#REF!,2,0) ->  | C8: =VLOOKUP(B8,#REF!,4,0) ->  | D8: =VLOOKUP(B8,#REF!,13,0) ->  | E8: =D8/#REF! -> 
A9: 7 | B9: =VLOOKUP(A9,#REF!,2,0) ->  | C9: =VLOOKUP(B9,#REF!,4,0) ->  | D9: =VLOOKUP(B9,#REF!,13,0) ->  | E9: =D9/#REF! -> 
A10: 8 | B10: =VLOOKUP(A10,#REF!,2,0) ->  | C10: =VLOOKUP(B10,#REF!,4,0) ->  | D10: =VLOOKUP(B10,#REF!,13,0) ->  | E10: =D10/#REF! -> 
A11: 9 | B11: =VLOOKUP(A11,#REF!,2,0) ->  | C11: =VLOOKUP(B11,#REF!,4,0) ->  | D11: =VLOOKUP(B11,#REF!,13,0) ->  | E11: =D11/#REF! -> 
A12: 10 | B12: =VLOOKUP(A12,#REF!,2,0) ->  | C12: =VLOOKUP(B12,#REF!,4,0) ->  | D12: =VLOOKUP(B12,#REF!,13,0) ->  | E12: =D12/#REF! -> 
A13: 11 | B13: =VLOOKUP(A13,#REF!,2,0) ->  | C13: =VLOOKUP(B13,#REF!,4,0) ->  | D13: =VLOOKUP(B13,#REF!,13,0) ->  | E13: =D13/#REF! -> 
A14: 12 | B14: =VLOOKUP(A14,#REF!,2,0) ->  | C14: =VLOOKUP(B14,#REF!,4,0) ->  | D14: =VLOOKUP(B14,#REF!,13,0) ->  | E14: =D14/#REF! -> 
A15: 13 | B15: =VLOOKUP(A15,#REF!,2,0) ->  | C15: =VLOOKUP(B15,#REF!,4,0) ->  | D15: =VLOOKUP(B15,#REF!,13,0) ->  | E15: =D15/#REF! -> 
A16: 14 | B16: =VLOOKUP(A16,#REF!,2,0) ->  | C16: =VLOOKUP(B16,#REF!,4,0) ->  | D16: =VLOOKUP(B16,#REF!,13,0) ->  | E16: =D16/#REF! -> 
A17: 15 | B17: =VLOOKUP(A17,#REF!,2,0) ->  | C17: =VLOOKUP(B17,#REF!,4,0) ->  | D17: =VLOOKUP(B17,#REF!,13,0) ->  | E17: =D17/#REF! -> 
A18: 16 | B18: =VLOOKUP(A18,#REF!,2,0) ->  | C18: =VLOOKUP(B18,#REF!,4,0) ->  | D18: =VLOOKUP(B18,#REF!,13,0) ->  | E18: =D18/#REF! -> 
A19: 17 | B19: =VLOOKUP(A19,#REF!,2,0) ->  | C19: =VLOOKUP(B19,#REF!,4,0) ->  | D19: =VLOOKUP(B19,#REF!,13,0) ->  | E19: =D19/#REF! -> 
A20: 18 | B20: =VLOOKUP(A20,#REF!,2,0) ->  | C20: =VLOOKUP(B20,#REF!,4,0) ->  | D20: =VLOOKUP(B20,#REF!,13,0) ->  | E20: =D20/#REF! -> 
A21: 19 | B21: =VLOOKUP(A21,#REF!,2,0) ->  | C21: =VLOOKUP(B21,#REF!,4,0) ->  | D21: =VLOOKUP(B21,#REF!,13,0) ->  | E21: =D21/#REF! -> 
A22: 20 | B22: =VLOOKUP(A22,#REF!,2,0) ->  | C22: =VLOOKUP(B22,#REF!,4,0) ->  | D22: =VLOOKUP(B22,#REF!,13,0) ->  | E22: =D22/#REF! -> 
A23: 21 | B23: =VLOOKUP(A23,#REF!,2,0) ->  | C23: =VLOOKUP(B23,#REF!,4,0) ->  | D23: =VLOOKUP(B23,#REF!,13,0) ->  | E23: =D23/#REF! -> 
A24: 22 | B24: =VLOOKUP(A24,#REF!,2,0) ->  | C24: =VLOOKUP(B24,#REF!,4,0) ->  | D24: =VLOOKUP(B24,#REF!,13,0) ->  | E24: =D24/#REF! -> 
A25: 23 | B25: =VLOOKUP(A25,#REF!,2,0) ->  | C25: =VLOOKUP(B25,#REF!,4,0) ->  | D25: =VLOOKUP(B25,#REF!,13,0) ->  | E25: =D25/#REF! -> 
A26: 24 | B26: =VLOOKUP(A26,#REF!,2,0) ->  | C26: =VLOOKUP(B26,#REF!,4,0) ->  | D26: =VLOOKUP(B26,#REF!,13,0) ->  | E26: =D26/#REF! -> 
A27: 25 | B27: =VLOOKUP(A27,#REF!,2,0) ->  | C27: =VLOOKUP(B27,#REF!,4,0) ->  | D27: =VLOOKUP(B27,#REF!,13,0) ->  | E27: =D27/#REF! -> 
A28: 26 | B28: =VLOOKUP(A28,#REF!,2,0) ->  | C28: =VLOOKUP(B28,#REF!,4,0) ->  | D28: =VLOOKUP(B28,#REF!,13,0) ->  | E28: =D28/#REF! ->  | F28: =F27+E28 ->  | G28: =IF(F28<=$K$2,"A",IF(AND(F28<=$L$3,F28>$J$3),"B",IF(F28>$K$4,"C"))) -> 
A29: 27 | B29: =VLOOKUP(A29,#REF!,2,0) ->  | C29: =VLOOKUP(B29,#REF!,4,0) ->  | D29: =VLOOKUP(B29,#REF!,13,0) ->  | E29: =D29/#REF! -> 
A30: 28 | B30: =VLOOKUP(A30,#REF!,2,0) ->  | C30: =VLOOKUP(B30,#REF!,4,0) ->  | D30: =VLOOKUP(B30,#REF!,13,0) ->  | E30: =D30/#REF! -> 
A31: 29 | B31: =VLOOKUP(A31,#REF!,2,0) ->  | C31: =VLOOKUP(B31,#REF!,4,0) ->  | D31: =VLOOKUP(B31,#REF!,13,0) ->  | E31: =D31/#REF! -> 
A32: 30 | B32: =VLOOKUP(A32,#REF!,2,0) ->  | C32: =VLOOKUP(B32,#REF!,4,0) ->  | D32: =VLOOKUP(B32,#REF!,13,0) ->  | E32: =D32/#REF! -> 
A33: 31 | B33: =VLOOKUP(A33,#REF!,2,0) ->  | C33: =VLOOKUP(B33,#REF!,4,0) ->  | D33: =VLOOKUP(B33,#REF!,13,0) ->  | E33: =D33/#REF! -> 
A34: 32 | B34: =VLOOKUP(A34,#REF!,2,0) ->  | C34: =VLOOKUP(B34,#REF!,4,0) ->  | D34: =VLOOKUP(B34,#REF!,13,0) ->  | E34: =D34/#REF! -> 

Sheet MATERIAL SICRO (hidden)
A1: CGCIT | B1: SISTEMA DE CUSTOS REFERENCIAIS DE OBRAS - SICRO | D1: DNIT
B2: Pernambuco - Abril/2024
A3: Código | B3: Descrição | C3: Unidade | D3: Preço Unitário (R$)
A4: M0003 | B4: Aço CA 25 | C4: kg | D4: 6.2249
A5: M0004 | B5: Aço CA 50 | C5: kg | D5: 6.0025
A6: M0005 | B6: Brita 0 | C6: m³ | D6: 139.2658
A7: M0006 | B7: Fibra de poliamida para concreto | C7: kg | D7: 27.8156
A8: M0007 | B8: Fibra de aço para concreto | C8: kg | D8: 13.5529
A9: M0008 | B9: Detergente líquido neutro | C9: l | D9: 4.5546
A10: M0009 | B10: Aço CP 175 RB | C10: kg | D10: 8.9314
A11: M0010 | B11: Aditivo superplastificante para concreto e argamassa | C11: kg | D11: 16.5691
A12: M0011 | B12: Aditivo modificador de viscosidade para concreto e argamassa | C12: kg | D12: 10.8067
A13: M0012 | B13: Silicato de alumínio | C13: kg | D13: 2.0716
A14: M0013 | B14: Grampo de ancoragem em aço CA 50 - D = 12,5 mm | C14: kg | D14: 6.0025
A15: M0014 | B15: Aço CA 60 | C15: kg | D15: 7.5489
A16: M0015 | B16: Espoleta elétrica Nº 8 - D = 6,0 mm | C16: un | D16: 21.3848
A17: M0016 | B17: Grampo sargento em ferro fundido tipo C com abertura útil de 105 mm (4") | C17: un | D17: 50.3272
A18: M0017 | B18: Saco de aniagem ou de ráfia de 50 kg - C = 95 cm e L = 65 cm | C18: un | D18: 2.8808
A19: M0018 | B19: Grampo pesado em aço-carbono para cabo de aço - D = 13 mm (1/2") | C19: un | D19: 18.7552
A20: M0019 | B20: Esticador em aço tipo olhal x olhal para cabo de aço - D = 13 mm | C20: un | D20: 131.6946
A21: M0020 | B21: Grampo de ancoragem em aço CA 50 - D = 6,3 mm | C21: kg | D21: 6.7959
A22: M0021 | B22: Herbicida glifosato para áreas contínuas | C22: l | D22: 26.779
A23: M0025 | B23: Adesivo plástico para tubos de PVC | C23: kg | D23: 53.8256
A24: M0026 | B24: Aditivo aglutinante para argamassa | C24: l | D24: 8.1595
A25: M0028 | B25: Areia média | C25: m³ | D25: 122.0065
A26: M0029 | B26: Sílica ativa para concreto e argamassa (microssílica) | C26: kg | D26: 1.8924
A27: M0030 | B27: Aditivo plastificante e retardador de pega para concreto e argamassa | C27: kg | D27: 6.6067
A28: M0032 | B28: Adesivo de contato para laminado elastoplástico | C28: kg | D28: 47.0319
A29: M0035 | B29: Diluente tipo aguarrás para tintas e vernizes | C29: l | D29: 15.168
A30: M0039 | B30: Gasolina comum | C30: l | D30: 5.0438
A31: M0041 | B31: Contêiner com 2 banheiros - L = 2,44 m e C = 6,09 m (1 TEU) | C31: un | D31: 87938.4364
A32: M0042 | B32: Contêiner com janela - L = 2,44 m e C = 6,09 m (1 TEU) | C32: un | D32: 61571.6147
A33: M0043 | B33: Óleo diesel | C33: l | D33: 5.1194
A34: M0044 | B34: Abrasivo de vidro com granulometria de 210 a 420 micra | C34: kg | D34: 9.4942
A35: M0045 | B35: Barreira plástica monobloco para canalização de trânsito - C = 100 cm, L = 50 cm e H = 55 cm | C35: un | D35: 505.0821
A36: M0046 | B36: Barreira plástica para canalização de trânsito - C = 60 cm, L = 45 cm e H = 60 cm | C36: un | D36: 316.7987
A37: M0047 | B37: Cone de sinalização em polietileno - H = 75 cm e base quadrada de 40 x 40 cm | C37: un | D37: 102.95
A38: M0048 | B38: Balizador cônico refletivo em polietileno semiflexível - H = 114 cm e base octogonal de D = 40 cm | C38: un | D38: 147.1265
A39: M0049 | B39: Delimitador de tráfego flexível com chumbador e duas faixas refletivas - H = 77 cm e D = 21 cm | C39: un | D39: 181.8623
A40: M0050 | B40: Aditivo natural tipo goma xantana para hidrossemeadura | C40: kg | D40: 101.9882
A41: M0051 | B41: Cilindro canalizador de tráfego em polietileno - H = 117 cm e base quadrada de 60 x 60 cm | C41: un | D41: 203.0081
A42: M0052 | B42: Fita adesiva de PVC - L = 50 mm e C = 50 m | C42: m | D42: 0.115
A43: M0053 | B43: Tela plástica em polipropileno na cor laranja para tapume - L = 1,2 m | C43: m | D43: 1.9406
A44: M0054 | B44: Fita zebrada de cor laranja e branca - L = 7 a 8 cm | C44: m | D44: 0.074
A45: M0055 | B45: Barreira plástica articulável modular - C = 240 cm e H = 100 cm | C45: un | D45: 1279.349
A46: M0056 | B46: Ferramenta de corte para removedora de faixa de sinalização (Smith Cutter) | C46: un | D46: 7229.7341
A47: M0057 | B47: Contêiner com janela - L = 4,88 m e C = 6,09 m (1 TEU duplo) | C47: un | D47: 119133.4969
A48: M0058 | B48: Contêiner com janela e 2 banheiros - L = 4,88 m e C = 6,09 m (1 TEU duplo) | C48: un | D48: 123523.1491
A49: M0059 | B49: Contêiner com revestimento térmico, janela e banheiro - L = 2,44 m e C = 6,09 m (1 TEU) | C49: un | D49: 85208.5491
A50: M0060 | B50: Contêiner com janela - L = 2,44 m e C = 4,58 m (3/4 TEU) | C50: un | D50: 58173.5871
A51: M0065 | B51: Contêiner com janela e banheiro - L = 2,44 m e 4,58 m (3/4 TEU) | C51: un | D51: 71000.39
A52: M0066 | B52: Contêiner com revestimento térmico, janela e banheiro - L = 2,44 m e C = 12,90 m (2 TEU) | C52: un | D52: 116005.8131
A53: M0067 | B53: Tubo PEAD PE 100 PN 10 com flanges - D = 160 mm | C53: m | D53: 174.2918
A54: M0068 | B54: Caibro de pinho - L = 7,5 cm e E = 10,0 cm | C54: m | D54: 23.1042
A55: M0069 | B55: Arame farpado em aço galvanizado - D = 1,60 mm | C55: m | D55: 0.7338
A56: M0071 | B56: Contêiner com 3 janelas para guarita - L = 2,44 m e C = 3,05 m (1/2 TEU) | C56: un | D56: 41329.4803
A57: M0072 | B57: Arame liso em aço galvanizado - D = 2,10 mm (14 BWG) | C57: kg | D57: 16.4029
A58: M0073 | B58: Muda de árvore com altura de 0,30 a 0,80 m | C58: un | D58: 14.6944
A59: M0074 | B59: Muda de arbusto com altura até 0,50 m | C59: un | D59: 21.406
A60: M0075 | B60: Arame liso recozido em aço-carbono - D = 1,24 mm (18 BWG) | C60: kg | D60: 11.3176
A61: M0076 | B61: Disco de corte abrasivo para policorte - D = 300 mm | C61: un | D61: 15.3613
A62: M0080 | B62: Areia fina | C62: m³ | D62: 135.6571
A63: M0081 | B63: Areia grossa | C63: m³ | D63: 121.3883
A64: M0082 | B64: Areia média lavada | C64: m³ | D64: 131.3101
A65: M0083 | B65: Argamassa pré-dosada para grauteamento | C65: kg | D65: 1.9193
A66: M0084 | B66: Argamassa pré-dosada autoadensável para grauteamento | C66: kg | D66: 1.6558
A67: M0085 | B67: Ancoragem ativa para 4 cordoalhas - D = 12,7 mm | C67: un | D67: 382.1498
A68: M0086 | B68: Ancoragem ativa para 6 cordoalhas - D = 12,7 mm | C68: un | D68: 492.3671
A69: M0087 | B69: Ancoragem ativa para 7 cordoalhas - D = 12,7 mm | C69: un | D69: 569.1066
A70: M0088 | B70: Ancoragem ativa para 8 cordoalhas - D = 12,7 mm | C70: un | D70: 665.3545
A71: M0089 | B71: Ancoragem ativa para 9 cordoalhas - D = 12,7 mm | C71: un | D71: 751.8131
A72: M0091 | B72: Ancoragem ativa para 10 cordoalhas - D = 12,7 mm | C72: un | D72: 832.6435
A73: M0092 | B73: Ancoragem ativa para 12 cordoalhas - D = 12,7 mm | C73: un | D73: 1053.7649
A74: M0093 | B74: Ancoragem ativa para 15 cordoalhas - D = 12,7 mm | C74: un | D74: 1461.2933
A75: M0094 | B75: Ancoragem ativa para 19 cordoalhas - D = 12,7 mm | C75: un | D75: 1858.7474
A76: M0098 | B76: Bambu com diâmetro médio de 10 cm | C76: m | D76: 21.3573
A77: M0099 | B77: Equipamentos para a fábrica de dormentes de concreto protendido | C77: ISF | D77: 567.856
A78: M0100 | B78: Ancoragem ativa para 22 cordoalhas - D = 12,7 mm | C78: un | D78: 2405.1858
A79: M0101 | B79: Ancoragem ativa para 27 cordoalhas - D = 12,7 mm | C79: un | D79: 2931.6942
A80: M0102 | B80: Ancoragem ativa para 31 cordoalhas - D = 12,7 mm | C80: un | D80: 3164.4339
A81: M0103 | B81: Aditivo acelerador de pega para concreto e argamassa projetados | C81: kg | D81: 7.1614
A82: M0104 | B82: Asfalto diluído de petróleo - CM-30 | C82: t | D82: -
A83: M0105 | B83: Ancoragem ativa para 4 cordoalhas - D = 15,2 mm | C83: un | D83: 472.4285
A84: M0106 | B84: Ancoragem ativa para 6 cordoalhas - D = 15,2 mm | C84: un | D84: 626.7852
A85: M0107 | B85: Geocomposto para drenagem | C85: m² | D85: 40.0487
A86: M0108 | B86: Ancoragem ativa para 7 cordoalhas - D = 15,2 mm | C86: un | D86: 738.3188
A87: M0109 | B87: Geodreno vertical - L = 10 cm e E = 5 mm | C87: m | D87: 5.18
A88: M0110 | B88: Ancoragem ativa para 10 cordoalhas - D = 15,2 mm | C88: un | D88: 1138.9291
A89: M0111 | B89: Ancoragem ativa para 9 cordoalhas - D = 15,2 mm | C89: un | D89: 1014.3766
A90: M0112 | B90: Disco diamantado segmentado para corte de pavimento - D = 1.000 mm | C90: un | D90: 5880.8248
A91: M0113 | B91: Ancoragem ativa para 12 cordoalhas - D = 15,2 mm | C91: un | D91: 1393.1996
A92: M0114 | B92: Disco diamantado segmentado para corte de pavimento - D = 1.500 mm | C92: un | D92: 26164.9656
A93: M0115 | B93: Biomanta vegetal de fibras de coco entrelaçadas com fios de polipropileno biodegradáveis - densidade 0,4 kg/m² | C93: m² | D93: 6.51
A94: M0116 | B94: Mangote flangeado de borracha reforçada com lonas sintéticas - C = 1,80 m e D = 0,30 m | C94: un | D94: 16635.9442
A95: M0117 | B95: Mangote flangeado de borracha reforçada com lonas sintéticas - C = 1,80 m e D = 0,40 m | C95: un | D95: 22743.441
A96: M0118 | B96: Mangote flangeado de borracha reforçada com lonas sintéticas - C = 1,80 m e D = 0,45 m | C96: un | D96: 25486.6138
A97: M0119 | B97: Mangote flangeado de borracha reforçada com lonas sintéticas - C = 1,80 m e D = 0,50 m | C97: un | D97: 28635.5507
A98: M0120 | B98: Tubo PEAD PE 100 PN 8 com flanges - D = 250 mm | C98: m | D98: 315.6131
A99: M0121 | B99: Tubo PEAD PE 100 PN 8 com flanges - D = 400 mm | C99: m | D99: 2026.3698
A100: M0122 | B100: Tubo PEAD PE 100 PN 8 com flanges - D = 450 mm | C100: m | D100: 2545.1935
A101: M0123 | B101: Tubo PEAD PE 100 PN 8 com flanges - D = 500 mm | C101: m | D101: 2849.9902
A102: M0124 | B102: Flutuador bipartido em polietileno com núcleo de espuma em poliuretano para tubos - D = 0,30 m | C102: un | D102: 4344.0823
A103: M0125 | B103: Flutuador bipartido em polietileno com núcleo de espuma em poliuretano para tubos - D = 0,40 m | C103: un | D103: 5970.1919
A104: M0126 | B104: Flutuador bipartido em polietileno com núcleo de espuma em poliuretano para tubos - D = 0,45 m | C104: un | D104: 6847.6418
A105: M0127 | B105: Flutuador bipartido em polietileno com núcleo de espuma em poliuretano para tubos - D = 0,50 m | C105: un | D105: 7394.5332
A106: M0128 | B106: Biomanta vegetal de fibras de palha entrelaçadas com fios de polipropileno biodegradáveis - densidade 0,6 kg/m² | C106: m² | D106: 5.71
A107: M0129 | B107: Retentor de sedimento em fibras vegetais - D = 20 cm | C107: m | D107: 58.6583
A108: M0130 | B108: Ancoragem ativa para 15 cordoalhas - D = 15,2 mm | C108: un | D108: 1831.7607
A109: M0131 | B109: Tubo PEAD corrugado com paredes estruturadas para drenagem - D = 400 mm | C109: m | D109: 232.8677
A110: M0132 | B110: Tubo PEAD corrugado com paredes estruturadas para drenagem - D = 450 mm | C110: m | D110: 284.3017
A111: M0133 | B111: Tubo PEAD corrugado com paredes estruturadas para drenagem - D = 500 mm | C111: m | D111: 383.4423
A112: M0134 | B112: Tubo PEAD corrugado com paredes estruturadas para drenagem - D = 600 mm | C112: m | D112: 558.9227
A113: M0135 | B113: Tubo PEAD corrugado com paredes estruturadas para drenagem - D = 750 mm | C113: m | D113: 755.7476
A114: M0136 | B114: Tubo PEAD corrugado com paredes estruturadas para drenagem - D = 800 mm | C114: m | D114: 832.6682
A115: M0137 | B115: Tubo PEAD corrugado com paredes estruturadas para drenagem - D = 900 mm | C115: m | D115: 1104.3701
A116: M0138 | B116: Ancoragem ativa para 19 cordoalhas - D = 15,2 mm | C116: un | D116: 2384.8324
A117: M0139 | B117: Tubo PEAD corrugado com paredes estruturadas para drenagem - D = 1.000 mm | C117: m | D117: 1462.8471
A118: M0140 | B118: Bentonita | C118: kg | D118: 2.7196
A119: M0141 | B119: Tubo PEAD corrugado com paredes estruturadas para drenagem - D = 1.050 mm | C119: m | D119: 1446.2573
A120: M0142 | B120: Tubo PEAD corrugado com paredes estruturadas para drenagem - D = 1.200 mm | C120: m | D120: 2047.086
A121: M0143 | B121: Tubo PEAD corrugado com paredes estruturadas para drenagem - D = 1.500 mm | C121: m | D121: 2359.9216
A122: M0145 | B122: Ancoragem ativa para 22 cordoalhas - D = 15,2 mm | C122: un | D122: 3086.6678
A123: M0146 | B123: Ancoragem ativa para 27 cordoalhas - D = 15,2 mm | C123: un | D123: 4044.7176
A124: M0148 | B124: Ancoragem ativa para lajes para 1 cordoalha - D = 12,7 mm | C124: un | D124: 89.7604
A125: M0151 | B125: Ancoragem ativa para lajes para 2 cordoalhas - D = 12,7 mm | C125: un | D125: 166.9474
A126: M0152 | B126: Ancoragem ativa para lajes para 3 cordoalhas - D = 12,7 mm | C126: un | D126: 232.4794
A127: M0153 | B127: Ancoragem ativa para lajes para 4 cordoalhas - D = 12,7 mm | C127: un | D127: 310.545
A128: M0156 | B128: Bloco de concreto - L = 19 cm, A = 19 cm e C = 39 cm | C128: un | D128: 4.4308
A129: M0158 | B129: Tela metálica galvanizada dobrada em L - C = 2,0 m, L = 0,4 m e H = 0,4 m | C129: un | D129: 471.6495
A130: M0160 | B130: Extintor de incêndio tipo espuma mecânica - V = 10 l | C130: un | D130: 609.2517
A131: M0161 | B131: Barra de fibra de vidro (vergalhão) - D = 25,0 mm | C131: m | D131: 60.9705
A132: M0162 | B132: Corrente de elo soldado em aço galvanizado com acabamento polido - D = 3,18 mm (1/8") | C132: m | D132: 7.1839
A133: M0163 | B133: Gonzo com aba em aço galvanizado - D = 12,7 mm (1/2") | C133: un | D133: 2.8833
A134: M0164 | B134: Tubo em aço galvanizado - E = 1,50 mm e seção de 20 x 20 mm | C134: m | D134: 12.7369
A135: M0166 | B135: Tubo em aço galvanizado - E = 2,25 mm e D = 20 mm (3/4") | C135: m | D135: 31.0079
A136: M0167 | B136: Tela de poliamida industrial - E = 0,40 mm e malha de 1,6 mm | C136: m² | D136: 14.8344
A137: M0168 | B137: Abraçadeira de poliamida - E = 3,6 mm e C = 200 mm | C137: un | D137: 0.2091
A138: M0169 | B138: Roda em aço e pneu com câmara de ar 83/203 mm (3,25"/8") para carrinho de mão | C138: un | D138: 74.6856
A139: M0173 | B139: Ancoragem ativa para lajes para 1 cordoalha - D = 15,2 mm | C139: un | D139: 100.8502
A140: M0178 | B140: Ancoragem ativa para lajes para 2 cordoalhas - D = 15,2 mm | C140: un | D140: 218.1666
A141: M0181 | B141: Ancoragem ativa para lajes para 3 cordoalhas - D = 15,2 mm | C141: un | D141: 284.3029
A142: M0184 | B142: Ancoragem ativa para lajes para 4 cordoalhas - D = 15,2 mm | C142: un | D142: 375.4913
A143: M0191 | B143: Brita 1 | C143: m³ | D143: 135.1133
A144: M0192 | B144: Brita 2 | C144: m³ | D144: 133.2289
A145: M0193 | B145: Brita 3 | C145: m³ | D145: 130.9918
A146: M0194 | B146: Escória de aciaria | C146: m³ | D146: 12.6772
A147: M0198 | B147: Parafuso de cabeça chata em aço - D = 4,5 mm e bucha plástica - D = 8 mm (S8) | C147: un | D147: 0.3322
A148: M0199 | B148: Coroa de botões cruzados linha R32 - D = 43 mm (1 11/16’’) | C148: un | D148: 321.1239
A149: M0201 | B149: Coroa de botões esféricos linha T38 - D = 89 mm (3 1/2") | C149: un | D149: 872.2311
A150: M0202 | B150: Coroa de botões esféricos linha T45 - D = 76 mm (3") | C150: un | D150: 674.1656
A151: M0204 | B151: Instalações físicas para a central de pré-moldagem de dormentes de concreto protendido | C151: CMCC | D151: 1665.28
A152: M0217 | B152: Enxofre | C152: kg | D152: 4.6893
A153: M0220 | B153: Adubo à base de nitrogênio, fósforo e potássio (NPK) | C153: kg | D153: 3.4129
A154: M0222 | B154: Filer calcário | C154: kg | D154: 0.1911
A155: M0223 | B155: Sementes para hidrossemeadura | C155: kg | D155: 33.9
A156: M0224 | B156: Guia-chapéu pré-moldada - C = 120 cm | C156: un | D156: 65.0621
A157: M0225 | B157: Adubo orgânico composto | C157: kg | D157: 0.2567
A158: M0229 | B158: Gabião tipo colchão em liga de zinco e alumínio revestido com polímero de malha hexagonal - E = 0,17 m | C158: m² | D158: 213.8427
A159: M0230 | B159: Gabião tipo caixa em liga de zinco e alumínio de malha hexagonal - C = 2,00 m, L = 1,00 m e H = 0,50 m | C159: un | D159: 638.3646
A160: M0231 | B160: Gabião tipo caixa em liga de zinco e alumínio de malha hexagonal - C = 2,00 m, L = 1,00 m e H = 1,00 m | C160: un | D160: 983.6429
A161: M0232 | B161: Gabião tipo caixa em liga de zinco e alumínio revestido com polímero de malha hexagonal - C = 2,00 m, L = 1,00 m e H = 0,50 m | C161: un | D161: 791.9033
A162: M0233 | B162: Gabião tipo caixa em liga de zinco e alumínio revestido com polímero de malha hexagonal - C = 2,00 m, L = 1,00 m e H = 1,00 m | C162: un | D162: 1109.0256
A163: M0234 | B163: Gabião tipo saco em liga de zinco e alumínio revestido com polímero de malha hexagonal - D = 0,65 m | C163: m³ | D163: 590.6748
A164: M0235 | B164: Gabião tipo colchão em liga de zinco e alumínio revestido com polímero de malha hexagonal - E = 0,23 m | C164: m² | D164: 224.3543
A165: M0236 | B165: Gabião tipo colchão em liga de zinco e alumínio revestido com polímero de malha hexagonal - E = 0,30 m | C165: m² | D165: 246.8894
A166: M0237 | B166: Energia elétrica | C166: kWh | D166: 1.0182
A167: M0253 | B167: Cabo de cobre flexível antichama isolado em PVC - tensão de 450/750 V e seção de 16 mm² | C167: m | D167: 13.512
A168: M0254 | B168: Mistura gasosa de argônio e dióxido de carbono para solda MIG/MAG | C168: m³ | D168: 48.0256
A169: M0256 | B169: Tinta à base de etil silicato de zinco bicomponente para fundo preparador de pintura | C169: l | D169: 87.7584
A170: M0257 | B170: Diluente para tinta à base de etil silicato de zinco | C170: l | D170: 33.1262
A171: M0260 | B171: Cabo de cobre PP flexível isolado em PVC - tensão de 300/500 V e seção de 3 x 1,5 mm² | C171: m | D171: 4.6918
A172: M0264 | B172: Bomba de combustível industrial eletrônica simples | C172: un | D172: 26691.8489
A173: M0265 | B173: Tanque de combustível aéreo horizontal com escada para visita - capacidade de 5.000 l | C173: un | D173: 20499.5312
A174: M0266 | B174: Cabo de cobre flexível antichama isolado em PVC - tensão de 0,6/1,0 kV e seção de 240 mm² | C174: m | D174: 143.3706
A175: M0267 | B175: Módulo de torre de elevador de cremalheira | C175: un | D175: 3872.6122
A176: M0268 | B176: Módulo de ancoragem de torre de elevador de cremalheira | C176: un | D176: 2930.5924
A177: M0269 | B177: Cabo de cobre flexível antichama isolado em PVC - tensão de 0,6/1,0 kV e seção de 50 mm² | C177: m | D177: 35.8
A178: M0284 | B178: Caibro de pinho - L = 7,5 cm e E = 7,5 cm | C178: m | D178: 16.9469
A179: M0285 | B179: Pontalete para escoramento - D = 15 cm | C179: m | D179: 9.1791
A180: M0286 | B180: Tábua - E = 2,5 cm e L = 30 cm | C180: m | D180: 18
A181: M0289 | B181: Tábua - E = 2,5 cm e L = 15 cm | C181: m | D181: 8.8575
A182: M0290 | B182: Tábua - E = 2,5 cm e L = 10 cm | C182: m | D182: 5.9375
A183: M0291 | B183: Estrutura modular com 2 banheiros - L = 2,44 m e C = 6,06 m (1 TEU) | C183: un | D183: 72966.5297
A184: M0292 | B184: Estrutura modular com janela - L = 2,44 m e C = 6,06 m (1 TEU) | C184: un | D184: 58642.3377
A185: M0293 | B185: Estrutura modular com janela - L = 4,88 m e C = 6,06 m (1 TEU duplo) | C185: un | D185: 103309.7098
A186: M0294 | B186: Estrutura modular com janela e 2 banheiros - L = 4,88 m e C = 6,06 m (1 TEU duplo) | C186: un | D186: 114835.52
A187: M0295 | B187: Estrutura modular com revestimento térmico, janela e banheiro - L = 2,44 m e C = 6,06 m (1 TEU) | C187: un | D187: 65997.4
A188: M0296 | B188: Estrutura modular com revestimento térmico, janela e banheiro - L = 2,44 m e C = 12,19 m (2 TEU) | C188: un | D188: 122521.1627
A189: M0297 | B189: Estrutura modular com 3 janelas para guarita - L = 2,44 m e C = 3,05 m (1/2 TEU) | C189: un | D189: 41239.2001
A190: M0301 | B190: Pontalete para escoramento - D = 10 cm | C190: m | D190: 4.0816
A191: M0310 | B191: Peça de madeira - L = 7,5 cm e E = 2,5 cm | C191: m | D191: 5.5917
A192: M0311 | B192: Filtro de aspiração de ar externo com capacidade 3,58 l/s para compressor de ar respirável | C192: un | D192: 199.8951
A193: M0312 | B193: Filtro de purificação de ar comprimido com capacidade de 35 MPa para compressor de ar respirável | C193: un | D193: 221.9611
A194: M0344 | B194: Cal hidratada - a granel | C194: kg | D194: 0.5111
A195: M0345 | B195: Cal hidratada - saco | C195: kg | D195: 0.8393
A196: M0346 | B196: Disco de aço para bomba de projeção via seca | C196: un | D196: 330
A197: M0347 | B197: Disco de aço para bomba de projeção via úmida | C197: un | D197: 1262.5862
A198: M0348 | B198: Disco de borracha para bomba de projeção via seca | C198: un | D198: 265
A199: M0349 | B199: Disco de borracha para bomba de projeção via úmida | C199: un | D199: 600.6
A200: M0350 | B200: Bico para bomba de projeção | C200: un | D200: 297.5546
... 1476 more rows

Sheet Pessoal Sicro (hidden)
A1: CGCIT | B1: SISTEMA DE CUSTOS REFERENCIAIS DE OBRAS - SICRO | G1: DNIT
A3: Pernambuco - Abril/2024
A4: Sem desoneração
A5: Código | B5: Descrição | C5: Unidade | D5: Salário (R$) | E5: Encargos Totais | F5: Custo (R$) | G5: Periculosidade/ Insalubridade
A6: P9801 | B6: Ajudante | C6: h | D6: 7.2271 | E6: 2.027024 | F6: 21.8766 | G6: 0
A7: P9802 | B7: Ajudante especializado | C7: h | D7: 8.6547 | E7: 1.963379 | F7: 25.6471 | G7: 0
A8: P9803 | B8: Almoxarife | C8: mês | D8: 2699.4 | E8: 1.206473 | F8: 5956.1532 | G8: 0
A9: P9804 | B9: Apontador | C9: mês | D9: 2052.713 | E9: 1.34485 | F9: 4813.304 | G9: 0
A10: P9805 | B10: Armador | C10: h | D10: 10.8106 | E10: 1.724355 | F10: 29.4519 | G10: 0
A11: P9806 | B11: Auxiliar administrativo | C11: mês | D11: 2041.6 | E11: 1.344179 | F11: 4785.8758 | G11: 0
A12: P9807 | B12: Bombeiro hidráulico | C12: h | D12: 11.0195 | E12: 1.783982 | F12: 30.678 | G12: 0
A13: P9808 | B13: Carpinteiro | C13: h | D13: 9.3916 | E13: 1.818858 | F13: 26.4735 | G13: 0
A14: P9809 | B14: Encarregado administrativo | C14: mês | D14: 3743.2324 | E14: 0.97571 | F14: 7395.5416 | G14: 0
A15: P9810 | B15: Eletricista | C15: h | D15: 10.7359 | E15: 1.774513 | F15: 29.7868 | G15: 0
A16: P9811 | B16: Encarregado especializado | C16: mês | D16: 3739.3906 | E16: 1.000934 | F16: 7482.2737 | G16: 0
A17: P9812 | B17: Engenheiro | C17: mês | D17: 13036.6832 | E17: 0.826138 | F17: 23806.7825 | G17: 0
A18: P9814 | B18: Operacional | C18: mês | D18: 1570.3441 | E18: 1.489277 | F18: 3909.0214 | G18: 0
A19: P9815 | B19: Jardineiro | C19: h | D19: 9.63 | E19: 1.797064 | F19: 26.9357 | G19: 0
A20: P9819 | B20: Engenheiro supervisor | C20: mês | D20: 13036.6832 | E20: 0.826138 | F20: 23806.7825 | G20: 0
A21: P9821 | B21: Pedreiro | C21: h | D21: 9.3484 | E21: 1.815697 | F21: 26.3222 | G21: 0
A22: P9822 | B22: Pintor | C22: h | D22: 10.8106 | E22: 1.731084 | F22: 29.5246 | G22: 0
A23: P9823 | B23: Serralheiro | C23: h | D23: 9.8194 | E23: 1.787157 | F23: 27.3682 | G23: 0
A24: P9824 | B24: Servente | C24: h | D24: 7 | E24: 2.055112 | F24: 21.3857 | G24: 0
A25: P9825 | B25: Soldador | C25: h | D25: 12.6749 | E25: 1.637995 | F25: 33.4363 | G25: 0
A26: P9826 | B26: Chefe setor de finanças | C26: mês | D26: 12413.5749 | E26: 0.830541 | F26: 22723.5578 | G26: 0
A27: P9827 | B27: Vigia | C27: mês | D27: 1484.6236 | E27: 1.800957 | F27: 4603.7539 | G27: 0.3
A28: P9830 | B28: Montador | C28: h | D28: 10.835 | E28: 1.799184 | F28: 30.3291 | G28: 0
A29: P9833 | B29: Auxiliar de laboratório | C29: mês | D29: 2378.3386 | E29: 1.27174 | F29: 5402.9669 | G29: 0
A30: P9837 | B30: Oceanógrafo | C30: mês | D30: 5313.4666 | E30: 0.967307 | F30: 10453.22 | G30: 0
A31: P9840 | B31: Encarregado geral | C31: mês | D31: 5515.1157 | E31: 0.922844 | F31: 10604.707 | G31: 0
A32: P9842 | B32: Faxineiro | C32: mês | D32: 1454.2 | E32: 1.592262 | F32: 3769.6674 | G32: 0
A33: P9843 | B33: Operador de equipamento leve | C33: h | D33: 9.28 | E33: 1.804293 | F33: 26.0238 | G33: 0
A34: P9845 | B34: Operador de equipamento pesado | C34: h | D34: 12.27 | E34: 1.63003 | F34: 32.2704 | G34: 0
A35: P9846 | B35: Operador de equipamento especial | C35: h | D35: 15.3512 | E35: 1.510926 | F35: 38.5457 | G35: 0
A36: P9847 | B36: Perfurador de tubulão | C36: h | D36: 7.2126 | E36: 2.023496 | F36: 21.8072 | G36: 0
A37: P9848 | B37: Desenhista | C37: mês | D37: 3282.7894 | E37: 1.106144 | F37: 6914.0271 | G37: 0
A38: P9849 | B38: Condutor maquinista fluvial | C38: mês | D38: 2497.4354 | E38: 1.203174 | F38: 5502.2847 | G38: 0
A39: P9850 | B39: Copeiro | C39: mês | D39: 1579.6 | E39: 1.502422 | F39: 3952.8257 | G39: 0
A40: P9851 | B40: Médico do trabalho | C40: mês | D40: 9683.7414 | E40: 0.851193 | F40: 17926.4742 | G40: 0
A41: P9852 | B41: Blaster | C41: h | D41: 11.0884 | E41: 2.051509 | F41: 37.1628 | G41: 0.3
A42: P9853 | B42: Pré-marcador | C42: h | D42: 7.2123 | E42: 2.001182 | F42: 21.6454 | G42: 0
A43: P9854 | B43: Recepcionista | C43: mês | D43: 1633.1119 | E43: 1.450687 | F43: 4002.2461 | G43: 0
A44: P9855 | B44: Marinheiro de máquinas | C44: mês | D44: 2228.695 | E44: 1.253325 | F44: 5021.9741 | G44: 0
A45: P9856 | B45: Marinheiro de convés | C45: h | D45: 9.888 | E45: 1.708729 | F45: 26.7839 | G45: 0
A46: P9857 | B46: Marinheiro de convés - mensalista | C46: mês | D46: 2175.3666 | E46: 1.264919 | F46: 4927.0291 | G46: 0
A47: P9858 | B47: Laboratorista | C47: mês | D47: 3319.8 | E47: 1.130737 | F47: 7073.6206 | G47: 0
A48: P9859 | B48: Trabalhador de via | C48: h | D48: 6.6885 | E48: 2.110431 | F48: 20.8041 | G48: 0
A49: P9861 | B49: Selecionador de material pétreo | C49: h | D49: 7.2123 | E49: 2.011271 | F49: 21.7181 | G49: 0
A50: P9864 | B50: Engenheiro de segurança do trabalho | C50: mês | D50: 12257.0437 | E50: 0.836282 | F50: 22507.3887 | G50: 0
A51: P9866 | B51: Motorista de caminhão | C51: h | D51: 12.27 | E51: 1.616199 | F51: 32.1007 | G51: 0
A52: P9867 | B52: Técnico especializado - mensalista | C52: mês | D52: 3179.2956 | E52: 1.142942 | F52: 6813.046 | G52: 0
A53: P9869 | B53: Encarregado de obras de artes especiais | C53: mês | D53: 3739.3906 | E53: 1.000934 | F53: 7482.2737 | G53: 0
A54: P9870 | B54: Motorista de veículo leve | C54: h | D54: 10.8106 | E54: 1.688068 | F54: 29.0596 | G54: 0
A55: P9871 | B55: Motorista de veículo especial | C55: h | D55: 12.6707 | E55: 1.599596 | F55: 32.9387 | G55: 0
A56: P9875 | B56: Encarregado de turma | C56: mês | D56: 2372.2927 | E56: 1.26716 | F56: 5378.3671 | G56: 0
A57: P9876 | B57: Técnico de segurança do trabalho | C57: mês | D57: 3262.6 | E57: 1.131918 | F57: 6955.5956 | G57: 0
A58: P9878 | B58: Secretária | C58: mês | D58: 2855.4584 | E58: 1.152928 | F58: 6147.5963 | G58: 0
A59: P9880 | B59: Piloto fluvial | C59: mês | D59: 3456.53 | E59: 1.073971 | F59: 7168.7429 | G59: 0
A60: P9882 | B60: Técnico especializado | C60: h | D60: 14.4513 | E60: 1.550545 | F60: 36.8586 | G60: 0
A61: P9883 | B61: Chefe do setor administrativo | C61: mês | D61: 3743.2304 | E61: 0.97571 | F61: 7395.5377 | G61: 0
A62: P9884 | B62: Encarregado de terraplenagem | C62: mês | D62: 3739.3906 | E62: 1.000934 | F62: 7482.2737 | G62: 0
A63: P9885 | B63: Frentista de túnel | C63: h | D63: 9.28 | E63: 1.859782 | F63: 26.5387 | G63: 0
A64: P9889 | B64: Técnico da qualidade | C64: mês | D64: 3566.9485 | E64: 1.01635 | F64: 7192.2166 | G64: 0
A65: P9892 | B65: Auxiliar de blaster | C65: h | D65: 9.7647 | E65: 2.136219 | F65: 33.5536 | G65: 0.3
A66: P9893 | B66: Encarregado de pavimentação | C66: mês | D66: 3739.3906 | E66: 1.000934 | F66: 7482.2737 | G66: 0
A67: P9896 | B67: Porteiro | C67: mês | D67: 1454.2 | E67: 1.592241 | F67: 3769.6368 | G67: 0
A68: P9897 | B68: Técnico de meio ambiente | C68: mês | D68: 3587.9112 | E68: 1.026663 | F68: 7271.4868 | G68: 0
A69: P9900 | B69: Comprador | C69: mês | D69: 3365.3083 | E69: 1.114845 | F69: 7117.1054 | G69: 0
A70: P9901 | B70: Encarregado de superestrutura ferroviária | C70: mês | D70: 3739.3906 | E70: 1.000934 | F70: 7482.2737 | G70: 0
A71: P9903 | B71: Auxiliar técnico | C71: mês | D71: 1786.8663 | E71: 1.424869 | F71: 4332.9166 | G71: 0
A72: P9907 | B72: Comandante de longo curso | C72: mês | D72: 11259.3057 | E72: 0.85216 | F72: 20854.0356 | G72: 0
A73: P9908 | B73: Imediato | C73: mês | D73: 8904.606 | E73: 0.878143 | F73: 16724.1234 | G73: 0
A74: P9909 | B74: Oficial de náutica | C74: mês | D74: 2834.3491 | E74: 1.14877 | F74: 6090.3643 | G74: 0
A75: P9910 | B75: Oficial de máquinas | C75: mês | D75: 2921.1265 | E75: 1.133052 | F75: 6230.9147 | G75: 0
A76: P9913 | B76: Draguista | C76: mês | D76: 3595.3388 | E76: 1.061613 | F76: 7412.1972 | G76: 0
A77: P9915 | B77: Maquinista | C77: h | D77: 12.7876 | E77: 1.604925 | F77: 33.3107 | G77: 0
A78: P9916 | B78: Encarregado de conservação rodoviária | C78: mês | D78: 3739.3906 | E78: 1.000934 | F78: 7482.2737 | G78: 0
A79: P9920 | B79: Mestre fluvial | C79: mês | D79: 4677.0464 | E79: 0.990445 | F79: 9309.4036 | G79: 0
A80: P9921 | B80: Mergulhador raso autônomo de emergência | C80: h | D80: 9.9237 | E80: 2.46323 | F80: 36.9353 | G80: 0.2587
A81: P9922 | B81: Mergulhador raso dependente de emergência | C81: h | D81: 9.9208 | E81: 2.539431 | F81: 38.0902 | G81: 0.3
A82: P9924 | B82: Mergulhador raso dependente | C82: h | D82: 9.9208 | E82: 3.855917 | F82: 51.1508 | G82: 0.3
A83: P9925 | B83: Mergulhador raso autônomo | C83: h | D83: 9.9237 | E83: 3.48923 | F83: 47.117 | G83: 0.2587
A84: P9926 | B84: Mergulhador raso auxiliar de superfície | C84: h | D84: 9.9237 | E84: 2.237032 | F84: 34.6905 | G84: 0.2587
A85: P9927 | B85: Frentista de túnel com periculosidade | C85: h | D85: 9.28 | E85: 2.187742 | F85: 32.3662 | G85: 0.3
A86: P9930 | B86: Eletricista com periculosidade | C86: h | D86: 10.7359 | E86: 2.101666 | F86: 36.5199 | G86: 0.3
A87: P9931 | B87: Operador de equipamento de mergulho | C87: h | D87: 18.0118 | E87: 1.800995 | F87: 53.0176 | G87: 0.1425
A88: P9932 | B88: Operador de equipamento pesado com periculosidade | C88: h | D88: 12.27 | E88: 1.95742 | F88: 39.9685 | G88: 0.3
A89: P9933 | B89: Supervisor de mergulho raso | C89: mês | D89: 3962.5981 | E89: 1.326142 | F89: 9782.236 | G89: 0.1425
A90: P9934 | B90: Motorista de veículo especial com periculosidade | C90: h | D90: 12.6707 | E90: 1.926955 | F90: 40.8877 | G90: 0.3
A91: P9938 | B91: Operador de equipamento leve com periculosidade | C91: h | D91: 9.28 | E91: 2.131683 | F91: 31.846 | G91: 0.3
A92: P9939 | B92: Operador de equipamento leve com insalubridade | C92: h | D92: 9.28 | E92: 2.247525 | F92: 32.7038 | G92: 0.2766
A93: P9942 | B93: Marinheiro de convés com periculosidade | C93: h | D93: 9.888 | E93: 2.037139 | F93: 32.9976 | G93: 0.3
A94: P9944 | B94: Operador de equipamento especial com periculosidade | C94: h | D94: 15.3512 | E94: 1.838318 | F94: 48.1769 | G94: 0.3
A95: P9946 | B95: Engenheiro auxiliar | C95: mês | D95: 12002 | E95: 0.831779 | F95: 21985.0115 | G95: 0
A96: P9947 | B96: Técnico florestal | C96: mês | D96: 3587.9112 | E96: 1.026663 | F96: 7271.4868 | G96: 0
A97: P9948 | B97: Motorista de veículo leve - mensalista | C97: mês | D97: 2378.3386 | E97: 1.25775 | F97: 5369.6939 | G97: 0
A98: P9949 | B98: Topógrafo | C98: mês | D98: 4037 | E98: 1.002053 | F98: 8082.2879 | G98: 0
A99: P9950 | B99: Auxiliar de topografia | C99: mês | D99: 2378.3386 | E99: 1.285493 | F99: 5435.6762 | G99: 0
A100: P9951 | B100: Médico de câmara hiperbárica | C100: mês | D100: 9683.7414 | E100: 0.994129 | F100: 19875.1916 | G100: 0.0583
A101: P9952 | B101: Pedreiro - mensalista | C101: mês | D101: 2056.6571 | E101: 1.365004 | F101: 4864.0022 | G101: 0
A102: P9953 | B102: Eletricista - mensalista | C102: mês | D102: 2361.8881 | E102: 1.326436 | F102: 5494.7815 | G102: 0
A103: P9954 | B103: Servente - mensalista | C103: mês | D103: 1540 | E103: 1.567021 | F103: 3953.2123 | G103: 0
A104: P9955 | B104: Engenheiro chefe | C104: mês | D104: 16586.2888 | E104: 0.812134 | F104: 30056.5778 | G104: 0
A105: P9956 | B105: Motorista de caminhão com periculosidade | C105: h | D105: 12.27 | E105: 1.943559 | F105: 39.7984 | G105: 0.3
A106: P9972 | B106: Técnico de batimetria | C106: mês | D106: 3322.76 | E106: 1.108568 | F106: 7006.2654 | G106: 0

Sheet Equipamentos (hidden)
A1: CGCIT | B1: SISTEMA DE CUSTOS REFERENCIAIS DE OBRAS - SICRO | K1: DNIT
B2: Pernambuco - Abril/2024
A3: Código | B3: Descrição | C3: Valor de Aquisição (R$) | D3: Depreciação (R$/h) | E3: Oportunidade de Capital (R$/h) | F3: Seguros e Impostos (R$/h) | G3: Manutenção (R$/h) | H3: Operação (R$/h) | I3: Mão de Obra de Operação (R$/h) | J3: Custo Produtivo (R$/h) | K3: Custo Improdutivo (R$/h)
A4: E9001 | B4: Conjunto vibratório para tubos de concreto com encaixe PB e 3 jogos de fôrmas - D = 0,60 m - 2,20 kW | C4: 67156.809 | D4: 8.9542 | E4: 2.0718 | F4: 0 | G4: 6.7157 | H4: 0 | I4: 0 | J4: 17.7417 | K4: 11.026
A5: E9002 | B5: Conjunto vibratório para tubos de concreto com encaixe PB e 3 jogos de fôrmas - D = 0,80 m - 2,20 kW | C5: 83651.8154 | D5: 11.1536 | E5: 2.5807 | F5: 0 | G5: 8.3652 | H5: 0 | I5: 0 | J5: 22.0995 | K5: 13.7343
A6: E9003 | B6: Conjunto vibratório para tubos de concreto com encaixe PB e 3 jogos de fôrmas - D = 1,00 m - 2,20 kW | C6: 103186.4897 | D6: 13.7582 | E6: 3.1833 | F6: 0 | G6: 10.3186 | H6: 0 | I6: 0 | J6: 27.2601 | K6: 16.9415
A7: E9004 | B7: Conjunto vibratório para tubos de concreto com encaixe PB e 3 jogos de fôrmas - D = 1,20 m - 2,20 kW | C7: 109378.2226 | D7: 14.5838 | E7: 3.3743 | F7: 0 | G7: 10.9378 | H7: 0 | I7: 0 | J7: 28.8959 | K7: 17.9581
A8: E9005 | B8: Conjunto vibratório para tubos de concreto com encaixe PB e 3 jogos de fôrmas - D = 1,50 m - 2,20 kW | C8: 114053.1059 | D8: 15.2071 | E8: 3.5185 | F8: 0 | G8: 11.4053 | H8: 0 | I8: 0 | J8: 30.1309 | K8: 18.7256
A9: E9006 | B9: Equipamento para sondagem manual | C9: 3007.215 | D9: 0.5112 | E9: 0.1113 | F9: 0 | G9: 0.3007 | H9: 0 | I9: 0 | J9: 0.9232 | K9: 0.6225
A10: E9007 | B10: Bomba de pistão triplex com capacidade de 7,80 m³/h (130 l/min) - 8,20 kW | C10: 158047.8395 | D10: 12.6438 | E10: 2.9255 | F10: 0 | G10: 11.0633 | H10: 7.976 | I10: 0 | J10: 34.6086 | K10: 15.5693
A11: E9008 | B11: Transportador manual de tubos de concreto com capacidade de 1 t | C11: 1830.6368 | D11: 1.6476 | E11: 0.113 | F11: 0 | G11: 0.9153 | H11: 0 | I11: 0 | J11: 2.6759 | K11: 1.7606
A12: E9009 | B12: Embarcação rebocadora - 268 kW | C12: 626619.7911 | D12: 8.1591 | E12: 3.6358 | F12: 0 | G12: 18.1314 | H12: 260.6798 | I12: 135.4673 | J12: 426.0734 | K12: 147.2622
A13: E9010 | B13: Balança plataforma digital à bateria, com mesa de 75 x 75 cm e capacidade de 500 kg | C13: 5050.7569 | D13: 0.7576 | E13: 0.1039 | F13: 0 | G13: 0.4209 | H13: 0 | I13: 0 | J13: 1.2824 | K13: 0.8615
A14: E9011 | B14: Carro manual modelo plataforma de 200 x 80 cm com capacidade de 800 kg | C14: 1896.8803 | D14: 0.3414 | E14: 0.0702 | F14: 0 | G14: 0.1897 | H14: 0 | I14: 0 | J14: 0.6013 | K14: 0.4116
A15: E9014 | B15: Deflectômetro de impacto (FWD) instalado em picape com reboque e faixa de carga de 7 a 120 kN - 147 kW | C15: 2141825.942 | D15: 171.3461 | E15: 39.6452 | F15: 0 | G15: 107.0913 | H15: 0 | I15: 32.9387 | J15: 351.0213 | K15: 243.93
A16: E9015 | B16: Elevador de obra com capacidade de 1.000 kg - 9 kW | C16: 65864.4441 | D16: 5.2692 | E16: 1.2192 | F16: 0 | G16: 4.6105 | H16: 0 | I16: 26.0238 | J16: 37.1227 | K16: 32.5122
A17: E9016 | B17: Usina misturadora móvel de reciclagem a frio com sistema de espuma de asfalto - 129,40 kW | C17: 10043259.59 | D17: 585.8568 | E17: 180.7368 | F17: 0 | G17: 753.2445 | H17: 92.7431 | I17: 38.5457 | J17: 1651.1269 | K17: 805.1393
A18: E9017 | B18: Escavadeira hidráulica sobre esteira com capacidade de 0,4 m³ - 64 kW | C18: 717121.1032 | D18: 50.1985 | E18: 13.2739 | F18: 0 | G18: 50.1985 | H18: 42.5934 | I18: 32.2704 | J18: 188.5347 | K18: 95.7428
A19: E9020 | B19: Recicladora a frio - 455 kW | C19: 5012274.317 | D19: 292.3827 | E19: 90.2001 | F19: 0 | G19: 417.6895 | H19: 465.8654 | I19: 38.5457 | J19: 1304.6834 | K19: 421.1285
A20: E9021 | B20: Grupo gerador - 456 kVA | C20: 351611.8595 | D20: 17.5806 | E20: 6.1984 | F20: 0 | G20: 12.5576 | H20: 355.0304 | I20: 0 | J20: 391.367 | K20: 23.779
A21: E9022 | B21: Pórtico metálico rolante com capacidade de 25 t - 30 kW | C21: 955979.7007 | D21: 43.0191 | E21: 16.2206 | F21: 0 | G21: 33.4593 | H21: 0 | I21: 26.0238 | J21: 118.7228 | K21: 85.2635
A22: E9023 | B22: Guindaste móvel sobre esteiras com dragline com capacidade de 1,9 a 2,3 m³ - 270 kW | C22: 3551731.993 | D22: 124.3106 | E22: 60.264 | F22: 0 | G22: 177.5866 | H22: 69.1119 | I22: 38.5457 | J22: 469.8188 | K22: 223.1203
A23: E9024 | B23: Misturador de nata cimento - 1,50 kW | C23: 8056.6504 | D23: 0.6445 | E23: 0.1491 | F23: 0 | G23: 0.564 | H23: 0 | I23: 26.0238 | J23: 27.3814 | K23: 26.8174
A24: E9025 | B24: Conjunto bomba e macaco hidráulico para protensão com capacidade de 7.000 kN - 15 kW | C24: 100887.3187 | D24: 5.765 | E24: 1.7785 | F24: 0 | G24: 5.765 | H24: 0 | I24: 38.5457 | J24: 51.8542 | K24: 46.0892
A25: E9026 | B25: Bomba para injeção de nata de cimento com capacidade de 2 MPa - 2,20 kW | C25: 31815.051 | D25: 2.5452 | E25: 0.5889 | F25: 0 | G25: 2.2271 | H25: 0 | I25: 0 | J25: 5.3612 | K25: 3.1341
A26: E9028 | B26: Bomba de alta pressão para hidrojateamento com capacidade de 18 MPa - 5,20 kW | C26: 4751.7912 | D26: 0.3801 | E26: 0.088 | F26: 0 | G26: 0.4277 | H26: 9.1797 | I26: 26.0238 | J26: 36.0993 | K26: 26.4919
A27: E9029 | B27: Conjunto bomba e macaco hidráulico para protensão com capacidade de 8.000 kN - 20 kW | C27: 128255.1332 | D27: 7.3289 | E27: 2.261 | F27: 0 | G27: 7.3289 | H27: 0 | I27: 38.5457 | J27: 55.4645 | K27: 48.1356
A28: E9030 | B28: Bomba de protensão com leitura digital para tensionamento de estais - 3 kW | C28: 13857.7478 | D28: 0.7919 | E28: 0.2443 | F28: 0 | G28: 0.7919 | H28: 0 | I28: 0 | J28: 1.8281 | K28: 1.0362
A29: E9031 | B29: Elevador de cremalheira com cabine simples, com capacidade de 1.500 kg e altura de até 100 m - 15 kW | C29: 338552.6648 | D29: 27.0842 | E29: 6.2666 | F29: 0 | G29: 23.6987 | H29: 0 | I29: 26.0238 | J29: 83.0733 | K29: 59.3746
A30: E9032 | B30: Equipamento para regulagem final de estais com até 37 cordoalhas - D = 15,7 mm - 20 kW | C30: 75135.7256 | D30: 4.2935 | E30: 1.3245 | F30: 0 | G30: 4.2935 | H30: 0 | I30: 38.5457 | J30: 48.4572 | K30: 44.1637
A31: E9033 | B31: Equipamento para regulagem final de estais de 38 a 55 cordoalhas - D = 15,7 mm - 30 kW | C31: 107336.7509 | D31: 6.1335 | E31: 1.8922 | F31: 0 | G31: 6.1335 | H31: 0 | I31: 38.5457 | J31: 52.7049 | K31: 46.5714
A32: E9034 | B32: Equipamento para regulagem final de estais de 56 a 73 cordoalhas - D = 15,7 mm - 40 kW | C32: 161005.1264 | D32: 9.2003 | E32: 2.8383 | F32: 0 | G32: 9.2003 | H32: 0 | I32: 38.5457 | J32: 59.7846 | K32: 50.5843
A33: E9035 | B33: Equipamento para regulagem final de estais de 74 a 91 cordoalhas - D = 15,7 mm - 50 kW | C33: 214673.5019 | D33: 12.2671 | E33: 3.7844 | F33: 0 | G33: 12.2671 | H33: 0 | I33: 38.5457 | J33: 66.8643 | K33: 54.5972
A34: E9036 | B34: Grua fixa para alturas de 60 a 102 m, com alcance de 60 m com capacidade de 1.500 kg na ponta da lança - 37 kW | C34: 3214869.372 | D34: 160.7435 | E34: 56.6736 | F34: 0 | G34: 183.7068 | H34: 0 | I34: 38.5457 | J34: 439.6696 | K34: 255.9628
A35: E9038 | B35: Macaco hidráulico monocordoalha para tensionamento de estais - 3 kW | C35: 17408.8961 | D35: 0.9948 | E35: 0.3069 | F35: 0 | G35: 0.9948 | H35: 0 | I35: 38.5457 | J35: 40.8422 | K35: 39.8474
A36: E9039 | B36: Máquina de solda por termofusão para tubos PEAD com gerador de 4 kW | C36: 117709.3278 | D36: 6.7262 | E36: 2.075 | F36: 0 | G36: 6.7262 | H36: 3.8907 | I36: 38.5457 | J36: 57.9638 | K36: 47.3469
A37: E9040 | B37: Serra mármore - 1,45 kW | C37: 464.1588 | D37: 0.0418 | E37: 0.0086 | F37: 0 | G37: 0.0232 | H37: 0 | I37: 0 | J37: 0.0736 | K37: 0.0504
A38: E9042 | B38: Trator sobre esteiras com lâmina - 97 kW | C38: 1332477.977 | D38: 51.8186 | E38: 22.8372 | F38: 0 | G38: 74.0266 | H38: 69.5215 | I38: 32.2704 | J38: 250.4743 | K38: 106.9262
A39: E9043 | B39: Embarcação de alumínio com comprimento de 6 m e motor de popa - 18,60 kW | C39: 25144.58 | D39: 0.3929 | E39: 0.1481 | F39: 0 | G39: 0.4365 | H39: 37.5259 | I39: 39.2829 | J39: 77.7863 | K39: 39.8239
A40: E9044 | B40: Central de concreto com capacidade de 150 m³/h - dosadora e misturadora | C40: 2339276.774 | D40: 133.673 | E40: 41.2381 | F40: 0 | G40: 116.9638 | H40: 0 | I40: 38.5457 | J40: 330.4206 | K40: 213.4568
A41: E9045 | B41: Conjunto bomba e macaco hidráulico para elevação com capacidade de 496 kN | C41: 60120.0538 | D41: 4.8096 | E41: 1.1128 | F41: 0 | G41: 4.8096 | H41: 5.8105 | I41: 38.5457 | J41: 55.0882 | K41: 44.4681
A42: E9046 | B42: Conjunto bomba e macaco hidráulico para elevação com capacidade de 929 kN | C42: 73002.1093 | D42: 5.8402 | E42: 1.3513 | F42: 0 | G42: 5.8402 | H42: 5.8105 | I42: 38.5457 | J42: 57.3879 | K42: 45.7372
A43: E9047 | B43: Conjunto bomba e macaco hidráulico para elevação com capacidade de 1.390 kN | C43: 103673.2721 | D43: 8.2939 | E43: 1.919 | F43: 0 | G43: 8.2939 | H43: 5.8105 | I43: 38.5457 | J43: 62.863 | K43: 48.7586
A44: E9048 | B44: Conjunto bomba e macaco hidráulico para elevação com capacidade de 1.859 kN | C44: 120351.9565 | D44: 9.6282 | E44: 2.2277 | F44: 0 | G44: 9.6282 | H44: 5.8105 | I44: 38.5457 | J44: 65.8403 | K44: 50.4016
A45: E9049 | B45: Bomba de alta pressão para hidrojateamento com capacidade de 250 MPa - 72 kW | C45: 702722.464 | D45: 56.2178 | E45: 13.0074 | F45: 0 | G45: 63.245 | H45: 55.2895 | I45: 26.0238 | J45: 213.7835 | K45: 95.249
A46: E9050 | B46: Guindaste móvel sobre pneus com 2 eixos com capacidade de 18 t - 97 kW | C46: 2836240.952 | D46: 141.812 | E46: 49.9989 | F46: 0 | G46: 182.3298 | H46: 24.8291 | I46: 32.9387 | J46: 431.9085 | K46: 224.7496
A47: E9051 | B47: Máquina levantadora e posicionadora de via - 7,40 kW | C47: 780449.8393 | D47: 62.436 | E47: 14.4461 | F47: 0 | G47: 54.6315 | H47: 10.4508 | I47: 26.0238 | J47: 167.9882 | K47: 102.9059
A48: E9052 | B48: Empilhadeira a diesel com capacidade de 10 t - 82 kW | C48: 749065.3003 | D48: 59.9252 | E48: 13.8652 | F48: 0 | G48: 52.4346 | H48: 62.9686 | I48: 26.0238 | J48: 215.2174 | K48: 99.8142
A49: E9053 | B49: Perfuratriz hidráulica montada em flutuante - 32 kW | C49: 352717.8547 | D49: 11.0224 | E49: 2.2669 | F49: 0 | G49: 9.7977 | H49: 16.3821 | I49: 31.846 | J49: 71.3151 | K49: 45.1353
A50: E9054 | B50: Equipamento sobre forma-trilho para execução e acabamento de pavimento de concreto - 13,40 kW | C50: 1375489.35 | D50: 110.0391 | E50: 25.4603 | F50: 0 | G50: 68.7745 | H50: 18.9243 | I50: 26.0238 | J50: 249.222 | K50: 161.5232
A51: E9055 | B51: Guincho pneumático com capacidade de 2,5 t | C51: 526134.7113 | D51: 47.3521 | E51: 9.7388 | F51: 0 | G51: 26.3067 | H51: 0 | I51: 0 | J51: 83.3976 | K51: 57.0909
A52: E9056 | B52: Plataforma autoelevatória de 12 x 24 m com capacidade de 150 t | C52: 843670.7065 | D52: 6.5912 | E52: 4.7445 | F52: 0 | G52: 14.6471 | H52: 0 | I52: 103.158 | J52: 129.1408 | K52: 114.4937
A53: E9057 | B53: Batelão sem propulsão com capacidade de 66 m³ | C53: 225610.324 | D53: 1.7626 | E53: 1.2688 | F53: 0 | G53: 2.9376 | H53: 0 | I53: 26.7839 | J53: 32.7529 | K53: 29.8153
A54: E9058 | B54: Plataforma flutuante de 12 x 24 x 1,8 m com capacidade de 150 t | C54: 674762.0961 | D54: 5.2716 | E54: 3.7947 | F54: 0 | G54: 8.786 | H54: 0 | I54: 26.7839 | J54: 44.6362 | K54: 35.8502
A55: E9059 | B55: Plataforma autoelevatória de 12 x 24 m montada na obra com capacidade de 150 t | C55: 843670.7065 | D55: 6.5912 | E55: 4.7445 | F55: 0 | G55: 14.6471 | H55: 0 | I55: 103.158 | J55: 129.1408 | K55: 114.4937
A56: E9060 | B56: Perfuratriz pneumática rotopercussiva montada em flutuante com pressão de 0,70 MPa e capacidade de 2.500 gpm | C56: 32255.9661 | D56: 1.008 | E56: 0.2073 | F56: 0 | G56: 0.896 | H56: 0 | I56: 63.692 | J56: 65.8033 | K56: 64.9073
A57: E9061 | B57: Lixadeira elétrica manual angular - 2 kW | C57: 1387.3298 | D57: 0.111 | E57: 0.0257 | F57: 0 | G57: 0.0694 | H57: 0 | I57: 0 | J57: 0.2061 | K57: 0.1367
A58: E9062 | B58: Soprador de ar quente manual - 1,60 kW | C58: 4563.5123 | D58: 0.6085 | E58: 0.0939 | F58: 0 | G58: 0.3803 | H58: 0 | I58: 0 | J58: 1.0827 | K58: 0.7024
A59: E9063 | B59: Equipamento de estabilização dinâmica da via - 300 kW | C59: 24279358.1 | D59: 971.1743 | E59: 411.96 | F59: 0 | G59: 971.1743 | H59: 184.2984 | I59: 38.5457 | J59: 2577.1527 | K59: 1421.68
A60: E9064 | B60: Transportador manual gerica com capacidade de 180 l | C60: 997.3517 | D60: 0.9974 | E60: 0.0615 | F60: 0 | G60: 0.4987 | H60: 0 | I60: 0 | J60: 1.5576 | K60: 1.0589
A61: E9065 | B61: Carro controle ferroviário - 186 kW | C61: 29557552.17 | D61: 1182.3021 | E61: 501.5178 | F61: 0 | G61: 1034.5143 | H61: 114.265 | I61: 38.5457 | J61: 2871.1449 | K61: 1722.3656
A62: E9066 | B62: Grupo gerador - 14 kVA | C62: 68316.717 | D62: 3.4158 | E62: 1.2043 | F62: 0 | G62: 2.4399 | H62: 10.6995 | I62: 0 | J62: 17.7595 | K62: 4.6201
A63: E9067 | B63: Veículo ferroviário para capina química com capacidade de 12.000 l - 115 kW | C63: 1695107.777 | D63: 67.8043 | E63: 28.7617 | F63: 0 | G63: 42.3777 | H63: 70.6477 | I63: 26.0238 | J63: 235.6152 | K63: 122.5898
A64: E9068 | B64: Perfuratriz hidráulica rotopercussiva para CCPH - 123 kW | C64: 3513045.8 | D64: 234.2031 | E64: 63.2202 | F64: 0 | G64: 234.2031 | H64: 94.4529 | I64: 32.2704 | J64: 658.3497 | K64: 329.6937
A65: E9069 | B65: Vibrador de imersão para concreto - 4,10 kW | C65: 3885.7792 | D65: 0.6217 | E65: 0.1439 | F65: 0 | G65: 0.3886 | H65: 7.2379 | I65: 0 | J65: 8.3921 | K65: 0.7656
A66: E9070 | B66: Ponte rolante com capacidade de 5 t e vão de até 15 m - 10 kW | C66: 329947.0595 | D66: 13.1979 | E66: 5.5984 | F66: 0 | G66: 8.2487 | H66: 0 | I66: 26.0238 | J66: 53.0688 | K66: 44.8201
A67: E9071 | B67: Transportador manual carrinho de mão com capacidade de 80 l | C67: 466.9177 | D67: 0.4669 | E67: 0.0288 | F67: 0 | G67: 0.2335 | H67: 0 | I67: 0 | J67: 0.7292 | K67: 0.4957
A68: E9072 | B68: Martelo hidráulico vibratório com unidade hidráulica - 486 kW | C68: 2863294.888 | D68: 190.8863 | E68: 51.5274 | F68: 0 | G68: 167.0255 | H68: 373.2043 | I68: 38.5457 | J68: 821.1892 | K68: 280.9594
A69: E9073 | B69: Bomba de concreto rebocável com capacidade de 30 m³/h - 74 kW | C69: 481600.6595 | D69: 38.5281 | E69: 8.9144 | F69: 0 | G69: 38.5281 | H69: 71.9788 | I69: 26.0238 | J69: 183.9732 | K69: 73.4663
A70: E9074 | B70: Tanque de estocagem de asfalto com agitadores de 60.000 l | C70: 816000 | D70: 34 | E70: 11.8001 | F70: 0 | G70: 21.25 | H70: 0 | I70: 0 | J70: 67.0501 | K70: 45.8001
A71: E9075 | B71: Trado cavadeira de 12" | C71: 142.0739 | D71: 0.071 | E71: 0.0066 | F71: 0 | G71: 0.0355 | H71: 0 | I71: 0 | J71: 0.1131 | K71: 0.0776
A72: E9076 | B72: Equipamento para pintura eletrostática com cabine dupla de 7,00 kW e estufa de 80.000 kCal | C72: 163944.5242 | D72: 10.5393 | E72: 2.8901 | F72: 0 | G72: 5.8552 | H72: 0 | I72: 26.0238 | J72: 45.3084 | K72: 39.4532
A73: E9077 | B73: Perfuratriz de circulação reversa tipo Wirth ou similar com unidade hidráulica (Power Pack) - 273 kW | C73: 4242540.214 | D73: 282.836 | E73: 76.348 | F73: 0 | G73: 282.836 | H73: 139.7596 | I73: 32.2704 | J73: 814.05 | K73: 391.4544
A74: E9078 | B74: Treliça lançadeira com capacidade de carga de 100 a 120 t e vão máximo de 45 m - 110 kW | C74: 3541087.597 | D74: 94.429 | E74: 58.2627 | F74: 0 | G74: 59.0181 | H74: 0 | I74: 38.5457 | J74: 250.2555 | K74: 191.2374
A75: E9079 | B75: Bomba submersível com capacidade de 360 m³/h - 23 kW | C75: 179784.3819 | D75: 14.3828 | E75: 3.3278 | F75: 0 | G75: 12.5849 | H75: 0 | I75: 0 | J75: 30.2955 | K75: 17.7106
A76: E9080 | B76: Carrelone com capacidade máxima de 70 t | C76: 1766402.012 | D76: 79.4881 | E76: 29.9714 | F76: 0 | G76: 44.1601 | H76: 0 | I76: 26.0238 | J76: 179.6434 | K76: 135.4833
A77: E9081 | B77: Fischietti simples com capacidade de 70 t | C77: 105480.8656 | D77: 4.7466 | E77: 1.7897 | F77: 0 | G77: 2.637 | H77: 0 | I77: 26.0238 | J77: 35.1971 | K77: 32.5601
A78: E9083 | B78: Vagão fechado FLT com capacidade de 99 t | C78: 800000 | D78: 12.6667 | E78: 12.7513 | F78: 0 | G78: 6.6667 | H78: 0 | I78: 0 | J78: 32.0847 | K78: 25.418
A79: E9084 | B79: Vagão tanque convencional TCT com capacidade de 97 t e 103.000 l | C79: 1195000 | D79: 18.9208 | E79: 19.0473 | F79: 0 | G79: 9.9583 | H79: 0 | I79: 0 | J79: 47.9264 | K79: 37.9681
A80: E9085 | B80: Vagão gôndola GDE com capacidade de 93,5 t / 29 m³ | C80: 620000 | D80: 9.8167 | E80: 9.8823 | F80: 0 | G80: 5.1667 | H80: 0 | I80: 0 | J80: 24.8657 | K80: 19.699
A81: E9086 | B81: Bomba de concreto rebocável com capacidade de 41 m³/h - 74 kW | C81: 531750.6595 | D81: 42.5401 | E81: 9.8427 | F81: 0 | G81: 42.5401 | H81: 71.9788 | I81: 26.0238 | J81: 192.9255 | K81: 78.4066
A82: E9089 | B82: Roçadeira costal - 1,40 kW | C82: 2859.323 | D82: 0.4289 | E82: 0.0588 | F82: 0 | G82: 0.3336 | H82: 7.7675 | I82: 0 | J82: 8.5888 | K82: 0.4877
A83: E9093 | B83: Veículo leve - 53 kW (sem motorista) | C83: 71228.1739 | D83: 4.2737 | E83: 1.3184 | F83: 0.5342 | G83: 4.2737 | H83: 24.0589 | I83: 0 | J83: 34.4589 | K83: 6.1263
A84: E9094 | B84: Guindaste móvel sobre pneus com 6 eixos com capacidade máxima de 350 t - 450 kW | C84: 16352814.89 | D84: 817.6407 | E84: 288.2768 | F84: 116.8058 | G84: 1051.2524 | H84: 115.1865 | I84: 32.9387 | J84: 2422.1009 | K84: 1255.662
A85: E9095 | B85: Guindaste móvel sobre pneus com 8 eixos com capacidade máxima de 500 t - 500 kW | C85: 28681053.79 | D85: 1434.0527 | E85: 505.606 | F85: 204.8647 | G85: 1843.782 | H85: 127.985 | I85: 32.9387 | J85: 4149.2291 | K85: 2177.4621
A86: E9096 | B86: Minicarregadeira de pneus - 45,50 kW | C86: 406060.7207 | D86: 28.4243 | E86: 7.5162 | F86: 0 | G86: 28.4243 | H86: 58.2332 | I86: 32.2704 | J86: 154.8684 | K86: 68.2109
A87: E9101 | B87: Removedora de faixas de sinalização viária - 9,69 kW | C87: 50781.5902 | D87: 4.0625 | E87: 0.94 | F87: 0 | G87: 3.5547 | H87: 17.106 | I87: 0 | J87: 25.6632 | K87: 5.0025
A88: E9102 | B88: Extrusora para sarjeta de concreto - 10,44 kW | C88: 75110.0606 | D88: 6.0088 | E88: 1.3903 | F88: 0 | G88: 5.2577 | H88: 8.017 | I88: 26.0238 | J88: 46.6976 | K88: 33.4229
A89: E9103 | B89: Extrusora para meio-fio de concreto - 10,44 kW | C89: 63808.9721 | D89: 5.1047 | E89: 1.1811 | F89: 0 | G89: 4.4666 | H89: 8.017 | I89: 26.0238 | J89: 44.7932 | K89: 32.3096
A90: E9105 | B90: Embarcação empurradora multipropósito - 2 x 186 kW | C90: 4997303.263 | D90: 65.0691 | E90: 28.9955 | F90: 0 | G90: 144.5979 | H90: 361.8392 | I90: 135.4673 | J90: 735.969 | K90: 229.5319
A91: E9106 | B91: Balsa de convés com capacidade de 200 t | C91: 1931635.188 | D91: 15.0909 | E91: 10.8629 | F91: 0 | G91: 25.1515 | H91: 0 | I91: 26.7839 | J91: 77.8892 | K91: 52.7377
A92: E9107 | B92: Compactador manual com soquete vibratório - 2,24 kW | C92: 9897.94 | D92: 0.6599 | E92: 0.1781 | F92: 0 | G92: 0.6599 | H92: 3.9543 | I92: 0 | J92: 5.4522 | K92: 0.838
A93: E9108 | B93: Soldadora de trilho por caldeamento na via - 400 kW | C93: 9036682.155 | D93: 144.5869 | E93: 144.9665 | F93: 0 | G93: 180.7336 | H93: 245.7312 | I93: 77.0914 | J93: 793.1096 | K93: 366.6448
A94: E9110 | B94: Escavadeira hidráulica sobre esteiras para rocha com caçamba com capacidade de 1,56 m³ - 118 kW | C94: 1081666.793 | D94: 108.1667 | E94: 21.4518 | F94: 0 | G94: 108.1667 | H94: 114.7769 | I94: 32.2704 | J94: 384.8325 | K94: 161.8889
A95: E9111 | B95: Jateador abrasivo úmido com capacidade de 350 kg de abrasivo | C95: 247802.771 | D95: 22.3022 | E95: 4.5868 | F95: 0 | G95: 22.3022 | H95: 0 | I95: 26.0238 | J95: 75.215 | K95: 52.9128
A96: E9112 | B96: Sinalizador direcional móvel com sistema fotovoltaico de energia e montado em chassi sobre pneus | C96: 22743.5921 | D96: 2.0469 | E96: 0.421 | F96: 0 | G96: 1.1372 | H96: 0 | I96: 0 | J96: 3.6051 | K96: 2.4679
A97: E9113 | B97: Painel de Mensagem Variável - PMV móvel, com sistema fotovoltaico de energia e montado em chassi sobre pneus | C97: 170670.6595 | D97: 15.3604 | E97: 3.1591 | F97: 0 | G97: 8.5335 | H97: 0 | I97: 0 | J97: 27.053 | K97: 18.5195
A98: E9116 | B98: Semáforo móvel com 3 lentes e bateria - D = 200 mm | C98: 7768.7512 | D98: 0.6992 | E98: 0.1438 | F98: 0 | G98: 0.3884 | H98: 0 | I98: 0 | J98: 1.2314 | K98: 0.843
A99: E9117 | B99: Carregadeira de pneus para rocha com capacidade de 2,50 m³ - 105 kW | C99: 1000473.683 | D99: 100.0474 | E99: 19.8415 | F99: 0 | G99: 100.0474 | H99: 102.132 | I99: 32.2704 | J99: 354.3387 | K99: 152.1593
A100: E9118 | B100: Cortadora de pavimento com disco diamantado de 450 a 1.500 mm - 55,40 kW | C100: 485941.4004 | D100: 38.8753 | E100: 8.9948 | F100: 0 | G100: 38.8753 | H100: 42.5422 | I100: 26.0238 | J100: 155.3114 | K100: 73.8939
A101: E9119 | B101: Minicarregadeira sobre pneus com valetadeira - 55,40 kW | C101: 618649.6595 | D101: 43.3055 | E101: 11.4512 | F101: 0 | G101: 43.3055 | H101: 70.9037 | I101: 32.2704 | J101: 201.2363 | K101: 87.0271
A102: E9120 | B102: Equipamento de cravação sobre esteira para geodreno com haste para profundidade de até 20 m - 258 kW | C102: 3285244.494 | D102: 229.9671 | E102: 60.8099 | F102: 0 | G102: 229.9671 | H102: 171.7047 | I102: 26.0238 | J102: 718.4726 | K102: 316.8008
A103: E9122 | B103: Perfuratriz tipo Bottom Feed para coluna de brita - 194 kW | C103: 4531010.424 | D103: 302.0674 | E103: 81.5393 | F103: 0 | G103: 302.0674 | H103: 99.3164 | I103: 32.2704 | J103: 817.2609 | K103: 415.8771
A104: E9125 | B104: Veículo tipo van furgão com capacidade de 1,54 t - 93 kW | C104: 234565.0018 | D104: 11.7283 | E104: 4.2212 | F104: 1.7104 | G104: 11.7283 | H104: 23.8052 | I104: 29.0596 | J104: 82.253 | K104: 46.7195
A105: E9126 | B105: Draga backhoe com capacidade de 7 m³ - 1.000 kW | C105: 82197311.58 | D105: 924.7198 | E105: 665.6441 | F105: 0 | G105: 2054.9328 | H105: 972.686 | I105: 67.4009 | J105: 4685.3836 | K105: 1657.7648
A106: E9127 | B106: Escavadeira hidráulica com martelo hidráulico de 520 kg - 75 kW | C106: 1112152.307 | D106: 127.1031 | E106: 22.0564 | F106: 0 | G106: 158.8789 | H106: 49.9142 | I106: 32.2704 | J106: 390.223 | K106: 181.4299
A107: E9134 | B107: Miniônibus com capacidade para 30 passageiros - 111 kW | C107: 640171.198 | D107: 27.4359 | E107: 11.2853 | F107: 4.5727 | G107: 41.1539 | H107: 107.9681 | I107: 32.1007 | J107: 224.5166 | K107: 75.3946
A108: E9141 | B108: Rebarbador hidráulico com bomba manual com capacidade de força de 9.000 kgf | C108: 93421.4222 | D108: 7.4737 | E108: 1.7292 | F108: 0 | G108: 4.6711 | H108: 0 | I108: 0 | J108: 13.874 | K108: 9.2029
A109: E9144 | B109: Pórtico metálico rolante com talha com capacidade de 5 t - 10 kW | C109: 302602.4185 | D109: 12.1041 | E109: 5.1344 | F109: 0 | G109: 7.5651 | H109: 0 | I109: 26.0238 | J109: 50.8274 | K109: 43.2623
A110: E9148 | B110: Macaco de protensão de fios com bomba - 3,72 kW | C110: 101537.1861 | D110: 5.8021 | E110: 1.79 | F110: 0 | G110: 5.8021 | H110: 0 | I110: 38.5457 | J110: 51.9399 | K110: 46.1378
A111: E9149 | B111: Máquina de aplicação e extração de grampo elástico tipo Pandrol - 6,70 kW | C111: 265341.0653 | D111: 21.2273 | E111: 4.9115 | F111: 0 | G111: 21.2273 | H111: 9.4622 | I111: 0 | J111: 56.8283 | K111: 26.1388
A112: E9151 | B112: Britador de mandíbulas móvel sobre esteiras, sem peneira, com capacidade de 140 m³/h - 170 kW | C112: 2970314.354 | D112: 169.7322 | E112: 52.3624 | F112: 0 | G112: 169.7322 | H112: 156.6536 | I112: 38.5457 | J112: 587.0261 | K112: 260.6403
A113: E9152 | B113: Ferramenta de fixação à pólvora de ação direta | C113: 1049.6831 | D113: 0.0892 | E113: 0.0194 | F113: 0 | G113: 0.084 | H113: 0 | I113: 0 | J113: 0.1926 | K113: 0.1086
A114: E9153 | B114: Ferramenta de fixação à pólvora e sistema à pistão | C114: 989.9836 | D114: 0.0841 | E114: 0.0183 | F114: 0 | G114: 0.0792 | H114: 0 | I114: 0 | J114: 0.1816 | K114: 0.1024
A115: E9154 | B115: Equipamento para selagem com material asfáltico rebocável com capacidade de 370 l - 35 kW | C115: 463156.7494 | D115: 29.7744 | E115: 8.1648 | F115: 0 | G115: 9.9248 | H115: 26.8769 | I115: 26.0238 | J115: 100.7647 | K115: 63.963
A116: E9155 | B116: Caldeira de asfalto rebocável com capacidade de 600 l - 5,20 kW | C116: 136247.6255 | D116: 8.7588 | E116: 2.4019 | F116: 0 | G116: 2.9196 | H116: 3.7269 | I116: 0 | J116: 17.8072 | K116: 11.1607
A117: E9156 | B117: Soprador de ar costal - 2,6 kW | C117: 2525.093 | D117: 0.404 | E117: 0.0935 | F117: 0 | G117: 0.3535 | H117: 4.5899 | I117: 0 | J117: 5.4409 | K117: 0.4975
A118: E9157 | B118: Locomotiva diesel-elétrica CC - bitola métrica - 2.237 kW | C118: 8250000 | D118: 132 | E118: 132.3465 | F118: 0 | G118: 165 | H118: 1374.2517 | I118: 33.3107 | J118: 1836.9089 | K118: 297.6572
A119: E9158 | B119: Locomotiva diesel-elétrica CC - bitola larga - 2.237 kW | C119: 8250000 | D119: 132 | E119: 132.3465 | F119: 0 | G119: 165 | H119: 1374.2517 | I119: 33.3107 | J119: 1836.9089 | K119: 297.6572
A120: E9159 | B120: Vagão plataforma PNE com capacidade de 82 t - bitola métrica | C120: 736000 | D120: 11.6533 | E120: 11.7312 | F120: 0 | G120: 6.1333 | H120: 0 | I120: 0 | J120: 29.5178 | K120: 23.3845
A121: E9160 | B121: Vagão plataforma PNT com capacidade de 98 t - bitola larga | C121: 842000 | D121: 13.3317 | E121: 13.4208 | F121: 0 | G121: 7.0167 | H121: 0 | I121: 0 | J121: 33.7692 | K121: 26.7525
A122: E9161 | B122: Vagão fechado com porta para carga e descarga de paletes FLD com capacidade de 64 t - bitola métrica | C122: 730000 | D122: 11.5583 | E122: 11.6356 | F122: 0 | G122: 6.0833 | H122: 0 | I122: 0 | J122: 29.2772 | K122: 23.1939
A123: E9162 | B123: Vagão fechado com porta para carga e descarga de paletes FLT com capacidade de 99 t - bitola larga | C123: 800000 | D123: 12.6667 | E123: 12.7513 | F123: 0 | G123: 6.6667 | H123: 0 | I123: 0 | J123: 32.0847 | K123: 25.418
A124: E9163 | B124: Vagão hopper aberto com descarga automática HNE com capacidade de 45 m³ - bitola métrica | C124: 880000 | D124: 13.9333 | E124: 14.0265 | F124: 0 | G124: 7.3333 | H124: 0 | I124: 0 | J124: 35.2931 | K124: 27.9598
A125: E9164 | B125: Vagão hopper aberto com descarga automática HNT com capacidade de 63 m³ - bitola larga | C125: 915000 | D125: 14.4875 | E125: 14.5843 | F125: 0 | G125: 7.625 | H125: 0 | I125: 0 | J125: 36.6968 | K125: 29.0718
A126: E9167 | B126: Equipamento para carga e descarga de TLS de até 250 m - 90 kW | C126: 2825081.487 | D126: 45.2013 | E126: 45.32 | F126: 0 | G126: 56.5016 | H126: 55.2895 | I126: 38.5457 | J126: 240.8581 | K126: 129.067
A127: E9168 | B127: Carregadeira de pneus com implemento de garfo - 195 kW | C127: 1733156.386 | D127: 121.3209 | E127: 32.0807 | F127: 0 | G127: 121.3209 | H127: 79.8626 | I127: 32.2704 | J127: 386.8555 | K127: 185.672
A128: E9200 | B128: Carregadeira de pneus para rocha com capacidade de 2,50 m³ - 105 kW com periculosidade | C128: 1000473.683 | D128: 100.0474 | E128: 19.8415 | F128: 0 | G128: 100.0474 | H128: 102.132 | I128: 39.9685 | J128: 362.0368 | K128: 159.8574
A129: E9203 | B129: Escavadeira hidráulica com martelo hidráulico de 1.700 kg - 103 kW com periculosidade | C129: 1919725.532 | D129: 219.3972 | E129: 38.0723 | F129: 0 | G129: 274.2465 | H129: 68.5488 | I129: 39.9685 | J129: 640.2333 | K129: 297.438
A130: E9204 | B130: Perfuratriz sobre esteiras - 145 kW com periculosidade | C130: 1698616.367 | D130: 113.2411 | E130: 30.568 | F130: 0 | G130: 113.2411 | H130: 111.347 | I130: 39.9685 | J130: 408.3657 | K130: 183.7776
A131: E9205 | B131: Equipamento de corte a plasma CNC - 12.000 x 5.500 mm - 19,5 kW | C131: 1070604.611 | D131: 85.6484 | E131: 19.8169 | F131: 0 | G131: 64.2363 | H131: 0 | I131: 0 | J131: 169.7016 | K131: 105.4653
A132: E9206 | B132: Equipamento de solda MIG automática com acessórios - 14,6 kVA | C132: 83499.938 | D132: 6.68 | E132: 1.5456 | F132: 0 | G132: 6.68 | H132: 0 | I132: 0 | J132: 14.9056 | K132: 8.2256
A133: E9207 | B133: Máquina de solda elétrica retificadora 425 A - 18,70 kW | C133: 5926.7546 | D133: 0.4741 | E133: 0.1097 | F133: 0 | G133: 0.4741 | H133: 0 | I133: 0 | J133: 1.0579 | K133: 0.5838
A134: E9209 | B134: Martelete perfurador/rompedor a ar comprimido de 25 kg para rocha, com insalubridade, com capacidade de 2.040 gpm | C134: 27681.1881 | D134: 2.2145 | E134: 0.5124 | F134: 0 | G134: 2.2145 | H134: 0 | I134: 32.7038 | J134: 37.6452 | K134: 35.4307
A135: E9213 | B135: Jumbo eletro-hidráulico com 3 braços - 155 kW/237 kW com periculosidade | C135: 11632424.6 | D135: 775.495 | E135: 209.3352 | F135: 0 | G135: 969.3687 | H135: 166.6365 | I135: 48.1769 | J135: 2169.0123 | K135: 1033.0071
A136: E9231 | B136: Maçarico lança-chamas a gás liquefeito de petróleo (GLP) | C136: 86.171 | D136: 0.0069 | E136: 0.0016 | F136: 0 | G136: 0.0069 | H136: 0 | I136: 0 | J136: 0.0154 | K136: 0.0085
A137: E9242 | B137: Estação transmissora de superfície para televisionamento | C137: 12122.3343 | D137: 0.7793 | E137: 0.2137 | F137: 0 | G137: 0.4329 | H137: 0 | I137: 0 | J137: 1.4259 | K137: 0.993
A138: E9243 | B138: Câmara hiperbárica com filtro, serpentina e reservatório de ar para mergulho raso - D = 1,80 m e H = 2,22 m. | C138: 427665.5348 | D138: 7.4841 | E138: 6.9266 | F138: 0 | G138: 10.6916 | H138: 0 | I138: 53.0176 | J138: 78.1199 | K138: 67.4283
A139: E9244 | B139: Estação transmissora de superfície para comunicação sem fio | C139: 38565.8635 | D139: 2.4792 | E139: 0.6799 | F139: 0 | G139: 1.3774 | H139: 0 | I139: 0 | J139: 4.5365 | K139: 3.1591
A140: E9245 | B140: Estação transmissora de superfície para comunicação com fio | C140: 6463.8225 | D140: 0.4155 | E140: 0.1139 | F140: 0 | G140: 0.2309 | H140: 0 | I140: 0 | J140: 0.7603 | K140: 0.5294
A141: E9246 | B141: Painel de controle de ar com manômetros e pneufatômetros | C141: 12404.1952 | D141: 0.7974 | E141: 0.2187 | F141: 0 | G141: 0.443 | H141: 0 | I141: 0 | J141: 1.4591 | K141: 1.0161
A142: E9247 | B142: Sistema de Sino aberto (sinete) para mergulho até 50 m - 33,50 kW | C142: 550152.4773 | D142: 14.6707 | E142: 9.0518 | F142: 0 | G142: 14.6707 | H142: 0 | I142: 53.0176 | J142: 91.4108 | K142: 76.7401
A143: E9248 | B143: Sistema de ar comprimido para mergulho até 30 m com pressão de trabalho de 1,4 MPa - 7,46 kW | C143: 51798.7384 | D143: 3.4532 | E143: 0.9322 | F143: 0 | G143: 3.4532 | H143: 6.4924 | I143: 0 | J143: 14.331 | K143: 4.3854
A144: E9249 | B144: Sistema de ar comprimido para mergulho até 50 m com pressão de trabalho de 1,7 MPa - 16,18 kW | C144: 78694.0046 | D144: 5.2463 | E144: 1.4162 | F144: 0 | G144: 5.2463 | H144: 14.0814 | I144: 0 | J144: 25.9902 | K144: 6.6625
A145: E9251 | B145: Fonte de plasma para corte manual - 65A - 15 kW | C145: 32636.2828 | D145: 2.6109 | E145: 0.6041 | F145: 0 | G145: 2.6109 | H145: 0 | I145: 0 | J145: 5.8259 | K145: 3.215
A146: E9252 | B146: Serra de esquadria com braço telescópico - D = 250 mm (10") - 1,80 kW | C146: 5295.7152 | D146: 0.4766 | E146: 0.098 | F146: 0 | G146: 0.2648 | H146: 0 | I146: 0 | J146: 0.8394 | K146: 0.5746
A147: E9253 | B147: Rebordeadeira diâmetro máximo 3,00 m - 4,85 kW | C147: 68579.0908 | D147: 2.7432 | E147: 1.1636 | F147: 0 | G147: 2.4003 | H147: 0 | I147: 0 | J147: 6.3071 | K147: 3.9068
A148: E9254 | B148: Dobradeira viradeira manual comprimento máximo de dobra de até 2.000 mm | C148: 18844.3864 | D148: 0.7538 | E148: 0.3197 | F148: 0 | G148: 0.6596 | H148: 0 | I148: 0 | J148: 1.7331 | K148: 1.0735
A149: E9255 | B149: Fonte de plasma para corte manual - 45A - 10 kW | C149: 21803.8828 | D149: 1.7443 | E149: 0.4036 | F149: 0 | G149: 1.7443 | H149: 0 | I149: 0 | J149: 3.8922 | K149: 2.1479
A150: E9256 | B150: Equipamento para pintura com cal rebocável com dois bicos aplicadores e capacidade de 2.200 l | C150: 70852.0746 | D150: 4.0487 | E150: 1.249 | F150: 0 | G150: 4.0487 | H150: 0 | I150: 26.0238 | J150: 35.3702 | K150: 31.3215
A151: E9259 | B151: Ventilador centrífugo média pressão com capacidade de 38 m³/min - 2,21 kW | C151: 17180 | D151: 1.5462 | E151: 0.318 | F151: 0 | G151: 1.0308 | H151: 0 | I151: 0 | J151: 2.895 | K151: 1.8642
A152: E9260 | B152: Detector de gases com bomba elétrica para espaço confinado | C152: 4049 | D152: 0.3239 | E152: 0.0749 | F152: 0 | G152: 0.2025 | H152: 0 | I152: 0 | J152: 0.6013 | K152: 0.3988
A153: E9261 | B153: Equipamento de pintura com pistola airless - 0,90 kW | C153: 2439.45 | D153: 0.2196 | E153: 0.0452 | F153: 0 | G153: 0.122 | H153: 0 | I153: 0 | J153: 0.3868 | K153: 0.2648
A154: E9262 | B154: Escova rotativa com cerdas de aço para tratamento de superfície - 0,91 kW | C154: 19452 | D154: 1.5562 | E154: 0.3601 | F154: 0 | G154: 0.9726 | H154: 0 | I154: 26.0238 | J154: 28.9127 | K154: 27.9401
A155: E9263 | B155: Tripé com guincho para espaço confinado | C155: 9781.53 | D155: 0.7825 | E155: 0.1811 | F155: 0 | G155: 0.5869 | H155: 0 | I155: 0 | J155: 1.5505 | K155: 0.9636
A156: E9264 | B156: Respirador purificador de ar motorizado | C156: 8510.04 | D156: 0.6808 | E156: 0.1575 | F156: 0 | G156: 0.4255 | H156: 0 | I156: 0 | J156: 1.2638 | K156: 0.8383
A157: E9265 | B157: Respirador de adução de ar tipo linha de ar comprimido para jateamento | C157: 17371.8396 | D157: 1.3897 | E157: 0.3216 | F157: 0 | G157: 0.8686 | H157: 0 | I157: 0 | J157: 2.5799 | K157: 1.7113
A158: E9267 | B158: Exaustor centrífugo alta pressão com capacidade de 35 m³/min - 1,47 kW | C158: 5444.14 | D158: 0.49 | E158: 0.1008 | F158: 0 | G158: 0.3266 | H158: 0 | I158: 0 | J158: 0.9174 | K158: 0.5908
A159: E9501 | B159: Ventilador axial para ventilação forçada com velocidade de saída de 32,8 m/s - D = 1.000 mm - 30 kW | C159: 441354.6356 | D159: 39.7219 | E159: 8.1695 | F159: 0 | G159: 26.4813 | H159: 0 | I159: 0 | J159: 74.3727 | K159: 47.8914
A160: E9502 | B160: Bate-estaca de gravidade para 6 t - 119 kW | C160: 938230.532 | D160: 53.6132 | E160: 16.5397 | F160: 0 | G160: 40.2099 | H160: 79.1971 | I160: 32.2704 | J160: 221.8303 | K160: 102.4233
A161: E9503 | B161: Guilhotina hidráulica 16 x 6.100 mm - 30 kW | C161: 1295891.077 | D161: 51.8356 | E161: 21.988 | F161: 0 | G161: 45.3562 | H161: 0 | I161: 26.0238 | J161: 145.2036 | K161: 99.8474
A162: E9505 | B162: Prensa dobradeira capacidade 320 t - comprimento até 3.100 mm - 30 kW | C162: 840657.7848 | D162: 33.6263 | E162: 14.2639 | F162: 0 | G162: 29.423 | H162: 0 | I162: 26.0238 | J162: 103.337 | K162: 73.914
A163: E9507 | B163: Plotadora de recorte com computador e programa computacional | C163: 87562.4395 | D163: 13.1344 | E163: 1.8009 | F163: 0 | G163: 8.7562 | H163: 0 | I163: 0 | J163: 23.6915 | K163: 14.9353
A164: E9510 | B164: Ventilador centrífugo baixa pressão com capacidade de 58 m³/min - 3,68 kW | C164: 13172.8295 | D164: 1.1856 | E164: 0.2438 | F164: 0 | G164: 0.7904 | H164: 0 | I164: 0 | J164: 2.2198 | K164: 1.4294
A165: E9511 | B165: Carregadeira de pneus com capacidade de 3,40 m³ - 195 kW | C165: 2045424.673 | D165: 143.1797 | E165: 37.8608 | F165: 0 | G165: 143.1797 | H165: 79.8626 | I165: 32.2704 | J165: 436.3532 | K165: 213.3109
A166: E9512 | B166: Veículo leve - 53 kW | C166: 71228.1739 | D166: 4.2737 | E166: 1.3184 | F166: 0.5342 | G166: 4.2737 | H166: 24.0589 | I166: 29.0596 | J166: 63.5185 | K166: 35.1859
A167: E9513 | B167: Compressor de ar portátil de 160,46 l/s (340 PCM) - 81 kW | C167: 320957.8697 | D167: 21.3972 | E167: 5.7759 | F167: 0 | G167: 21.3972 | H167: 70.4941 | I167: 0 | J167: 119.0644 | K167: 27.1731
A168: E9514 | B168: Distribuidor de agregados sobre pneus autopropelido - 130 kW | C168: 947889.0865 | D168: 54.1651 | E168: 16.7099 | F168: 0 | G168: 47.3945 | H168: 126.4492 | I168: 32.2704 | J168: 276.9891 | K168: 103.1454
A169: E9515 | B169: Escavadeira hidráulica sobre esteiras com caçamba com capacidade de 1,56 m³ - 118 kW | C169: 1081666.793 | D169: 75.7167 | E169: 20.0217 | F169: 0 | G169: 75.7167 | H169: 78.5316 | I169: 32.2704 | J169: 282.2571 | K169: 128.0088
A170: E9516 | B170: Perfuratriz hidráulica sobre esteiras - 283 kW | C170: 4999083.271 | D170: 333.2722 | E170: 89.9627 | F170: 0 | G170: 333.2722 | H170: 144.879 | I170: 32.2704 | J170: 933.6565 | K170: 455.5053
A171: E9518 | B171: Grade de 24 discos rebocável de D = 60 cm (24") | C171: 41561.581 | D171: 2.6718 | E171: 0.7327 | F171: 0 | G171: 1.4843 | H171: 0 | I171: 0 | J171: 4.8888 | K171: 3.4045
A172: E9519 | B172: Betoneira com motor a gasolina com capacidade de 600 l - 10 kW | C172: 36854.2101 | D172: 2.9483 | E172: 0.6822 | F172: 0 | G172: 2.2113 | H172: 17.6533 | I172: 26.0238 | J172: 49.5189 | K172: 29.6543
A173: E9521 | B173: Grupo gerador - 3,2 kVA | C173: 3553.7502 | D173: 0.1777 | E173: 0.0626 | F173: 0 | G173: 0.1269 | H173: 4.1964 | I173: 0 | J173: 4.5636 | K173: 0.2403
A174: E9522 | B174: Caldeira de asfalto rebocável com capacidade de 1.500 l - 6,5 kW | C174: 184863.6402 | D174: 11.8841 | E174: 3.2589 | F174: 0 | G174: 3.9614 | H174: 4.6587 | I174: 0 | J174: 23.7631 | K174: 15.143
A175: E9523 | B175: Motoscraper - 304 kW | C175: 5534823.334 | D175: 260.4623 | E175: 95.4187 | F175: 0 | G175: 293.0201 | H175: 249.0076 | I175: 32.2704 | J175: 930.1791 | K175: 388.1514
A176: E9524 | B176: Motoniveladora - 93 kW | C176: 1361798.028 | D176: 68.0899 | E176: 24.0066 | F176: 0 | G176: 87.5442 | H176: 71.4156 | I176: 32.2704 | J176: 283.3267 | K176: 124.3669
A177: E9525 | B177: Ponte rolante com capacidade de 15 t e vão de até 15 m - 20 kW | C177: 3369751.602 | D177: 134.7901 | E177: 57.1763 | F177: 0 | G177: 84.2438 | H177: 0 | I177: 52.0476 | J177: 328.2578 | K177: 244.014
A178: E9526 | B178: Retroescavadeira de pneus - capacidade da caçamba da pá-carregadeira de 0,76 m³ e da retroescavadeira de 0,29 m³ - 58 kW | C178: 468024.1207 | D178: 32.7617 | E178: 8.6631 | F178: 0 | G178: 32.7617 | H178: 38.6003 | I178: 32.2704 | J178: 145.0572 | K178: 73.6952
A179: E9527 | B179: Martelete perfurador/rompedor a ar comprimido de 25 kg para rocha com capacidade de 2.040 gpm | C179: 27681.1881 | D179: 2.2145 | E179: 0.5124 | F179: 0 | G179: 2.2145 | H179: 0 | I179: 26.0238 | J179: 30.9652 | K179: 28.7507
A180: E9528 | B180: Empilhadeira a diesel com capacidade de 4 t - 60 kW | C180: 487441.9792 | D180: 38.9954 | E180: 9.0226 | F180: 0 | G180: 34.1209 | H180: 46.0746 | I180: 26.0238 | J180: 154.2373 | K180: 74.0418
A181: E9529 | B181: Jateador para estruturas metálicas com transportador a roletes - 22 kW | C181: 4118631.196 | D181: 274.5754 | E181: 74.1182 | F181: 0 | G181: 205.9316 | H181: 0 | I181: 26.0238 | J181: 580.649 | K181: 374.7174
A182: E9530 | B182: Rolo compactador liso vibratório autopropelido por pneus de 11 t - 97 kW | C182: 878766.5116 | D182: 58.5844 | E182: 15.8141 | F182: 0 | G182: 58.5844 | H182: 79.4531 | I182: 32.2704 | J182: 244.7064 | K182: 106.6689
A183: E9532 | B183: Equipamento de solda MIG com acessórios - 14,6 kVA | C183: 80263.932 | D183: 6.4211 | E183: 1.4857 | F183: 0 | G183: 6.4211 | H183: 0 | I183: 0 | J183: 14.3279 | K183: 7.9068
A184: E9535 | B184: Serra circular com bancada - D = 30 cm - 4 kW | C184: 7176.5566 | D184: 0.6459 | E184: 0.1328 | F184: 0 | G184: 0.3588 | H184: 0 | I184: 26.0238 | J184: 27.1613 | K184: 26.8025
A185: E9536 | B185: Embarcação de transporte de pessoal e apoio logístico - 30 kW | C185: 121178.9256 | D185: 1.8934 | E185: 0.7139 | F185: 0 | G185: 2.1038 | H185: 60.5256 | I185: 39.2829 | J185: 104.5196 | K185: 41.8902
A186: E9538 | B186: Conjunto vibratório para meio tubo de concreto com encaixe PB e 3 jogos de fôrmas - D = 0,30 m - 2,20 kW | C186: 16530.854 | D186: 2.2041 | E186: 0.51 | F186: 0 | G186: 1.6531 | H186: 0 | I186: 0 | J186: 4.3672 | K186: 2.7141
A187: E9539 | B187: Equipamento de batimetria monofeixe | C187: 98733.096 | D187: 6.3471 | E187: 1.7405 | F187: 0 | G187: 3.5262 | H187: 0 | I187: 38.3925 | J187: 50.0063 | K187: 46.4801
A188: E9540 | B188: Trator sobre esteiras com lâmina - 127 kW | C188: 1725612.472 | D188: 67.1072 | E188: 29.5751 | F188: 0 | G188: 95.8674 | H188: 91.0229 | I188: 32.2704 | J188: 315.843 | K188: 128.9527
A189: E9541 | B189: Trator sobre esteiras com lâmina - 259 kW | C189: 4800022.245 | D189: 186.6675 | E189: 82.267 | F189: 0 | G189: 266.6679 | H189: 185.6294 | I189: 32.2704 | J189: 753.5022 | K189: 301.2049
A190: E9543 | B190: Compressor de ar respirável com capacidade de até 35 MPa e 3,58 l/s - 5,52 kW | C190: 50623.6634 | D190: 3.3749 | E190: 0.911 | F190: 0 | G190: 3.3749 | H190: 0 | I190: 0 | J190: 7.6608 | K190: 4.2859
A191: E9544 | B191: Vassoura mecânica rebocável com largura de 2,44 m | C191: 74015.8935 | D191: 6.6614 | E191: 1.37 | F191: 0 | G191: 4.441 | H191: 0 | I191: 0 | J191: 12.4724 | K191: 8.0314
A192: E9545 | B192: Vibroacabadora de asfalto sobre esteiras - 82 kW | C192: 3670115.969 | D192: 183.5058 | E192: 64.6989 | F192: 0 | G192: 235.936 | H192: 79.7603 | I192: 38.5457 | J192: 602.4467 | K192: 286.7504
A193: E9547 | B193: Máquina de solda elétrica transformadora 250 A - 9,20 kW | C193: 1379.2966 | D193: 0.1103 | E193: 0.0255 | F193: 0 | G193: 0.1103 | H193: 0 | I193: 0 | J193: 0.2461 | K193: 0.1358
A194: E9548 | B194: Bomba centrífuga com capacidade de 7,1 a 22 m³/h - 1,50 kW | C194: 2494.0516 | D194: 0.1995 | E194: 0.0462 | F194: 0 | G194: 0.1746 | H194: 0 | I194: 0 | J194: 0.4203 | K194: 0.2457
A195: E9551 | B195: Obturador mecânico simples com extensão de 12 m | C195: 4889.2881 | D195: 0.44 | E195: 0.0905 | F195: 0 | G195: 0.2445 | H195: 0 | I195: 0 | J195: 0.775 | K195: 0.5305
A196: E9552 | B196: Nível ótico com capacidade de aumento de 32x | C196: 15448.6909 | D196: 1.2359 | E196: 0.286 | F196: 0 | G196: 0.7724 | H196: 0 | I196: 0 | J196: 2.2943 | K196: 1.5219
A197: E9553 | B197: Estação total eletrônica com alcance máximo de 3.000 m | C197: 32006.4424 | D197: 2.8806 | E197: 0.5924 | F197: 0 | G197: 1.6003 | H197: 0 | I197: 0 | J197: 5.0733 | K197: 3.473
A198: E9556 | B198: Compactador manual de placa vibratória - 3,00 kW | C198: 10833.2547 | D198: 0.7222 | E198: 0.195 | F198: 0 | G198: 0.7222 | H198: 5.296 | I198: 0 | J198: 6.9354 | K198: 0.9172
A199: E9558 | B199: Tanque de estocagem de asfalto com capacidade de 30.000 l | C199: 686410.4019 | D199: 28.6004 | E199: 9.9261 | F199: 0 | G199: 17.8753 | H199: 0 | I199: 0 | J199: 56.4018 | K199: 38.5265
A200: E9559 | B200: Aquecedor de fluido térmico - 12 kW | C200: 687409.1038 | D200: 30.9334 | E200: 9.543 | F200: 0 | G200: 20.6223 | H200: 9.2149 | I200: 0 | J200: 70.3136 | K200: 40.4764
... 341 more rows

Sheet SINTÉTICO SICRO (hidden)
A1: CGCIT | B1: SISTEMA DE CUSTOS REFERENCIAIS DE OBRAS - SICRO | D1: DNIT
B2: Pernambuco - Abril/2024
A3: Código | B3: Descrição do Serviço | C3: Unidade | D3: Custo Unitário (R$)
A4: 307731 | B4: Aparelho de apoio de neoprene fretado para estruturas moldadas no local - fornecimento e instalação | C4: dm³ | D4: 126.81
A5: 307732 | B5: Aparelho de apoio de neoprene fretado para estruturas pré-moldadas - fornecimento e instalação | C5: dm³ | D5: 102.77
A6: 308308 | B6: Aparelho de apoio metálico elastomérico fixo com capacidade de 1.500 kN - fornecimento e instalação | C6: un | D6: 7338.57
A7: 308313 | B7: Aparelho de apoio metálico elastomérico fixo com capacidade de 10.000 kN - fornecimento e instalação | C7: un | D7: 46812.34
A8: 308309 | B8: Aparelho de apoio metálico elastomérico fixo com capacidade de 2.500 kN - fornecimento e instalação | C8: un | D8: 11918.74
A9: 308310 | B9: Aparelho de apoio metálico elastomérico fixo com capacidade de 4.000 kN - fornecimento e instalação | C9: un | D9: 17929.12
A10: 308311 | B10: Aparelho de apoio metálico elastomérico fixo com capacidade de 5.500 kN - fornecimento e instalação | C10: un | D10: 24628.64
A11: 308312 | B11: Aparelho de apoio metálico elastomérico fixo com capacidade de 7.500 kN - fornecimento e instalação | C11: un | D11: 34069.54
A12: 308307 | B12: Aparelho de apoio metálico elastomérico fixo com capacidade de 700 kN - fornecimento e instalação | C12: un | D12: 4881.16
A13: 308322 | B13: Aparelho de apoio metálico elastomérico multidirecional com capacidade de 1.500 kN - fornecimento e instalação | C13: un | D13: 5808.77
A14: 308327 | B14: Aparelho de apoio metálico elastomérico multidirecional com capacidade de 10.000 kN - fornecimento e instalação | C14: un | D14: 36044.03
A15: 308323 | B15: Aparelho de apoio metálico elastomérico multidirecional com capacidade de 2.500 kN - fornecimento e instalação | C15: un | D15: 8500.69
A16: 308324 | B16: Aparelho de apoio metálico elastomérico multidirecional com capacidade de 4.000 kN - fornecimento e instalação | C16: un | D16: 13327.07
A17: 308325 | B17: Aparelho de apoio metálico elastomérico multidirecional com capacidade de 5.500 kN - fornecimento e instalação | C17: un | D17: 18865.62
A18: 308326 | B18: Aparelho de apoio metálico elastomérico multidirecional com capacidade de 7.500 kN - fornecimento e instalação | C18: un | D18: 26623.89
A19: 308321 | B19: Aparelho de apoio metálico elastomérico multidirecional com capacidade de 700 kN - fornecimento e instalação | C19: un | D19: 3989.39
A20: 308315 | B20: Aparelho de apoio metálico elastomérico unidirecional com capacidade de 1.500 kN - fornecimento e instalação | C20: un | D20: 7154.26
A21: 308320 | B21: Aparelho de apoio metálico elastomérico unidirecional com capacidade de 10.000 kN - fornecimento e instalação | C21: un | D21: 45686.44
A22: 308316 | B22: Aparelho de apoio metálico elastomérico unidirecional com capacidade de 2.500 kN - fornecimento e instalação | C22: un | D22: 10212.21
A23: 308317 | B23: Aparelho de apoio metálico elastomérico unidirecional com capacidade de 4.000 kN - fornecimento e instalação | C23: un | D23: 17710.83
A24: 308318 | B24: Aparelho de apoio metálico elastomérico unidirecional com capacidade de 5.500 kN - fornecimento e instalação | C24: un | D24: 24047.38
A25: 308319 | B25: Aparelho de apoio metálico elastomérico unidirecional com capacidade de 7.500 kN - fornecimento e instalação | C25: un | D25: 30145.15
A26: 308314 | B26: Aparelho de apoio metálico elastomérico unidirecional com capacidade de 700 kN - fornecimento e instalação | C26: un | D26: 4809.34
A27: 308250 | B27: Aparelho de apoio metálico esférico fixo com capacidade de 1.000 kN - fornecimento e instalação | C27: un | D27: 6124.67
A28: 308251 | B28: Aparelho de apoio metálico esférico fixo com capacidade de 1.500 kN - fornecimento e instalação | C28: un | D28: 9390.89
A29: 308268 | B29: Aparelho de apoio metálico esférico fixo com capacidade de 10.000 kN - fornecimento e instalação | C29: un | D29: 79220.14
A30: 308252 | B30: Aparelho de apoio metálico esférico fixo com capacidade de 2.000 kN - fornecimento e instalação | C30: un | D30: 11542.22
A31: 308253 | B31: Aparelho de apoio metálico esférico fixo com capacidade de 2.500 kN - fornecimento e instalação | C31: un | D31: 14251.67
A32: 308254 | B32: Aparelho de apoio metálico esférico fixo com capacidade de 3.000 kN - fornecimento e instalação | C32: un | D32: 16038.87
A33: 308255 | B33: Aparelho de apoio metálico esférico fixo com capacidade de 3.500 kN - fornecimento e instalação | C33: un | D33: 19669.4
A34: 308256 | B34: Aparelho de apoio metálico esférico fixo com capacidade de 4.000 kN - fornecimento e instalação | C34: un | D34: 25118.06
A35: 308257 | B35: Aparelho de apoio metálico esférico fixo com capacidade de 4.500 kN - fornecimento e instalação | C35: un | D35: 32523.83
A36: 308258 | B36: Aparelho de apoio metálico esférico fixo com capacidade de 5.000 kN - fornecimento e instalação | C36: un | D36: 36244.37
A37: 308259 | B37: Aparelho de apoio metálico esférico fixo com capacidade de 5.500 kN - fornecimento e instalação | C37: un | D37: 41072.38
A38: 308260 | B38: Aparelho de apoio metálico esférico fixo com capacidade de 6.000 kN - fornecimento e instalação | C38: un | D38: 45316.94
A39: 308261 | B39: Aparelho de apoio metálico esférico fixo com capacidade de 6.500 kN - fornecimento e instalação | C39: un | D39: 50100.56
A40: 308262 | B40: Aparelho de apoio metálico esférico fixo com capacidade de 7.000 kN - fornecimento e instalação | C40: un | D40: 55086.26
A41: 308263 | B41: Aparelho de apoio metálico esférico fixo com capacidade de 7.500 kN - fornecimento e instalação | C41: un | D41: 56034.96
A42: 308264 | B42: Aparelho de apoio metálico esférico fixo com capacidade de 8.000 kN - fornecimento e instalação | C42: un | D42: 61999.36
A43: 308265 | B43: Aparelho de apoio metálico esférico fixo com capacidade de 8.500 kN - fornecimento e instalação | C43: un | D43: 63582.36
A44: 308266 | B44: Aparelho de apoio metálico esférico fixo com capacidade de 9.000 kN - fornecimento e instalação | C44: un | D44: 70919.3
A45: 308267 | B45: Aparelho de apoio metálico esférico fixo com capacidade de 9.500 kN - fornecimento e instalação | C45: un | D45: 75024.99
A46: 308288 | B46: Aparelho de apoio metálico esférico multidirecional com capacidade de 1.000 kN - fornecimento e instalação | C46: un | D46: 8809.61
A47: 308289 | B47: Aparelho de apoio metálico esférico multidirecional com capacidade de 1.500 kN - fornecimento e instalação | C47: un | D47: 12527.74
A48: 308306 | B48: Aparelho de apoio metálico esférico multidirecional com capacidade de 10.000 kN - fornecimento e instalação | C48: un | D48: 84050.11
A49: 308290 | B49: Aparelho de apoio metálico esférico multidirecional com capacidade de 2.000 kN - fornecimento e instalação | C49: un | D49: 16248.83
A50: 308291 | B50: Aparelho de apoio metálico esférico multidirecional com capacidade de 2.500 kN - fornecimento e instalação | C50: un | D50: 19735.06
A51: 308292 | B51: Aparelho de apoio metálico esférico multidirecional com capacidade de 3.000 kN - fornecimento e instalação | C51: un | D51: 22217.22
A52: 308293 | B52: Aparelho de apoio metálico esférico multidirecional com capacidade de 3.500 kN - fornecimento e instalação | C52: un | D52: 25562.4
A53: 308294 | B53: Aparelho de apoio metálico esférico multidirecional com capacidade de 4.000 kN - fornecimento e instalação | C53: un | D53: 27853.2
A54: 308295 | B54: Aparelho de apoio metálico esférico multidirecional com capacidade de 4.500 kN - fornecimento e instalação | C54: un | D54: 34214.12
A55: 308296 | B55: Aparelho de apoio metálico esférico multidirecional com capacidade de 5.000 kN - fornecimento e instalação | C55: un | D55: 37414.76
A56: 308297 | B56: Aparelho de apoio metálico esférico multidirecional com capacidade de 5.500 kN - fornecimento e instalação | C56: un | D56: 41260.93
A57: 308298 | B57: Aparelho de apoio metálico esférico multidirecional com capacidade de 6.000 kN - fornecimento e instalação | C57: un | D57: 46881.35
A58: 308299 | B58: Aparelho de apoio metálico esférico multidirecional com capacidade de 6.500 kN - fornecimento e instalação | C58: un | D58: 50641.15
A59: 308300 | B59: Aparelho de apoio metálico esférico multidirecional com capacidade de 7.000 kN - fornecimento e instalação | C59: un | D59: 54503.12
A60: 308301 | B60: Aparelho de apoio metálico esférico multidirecional com capacidade de 7.500 kN - fornecimento e instalação | C60: un | D60: 58793.47
A61: 308302 | B61: Aparelho de apoio metálico esférico multidirecional com capacidade de 8.000 kN - fornecimento e instalação | C61: un | D61: 65231.41
A62: 308303 | B62: Aparelho de apoio metálico esférico multidirecional com capacidade de 8.500 kN - fornecimento e instalação | C62: un | D62: 71485.16
A63: 308304 | B63: Aparelho de apoio metálico esférico multidirecional com capacidade de 9.000 kN - fornecimento e instalação | C63: un | D63: 75397.92
A64: 308305 | B64: Aparelho de apoio metálico esférico multidirecional com capacidade de 9.500 kN - fornecimento e instalação | C64: un | D64: 80045.41
A65: 308269 | B65: Aparelho de apoio metálico esférico unidirecional com capacidade de 1.000 kN - fornecimento e instalação | C65: un | D65: 9361.93
A66: 308270 | B66: Aparelho de apoio metálico esférico unidirecional com capacidade de 1.500 kN - fornecimento e instalação | C66: un | D66: 12891.97
A67: 308287 | B67: Aparelho de apoio metálico esférico unidirecional com capacidade de 10.000 kN - fornecimento e instalação | C67: un | D67: 85175.51
A68: 308271 | B68: Aparelho de apoio metálico esférico unidirecional com capacidade de 2.000 kN - fornecimento e instalação | C68: un | D68: 16089.37
A69: 308272 | B69: Aparelho de apoio metálico esférico unidirecional com capacidade de 2.500 kN - fornecimento e instalação | C69: un | D69: 18680.21
A70: 308273 | B70: Aparelho de apoio metálico esférico unidirecional com capacidade de 3.000 kN - fornecimento e instalação | C70: un | D70: 22323.46
A71: 308274 | B71: Aparelho de apoio metálico esférico unidirecional com capacidade de 3.500 kN - fornecimento e instalação | C71: un | D71: 25794.91
A72: 308275 | B72: Aparelho de apoio metálico esférico unidirecional com capacidade de 4.000 kN - fornecimento e instalação | C72: un | D72: 30419.89
A73: 308276 | B73: Aparelho de apoio metálico esférico unidirecional com capacidade de 4.500 kN - fornecimento e instalação | C73: un | D73: 40468.74
A74: 308277 | B74: Aparelho de apoio metálico esférico unidirecional com capacidade de 5.000 kN - fornecimento e instalação | C74: un | D74: 44782.39
A75: 308278 | B75: Aparelho de apoio metálico esférico unidirecional com capacidade de 5.500 kN - fornecimento e instalação | C75: un | D75: 48559.82
A76: 308279 | B76: Aparelho de apoio metálico esférico unidirecional com capacidade de 6.000 kN - fornecimento e instalação | C76: un | D76: 50488.44
A77: 308280 | B77: Aparelho de apoio metálico esférico unidirecional com capacidade de 6.500 kN - fornecimento e instalação | C77: un | D77: 54588.66
A78: 308281 | B78: Aparelho de apoio metálico esférico unidirecional com capacidade de 7.000 kN - fornecimento e instalação | C78: un | D78: 58639.81
A79: 308282 | B79: Aparelho de apoio metálico esférico unidirecional com capacidade de 7.500 kN - fornecimento e instalação | C79: un | D79: 62960.08
A80: 308283 | B80: Aparelho de apoio metálico esférico unidirecional com capacidade de 8.000 kN - fornecimento e instalação | C80: un | D80: 66929.74
A81: 308284 | B81: Aparelho de apoio metálico esférico unidirecional com capacidade de 8.500 kN - fornecimento e instalação | C81: un | D81: 72206.1
A82: 308285 | B82: Aparelho de apoio metálico esférico unidirecional com capacidade de 9.000 kN - fornecimento e instalação | C82: un | D82: 76529.41
A83: 308286 | B83: Aparelho de apoio metálico esférico unidirecional com capacidade de 9.500 kN - fornecimento e instalação | C83: un | D83: 80959.76
A84: 307733 | B84: Junta de dilatação em elastômero e perfil VV - L = 20 mm e H = 40 mm - fornecimento e instalação | C84: m | D84: 261.5
A85: 307734 | B85: Junta de dilatação em elastômero e perfil VV - L = 25 mm e H = 50 mm - fornecimento e instalação | C85: m | D85: 314.98
A86: 307735 | B86: Junta de dilatação em elastômero e perfil VV - L = 35 mm e H = 60 mm - fornecimento e instalação | C86: m | D86: 413.26
A87: 307736 | B87: Junta de dilatação em elastômero e perfil VV - L = 40 mm e H = 70 mm - fornecimento e instalação | C87: m | D87: 551.7
A88: 307737 | B88: Junta de dilatação em elastômero e perfil VV - L = 50 mm e H = 80 mm - fornecimento e instalação | C88: m | D88: 582.65
A89: 307730 | B89: Junta de dilatação em perfil extrudado de borracha vulcanizada | C89: m | D89: 0
A90: 307084 | B90: Lábios poliméricos em junta de pavimento de concreto - L = 20 mm e H = 30 mm - confecção e assentamento | C90: m | D90: 32.22
A91: 407818 | B91: Armação em aço CA-25 - fornecimento, preparo e colocação | C91: kg | D91: 11.16
A92: 407819 | B92: Armação em aço CA-50 - fornecimento, preparo e colocação | C92: kg | D92: 11.43
A93: 407820 | B93: Armação em aço CA-60 - fornecimento, preparo e colocação | C93: kg | D93: 12.62
A94: 407740 | B94: Chumbador tipo espera em aço CA-25 para fixação de estrutura metálica em concreto - fornecimento e instalação | C94: kg | D94: 13.92
A95: 408037 | B95: Luva de emenda com rosca cônica para aço CA-50 - D = 12,5 mm - fornecimento e instalação | C95: un | D95: 20.3
A96: 408038 | B96: Luva de emenda com rosca cônica para aço CA-50 - D = 16 mm - fornecimento e instalação | C96: un | D96: 32.81
A97: 408039 | B97: Luva de emenda com rosca cônica para aço CA-50 - D = 20 mm - fornecimento e instalação | C97: un | D97: 42.91
A98: 408041 | B98: Luva de emenda com rosca cônica para aço CA-50 - D = 25 mm - fornecimento e instalação | C98: un | D98: 57.99
A99: 408042 | B99: Luva de emenda com rosca cônica para aço CA-50 - D = 32 mm - fornecimento e instalação | C99: un | D99: 81.12
A100: 408031 | B100: Luva de emenda prensada para aço CA-50 - D = 12,5 mm - fornecimento e instalação | C100: un | D100: 21.32
A101: 408032 | B101: Luva de emenda prensada para aço CA-50 - D = 16 mm - fornecimento e instalação | C101: un | D101: 28.9
A102: 408033 | B102: Luva de emenda prensada para aço CA-50 - D = 20 mm - fornecimento e instalação | C102: un | D102: 39.27
A103: 408035 | B103: Luva de emenda prensada para aço CA-50 - D = 25 mm - fornecimento e instalação | C103: un | D103: 72.41
A104: 408036 | B104: Luva de emenda prensada para aço CA-50 - D = 32 mm - fornecimento e instalação | C104: un | D104: 145.39
A105: 408067 | B105: Tela de aço eletrossoldada - fornecimento, preparo e colocação | C105: kg | D105: 10.54
A106: 407743 | B106: Treliça nervurada três barras longitudinais interligadas por duas diagonais sinusoidal - fornecimento e instalação | C106: kg | D106: 11.64
A107: 607137 | B107: Arco metálico galvanizado tipo MP 152S - arco alto - vão = 10,08 m e altura = 6,12 m - aterro rodoviário mínimo = 0,90 m e máximo = 5,00 m - areia e brita comerciais | C107: m | D107: 60315.9
A108: 606785 | B108: Arco metálico galvanizado tipo MP 152S - arco alto - vão = 10,08 m e altura = 6,12 m - aterro rodoviário mínimo = 0,90 m e máximo = 5,00 m - areia extraída e brita produzida | C108: m | D108: 59689
A109: 607139 | B109: Arco metálico galvanizado tipo MP 152S - arco alto - vão = 10,31 m e altura = 6,17 m - aterro rodoviário mínimo = 0,90 m e máximo = 4,90 m - areia e brita comerciais | C109: m | D109: 61122.01
A110: 606787 | B110: Arco metálico galvanizado tipo MP 152S - arco alto - vão = 10,31 m e altura = 6,17 m - aterro rodoviário mínimo = 0,90 m e máximo = 4,90 m - areia extraída e brita produzida | C110: m | D110: 60192.14
A111: 607140 | B111: Arco metálico galvanizado tipo MP 152S - arco alto - vão = 10,36 m e altura = 5,38 m - aterro rodoviário mínimo = 1,20 m e máximo = 3,60 m - areia e brita comerciais | C111: m | D111: 55847.59
A112: 606788 | B112: Arco metálico galvanizado tipo MP 152S - arco alto - vão = 10,36 m e altura = 5,38 m - aterro rodoviário mínimo = 1,20 m e máximo = 3,60 m - areia extraída e brita produzida | C112: m | D112: 55584.01
A113: 607141 | B113: Arco metálico galvanizado tipo MP 152S - arco alto - vão = 10,54 m e altura = 6,05 m - aterro rodoviário mínimo = 1,20 m e máximo = 4,20 m - areia e brita comerciais | C113: m | D113: 62192.88
A114: 606789 | B114: Arco metálico galvanizado tipo MP 152S - arco alto - vão = 10,54 m e altura = 6,05 m - aterro rodoviário mínimo = 1,20 m e máximo = 4,20 m - areia extraída e brita produzida | C114: m | D114: 61541.37
A115: 607144 | B115: Arco metálico galvanizado tipo MP 152S - arco alto - vão = 10,57 m e altura = 5,41 m - aterro rodoviário mínimo = 1,20 m e máximo = 4,10 m - areia e brita comerciais | C115: m | D115: 73004.64
A116: 606792 | B116: Arco metálico galvanizado tipo MP 152S - arco alto - vão = 10,57 m e altura = 5,41 m - aterro rodoviário mínimo = 1,20 m e máximo = 4,10 m - areia extraída e brita produzida | C116: m | D116: 72409.57
A117: 607142 | B117: Arco metálico galvanizado tipo MP 152S - arco alto - vão = 10,74 m e altura = 6,48 m - aterro rodoviário mínimo = 1,20 m e máximo = 4,70 m - areia e brita comerciais | C117: m | D117: 65223.9
A118: 606790 | B118: Arco metálico galvanizado tipo MP 152S - arco alto - vão = 10,74 m e altura = 6,48 m - aterro rodoviário mínimo = 1,20 m e máximo = 4,70 m - areia extraída e brita produzida | C118: m | D118: 64523.13
A119: 607145 | B119: Arco metálico galvanizado tipo MP 152S - arco alto - vão = 10,77 m e altura = 6,10 m - aterro rodoviário mínimo = 1,20 m e máximo = 4,70 m - areia e brita comerciais | C119: m | D119: 80564.14
A120: 606793 | B120: Arco metálico galvanizado tipo MP 152S - arco alto - vão = 10,77 m e altura = 6,10 m - aterro rodoviário mínimo = 1,20 m e máximo = 4,70 m - areia extraída e brita produzida | C120: m | D120: 79898.6
A121: 607146 | B121: Arco metálico galvanizado tipo MP 152S - arco alto - vão = 10,97 m e altura = 6,53 m - aterro rodoviário mínimo = 1,20 m e máximo = 4,70 m - areia e brita comerciais | C121: m | D121: 84033.54
A122: 606794 | B122: Arco metálico galvanizado tipo MP 152S - arco alto - vão = 10,97 m e altura = 6,53 m - aterro rodoviário mínimo = 1,20 m e máximo = 4,70 m - areia extraída e brita produzida | C122: m | D122: 83311.19
A123: 607143 | B123: Arco metálico galvanizado tipo MP 152S - arco alto - vão = 11,35 m e altura = 7,12 m - aterro rodoviário mínimo = 1,20 m e máximo = 4,70 m - areia e brita comerciais | C123: m | D123: 70431.42
A124: 606791 | B124: Arco metálico galvanizado tipo MP 152S - arco alto - vão = 11,35 m e altura = 7,12 m - aterro rodoviário mínimo = 1,20 m e máximo = 4,70 m - areia extraída e brita produzida | C124: m | D124: 69624.64
A125: 607147 | B125: Arco metálico galvanizado tipo MP 152S - arco alto - vão = 11,58 m e altura = 7,16 m - aterro rodoviário mínimo = 1,20 m e máximo = 6,40 m - areia e brita comerciais | C125: m | D125: 90633.52
A126: 606795 | B126: Arco metálico galvanizado tipo MP 152S - arco alto - vão = 11,58 m e altura = 7,16 m - aterro rodoviário mínimo = 1,20 m e máximo = 6,40 m - areia extraída e brita produzida | C126: m | D126: 89801.14
A127: 607112 | B127: Arco metálico galvanizado tipo MP 152S - arco alto - vão = 6,12 m e altura = 2,77 m - aterro rodoviário mínimo = 0,75 m e máximo = 5,40 m - areia e brita comerciais | C127: m | D127: 29517.54
A128: 606760 | B128: Arco metálico galvanizado tipo MP 152S - arco alto - vão = 6,12 m e altura = 2,77 m - aterro rodoviário mínimo = 0,75 m e máximo = 5,40 m - areia extraída e brita produzida | C128: m | D128: 29299.35
A129: 607113 | B129: Arco metálico galvanizado tipo MP 152S - arco alto - vão = 6,30 m e altura = 3,68 m - aterro rodoviário mínimo = 0,75 m e máximo = 7,50 m - areia e brita comerciais | C129: m | D129: 34676.78
A130: 606761 | B130: Arco metálico galvanizado tipo MP 152S - arco alto - vão = 6,30 m e altura = 3,68 m - aterro rodoviário mínimo = 0,75 m e máximo = 7,50 m - areia extraída e brita produzida | C130: m | D130: 34425.97
A131: 606762 | B131: Arco metálico galvanizado tipo MP 152S - arco alto - vão = 6,55 m e altura = 3,56 m - aterro rodoviário mínimo = 0,75 m e máximo = 4,9 m - areia extraída e brita produzida | C131: m | D131: 34206.41
A132: 607114 | B132: Arco metálico galvanizado tipo MP 152S - arco alto - vão = 6,55 m e altura = 3,56 m - aterro rodoviário mínimo = 0,75 m e máximo = 4,90 m - areia e brita comerciais | C132: m | D132: 34461.96
A133: 607116 | B133: Arco metálico galvanizado tipo MP 152S - arco alto - vão = 6,78 m e altura = 3,61 m - aterro rodoviário mínimo = 0,75 m e máximo = 4,80 m - areia e brita comerciais | C133: m | D133: 36373.85
A134: 606764 | B134: Arco metálico galvanizado tipo MP 152S - arco alto - vão = 6,78 m e altura = 3,61 m - aterro rodoviário mínimo = 0,75 m e máximo = 4,80 m - areia extraída e brita produzida | C134: m | D134: 36107.54
A135: 607115 | B135: Arco metálico galvanizado tipo MP 152S - arco alto - vão = 6,96 m e altura = 4,42 m - aterro rodoviário mínimo = 0,75 m e máximo = 8,10 m - areia e brita comerciais | C135: m | D135: 41291.12
A136: 606763 | B136: Arco metálico galvanizado tipo MP 152S - arco alto - vão = 6,96 m e altura = 4,42 m - aterro rodoviário mínimo = 0,75 m e máximo = 8,10 m - areia extraída e brita produzida | C136: m | D136: 40970.74
A137: 607117 | B137: Arco metálico galvanizado tipo MP 152S - arco alto - vão = 6,99 m e altura = 4,27 m - aterro rodoviário mínimo = 0,75 m e máximo = 5,70 m - areia e brita comerciais | C137: m | D137: 41280.22
A138: 606765 | B138: Arco metálico galvanizado tipo MP 152S - arco alto - vão = 6,99 m e altura = 4,27 m - aterro rodoviário mínimo = 0,75 m e máximo = 5,70 m - areia extraída e brita produzida | C138: m | D138: 40968.63
A139: 607118 | B139: Arco metálico galvanizado tipo MP 152S - arco alto - vão = 7,01 m e altura = 3,63 m - aterro rodoviário mínimo = 0,75 m e máximo = 4,60 m - areia e brita comerciais | C139: m | D139: 37011.57
A140: 606766 | B140: Arco metálico galvanizado tipo MP 152S - arco alto - vão = 7,01 m e altura = 3,63 m - aterro rodoviário mínimo = 0,75 m e máximo = 4,60 m - areia extraída e brita produzida | C140: m | D140: 36736.64
A141: 607120 | B141: Arco metálico galvanizado tipo MP 152S - arco alto - vão = 7,24 m e altura = 3,68 m - aterro rodoviário mínimo = 0,90 m e máximo = 4,4 m - areia e brita comerciais | C141: m | D141: 37685.75
A142: 606768 | B142: Arco metálico galvanizado tipo MP 152S - arco alto - vão = 7,24 m e altura = 3,68 m - aterro rodoviário mínimo = 0,90 m e máximo = 4,40 m - areia extraída e brita produzida | C142: m | D142: 37396.24
A143: 607119 | B143: Arco metálico galvanizado tipo MP 152S - arco alto - vão = 7,42 m e altura = 4,52 m - aterro rodoviário mínimo = 0,90 m e máximo = 6,40 m - areia e brita comerciais | C143: m | D143: 43297.8
A144: 606767 | B144: Arco metálico galvanizado tipo MP 152S - arco alto - vão = 7,42 m e altura = 4,52 m - aterro rodoviário mínimo = 0,90 m e máximo = 6,40 m - areia extraída e brita produzida | C144: m | D144: 42944.74
A145: 607121 | B145: Arco metálico galvanizado tipo MP 152S - arco alto - vão = 7,47 m e altura = 4,19 m - aterro rodoviário mínimo = 0,90 m e máximo = 4,30 m - areia e brita comerciais | C145: m | D145: 40800.72
A146: 606769 | B146: Arco metálico galvanizado tipo MP 152S - arco alto - vão = 7,47 m e altura = 4,19 m - aterro rodoviário mínimo = 0,90 m e máximo = 4,30 m - areia extraída e brita produzida | C146: m | D146: 40470.65
A147: 607123 | B147: Arco metálico galvanizado tipo MP 152S - arco alto - vão = 7,67 m e altura = 3,99 m - aterro rodoviário mínimo = 0,90 m e máximo = 4,10 m - areia e brita comerciais | C147: m | D147: 40254.97
A148: 606771 | B148: Arco metálico galvanizado tipo MP 152S - arco alto - vão = 7,67 m e altura = 3,99 m - aterro rodoviário mínimo = 0,90 m e máximo = 4,10 m - areia extraída e brita produzida | C148: m | D148: 39926.13
A149: 607122 | B149: Arco metálico galvanizado tipo MP 152S - arco alto - vão = 7,85 m e altura = 4,60 m - aterro rodoviário mínimo = 0,90 m e máximo = 6,00 m - areia e brita comerciais | C149: m | D149: 44645.56
A150: 606770 | B150: Arco metálico galvanizado tipo MP 152S - arco alto - vão = 7,85 m e altura = 4,60 m - aterro rodoviário mínimo = 0,90 m e máximo = 6,00 m - areia extraída e brita produzida | C150: m | D150: 44266.31
A151: 607125 | B151: Arco metálico galvanizado tipo MP 152S - arco alto - vão = 7,90 m e altura = 4,04 m - aterro rodoviário mínimo = 0,90 m e máximo = 4,00 m - areia e brita comerciais | C151: m | D151: 41605.53
A152: 606773 | B152: Arco metálico galvanizado tipo MP 152S - arco alto - vão = 7,90 m e altura = 4,04 m - aterro rodoviário mínimo = 0,90 m e máximo = 4,00 m - areia extraída e brita produzida | C152: m | D152: 41259.54
A153: 607124 | B153: Arco metálico galvanizado tipo MP 152S - arco alto - vão = 8,08 m e altura = 4,65 m - aterro rodoviário mínimo = 0,90 m e máximo = 5,80 m - areia e brita comerciais | C153: m | D153: 45313.24
A154: 606772 | B154: Arco metálico galvanizado tipo MP 152S - arco alto - vão = 8,08 m e altura = 4,65 m - aterro rodoviário mínimo = 0,90 m e máximo = 5,80 m - areia extraída e brita produzida | C154: m | D154: 44921.85
A155: 607126 | B155: Arco metálico galvanizado tipo MP 152S - arco alto - vão = 8,31 m e altura = 4,70 m - aterro rodoviário mínimo = 0,90 m e máximo = 5,60 m - areia e brita comerciais | C155: m | D155: 46566.06
A156: 606774 | B156: Arco metálico galvanizado tipo MP 152S - arco alto - vão = 8,31 m e altura = 4,70 m - aterro rodoviário mínimo = 0,90 m e máximo = 5,60 m - areia extraída e brita produzida | C156: m | D156: 46155.82
A157: 607127 | B157: Arco metálico galvanizado tipo MP 152S - arco alto - vão = 8,36 m e altura = 4,11 m - aterro rodoviário mínimo = 0,90 m e máximo = 3,70 m - areia e brita comerciais | C157: m | D157: 42887.2
A158: 606775 | B158: Arco metálico galvanizado tipo MP 152S - arco alto - vão = 8,36 m e altura = 4,11 m - aterro rodoviário mínimo = 0,90 m e máximo = 3,70 m - areia extraída e brita produzida | C158: m | D158: 42520.42
A159: 607129 | B159: Arco metálico galvanizado tipo MP 152S - arco alto - vão = 8,59 m e altura = 4,39 m - aterro rodoviário mínimo = 0,90 m e máximo = 3,60 m - areia e brita comerciais | C159: m | D159: 44872.45
A160: 606777 | B160: Arco metálico galvanizado tipo MP 152S - arco alto - vão = 8,59 m e altura = 4,39 m - aterro rodoviário mínimo = 0,90 m e máximo = 3,60 m - areia extraída e brita produzida | C160: m | D160: 44470.76
A161: 607128 | B161: Arco metálico galvanizado tipo MP 152S - arco alto - vão = 8,97 m e altura = 5,00 m - aterro rodoviário mínimo = 0,90 m e máximo = 5,80 m - areia e brita comerciais | C161: m | D161: 49330.22
A162: 606776 | B162: Arco metálico galvanizado tipo MP 152S - arco alto - vão = 8,97 m e altura = 5,00 m - aterro rodoviário mínimo = 0,90 m e máximo = 5,80 m - areia extraída e brita produzida | C162: m | D162: 48860.87
A163: 607130 | B163: Arco metálico galvanizado tipo MP 152S - arco alto - vão = 9,17 m e altura = 5,49 m - aterro rodoviário mínimo = 0,90 m e máximo = 5,60 m - areia e brita comerciais | C163: m | D163: 52564.15
A164: 606778 | B164: Arco metálico galvanizado tipo MP 152S - arco alto - vão = 9,17 m e altura = 5,49 m - aterro rodoviário mínimo = 0,90 m e máximo = 5,60 m - areia extraída e brita produzida | C164: m | D164: 52048.26
A165: 607131 | B165: Arco metálico galvanizado tipo MP 152S - arco alto - vão = 9,22 m e altura = 4,70 m - aterro rodoviário mínimo = 0,90 m e máximo = 4,10 m - areia e brita comerciais | C165: m | D165: 49336.18
A166: 606779 | B166: Arco metálico galvanizado tipo MP 152S - arco alto - vão = 9,22 m e altura = 4,70 m - aterro rodoviário mínimo = 0,90 m e máximo = 4,10 m - areia extraída e brita produzida | C166: m | D166: 48879.79
A167: 607133 | B167: Arco metálico galvanizado tipo MP 152S - arco alto - vão = 9,45 m e altura = 4,75 m - aterro rodoviário mínimo = 0,90 m e máximo = 4,00 m - areia e brita comerciais | C167: m | D167: 50077.23
A168: 606781 | B168: Arco metálico galvanizado tipo MP 152S - arco alto - vão = 9,45 m e altura = 4,75 m - aterro rodoviário mínimo = 0,90 m e máximo = 4,00 m - areia extraída e brita produzida | C168: m | D168: 49607.11
A169: 607132 | B169: Arco metálico galvanizado tipo MP 152S - arco alto - vão = 9,63 m e altura = 5,59 m - aterro rodoviário mínimo = 0,90 m e máximo = 5,30 m - areia e brita comerciais | C169: m | D169: 54586.19
A170: 606780 | B170: Arco metálico galvanizado tipo MP 152S - arco alto - vão = 9,63 m e altura = 5,59 m - aterro rodoviário mínimo = 0,90 m e máximo = 5,30 m - areia extraída e brita produzida | C170: m | D170: 54034.13
A171: 607134 | B171: Arco metálico galvanizado tipo MP 152S - arco alto - vão = 9,65 m e altura = 5,41 m - aterro rodoviário mínimo = 0,90 m e máximo = 4,70 m - areia e brita comerciais | C171: m | D171: 54049.37
A172: 606782 | B172: Arco metálico galvanizado tipo MP 152S - arco alto - vão = 9,65 m e altura = 5,41 m - aterro rodoviário mínimo = 0,90 m e máximo = 4,70 m - areia extraída e brita produzida | C172: m | D172: 53509.94
A173: 607136 | B173: Arco metálico galvanizado tipo MP 152S - arco alto - vão = 9,68 m e altura = 5,23 m - aterro rodoviário mínimo = 0,90 m e máximo = 3,90 m - areia e brita comerciais | C173: m | D173: 53331.16
A174: 606784 | B174: Arco metálico galvanizado tipo MP 152S - arco alto - vão = 9,68 m e altura = 5,23 m - aterro rodoviário mínimo = 0,90 m e máximo = 3,90 m - areia extraída e brita produzida | C174: m | D174: 52808.96
A175: 607135 | B175: Arco metálico galvanizado tipo MP 152S - arco alto - vão = 9,86 m e altura = 6,07 m - aterro rodoviário mínimo = 0,90 m e máximo = 5,20 m - areia e brita comerciais | C175: m | D175: 59465.77
A176: 606783 | B176: Arco metálico galvanizado tipo MP 152S - arco alto - vão = 9,86 m e altura = 6,07 m - aterro rodoviário mínimo = 0,90 m e máximo = 5,20 m - areia extraída e brita produzida | C176: m | D176: 58860.4
A177: 607138 | B177: Arco metálico galvanizado tipo MP 152S - arco alto - vão = 9,91 m e altura = 5,28 m - aterro rodoviário mínimo = 0,90 m e máximo = 3,80 m - areia e brita comerciais | C177: m | D177: 54237.27
A178: 606786 | B178: Arco metálico galvanizado tipo MP 152S - arco alto - vão = 9,91 m e altura = 5,28 m - aterro rodoviário mínimo = 0,90 m e máximo = 3,80 m - areia extraída e brita produzida | C178: m | D178: 53680.97
A179: 606842 | B179: Arco metálico galvanizado tipo MP 152S - ovoide - vão = 7,21 m e altura = 7,82 m - aterro rodoviário mínimo = 0,75 m e máximo = 6,70 m - areia e brita comerciais | C179: m | D179: 67695.76
A180: 606832 | B180: Arco metálico galvanizado tipo MP 152S - ovoide - vão = 7,21 m e altura = 7,82 m - aterro rodoviário mínimo = 0,75 m e máximo = 6,70 m - areia extraída e brita produzida | C180: m | D180: 67372.74
A181: 606843 | B181: Arco metálico galvanizado tipo MP 152S - ovoide - vão = 7,31 m e altura = 7,87 m - aterro rodoviário mínimo = 0,90 m e máximo = 6,80 m - areia e brita comerciais | C181: m | D181: 70336.39
A182: 606833 | B182: Arco metálico galvanizado tipo MP 152S - ovoide - vão = 7,31 m e altura = 7,87 m - aterro rodoviário mínimo = 0,90 m e máximo = 6,80 m - areia extraída e brita produzida | C182: m | D182: 69997.3
A183: 606845 | B183: Arco metálico galvanizado tipo MP 152S - ovoide - vão = 7,57 m e altura = 8,44 m - aterro rodoviário mínimo = 0,90 m e máximo = 5,60 m - areia e brita comerciais | C183: m | D183: 72926.35
A184: 606835 | B184: Arco metálico galvanizado tipo MP 152S - ovoide - vão = 7,57 m e altura = 8,44 m - aterro rodoviário mínimo = 0,90 m e máximo = 5,60 m - areia extraída e brita produzida | C184: m | D184: 72588.11
A185: 606844 | B185: Arco metálico galvanizado tipo MP 152S - ovoide - vão = 7,77 m e altura = 7,90 m - aterro rodoviário mínimo = 0,90 m e máximo = 6,80 m - areia e brita comerciais | C185: m | D185: 71430.35
A186: 606834 | B186: Arco metálico galvanizado tipo MP 152S - ovoide - vão = 7,77 m e altura = 7,90 m - aterro rodoviário mínimo = 0,90 m e máximo = 6,80 m - areia extraída e brita produzida | C186: m | D186: 71082.24
A187: 606847 | B187: Arco metálico galvanizado tipo MP 152S - ovoide - vão = 8,13 m e altura = 8,01 m - aterro rodoviário mínimo = 0,90 m e máximo = 3,50 m - areia e brita comerciais | C187: m | D187: 76266.02
A188: 606837 | B188: Arco metálico galvanizado tipo MP 152S - ovoide - vão = 8,13 m e altura = 8,01 m - aterro rodoviário mínimo = 0,90 m e máximo = 3,50 m - areia extraída e brita produzida | C188: m | D188: 75885.98
A189: 606846 | B189: Arco metálico galvanizado tipo MP 152S - ovoide - vão = 8,36 m e altura = 8,23 m - aterro rodoviário mínimo = 0,90 m e máximo = 4,30 m - areia e brita comerciais | C189: m | D189: 76944.54
A190: 606836 | B190: Arco metálico galvanizado tipo MP 152S - ovoide - vão = 8,36 m e altura = 8,23 m - aterro rodoviário mínimo = 0,90 m e máximo = 4,30 m - areia extraída e brita produzida | C190: m | D190: 76560.22
A191: 606848 | B191: Arco metálico galvanizado tipo MP 152S - ovoide - vão = 8,56 m e altura = 8,48 m - aterro rodoviário mínimo = 0,90 m e máximo = 5,30 m - areia e brita comerciais | C191: m | D191: 77005.08
A192: 606838 | B192: Arco metálico galvanizado tipo MP 152S - ovoide - vão = 8,56 m e altura = 8,48 m - aterro rodoviário mínimo = 0,90 m e máximo = 5,30 m - areia extraída e brita produzida | C192: m | D192: 76605.53
A193: 606849 | B193: Arco metálico galvanizado tipo MP 152S - ovoide - vão = 8,71 m e altura = 9,32 m - aterro rodoviário mínimo = 0,90 m e máximo = 6,00 m - areia e brita comerciais | C193: m | D193: 83222.7
A194: 606839 | B194: Arco metálico galvanizado tipo MP 152S - ovoide - vão = 8,71 m e altura = 9,32 m - aterro rodoviário mínimo = 0,90 m e máximo = 6,00 m - areia extraída e brita produzida | C194: m | D194: 82832.61
A195: 606850 | B195: Arco metálico galvanizado tipo MP 152S - ovoide - vão = 9,15 m e altura = 9,04 m - aterro rodoviário mínimo = 0,90 m e máximo = 4,70 m - areia e brita comerciais | C195: m | D195: 83913.35
A196: 606840 | B196: Arco metálico galvanizado tipo MP 152S - ovoide - vão = 9,15 m e altura = 9,04 m - aterro rodoviário mínimo = 0,90 m e máximo = 4,70 m - areia extraída e brita produzida | C196: m | D196: 83487.25
A197: 606851 | B197: Arco metálico galvanizado tipo MP 152S - ovoide - vão = 9,15 m e altura = 9,50 m - aterro rodoviário mínimo = 0,90 m e máximo = 5,70 m - areia e brita comerciais | C197: m | D197: 84685.83
A198: 606841 | B198: Arco metálico galvanizado tipo MP 152S - ovoide - vão = 9,15 m e altura = 9,50 m - aterro rodoviário mínimo = 0,90 m e máximo = 5,70 m - areia extraída e brita produzida | C198: m | D198: 84277.49
A199: 605604 | B199: Argamassa de solo-cimento com 10% de cimento e material de jazida - preparo e injeção em tunnel liner | C199: m³ | D199: 294.85
A200: 605695 | B200: Bueiro metálico com chapas múltiplas MP 100 com revestimento em epóxi - D = 0,60 m - brita comercial | C200: m | D200: 1612.28
... 6202 more rows

Sheet INSUMOS SINAPI (hidden)
A1: PRECOS DE INSUMOS - BANCO NACIONAL
A3: MES DE COLETA: 09/2024
A4: LOCALIDADE: 1250 - RECIFE
A5: ENCARGOS SOCIAIS (%) HORISTA 113,98 MENSALISTA 70,00
A7: CODIGO | B7: DESCRICAO DO INSUMO | C7: UNIDADE DE MEDIDA | D7: ORIGEM DO PRECO | E7: PRECO MEDIANO R$
A8: 38605 | B8: ABERTURA PARA ENCAIXE DE CUBA OU LAVATORIO EM BANCADA DE MARMORE/ GRANITO OU OUTRO TIPO DE PEDRA NATURAL | C8: UN | D8: CR | E8: 159.92
A9: 11270 | B9: ABRACADEIRA DE LATAO PARA FIXACAO DE CABO PARA-RAIO, DIMENSOES 32 X 24 X 24 MM | C9: UN | D9: CR | E9: 4.05
A10: 412 | B10: ABRACADEIRA DE NYLON PARA AMARRACAO DE CABOS, COMPRIMENTO DE *230* X *7,6* MM | C10: UN | D10: CR | E10: 1.18
A11: 414 | B11: ABRACADEIRA DE NYLON PARA AMARRACAO DE CABOS, COMPRIMENTO DE 100 X 2,5 MM | C11: UN | D11: CR | E11: 0.07
A12: 410 | B12: ABRACADEIRA DE NYLON PARA AMARRACAO DE CABOS, COMPRIMENTO DE 150 X *3,6* MM | C12: UN | D12: CR | E12: 0.18
A13: 411 | B13: ABRACADEIRA DE NYLON PARA AMARRACAO DE CABOS, COMPRIMENTO DE 200 X *4,6* MM | C13: UN | D13: C | E13: 0.23
A14: 408 | B14: ABRACADEIRA DE NYLON PARA AMARRACAO DE CABOS, COMPRIMENTO DE 390 X *4,6* MM | C14: UN | D14: CR | E14: 1.14
A15: 39131 | B15: ABRACADEIRA EM ACO PARA AMARRACAO DE ELETRODUTOS, TIPO D, COM 1 1/2" E CUNHA DE FIXACAO | C15: UN | D15: CR | E15: 5.44
A16: 394 | B16: ABRACADEIRA EM ACO PARA AMARRACAO DE ELETRODUTOS, TIPO D, COM 1 1/2" E PARAFUSO DE FIXACAO | C16: UN | D16: CR | E16: 5.51
A17: 39130 | B17: ABRACADEIRA EM ACO PARA AMARRACAO DE ELETRODUTOS, TIPO D, COM 1 1/4" E CUNHA DE FIXACAO | C17: UN | D17: CR | E17: 4.97
A18: 395 | B18: ABRACADEIRA EM ACO PARA AMARRACAO DE ELETRODUTOS, TIPO D, COM 1 1/4" E PARAFUSO DE FIXACAO | C18: UN | D18: CR | E18: 5.31
A19: 39127 | B19: ABRACADEIRA EM ACO PARA AMARRACAO DE ELETRODUTOS, TIPO D, COM 1/2" E CUNHA DE FIXACAO | C19: UN | D19: CR | E19: 2.62
A20: 392 | B20: ABRACADEIRA EM ACO PARA AMARRACAO DE ELETRODUTOS, TIPO D, COM 1/2" E PARAFUSO DE FIXACAO | C20: UN | D20: CR | E20: 2.68
A21: 39129 | B21: ABRACADEIRA EM ACO PARA AMARRACAO DE ELETRODUTOS, TIPO D, COM 1" E CUNHA DE FIXACAO | C21: UN | D21: CR | E21: 3.06
A22: 393 | B22: ABRACADEIRA EM ACO PARA AMARRACAO DE ELETRODUTOS, TIPO D, COM 1" E PARAFUSO DE FIXACAO | C22: UN | D22: C | E22: 3.2
A23: 39133 | B23: ABRACADEIRA EM ACO PARA AMARRACAO DE ELETRODUTOS, TIPO D, COM 2 1/2" E CUNHA DE FIXACAO | C23: UN | D23: CR | E23: 7.14
A24: 397 | B24: ABRACADEIRA EM ACO PARA AMARRACAO DE ELETRODUTOS, TIPO D, COM 2 1/2" E PARAFUSO DE FIXACAO | C24: UN | D24: CR | E24: 7.89
A25: 39132 | B25: ABRACADEIRA EM ACO PARA AMARRACAO DE ELETRODUTOS, TIPO D, COM 2" E CUNHA DE FIXACAO | C25: UN | D25: CR | E25: 5.71
A26: 396 | B26: ABRACADEIRA EM ACO PARA AMARRACAO DE ELETRODUTOS, TIPO D, COM 2" E PARAFUSO DE FIXACAO | C26: UN | D26: CR | E26: 6.12
A27: 39135 | B27: ABRACADEIRA EM ACO PARA AMARRACAO DE ELETRODUTOS, TIPO D, COM 3 1/2" E CUNHA DE FIXACAO | C27: UN | D27: CR | E27: 11.43
A28: 39128 | B28: ABRACADEIRA EM ACO PARA AMARRACAO DE ELETRODUTOS, TIPO D, COM 3/4" E CUNHA DE FIXACAO | C28: UN | D28: CR | E28: 2.85
A29: 400 | B29: ABRACADEIRA EM ACO PARA AMARRACAO DE ELETRODUTOS, TIPO D, COM 3/4" E PARAFUSO DE FIXACAO | C29: UN | D29: CR | E29: 2.79
A30: 39125 | B30: ABRACADEIRA EM ACO PARA AMARRACAO DE ELETRODUTOS, TIPO D, COM 3/8" E PARAFUSO DE FIXACAO | C30: UN | D30: CR | E30: 2.85
A31: 39134 | B31: ABRACADEIRA EM ACO PARA AMARRACAO DE ELETRODUTOS, TIPO D, COM 3" E CUNHA DE FIXACAO | C31: UN | D31: CR | E31: 9.53
A32: 398 | B32: ABRACADEIRA EM ACO PARA AMARRACAO DE ELETRODUTOS, TIPO D, COM 3" E PARAFUSO DE FIXACAO | C32: UN | D32: CR | E32: 8.78
A33: 39126 | B33: ABRACADEIRA EM ACO PARA AMARRACAO DE ELETRODUTOS, TIPO D, COM 4" E CUNHA DE FIXACAO | C33: UN | D33: CR | E33: 12.86
A34: 399 | B34: ABRACADEIRA EM ACO PARA AMARRACAO DE ELETRODUTOS, TIPO D, COM 4" E PARAFUSO DE FIXACAO | C34: UN | D34: CR | E34: 11.33
A35: 39158 | B35: ABRACADEIRA EM ACO PARA AMARRACAO DE ELETRODUTOS, TIPO ECONOMICA (GOTA), COM 8" | C35: UN | D35: CR | E35: 30.43
A36: 39141 | B36: ABRACADEIRA EM ACO PARA AMARRACAO DE ELETRODUTOS, TIPO U SIMPLES, COM 1 1/2" | C36: UN | D36: CR | E36: 2.21
A37: 39140 | B37: ABRACADEIRA EM ACO PARA AMARRACAO DE ELETRODUTOS, TIPO U SIMPLES, COM 1 1/4" | C37: UN | D37: CR | E37: 2
A38: 39137 | B38: ABRACADEIRA EM ACO PARA AMARRACAO DE ELETRODUTOS, TIPO U SIMPLES, COM 1/2" | C38: UN | D38: CR | E38: 1.15
A39: 39139 | B39: ABRACADEIRA EM ACO PARA AMARRACAO DE ELETRODUTOS, TIPO U SIMPLES, COM 1" | C39: UN | D39: CR | E39: 1.66
A40: 39143 | B40: ABRACADEIRA EM ACO PARA AMARRACAO DE ELETRODUTOS, TIPO U SIMPLES, COM 2 1/2" | C40: UN | D40: CR | E40: 4.56
A41: 39142 | B41: ABRACADEIRA EM ACO PARA AMARRACAO DE ELETRODUTOS, TIPO U SIMPLES, COM 2" | C41: UN | D41: CR | E41: 3.26
A42: 39138 | B42: ABRACADEIRA EM ACO PARA AMARRACAO DE ELETRODUTOS, TIPO U SIMPLES, COM 3/4" | C42: UN | D42: CR | E42: 1.22
A43: 39136 | B43: ABRACADEIRA EM ACO PARA AMARRACAO DE ELETRODUTOS, TIPO U SIMPLES, COM 3/8" | C43: UN | D43: CR | E43: 0.81
A44: 39144 | B44: ABRACADEIRA EM ACO PARA AMARRACAO DE ELETRODUTOS, TIPO U SIMPLES, COM 3" | C44: UN | D44: CR | E44: 5.31
A45: 39145 | B45: ABRACADEIRA EM ACO PARA AMARRACAO DE ELETRODUTOS, TIPO U SIMPLES, COM 4" | C45: UN | D45: CR | E45: 8.74
A46: 12615 | B46: ABRACADEIRA PVC, PARA CALHA PLUVIAL, DIAMETRO ENTRE *80 E 100* MM, PARA DRENAGEM PLUVIAL PREDIAL | C46: UN | D46: CR | E46: 11.02
A47: 11927 | B47: ABRACADEIRA, GALVANIZADA/ZINCADA, ROSCA SEM FIM, PARAFUSO INOX, LARGURA FITA *12,6 A *14 MM, D = 2" A 2 1/2" | C47: UN | D47: CR | E47: 12.1
A48: 11928 | B48: ABRACADEIRA, GALVANIZADA/ZINCADA, ROSCA SEM FIM, PARAFUSO INOX, LARGURA FITA *12,6 A *14 MM, D = 3" A 3 3/4" | C48: UN | D48: CR | E48: 13.87
A49: 11929 | B49: ABRACADEIRA, GALVANIZADA/ZINCADA, ROSCA SEM FIM, PARAFUSO INOX, LARGURA FITA *12,6 A *14 MM, D = 4" A 4 3/4" | C49: UN | D49: CR | E49: 21.45
A50: 36801 | B50: ACABAMENTO DE METAL CROMADO PARA REGISTRO PEQUENO, DE PAREDE, 1/2" OU 3/4" | C50: UN | D50: CR | E50: 36.74
A51: 36246 | B51: ACABAMENTO SIMPLES/CONVENCIONAL PARA FORRO PVC, TIPO "U" OU "C", COR BRANCA, COMPRIMENTO 6 M | C51: M | D51: CR | E51: 4.06
A52: 37600 | B52: ACESSORIO DE LIGACAO NAO ELETRICO PARA CARGAS EXPLOSIVAS, TUBO DE 6 M | C52: UN | D52: AS | E52: 106.49
A53: 37599 | B53: ACESSORIO INICIADOR NAO ELETRICO, TUBO DE 6 M, TEMPO DE RETARDO DE *160* MS | C53: UN | D53: AS | E53: 99.11
A54: 1 | B54: ACETILENO (RECARGA DE GAS ACETILENO PARA CILINDRO DE CONJUNTO OXICORTE GRANDE) NAO INCLUI TROCA/MANUTENCAO DO CILINDRO | C54: KG | D54: AS | E54: 95
A55: 3 | B55: ACIDO CLORIDRICO / ACIDO MURIATICO, DILUICAO 10% A 12% PARA USO EM LIMPEZA | C55: L | D55: CR | E55: 22.29
A56: 43054 | B56: ACO CA-25, 10,0 MM, OU 12,5 MM, OU 16,0 MM, OU 20,0 MM, OU 25,0 MM, VERGALHAO | C56: KG | D56: CR | E56: 9.14
A57: 42402 | B57: ACO CA-25, 16,0 MM, BARRA DE TRANSFERENCIA | C57: KG | D57: CR | E57: 8.74
A58: 42403 | B58: ACO CA-25, 20,0 MM, BARRA DE TRANSFERENCIA | C58: KG | D58: CR | E58: 11.21
A59: 42404 | B59: ACO CA-25, 25,0 MM, BARRA DE TRANSFERENCIA | C59: KG | D59: CR | E59: 11.14
A60: 42405 | B60: ACO CA-25, 32,0 MM, BARRA DE TRANSFERENCIA | C60: KG | D60: CR | E60: 11.87
A61: 34341 | B61: ACO CA-25, 32,0 MM, VERGALHAO | C61: KG | D61: CR | E61: 10.3
A62: 43053 | B62: ACO CA-25, 6,3 MM OU 8,0 MM, VERGALHAO | C62: KG | D62: CR | E62: 8.16
A63: 43058 | B63: ACO CA-50, 10,0 MM, OU 12,5 MM, OU 16,0 MM, OU 20,0 MM, DOBRADO E CORTADO | C63: KG | D63: CR | E63: 8.47
A64: 34 | B64: ACO CA-50, 10,0 MM, VERGALHAO | C64: KG | D64: CR | E64: 8.51
A65: 43055 | B65: ACO CA-50, 12,5 MM OU 16,0 MM, VERGALHAO | C65: KG | D65: C | E65: 7.37
A66: 43056 | B66: ACO CA-50, 20,0 MM OU 25,0 MM, VERGALHAO | C66: KG | D66: CR | E66: 8.5
A67: 43057 | B67: ACO CA-50, 32,0 MM, VERGALHAO | C67: KG | D67: CR | E67: 9.34
A68: 34449 | B68: ACO CA-50, 6,3 MM, DOBRADO E CORTADO | C68: KG | D68: CR | E68: 9.98
A69: 32 | B69: ACO CA-50, 6,3 MM, VERGALHAO | C69: KG | D69: CR | E69: 8.97
A70: 33 | B70: ACO CA-50, 8,0 MM, VERGALHAO | C70: KG | D70: CR | E70: 9.03
A71: 43061 | B71: ACO CA-60, 4,2 MM OU 5,0 MM, DOBRADO E CORTADO | C71: KG | D71: CR | E71: 8.43
A72: 43059 | B72: ACO CA-60, 4,2 MM, OU 5,0 MM, OU 6,0 MM, OU 7,0 MM, VERGALHAO | C72: KG | D72: CR | E72: 8.05
A73: 43062 | B73: ACO CA-60, 6,0 MM OU 7,0 MM, DOBRADO E CORTADO | C73: KG | D73: CR | E73: 8.92
A74: 43060 | B74: ACO CA-60, 8,0 MM OU 9,5 MM, VERGALHAO | C74: KG | D74: CR | E74: 7.01
A75: 40410 | B75: ACOPLAMENTO RIGIDO EM FERRO FUNDIDO PARA SISTEMA DE TUBULACAO RANHURADA, DN 50 MM (2") | C75: UN | D75: AS | E75: 20
A76: 40411 | B76: ACOPLAMENTO RIGIDO EM FERRO FUNDIDO PARA SISTEMA DE TUBULACAO RANHURADA, DN 65 MM (2 1/2") | C76: UN | D76: AS | E76: 21.7
A77: 40412 | B77: ACOPLAMENTO RIGIDO EM FERRO FUNDIDO PARA SISTEMA DE TUBULACAO RANHURADA, DN 80 MM (3") | C77: UN | D77: AS | E77: 24.36
A78: 44254 | B78: ADAPTADOR CPVC, ROSCAVEL, COM FLANGES E ANEL DE VEDACAO, 15 MM, CAIXA D'AGUA PARA AGUA QUENTE | C78: UN | D78: CR | E78: 27.31
A79: 44255 | B79: ADAPTADOR CPVC, ROSCAVEL, COM FLANGES E ANEL DE VEDACAO, 22 MM, CAIXA D'AGUA PARA AGUA QUENTE | C79: UN | D79: CR | E79: 30.27
A80: 44256 | B80: ADAPTADOR CPVC, ROSCAVEL, COM FLANGES E ANEL DE VEDACAO, 28 MM, CAIXA D'AGUA PARA AGUA QUENTE | C80: UN | D80: CR | E80: 34.19
A81: 44257 | B81: ADAPTADOR CPVC, ROSCAVEL, COM FLANGES E ANEL DE VEDACAO, 35 MM, CAIXA D'AGUA PARA AGUA QUENTE | C81: UN | D81: CR | E81: 54.08
A82: 44258 | B82: ADAPTADOR CPVC, ROSCAVEL, COM FLANGES E ANEL DE VEDACAO, 42 MM, CAIXA D'AGUA PARA AGUA QUENTE | C82: UN | D82: CR | E82: 61.81
A83: 44259 | B83: ADAPTADOR CPVC, ROSCAVEL, COM FLANGES E ANEL DE VEDACAO, 54 MM, CAIXA D'AGUA PARA AGUA QUENTE | C83: UN | D83: CR | E83: 84.84
A84: 37997 | B84: ADAPTADOR CPVC, SOLDAVEL, 15 MM, PARA AGUA QUENTE | C84: UN | D84: CR | E84: 16.27
A85: 37998 | B85: ADAPTADOR CPVC, SOLDAVEL, 22 MM, PARA AGUA QUENTE | C85: UN | D85: CR | E85: 21.78
A86: 55 | B86: ADAPTADOR DE COMPRESSAO EM POLIPROPILENO (PP), PARA TUBO EM PEAD, 20 MM X 1/2", PARA LIGACAO PREDIAL DE AGUA (NTS 179) | C86: UN | D86: AS | E86: 3.82
A87: 61 | B87: ADAPTADOR DE COMPRESSAO EM POLIPROPILENO (PP), PARA TUBO EM PEAD, 20 MM X 3/4", PARA LIGACAO PREDIAL DE AGUA (NTS 179) | C87: UN | D87: AS | E87: 3.61
A88: 62 | B88: ADAPTADOR DE COMPRESSAO EM POLIPROPILENO (PP), PARA TUBO EM PEAD, 32 MM X 1", PARA LIGACAO PREDIAL DE AGUA (NTS 179) | C88: UN | D88: AS | E88: 7.48
A89: 10899 | B89: ADAPTADOR EM LATAO, ENGATE RAPIDO 2 1/2" X ROSCA INTERNA 5 FIOS 2 1/2", PARA INSTALACAO PREDIAL DE COMBATE A INCENDIO | C89: UN | D89: CR | E89: 109.52
A90: 10900 | B90: ADAPTADOR EM LATAO, ENGATE RAPIDO1 1/2" X ROSCA INTERNA 5 FIOS 2 1/2", PARA INSTALACAO PREDIAL DE COMBATE A INCENDIO | C90: UN | D90: CR | E90: 85.71
A91: 47 | B91: ADAPTADOR PVC PBA, BOLSA/ROSCA, JE, DN 100 / DE 110 MM | C91: UN | D91: AS | E91: 72.23
A92: 48 | B92: ADAPTADOR PVC PBA, BOLSA/ROSCA, JE, DN 50 / DE 60 MM | C92: UN | D92: AS | E92: 18.84
A93: 46 | B93: ADAPTADOR PVC PBA, BOLSA/ROSCA, JE, DN 75 / DE 85 MM | C93: UN | D93: AS | E93: 42.24
A94: 52 | B94: ADAPTADOR PVC PBA, PONTA/ROSCA, JE, DN 50 / DE 60 MM | C94: UN | D94: AS | E94: 14.31
A95: 43 | B95: ADAPTADOR PVC PBA, PONTA/ROSCA, JE, DN 75 / DE 85 MM | C95: UN | D95: AS | E95: 48.31
A96: 103 | B96: ADAPTADOR PVC SOLDAVEL CURTO COM BOLSA E ROSCA, 110 MM X 4", PARA AGUA FRIA | C96: UN | D96: CR | E96: 39.47
A97: 107 | B97: ADAPTADOR PVC SOLDAVEL CURTO COM BOLSA E ROSCA, 20 MM X 1/2", PARA AGUA FRIA | C97: UN | D97: CR | E97: 0.74
A98: 65 | B98: ADAPTADOR PVC SOLDAVEL CURTO COM BOLSA E ROSCA, 25 MM X 3/4", PARA AGUA FRIA | C98: UN | D98: CR | E98: 0.81
A99: 108 | B99: ADAPTADOR PVC SOLDAVEL CURTO COM BOLSA E ROSCA, 32 MM X 1", PARA AGUA FRIA | C99: UN | D99: CR | E99: 1.63
A100: 110 | B100: ADAPTADOR PVC SOLDAVEL CURTO COM BOLSA E ROSCA, 40 MM X 1 1/2", PARA AGUA FRIA | C100: UN | D100: CR | E100: 5.68
A101: 109 | B101: ADAPTADOR PVC SOLDAVEL CURTO COM BOLSA E ROSCA, 40 MM X 1 1/4", PARA AGUA FRIA | C101: UN | D101: CR | E101: 3.38
A102: 111 | B102: ADAPTADOR PVC SOLDAVEL CURTO COM BOLSA E ROSCA, 50 MM X 1 1/4", PARA AGUA FRIA | C102: UN | D102: CR | E102: 7.68
A103: 112 | B103: ADAPTADOR PVC SOLDAVEL CURTO COM BOLSA E ROSCA, 50 MM X1 1/2", PARA AGUA FRIA | C103: UN | D103: CR | E103: 4.07
A104: 113 | B104: ADAPTADOR PVC SOLDAVEL CURTO COM BOLSA E ROSCA, 60 MM X 2", PARA AGUA FRIA | C104: UN | D104: CR | E104: 10.19
A105: 104 | B105: ADAPTADOR PVC SOLDAVEL CURTO COM BOLSA E ROSCA, 75 MM X 2 1/2", PARA AGUA FRIA | C105: UN | D105: CR | E105: 17.74
A106: 102 | B106: ADAPTADOR PVC SOLDAVEL CURTO COM BOLSA E ROSCA, 85 MM X 3", PARA AGUA FRIA | C106: UN | D106: CR | E106: 24.46
A107: 95 | B107: ADAPTADOR PVC SOLDAVEL, COM FLANGE E ANEL DE VEDACAO, 20 MM X 1/2", PARA CAIXA D'AGUA | C107: UN | D107: CR | E107: 10.33
A108: 96 | B108: ADAPTADOR PVC SOLDAVEL, COM FLANGE E ANEL DE VEDACAO, 25 MM X 3/4", PARA CAIXA D'AGUA | C108: UN | D108: CR | E108: 11.24
A109: 97 | B109: ADAPTADOR PVC SOLDAVEL, COM FLANGE E ANEL DE VEDACAO, 32 MM X 1", PARA CAIXA D'AGUA | C109: UN | D109: CR | E109: 16.91
A110: 98 | B110: ADAPTADOR PVC SOLDAVEL, COM FLANGE E ANEL DE VEDACAO, 40 MM X 1 1/4", PARA CAIXA D'AGUA | C110: UN | D110: CR | E110: 25.32
A111: 99 | B111: ADAPTADOR PVC SOLDAVEL, COM FLANGE E ANEL DE VEDACAO, 50 MM X 1 1/2", PARA CAIXA D'AGUA | C111: UN | D111: CR | E111: 23.93
A112: 60 | B112: ADAPTADOR PVC, COM REGISTRO, PARA PEAD, 20 MM X 3/4", PARA LIGACAO PREDIAL DE AGUA | C112: UN | D112: AS | E112: 4.95
A113: 72 | B113: ADAPTADOR PVC, ROSCAVEL, COM FLANGES E ANEL DE VEDACAO, 1 1/2", PARA CAIXA D'AGUA | C113: UN | D113: CR | E113: 45.9
A114: 67 | B114: ADAPTADOR PVC, ROSCAVEL, COM FLANGES E ANEL DE VEDACAO, 1/2", PARA CAIXA D'AGUA | C114: UN | D114: CR | E114: 14.84
A115: 71 | B115: ADAPTADOR PVC, ROSCAVEL, COM FLANGES E ANEL DE VEDACAO, 1", PARA CAIXA D'AGUA | C115: UN | D115: CR | E115: 28.35
A116: 73 | B116: ADAPTADOR PVC, ROSCAVEL, COM FLANGES E ANEL DE VEDACAO, 3/4", PARA CAIXA D'AGUA | C116: UN | D116: CR | E116: 14.2
A117: 100 | B117: ADAPTADOR PVC, SOLDAVEL, COM FLANGES E ANEL DE VEDACAO, 60 MM X 2", PARA CAIXA D'AGUA | C117: UN | D117: CR | E117: 41.81
A118: 75 | B118: ADAPTADOR PVC, SOLDAVEL, COM FLANGES LIVRES, 110 MM X 4", PARA CAIXA D'AGUA | C118: UN | D118: CR | E118: 243.77
A119: 83 | B119: ADAPTADOR PVC, SOLDAVEL, COM FLANGES LIVRES, 75 MM X 2 1/2", PARA CAIXA D'AGUA | C119: UN | D119: CR | E119: 194.89
A120: 74 | B120: ADAPTADOR PVC, SOLDAVEL, COM FLANGES LIVRES, 85 MM X 3", PARA CAIXA D'AGUA | C120: UN | D120: CR | E120: 278.64
A121: 106 | B121: ADAPTADOR PVC, SOLDAVEL, LONGO, COM FLANGE LIVRE, 110 MM X 4", PARA CAIXA D'AGUA | C121: UN | D121: CR | E121: 352.35
A122: 88 | B122: ADAPTADOR PVC, SOLDAVEL, LONGO, COM FLANGE LIVRE, 32 MM X 1", PARA CAIXA D'AGUA | C122: UN | D122: CR | E122: 9.9
A123: 82 | B123: ADAPTADOR PVC, SOLDAVEL, LONGO, COM FLANGE LIVRE, 75 MM X 2 1/2", PARA CAIXA D'AGUA | C123: UN | D123: CR | E123: 185.42
A124: 105 | B124: ADAPTADOR PVC, SOLDAVEL, LONGO, COM FLANGE LIVRE, 85 MM X 3", PARA CAIXA D'AGUA | C124: UN | D124: CR | E124: 262.74
A125: 39719 | B125: ADESIVO / COLA DE CONTATO LIQUIDO, A BASE DE RESINAS, PARA COLAGEM DE ESPUMA PARA ISOLAMENTO TERMICO FLEXIVEL | C125: L | D125: CR | E125: 150.11
A126: 3410 | B126: ADESIVO / COLA PARA EPS (ISOPOR) E OUTROS MATERIAIS | C126: KG | D126: CR | E126: 33.76
A127: 4791 | B127: ADESIVO ACRILICO DE BASE AQUOSA / COLA DE CONTATO | C127: KG | D127: CR | E127: 47.17
A128: 157 | B128: ADESIVO ESTRUTURAL A BASE DE RESINA EPOXI PARA INJECAO EM TRINCAS, BICOMPONENTE, BAIXA VISCOSIDADE | C128: KG | D128: CR | E128: 168.4
A129: 156 | B129: ADESIVO ESTRUTURAL A BASE DE RESINA EPOXI, BICOMPONENTE, FLUIDO | C129: KG | D129: CR | E129: 59.96
A130: 131 | B130: ADESIVO ESTRUTURAL A BASE DE RESINA EPOXI, BICOMPONENTE, PASTOSO (TIXOTROPICO) | C130: KG | D130: CR | E130: 51.27
A131: 21114 | B131: ADESIVO PARA TUBOS CPVC, *75* G | C131: UN | D131: CR | E131: 29.59
A132: 119 | B132: ADESIVO PLASTICO PARA PVC, BISNAGA COM 75 GR | C132: UN | D132: C | E132: 7.5
A133: 122 | B133: ADESIVO PLASTICO PARA PVC, FRASCO COM *850* GR | C133: UN | D133: CR | E133: 57.7
A134: 20080 | B134: ADESIVO PLASTICO PARA PVC, FRASCO COM 175 GR | C134: UN | D134: CR | E134: 18.83
A135: 124 | B135: ADITIVO ACELERADOR DE PEGA E ENDURECIMENTO PARA ARGAMASSAS E CONCRETOS, LIQUIDO E ISENTO DE CLORETOS | C135: L | D135: CR | E135: 19.77
A136: 7334 | B136: ADITIVO ADESIVO LIQUIDO PARA ARGAMASSAS DE REVESTIMENTOS CIMENTICIOS | C136: L | D136: CR | E136: 16.58
A137: 45146 | B137: ADITIVO IMPERMEABILIZANTE CRISTALIZANTE PARA CONCRETO | C137: KG | D137: CR | E137: 37.92
A138: 123 | B138: ADITIVO IMPERMEABILIZANTE DE PEGA NORMAL PARA ARGAMASSAS E CONCRETOS SEM ARMACAO, LIQUIDO E ISENTO DE CLORETOS | C138: L | D138: C | E138: 8.09
A139: 127 | B139: ADITIVO IMPERMEABILIZANTE DE PEGA ULTRARRAPIDA, LIQUIDO E ISENTO DE CLORETOS | C139: L | D139: CR | E139: 19.31
A140: 133 | B140: ADITIVO LIQUIDO INCORPORADOR DE AR PARA CONCRETO E ARGAMASSA, LIQUIDO E ISENTO DE CLORETOS | C140: L | D140: CR | E140: 8.02
A141: 43617 | B141: ADITIVO PLASTIFICANTE E ESTABILIZADOR PARA ARGAMASSAS DE ASSENTAMENTO E REBOCO, LIQUIDO E ISENTO DE CLORETOS | C141: L | D141: CR | E141: 8.96
A142: 132 | B142: ADITIVO PLASTIFICANTE RETARDADOR DE PEGA E REDUTOR DE AGUA PARA CONCRETO, LIQUIDO E ISENTO DE CLORETOS | C142: L | D142: CR | E142: 8.31
A143: 43618 | B143: ADITIVO SUPERPLASTIFICANTE DE PEGA NORMAL PARA CONCRETO, LIQUIDO E ISENTO DE CLORETOS | C143: KG | D143: CR | E143: 20.93
A144: 37476 | B144: ADUELA/ GALERIA PRE-MOLDADA DE CONCRETO ARMADO, SECAO QUADRADA INTERNA DE 1,50 X 1,50 M (L X A), MISULA DE 20 X 20 CM, C = 1,00 M, ESPESSURA MIN = 15 CM, TB-45 E FCK DO CONCRETO = 30 MPA | C144: UN | D144: CR | E144: 3128.06
A145: 37478 | B145: ADUELA/ GALERIA PRE-MOLDADA DE CONCRETO ARMADO, SECAO RETANGULAR INTERNA DE 2,00 X 2,00 M (L X A), MISULA DE 20 X 20 CM, C = 1,00 M, ESPESSURA MIN = 15 CM, TB-45 E FCK DO CONCRETO = 30 MPA | C145: UN | D145: CR | E145: 3917.98
A146: 37477 | B146: ADUELA/ GALERIA PRE-MOLDADA DE CONCRETO ARMADO, SECAO RETANGULAR INTERNA DE 2,50 X 2,50 M (L X A), MISULA DE 20 X 20 CM, C = 1,00 M, ESPESSURA MIN = 15 CM, TB-45 E FCK DO CONCRETO = 30 MPA | C146: UN | D146: CR | E146: 5308.23
A147: 37479 | B147: ADUELA/ GALERIA PRE-MOLDADA DE CONCRETO ARMADO, SECAO RETANGULAR INTERNA DE 3,00 X 3,00 M (L X A), MISULA DE 20 X 20 CM, C = 1.00 M, ESPESSURA MIN = 20 CM, TB-45 E FCK DO CONCRETO = 30 MPA | C147: UN | D147: CR | E147: 6295.63
A148: 4319 | B148: AFASTADOR PARA TELHA DE FIBROCIMENTO CANALETE 90 OU KALHETAO | C148: UN | D148: CR | E148: 1.44
A149: 42409 | B149: AGENTE DE CURA, PROTETOR DA EVAPORACAO DA AGUA DE HIDRATACAO DO CONCRETO | C149: KG | D149: CR | E149: 13.18
A150: 40553 | B150: AGREGADO RECICLADO, TIPO RACHAO RECICLADO CINZA, CLASSE A | C150: M3 | D150: AS | E150: 60
A151: 6114 | B151: AJUDANTE DE ARMADOR (HORISTA) | C151: H | D151: CR | E151: 16.75
A152: 40912 | B152: AJUDANTE DE ARMADOR (MENSALISTA) | C152: MES | D152: CR | E152: 2929.3
A153: 247 | B153: AJUDANTE DE ELETRICISTA (HORISTA) | C153: H | D153: CR | E153: 16.75
A154: 40919 | B154: AJUDANTE DE ELETRICISTA (MENSALISTA) | C154: MES | D154: CR | E154: 2929.3
A155: 44499 | B155: AJUDANTE DE ESTRUTURAS METALICAS (HORISTA) | C155: H | D155: CR | E155: 16.75
A156: 40984 | B156: AJUDANTE DE ESTRUTURAS METALICAS (MENSALISTA) | C156: MES | D156: CR | E156: 2929.3
A157: 248 | B157: AJUDANTE DE OPERACAO EM GERAL (HORISTA) | C157: H | D157: CR | E157: 16.9
A158: 41086 | B158: AJUDANTE DE OPERACAO EM GERAL (MENSALISTA) | C158: MES | D158: CR | E158: 2955.26
A159: 34466 | B159: AJUDANTE DE PINTOR (HORISTA) | C159: H | D159: CR | E159: 16.75
A160: 41083 | B160: AJUDANTE DE PINTOR (MENSALISTA) | C160: MES | D160: CR | E160: 2929.3
A161: 252 | B161: AJUDANTE DE SERRALHEIRO (HORISTA) | C161: H | D161: CR | E161: 16.75
A162: 40909 | B162: AJUDANTE DE SERRALHEIRO (MENSALISTA) | C162: MES | D162: CR | E162: 2929.3
A163: 242 | B163: AJUDANTE ESPECIALIZADO (HORISTA) | C163: H | D163: CR | E163: 16.9
A164: 41085 | B164: AJUDANTE ESPECIALIZADO (MENSALISTA) | C164: MES | D164: CR | E164: 2955.26
A165: 427 | B165: ALCA PREFORMADA DE CONTRA POSTE, EM ACO GALVANIZADO, PARA CABO 3/16", COMPRIMENTO *860* MM | C165: UN | D165: AS | E165: 6.55
A166: 417 | B166: ALCA PREFORMADA DE DISTRIBUICAO, EM ACO GALVANIZADO, PARA CABO DE ALUMINIO DIAMETRO 16 A 25 MM | C166: UN | D166: AS | E166: 3.08
A167: 11273 | B167: ALCA PREFORMADA DE DISTRIBUICAO, EM ACO GALVANIZADO, PARA CONDUTORES DE ALUMINIO AWG 1/0 (CAA 6/1 OU CA 7 FIOS) | C167: UN | D167: AS | E167: 9.58
A168: 11272 | B168: ALCA PREFORMADA DE DISTRIBUICAO, EM ACO GALVANIZADO, PARA CONDUTORES DE ALUMINIO AWG 2 (CAA 6/1 OU CA 7 FIOS) | C168: UN | D168: AS | E168: 5.78
A169: 11275 | B169: ALCA PREFORMADA DE SERVICO, EM ACO GALVANIZADO, PARA CONDUTORES DE ALUMINIO AWG 4 (CAA 6/1) | C169: UN | D169: AS | E169: 2.32
A170: 11274 | B170: ALCA PREFORMADA DE SERVICO, EM ACO GALVANIZADO, PARA CONDUTORES DE ALUMINIO AWG 6 (CAA 6/1) | C170: UN | D170: AS | E170: 1.77
A171: 38470 | B171: ALICATE DE CORTE DIAGONAL 6" COM ISOLAMENTO | C171: UN | D171: C | E171: 39.99
A172: 38547 | B172: ALICATE DE CRIMPAR RJ11, RJ12 E RJ45 | C172: UN | D172: CR | E172: 109.12
A173: 38469 | B173: ALICATE DE PRESSAO PARA SOLDA DE CHAPA 18" | C173: UN | D173: CR | E173: 117.34
A174: 38467 | B174: ALICATE DE PRESSAO 11" PARA SOLDA, TIPO C | C174: UN | D174: CR | E174: 66.02
A175: 38468 | B175: ALICATE DE PRESSAO 11" PARA SOLDA, TIPO U | C175: UN | D175: CR | E175: 72.65
A176: 38471 | B176: ALICATE PARA ANEIS DE PISTAO, CAPACIDADE 50 A 100 MM | C176: UN | D176: CR | E176: 94.35
A177: 37370 | B177: ALIMENTACAO - HORISTA (COLETADO CAIXA - ENCARGOS COMPLEMENTARES) | C177: H | D177: C | E177: 1.02
A178: 40862 | B178: ALIMENTACAO - MENSALISTA (COLETADO CAIXA - ENCARGOS COMPLEMENTARES) | C178: MES | D178: C | E178: 192.94
A179: 10658 | B179: ALISADORA DE CONCRETO COM MOTOR A GASOLINA DE 5,5 HP, PESO COM MOTOR DE 78 KG, 4 PAS | C179: UN | D179: AS | E179: 7709
A180: 253 | B180: ALMOXARIFE (HORISTA) | C180: H | D180: C | E180: 20.99
A181: 40809 | B181: ALMOXARIFE (MENSALISTA) | C181: MES | D181: CR | E181: 3668.94
A182: 42428 | B182: ALONGADOR COM TRES ALTURAS, EM TUBO DE ACO CARBONO, PINTURA NO PROCESSO ELETROSTATICO - EQUIPAMENTO DE GINASTICA PARA ACADEMIA AO AR LIVRE / ACADEMIA DA TERCEIRA IDADE - ATI | C182: UN | D182: AS | E182: 2271
A183: 301 | B183: ANEL BORRACHA PARA TUBO ESGOTO PREDIAL, DN 100 MM (NBR 5688) | C183: UN | D183: C | E183: 4
A184: 296 | B184: ANEL BORRACHA PARA TUBO ESGOTO PREDIAL, DN 50 MM (NBR 5688) | C184: UN | D184: CR | E184: 2.26
A185: 297 | B185: ANEL BORRACHA PARA TUBO ESGOTO PREDIAL, DN 75 MM (NBR 5688) | C185: UN | D185: CR | E185: 3.32
A186: 299 | B186: ANEL BORRACHA, DN 100 MM, PARA TUBO SERIE REFORCADA ESGOTO PREDIAL | C186: UN | D186: CR | E186: 4.69
A187: 300 | B187: ANEL BORRACHA, DN 150 MM, PARA TUBO SERIE REFORCADA ESGOTO PREDIAL | C187: UN | D187: CR | E187: 16.24
A188: 20085 | B188: ANEL BORRACHA, DN 50 MM, PARA TUBO SERIE REFORCADA ESGOTO PREDIAL | C188: UN | D188: CR | E188: 2.97
A189: 298 | B189: ANEL BORRACHA, DN 75 MM, PARA TUBO SERIE REFORCADA ESGOTO PREDIAL | C189: UN | D189: CR | E189: 3.61
A190: 311 | B190: ANEL BORRACHA, PARA TUBO PVC DEFOFO, DN 100 MM (NBR 7665) | C190: UN | D190: CR | E190: 13.39
A191: 318 | B191: ANEL BORRACHA, PARA TUBO PVC DEFOFO, DN 150 MM (NBR 7665) | C191: UN | D191: CR | E191: 26.97
A192: 319 | B192: ANEL BORRACHA, PARA TUBO PVC DEFOFO, DN 200 MM (NBR 7665) | C192: UN | D192: CR | E192: 42.28
A193: 303 | B193: ANEL BORRACHA, PARA TUBO PVC, REDE COLETOR ESGOTO, DN 100 MM (NBR 7362) | C193: UN | D193: CR | E193: 4.43
A194: 305 | B194: ANEL BORRACHA, PARA TUBO PVC, REDE COLETOR ESGOTO, DN 150 MM (NBR 7362) | C194: UN | D194: CR | E194: 13.94
A195: 306 | B195: ANEL BORRACHA, PARA TUBO PVC, REDE COLETOR ESGOTO, DN 200 MM (NBR 7362) | C195: UN | D195: CR | E195: 21.14
A196: 307 | B196: ANEL BORRACHA, PARA TUBO PVC, REDE COLETOR ESGOTO, DN 250 MM (NBR 7362) | C196: UN | D196: CR | E196: 53.41
A197: 309 | B197: ANEL BORRACHA, PARA TUBO PVC, REDE COLETOR ESGOTO, DN 350 MM (NBR 7362) | C197: UN | D197: CR | E197: 87.49
A198: 310 | B198: ANEL BORRACHA, PARA TUBO PVC, REDE COLETOR ESGOTO, DN 400 MM (NBR 7362) | C198: UN | D198: CR | E198: 121.26
A199: 328 | B199: ANEL BORRACHA, PARA TUBO/CONEXAO PVC PBA, DN 100 MM, PARA REDE AGUA | C199: UN | D199: CR | E199: 10.6
A200: 325 | B200: ANEL BORRACHA, PARA TUBO/CONEXAO PVC PBA, DN 50 MM, PARA REDE AGUA | C200: UN | D200: CR | E200: 3.13
A201: 20326 | B201: ANEL BORRACHA, PARA TUBO/CONEXAO PVC PBA, DN 60 MM, PARA REDE AGUA | C201: UN | D201: CR | E201: 5.72
A202: 329 | B202: ANEL BORRACHA, PARA TUBO/CONEXAO PVC PBA, DN 75 MM, PARA REDE AGUA | C202: UN | D202: CR | E202: 8.86
... 4618 more rows

Sheet COMP Sint. Sinapi (hidden)
A1: PCI.817.01 - CUSTO DE COMPOSIÇÕES - SINTÉTICO DATA DE EMISSÃO: 10/10/2024 23:43:30 DATA DE RT: 10/10/2024
A2: ENCARGOS SOCIAIS SOBRE PREÇOS DA MÃO-DE-OBRA: 113,98%(HORA) 70,00%(MÊS)
A3: ABRANGÊNCIA : NACIONAL LOCALIDADE : RECIFE DATA DE PREÇO : 09/2024 REFERÊNCIA COLETA : MEDIANO
A5: DESCRICAO DA CLASSE | B5: SIGLA DA CLASSE | C5: DESCRICAO DO TIPO 1 | D5: SIGLA DO TIPO 1 | E5: CODIGO DO AGRUPADOR | F5: DESCRICAO DO AGRUPADOR | G5: CODIGO DA COMPOSICAO | H5: DESCRICAO DA COMPOSICAO | I5: UNIDADE | J5: ORIGEM DE PREÇO | K5: CUSTO TOTAL | L5: VINCULO
A7: ASSENTAMENTO DE TUBOS E PECAS | B7: ASTU | C7: FORNEC E/OU ASSENT DE TUBO DE FERRO FUNDIDO JUNTA ELASTICA | D7: 45 | G7: 97141 | H7: ASSENTAMENTO DE TUBO DE FERRO FUNDIDO PARA REDE DE ÁGUA, DN 80 MM, JUNTA ELÁSTICA, INSTALADO EM LOCAL COM NÍVEL ALTO DE INTERFERÊNCIAS (NÃO INCLUI FORNECIMENTO). AF_05/2024 | I7: M | J7: COEFICIENTE DE REPRESENTATIVIDADE | K7: 5.03 | L7: CAIXA REFERENCIAL
A8: ASSENTAMENTO DE TUBOS E PECAS | B8: ASTU | C8: FORNEC E/OU ASSENT DE TUBO DE FERRO FUNDIDO JUNTA ELASTICA | D8: 45 | G8: 97142 | H8: ASSENTAMENTO DE TUBO DE FERRO FUNDIDO PARA REDE DE ÁGUA, DN 100 MM, JUNTA ELÁSTICA, INSTALADO EM LOCAL COM NÍVEL ALTO DE INTERFERÊNCIAS (NÃO INCLUI FORNECIMENTO). AF_05/2024 | I8: M | J8: COEFICIENTE DE REPRESENTATIVIDADE | K8: 5.81 | L8: CAIXA REFERENCIAL
A9: ASSENTAMENTO DE TUBOS E PECAS | B9: ASTU | C9: FORNEC E/OU ASSENT DE TUBO DE FERRO FUNDIDO JUNTA ELASTICA | D9: 45 | G9: 97143 | H9: ASSENTAMENTO DE TUBO DE FERRO FUNDIDO PARA REDE DE ÁGUA, DN 150 MM, JUNTA ELÁSTICA, INSTALADO EM LOCAL COM NÍVEL ALTO DE INTERFERÊNCIAS (NÃO INCLUI FORNECIMENTO). AF_05/2024 | I9: M | J9: COEFICIENTE DE REPRESENTATIVIDADE | K9: 7.63 | L9: CAIXA REFERENCIAL
A10: ASSENTAMENTO DE TUBOS E PECAS | B10: ASTU | C10: FORNEC E/OU ASSENT DE TUBO DE FERRO FUNDIDO JUNTA ELASTICA | D10: 45 | G10: 97144 | H10: ASSENTAMENTO DE TUBO DE FERRO FUNDIDO PARA REDE DE ÁGUA, DN 200 MM, JUNTA ELÁSTICA, INSTALADO EM LOCAL COM NÍVEL ALTO DE INTERFERÊNCIAS (NÃO INCLUI FORNECIMENTO). AF_05/2024 | I10: M | J10: COEFICIENTE DE REPRESENTATIVIDADE | K10: 9.49 | L10: CAIXA REFERENCIAL
A11: ASSENTAMENTO DE TUBOS E PECAS | B11: ASTU | C11: FORNEC E/OU ASSENT DE TUBO DE FERRO FUNDIDO JUNTA ELASTICA | D11: 45 | G11: 97145 | H11: ASSENTAMENTO DE TUBO DE FERRO FUNDIDO PARA REDE DE ÁGUA, DN 250 MM, JUNTA ELÁSTICA, INSTALADO EM LOCAL COM NÍVEL ALTO DE INTERFERÊNCIAS (NÃO INCLUI FORNECIMENTO). AF_05/2024 | I11: M | J11: COEFICIENTE DE REPRESENTATIVIDADE | K11: 11.36 | L11: CAIXA REFERENCIAL
A12: ASSENTAMENTO DE TUBOS E PECAS | B12: ASTU | C12: FORNEC E/OU ASSENT DE TUBO DE FERRO FUNDIDO JUNTA ELASTICA | D12: 45 | G12: 97146 | H12: ASSENTAMENTO DE TUBO DE FERRO FUNDIDO PARA REDE DE ÁGUA, DN 300 MM, JUNTA ELÁSTICA, INSTALADO EM LOCAL COM NÍVEL ALTO DE INTERFERÊNCIAS (NÃO INCLUI FORNECIMENTO). AF_05/2024 | I12: M | J12: COEFICIENTE DE REPRESENTATIVIDADE | K12: 13.22 | L12: CAIXA REFERENCIAL
A13: ASSENTAMENTO DE TUBOS E PECAS | B13: ASTU | C13: FORNEC E/OU ASSENT DE TUBO DE FERRO FUNDIDO JUNTA ELASTICA | D13: 45 | G13: 97147 | H13: ASSENTAMENTO DE TUBO DE FERRO FUNDIDO PARA REDE DE ÁGUA, DN 350 MM, JUNTA ELÁSTICA, INSTALADO EM LOCAL COM NÍVEL ALTO DE INTERFERÊNCIAS (NÃO INCLUI FORNECIMENTO). AF_05/2024 | I13: M | J13: COEFICIENTE DE REPRESENTATIVIDADE | K13: 15.08 | L13: CAIXA REFERENCIAL
A14: ASSENTAMENTO DE TUBOS E PECAS | B14: ASTU | C14: FORNEC E/OU ASSENT DE TUBO DE FERRO FUNDIDO JUNTA ELASTICA | D14: 45 | G14: 97148 | H14: ASSENTAMENTO DE TUBO DE FERRO FUNDIDO PARA REDE DE ÁGUA, DN 400 MM, JUNTA ELÁSTICA, INSTALADO EM LOCAL COM NÍVEL ALTO DE INTERFERÊNCIAS (NÃO INCLUI FORNECIMENTO). AF_05/2024 | I14: M | J14: COEFICIENTE DE REPRESENTATIVIDADE | K14: 16.95 | L14: CAIXA REFERENCIAL
A15: ASSENTAMENTO DE TUBOS E PECAS | B15: ASTU | C15: FORNEC E/OU ASSENT DE TUBO DE FERRO FUNDIDO JUNTA ELASTICA | D15: 45 | G15: 97149 | H15: ASSENTAMENTO DE TUBO DE FERRO FUNDIDO PARA REDE DE ÁGUA, DN 450 MM, JUNTA ELÁSTICA, INSTALADO EM LOCAL COM NÍVEL ALTO DE INTERFERÊNCIAS (NÃO INCLUI FORNECIMENTO). AF_05/2024 | I15: M | J15: COEFICIENTE DE REPRESENTATIVIDADE | K15: 18.85 | L15: CAIXA REFERENCIAL
A16: ASSENTAMENTO DE TUBOS E PECAS | B16: ASTU | C16: FORNEC E/OU ASSENT DE TUBO DE FERRO FUNDIDO JUNTA ELASTICA | D16: 45 | G16: 97150 | H16: ASSENTAMENTO DE TUBO DE FERRO FUNDIDO PARA REDE DE ÁGUA, DN 500 MM, JUNTA ELÁSTICA, INSTALADO EM LOCAL COM NÍVEL ALTO DE INTERFERÊNCIAS (NÃO INCLUI FORNECIMENTO). AF_05/2024 | I16: M | J16: COEFICIENTE DE REPRESENTATIVIDADE | K16: 23.59 | L16: CAIXA REFERENCIAL
A17: ASSENTAMENTO DE TUBOS E PECAS | B17: ASTU | C17: FORNEC E/OU ASSENT DE TUBO DE FERRO FUNDIDO JUNTA ELASTICA | D17: 45 | G17: 97151 | H17: ASSENTAMENTO DE TUBO DE FERRO FUNDIDO PARA REDE DE ÁGUA, DN 600 MM, JUNTA ELÁSTICA, INSTALADO EM LOCAL COM NÍVEL ALTO DE INTERFERÊNCIAS (NÃO INCLUI FORNECIMENTO). AF_05/2024 | I17: M | J17: COEFICIENTE DE REPRESENTATIVIDADE | K17: 27.79 | L17: CAIXA REFERENCIAL
A18: ASSENTAMENTO DE TUBOS E PECAS | B18: ASTU | C18: FORNEC E/OU ASSENT DE TUBO DE FERRO FUNDIDO JUNTA ELASTICA | D18: 45 | G18: 97152 | H18: ASSENTAMENTO DE TUBO DE FERRO FUNDIDO PARA REDE DE ÁGUA, DN 700 MM, JUNTA ELÁSTICA, INSTALADO EM LOCAL COM NÍVEL ALTO DE INTERFERÊNCIAS (NÃO INCLUI FORNECIMENTO). AF_05/2024 | I18: M | J18: COEFICIENTE DE REPRESENTATIVIDADE | K18: 31.76 | L18: CAIXA REFERENCIAL
A19: ASSENTAMENTO DE TUBOS E PECAS | B19: ASTU | C19: FORNEC E/OU ASSENT DE TUBO DE FERRO FUNDIDO JUNTA ELASTICA | D19: 45 | G19: 97153 | H19: ASSENTAMENTO DE TUBO DE FERRO FUNDIDO PARA REDE DE ÁGUA, DN 800 MM, JUNTA ELÁSTICA, INSTALADO EM LOCAL COM NÍVEL ALTO DE INTERFERÊNCIAS (NÃO INCLUI FORNECIMENTO). AF_05/2024 | I19: M | J19: COEFICIENTE DE REPRESENTATIVIDADE | K19: 35.87 | L19: CAIXA REFERENCIAL
A20: ASSENTAMENTO DE TUBOS E PECAS | B20: ASTU | C20: FORNEC E/OU ASSENT DE TUBO DE FERRO FUNDIDO JUNTA ELASTICA | D20: 45 | G20: 97154 | H20: ASSENTAMENTO DE TUBO DE FERRO FUNDIDO PARA REDE DE ÁGUA, DN 900 MM, JUNTA ELÁSTICA, INSTALADO EM LOCAL COM NÍVEL ALTO DE INTERFERÊNCIAS (NÃO INCLUI FORNECIMENTO). AF_05/2024 | I20: M | J20: COEFICIENTE DE REPRESENTATIVIDADE | K20: 40.03 | L20: CAIXA REFERENCIAL
